Workbook

Sheet Ark til TE inkl. brændstofpris
C1: Personbiler, varebiler og lastbiler
C13: Personbiler | D13: benzin
I14: 1 | J14: 2 | K14: 3 | L14: 4 | M14: 5
H15: Gennemsnitlige kørselsomkostninger [kr. per km.] | U15: Marginale kørselsomkostninger, [kr. per år]
C16: Benzinpris ekskl. afgifter og moms [2015-kr. per liter] | D16: Benzinpris inkl. afgifter og moms [2015-kr. per liter] | E16: Årlig vækst i reel invers brændstof-effektivitet | F16: Brændstof-effektivitet [liter/km] | G16: Trafikarbejde, i alt [mio. km] | H16: Gennemsnitlige omkostninger inkl.. afgifter og moms, i alt | I16: Brændstof, inkl. afgifter og moms [kr. per km.] | J16: Motorolie, inkl. afgifter og moms [kr. per km.] | K16: Afskrivninger, inkl. afgifter og moms [kr. per km.] | L16: Reparation og vedligeholdelse, inkl. afgifter og moms [kr. per km.] | M16: Ejerafgift [kr. per km.] | N16: Dæk, inkl. afgifter og moms [kr. per km.] | O16: Gennemsnitlige omkostninger ekskl.. afgifter og moms, i alt [kr. per km.] | P16: Brændstof, ekskl. afgifter og moms [kr. per km.] | Q16: Motorolie, ekskl. afgifter og moms [kr. per km.] | R16: Afskrivninger, ekskl. afgifter og moms [kr. per km.] | S16: Reparation og vedligeholdelse, ekskl. afgifter og moms [kr. per km.] | T16: Dæk, ekskl. afgifter og moms [kr. per km.] | U16: Marginale omkostninger inkl.. afgifter og moms, i alt | V16: Brændstof, inkl. afgifter og moms [kr. per km.] | W16: Motorolie, inkl. afgifter og moms [kr. per km.] | X16: Afskrivninger, inkl. afgifter og moms [kr. per km.] | Y16: Reparation og vedligeholdelse, inkl. afgifter og moms [kr. per km.] | Z16: Dæk, inkl. afgifter og moms [kr. per km.] | AA16: Marginale omkostninger ekskl.. afgifter og moms, i alt [kr. per km.] | AB16: Brændstof, ekskl. afgifter og moms [kr. per km.] | AC16: Motorolie, ekskl. afgifter og moms [kr. per km.] | AD16: Afskrivninger, ekskl. afgifter og moms [kr. per km.] | AE16: Reparation og vedligeholdelse, ekskl. afgifter og moms [kr. per km.] | AF16: Dæk, ekskl. afgifter og moms [kr. per km.]
B17: 2010 | C17: 4.91726594 | D17: 11.84138711 | E17: 0.01689732386 | F17: =F18*(1+E17) -> 0.08571499186 | G17: =G18 -> 22094.23448 | H17: =SUM(I17:N17) -> 3.034627808 | I17: =F17*D17 -> 1.014984399 | J17: =J18 -> 0 | K17: =K18 -> 0.8472634259 | L17: =L18 -> 0.8867205647 | M17: 0.2026981864 | N17: =N18 -> 0.08296123111 | O17: =SUM(P17:T17) -> 1.525714318 | P17: =C17*F17 -> 0.42148341 | Q17: =Q18 -> 0 | R17: =R18 -> 0.3491469212 | S17: =S18 -> 0.6887150017 | T17: =T18 -> 0.06636898489 | U17: =SUM(V17:Z17) -> 1.45087712 | V17: =D17*F17 -> 1.014984399 | W17: =W18 -> 0 | X17: =X18 -> 0.1267696883 | Y17: =Y18 -> 0.2261618007 | Z17: =Z18 -> 0.08296123111 | AA17: =SUM(AB17:AF17) -> 0.7198608709 | AB17: =C17*F17 -> 0.42148341 | AC17: =AC18 -> 0 | AD17: =AD18 -> 0.05634882503 | AE17: =AE18 -> 0.175659651 | AF17: =AF18 -> 0.06636898489
B18: =1+B17 -> 2011 | C18: 5.85255765 | D18: 12.96655305 | E18: 0.01474507931 | F18: 0.08429070452 | G18: 22094.23448 | H18: 3.1126033 | I18: 1.092959892 | J18: 0 | K18: 0.8472634259 | L18: 0.8867205647 | M18: 0.2026981864 | N18: 0.08296123111 | O18: 1.597547115 | P18: 0.4933162075 | Q18: 0 | R18: 0.3491469212 | S18: 0.6887150017 | T18: 0.06636898489 | U18: 1.528852612 | V18: 1.092959892 | W18: 0 | X18: 0.1267696883 | Y18: 0.2261618007 | Z18: 0.08296123111 | AA18: 0.7916936685 | AB18: 0.4933162075 | AC18: 0 | AD18: 0.05634882503 | AE18: 0.175659651 | AF18: 0.06636898489
B19: 2012 | C19: 6.346205086 | D19: 13.46934472 | E19: 0.0045757361 | F19: 0.08306589137 | G19: 22094.23448 | H19: 3.138486533 | I19: 1.118843125 | J19: 0 | K19: 0.8472634259 | L19: 0.8867205647 | M19: 0.2026981864 | N19: 0.08296123111 | O19: 1.63138409 | P19: 0.5271531822 | Q19: 0 | R19: 0.3491469212 | S19: 0.6887150017 | T19: 0.06636898489 | U19: 1.554735845 | V19: 1.118843125 | W19: 0 | X19: 0.1267696883 | Y19: 0.2261618007 | Z19: 0.08296123111 | AA19: 0.8255306432 | AB19: 0.5271531822 | AC19: 0 | AD19: 0.05634882503 | AE19: 0.175659651 | AF19: 0.06636898489
B20: 2013 | C20: 6.010471606 | D20: 13.1029949 | E20: 0.002774160272 | F20: 0.08268753503 | G20: 22094.23448 | H20: 3.103097758 | I20: 1.08345435 | J20: 0 | K20: 0.8472634259 | L20: 0.8867205647 | M20: 0.2026981864 | N20: 0.08296123111 | O20: 1.601221989 | P20: 0.4969910815 | Q20: 0 | R20: 0.3491469212 | S20: 0.6887150017 | T20: 0.06636898489 | U20: 1.51934707 | V20: 1.08345435 | W20: 0 | X20: 0.1267696883 | Y20: 0.2261618007 | Z20: 0.08296123111 | AA20: 0.7953685424 | AB20: 0.4969910815 | AC20: 0 | AD20: 0.05634882503 | AE20: 0.175659651 | AF20: 0.06636898489
B21: 2014 | C21: 5.652761071 | D21: 12.7140344 | E21: 0.010829727 | F21: =F22*(1+E21) -> 0.08245878115 | G21: =G22 -> 22094.23448 | H21: 3.068027188 | I21: =F21*D21 -> 1.04838378 | J21: =J22 -> 0 | K21: =K22 -> 0.8472634259 | L21: =L22 -> 0.8867205647 | M21: 0.2026981864 | N21: 0.08296123111 | O21: =SUM(P21:T21) -> 1.570350696 | P21: 0.466119788 | Q21: =Q22 -> 0 | R21: 0.3491469212 | S21: 0.6887150017 | T21: 0.06636898489 | U21: =SUM(V21:Z21) -> 1.4842765 | V21: 1.04838378 | W21: =W22 -> 0 | X21: 0.1267696883 | Y21: 0.2261618007 | Z21: 0.08296123111 | AA21: =SUM(AB21:AF21) -> 0.764497249 | AB21: 0.466119788 | AC21: =AC22 -> 0 | AD21: 0.05634882503 | AE21: 0.175659651 | AF21: 0.06636898489
B22: 2015 | C22: 4.707880435 | D22: 11.59485054 | F22: ='Resultat - niveau I'!$E$12 -> 0.08157534247 | G22: ='Resultat - niveau I'!$F$12 -> 22094.23448 | H22: 2.965497312 | I22: =F22*D22 -> 0.9458539039 | J22: ='Resultat - niveau I'!$I$12 -> 0 | K22: ='Resultat - niveau I'!$J$12 -> 0.8472634259 | L22: ='Resultat - niveau I'!$K$12 -> 0.8867205647 | M22: ='Resultat - niveau I'!$L$12 -> 0.2026981864 | N22: ='Resultat - niveau I'!$M$12 -> 0.08296123111 | O22: =SUM(P22:T22) -> 1.488277867 | P22: 0.3840469588 | Q22: ='Resultat - niveau I'!$P$12 -> 0 | R22: ='Resultat - niveau I'!$Q$12 -> 0.3491469212 | S22: ='Resultat - niveau I'!$R$12 -> 0.6887150017 | T22: ='Resultat - niveau I'!$S$12 -> 0.06636898489 | U22: =SUM(V22:Z22) -> 1.381746624 | V22: 0.9458539039 | W22: ='Resultat - niveau I'!$V$12 -> 0 | X22: ='Resultat - niveau I'!$W$12 -> 0.1267696883 | Y22: ='Resultat - niveau I'!$X$12 -> 0.2261618007 | Z22: ='Resultat - niveau I'!$Y$12 -> 0.08296123111 | AA22: =SUM(AB22:AF22) -> 0.6824244197 | AB22: 0.3840469588 | AC22: ='Resultat - niveau I'!$AB$12 -> 0 | AD22: ='Resultat - niveau I'!$AC$12 -> 0.05634882503 | AE22: ='Resultat - niveau I'!$AD$12 -> 0.175659651 | AF22: ='Resultat - niveau I'!$AE$12 -> 0.06636898489
B23: =1+B22 -> 2016 | C23: 4.109711427 | D23: 10.82832028 | E23: -0.006928027695 | F23: =F22*(1+E23) -> 0.08101018623 | G23: =G22 -> 22094.23448 | H23: 2.896847651 | I23: =F23*D23 -> 0.8772042424 | J23: =J22 -> 0 | K23: =K22 -> 0.8472634259 | L23: =L22 -> 0.8867205647 | M23: =M22 -> 0.2026981864 | N23: =N22 -> 0.08296123111 | O23: =SUM(P23:T23) -> 1.437159396 | P23: 0.3329284881 | Q23: =Q22 -> 0 | R23: =R22 -> 0.3491469212 | S23: =S22 -> 0.6887150017 | T23: =T22 -> 0.06636898489 | U23: =SUM(V23:Z23) -> 1.313096963 | V23: 0.8772042424 | W23: =W22 -> 0 | X23: =X22 -> 0.1267696883 | Y23: =Y22 -> 0.2261618007 | Z23: =Z22 -> 0.08296123111 | AA23: =SUM(AB23:AF23) -> 0.631305949 | AB23: 0.3329284881 | AC23: =AC22 -> 0 | AD23: =AD22 -> 0.05634882503 | AE23: =AE22 -> 0.175659651 | AF23: =AF22 -> 0.06636898489
B24: =1+B23 -> 2017 | C24: 4.332851401 | D24: 11.03021747 | E24: -0.008886719899 | F24: =F23*(1+E24) -> 0.0802902714 | G24: =G23 -> 22094.23448 | H24: 2.905262562 | I24: 0.8856191539 | J24: =J23 -> 0 | K24: 0.8472634259 | L24: 0.8867205647 | M24: =M23 -> 0.2026981864 | N24: 0.08296123111 | O24: 1.452116723 | P24: 0.347885815 | Q24: =Q23 -> 0 | R24: 0.3491469212 | S24: 0.6887150017 | T24: 0.06636898489 | U24: 1.321511874 | V24: 0.8856191539 | W24: =W23 -> 0 | X24: 0.1267696883 | Y24: 0.2261618007 | Z24: 0.08296123111 | AA24: 0.6462632759 | AB24: 0.347885815 | AC24: =AC23 -> 0 | AD24: 0.05634882503 | AE24: 0.175659651 | AF24: 0.06636898489
B25: =1+B24 -> 2018 | C25: 4.420897502 | D25: 11.14027509 | E25: -0.01001050181 | F25: 0.07948652549 | G25: 22094.23448 | H25: 2.905145168 | I25: 0.88550176 | J25: 0 | K25: 0.8472634259 | L25: 0.8867205647 | M25: =M24 -> 0.2026981864 | N25: 0.08296123111 | O25: 1.45563269 | P25: 0.351401782 | Q25: 0 | R25: 0.3491469212 | S25: 0.6887150017 | T25: 0.06636898489 | U25: 1.32139448 | V25: 0.88550176 | W25: 0 | X25: 0.1267696883 | Y25: 0.2261618007 | Z25: 0.08296123111 | AA25: 0.6497792429 | AB25: 0.351401782 | AC25: 0 | AD25: 0.05634882503 | AE25: 0.175659651 | AF25: 0.06636898489
B26: 2019 | C26: 4.463290068 | D26: 11.1932658 | E26: -0.01289609441 | F26: 0.07846145976 | G26: 22094.23448 | H26: 2.897883382 | I26: 0.878239974 | J26: 0 | K26: 0.8472634259 | L26: 0.8867205647 | M26: =M25 -> 0.2026981864 | N26: 0.08296123111 | O26: 1.454427162 | P26: 0.3501962541 | Q26: 0 | R26: 0.3491469212 | S26: 0.6887150017 | T26: 0.06636898489 | U26: 1.314132694 | V26: 0.878239974 | W26: 0 | X26: 0.1267696883 | Y26: 0.2261618007 | Z26: 0.08296123111 | AA26: 0.648573715 | AB26: 0.3501962541 | AC26: 0 | AD26: 0.05634882503 | AE26: 0.175659651 | AF26: 0.06636898489
B27: 2020 | C27: 4.606772602 | D27: 11.37261897 | E27: -0.01428862198 | F27: 0.07734035362 | G27: 22094.23448 | H27: 2.899205781 | I27: 0.8795623724 | J27: 0 | K27: 0.8472634259 | L27: 0.8867205647 | M27: =M26 -> 0.2026981864 | N27: 0.08296123111 | O27: 1.46052033 | P27: 0.3562894221 | Q27: 0 | R27: 0.3491469212 | S27: 0.6887150017 | T27: 0.06636898489 | U27: 1.315455093 | V27: 0.8795623724 | W27: 0 | X27: 0.1267696883 | Y27: 0.2261618007 | Z27: 0.08296123111 | AA27: 0.654666883 | AB27: 0.3562894221 | AC27: 0 | AD27: 0.05634882503 | AE27: 0.175659651 | AF27: 0.06636898489
B28: 2021 | C28: 4.786125769 | D28: 11.59681043 | E28: -0.01703961908 | F28: 0.07602250345 | G28: 22094.23448 | H28: 2.901261969 | I28: 0.8816185606 | J28: 0 | K28: 0.8472634259 | L28: 0.8867205647 | M28: =M27 -> 0.2026981864 | N28: 0.08296123111 | O28: 1.468084171 | P28: 0.3638532628 | Q28: 0 | R28: 0.3491469212 | S28: 0.6887150017 | T28: 0.06636898489 | U28: 1.317511281 | V28: 0.8816185606 | W28: 0 | X28: 0.1267696883 | Y28: 0.2261618007 | Z28: 0.08296123111 | AA28: 0.6622307238 | AB28: 0.3638532628 | AC28: 0 | AD28: 0.05634882503 | AE28: 0.175659651 | AF28: 0.06636898489
B29: 2022 | C29: 4.90352057 | D29: 11.74355393 | E29: -0.01838866309 | F29: 0.07462455125 | G29: 22094.23448 | H29: 2.89600085 | I29: 0.8763574418 | J29: 0 | K29: 0.8472634259 | L29: 0.8867205647 | M29: =M28 -> 0.2026981864 | N29: 0.08296123111 | O29: 1.47015393 | P29: 0.365923022 | Q29: 0 | R29: 0.3491469212 | S29: 0.6887150017 | T29: 0.06636898489 | U29: 1.312250162 | V29: 0.8763574418 | W29: 0 | X29: 0.1267696883 | Y29: 0.2261618007 | Z29: 0.08296123111 | AA29: 0.664300483 | AB29: 0.365923022 | AC29: 0 | AD29: 0.05634882503 | AE29: 0.175659651 | AF29: 0.06636898489
B30: 2023 | C30: 5.017654403 | D30: 11.88622122 | E30: -0.0150811707 | F30: 0.07349912565 | G30: 22094.23448 | H30: 2.893270275 | I30: 0.8736268668 | J30: 0 | K30: 0.8472634259 | L30: 0.8867205647 | M30: =M29 -> 0.2026981864 | N30: 0.08296123111 | O30: 1.473024119 | P30: 0.3687932115 | Q30: 0 | R30: 0.3491469212 | S30: 0.6887150017 | T30: 0.06636898489 | U30: 1.309519587 | V30: 0.8736268668 | W30: 0 | X30: 0.1267696883 | Y30: 0.2261618007 | Z30: 0.08296123111 | AA30: 0.6671706724 | AB30: 0.3687932115 | AC30: 0 | AD30: 0.05634882503 | AE30: 0.175659651 | AF30: 0.06636898489
B31: 2024 | C31: 5.125266304 | D31: 12.02073609 | E31: -0.01248265855 | F31: 0.07258166116 | G31: 22094.23448 | H31: 2.892128402 | I31: 0.8724849941 | J31: 0 | K31: 0.8472634259 | L31: 0.8867205647 | M31: =M30 -> 0.2026981864 | N31: 0.08296123111 | O31: 1.47623125 | P31: 0.3720003422 | Q31: 0 | R31: 0.3491469212 | S31: 0.6887150017 | T31: 0.06636898489 | U31: 1.308377714 | V31: 0.8724849941 | W31: 0 | X31: 0.1267696883 | Y31: 0.2261618007 | Z31: 0.08296123111 | AA31: 0.6703778032 | AB31: 0.3720003422 | AC31: 0 | AD31: 0.05634882503 | AE31: 0.175659651 | AF31: 0.06636898489
B32: 2025 | C32: 5.229617237 | D32: 12.15117476 | E32: -0.007940964525 | F32: 0.07200529277 | G32: 22094.23448 | H32: 2.894592304 | I32: 0.8749488961 | J32: 0 | K32: 0.8472634259 | L32: 0.8867205647 | M32: =M31 -> 0.2026981864 | N32: 0.08296123111 | O32: 1.480791028 | P32: 0.3765601202 | Q32: 0 | R32: 0.3491469212 | S32: 0.6887150017 | T32: 0.06636898489 | U32: 1.310841616 | V32: 0.8749488961 | W32: 0 | X32: 0.1267696883 | Y32: 0.2261618007 | Z32: 0.08296123111 | AA32: 0.6749375812 | AB32: 0.3765601202 | AC32: 0 | AD32: 0.05634882503 | AE32: 0.175659651 | AF32: 0.06636898489
B33: 2026 | C33: 5.327446237 | D33: 12.27346101 | E33: -0.007629134112 | F33: 0.07145595473 | G33: 22094.23448 | H33: 2.896655283 | I33: 0.8770118744 | J33: 0 | K33: 0.8472634259 | L33: 0.8867205647 | M33: =M32 -> 0.2026981864 | N33: 0.08296123111 | O33: 1.484908665 | P33: 0.3806777572 | Q33: 0 | R33: 0.3491469212 | S33: 0.6887150017 | T33: 0.06636898489 | U33: 1.312904594 | V33: 0.8770118744 | W33: 0 | X33: 0.1267696883 | Y33: 0.2261618007 | Z33: 0.08296123111 | AA33: 0.6790552181 | AB33: 0.3806777572 | AC33: 0 | AD33: 0.05634882503 | AE33: 0.175659651 | AF33: 0.06636898489
B34: 2027 | C34: 5.418753304 | D34: 12.38759484 | E34: -0.004206950886 | F34: 0.07115534304 | G34: 22094.23448 | H34: 2.901086969 | I34: 0.8814435606 | J34: 0 | K34: 0.8472634259 | L34: 0.8867205647 | M34: =M33 -> 0.2026981864 | N34: 0.08296123111 | O34: 1.489804158 | P34: 0.3855732502 | Q34: 0 | R34: 0.3491469212 | S34: 0.6887150017 | T34: 0.06636898489 | U34: 1.317336281 | V34: 0.8814435606 | W34: 0 | X34: 0.1267696883 | Y34: 0.2261618007 | Z34: 0.08296123111 | AA34: 0.6839507112 | AB34: 0.3855732502 | AC34: 0 | AD34: 0.05634882503 | AE34: 0.175659651 | AF34: 0.06636898489
B35: 2028 | C35: 5.506799405 | D35: 12.49765247 | E35: -0.003677554979 | F35: 0.07089366535 | G35: 22094.23448 | H35: 2.9056478 | I35: 0.8860043919 | J35: 0 | K35: 0.8472634259 | L35: 0.8867205647 | M35: =M34 -> 0.2026981864 | N35: 0.08296123111 | O35: 1.494628102 | P35: 0.3903971942 | Q35: 0 | R35: 0.3491469212 | S35: 0.6887150017 | T35: 0.06636898489 | U35: 1.321897112 | V35: 0.8860043919 | W35: 0 | X35: 0.1267696883 | Y35: 0.2261618007 | Z35: 0.08296123111 | AA35: 0.6887746551 | AB35: 0.3903971942 | AC35: 0 | AD35: 0.05634882503 | AE35: 0.175659651 | AF35: 0.06636898489
B36: 2029 | C36: 5.591584538 | D36: 12.60363389 | E36: -0.003984631125 | F36: 0.07061118025 | G36: 22094.23448 | H36: 2.909600872 | I36: 0.8899574641 | J36: 0 | K36: 0.8472634259 | L36: 0.8867205647 | M36: =M35 -> 0.2026981864 | N36: 0.08296123111 | O36: 1.499059292 | P36: 0.3948283837 | Q36: 0 | R36: 0.3491469212 | S36: 0.6887150017 | T36: 0.06636898489 | U36: 1.325850184 | V36: 0.8899574641 | W36: 0 | X36: 0.1267696883 | Y36: 0.2261618007 | Z36: 0.08296123111 | AA36: 0.6932058446 | AB36: 0.3948283837 | AC36: 0 | AD36: 0.05634882503 | AE36: 0.175659651 | AF36: 0.06636898489
B37: 2030 | C37: 5.669847738 | D37: 12.70146289 | E37: -0.004209257978 | F37: 0.07031395957 | G37: 22094.23448 | H37: 2.912733556 | I37: 0.893090148 | J37: 0 | K37: 0.8472634259 | L37: 0.8867205647 | M37: =M36 -> 0.2026981864 | N37: 0.08296123111 | O37: 1.502900353 | P37: 0.3986694447 | Q37: 0 | R37: 0.3491469212 | S37: 0.6887150017 | T37: 0.06636898489 | U37: 1.328982868 | V37: 0.893090148 | W37: 0 | X37: 0.1267696883 | Y37: 0.2261618007 | Z37: 0.08296123111 | AA37: 0.6970469056 | AB37: 0.3986694447 | AC37: 0 | AD37: 0.05634882503 | AE37: 0.175659651 | AF37: 0.06636898489
B38: 2031 | C38: 5.738328039 | D38: 12.78706326 | E38: 0 | F38: 0.07031395957 | G38: 22094.23448 | H38: 2.918752457 | I38: 0.8991090493 | J38: 0 | K38: 0.8472634259 | L38: 0.8867205647 | M38: =M37 -> 0.2026981864 | N38: 0.08296123111 | O38: 1.507715474 | P38: 0.4034845657 | Q38: 0 | R38: 0.3491469212 | S38: 0.6887150017 | T38: 0.06636898489 | U38: 1.335001769 | V38: 0.8991090493 | W38: 0 | X38: 0.1267696883 | Y38: 0.2261618007 | Z38: 0.08296123111 | AA38: 0.7018620267 | AB38: 0.4034845657 | AC38: 0 | AD38: 0.05634882503 | AE38: 0.175659651 | AF38: 0.06636898489
B39: 2032 | C39: 5.797025439 | D39: 12.86043501 | E39: 0 | F39: 0.07031395957 | G39: 22094.23448 | H39: 2.923911516 | I39: 0.9042681076 | J39: 0 | K39: 0.8472634259 | L39: 0.8867205647 | M39: =M38 -> 0.2026981864 | N39: 0.08296123111 | O39: 1.51184272 | P39: 0.4076118124 | Q39: 0 | R39: 0.3491469212 | S39: 0.6887150017 | T39: 0.06636898489 | U39: 1.340160828 | V39: 0.9042681076 | W39: 0 | X39: 0.1267696883 | Y39: 0.2261618007 | Z39: 0.08296123111 | AA39: 0.7059892733 | AB39: 0.4076118124 | AC39: 0 | AD39: 0.05634882503 | AE39: 0.175659651 | AF39: 0.06636898489
B40: 2033 | C40: 5.849200906 | D40: 12.92565435 | E40: 0 | F40: 0.07031395957 | G40: 22094.23448 | H40: 2.928497345 | I40: 0.9088539371 | J40: 0 | K40: 0.8472634259 | L40: 0.8867205647 | M40: =M39 -> 0.2026981864 | N40: 0.08296123111 | O40: 1.515511384 | P40: 0.411280476 | Q40: 0 | R40: 0.3491469212 | S40: 0.6887150017 | T40: 0.06636898489 | U40: 1.344746657 | V40: 0.9088539371 | W40: 0 | X40: 0.1267696883 | Y40: 0.2261618007 | Z40: 0.08296123111 | AA40: 0.709657937 | AB40: 0.411280476 | AC40: 0 | AD40: 0.05634882503 | AE40: 0.175659651 | AF40: 0.06636898489
B41: 2034 | C41: 5.898115406 | D41: 12.98679747 | E41: 0 | F41: 0.07031395957 | G41: 22094.23448 | H41: 2.932796561 | I41: 0.9131531524 | J41: 0 | K41: 0.8472634259 | L41: 0.8867205647 | M41: =M40 -> 0.2026981864 | N41: 0.08296123111 | O41: 1.518950756 | P41: 0.4147198482 | Q41: 0 | R41: 0.3491469212 | S41: 0.6887150017 | T41: 0.06636898489 | U41: 1.349045872 | V41: 0.9131531524 | W41: 0 | X41: 0.1267696883 | Y41: 0.2261618007 | Z41: 0.08296123111 | AA41: 0.7130973091 | AB41: 0.4147198482 | AC41: 0 | AD41: 0.05634882503 | AE41: 0.175659651 | AF41: 0.06636898489
B42: 2035 | C42: 5.947029906 | D42: 13.0479406 | E42: 0 | F42: 0.07031395957 | G42: 22094.23448 | H42: 2.937095776 | I42: 0.9174523676 | J42: 0 | K42: 0.8472634259 | L42: 0.8867205647 | M42: =M41 -> 0.2026981864 | N42: 0.08296123111 | O42: 1.522390128 | P42: 0.4181592204 | Q42: 0 | R42: 0.3491469212 | S42: 0.6887150017 | T42: 0.06636898489 | U42: 1.353345088 | V42: 0.9174523676 | W42: 0 | X42: 0.1267696883 | Y42: 0.2261618007 | Z42: 0.08296123111 | AA42: 0.7165366813 | AB42: 0.4181592204 | AC42: 0 | AD42: 0.05634882503 | AE42: 0.175659651 | AF42: 0.06636898489
B43: 2036 | C43: 5.947029906 | D43: 13.0479406 | E43: 0 | F43: 0.07031395957 | G43: 22094.23448 | H43: 2.937095776 | I43: 0.9174523676 | J43: 0 | K43: 0.8472634259 | L43: 0.8867205647 | M43: =M42 -> 0.2026981864 | N43: 0.08296123111 | O43: 1.522390128 | P43: 0.4181592204 | Q43: 0 | R43: 0.3491469212 | S43: 0.6887150017 | T43: 0.06636898489 | U43: 1.353345088 | V43: 0.9174523676 | W43: 0 | X43: 0.1267696883 | Y43: 0.2261618007 | Z43: 0.08296123111 | AA43: 0.7165366813 | AB43: 0.4181592204 | AC43: 0 | AD43: 0.05634882503 | AE43: 0.175659651 | AF43: 0.06636898489
B44: 2037 | C44: 5.947029906 | D44: 13.0479406 | E44: 0 | F44: 0.07031395957 | G44: 22094.23448 | H44: 2.937095776 | I44: 0.9174523676 | J44: 0 | K44: 0.8472634259 | L44: 0.8867205647 | M44: =M43 -> 0.2026981864 | N44: 0.08296123111 | O44: 1.522390128 | P44: 0.4181592204 | Q44: 0 | R44: 0.3491469212 | S44: 0.6887150017 | T44: 0.06636898489 | U44: 1.353345088 | V44: 0.9174523676 | W44: 0 | X44: 0.1267696883 | Y44: 0.2261618007 | Z44: 0.08296123111 | AA44: 0.7165366813 | AB44: 0.4181592204 | AC44: 0 | AD44: 0.05634882503 | AE44: 0.175659651 | AF44: 0.06636898489
B45: 2038 | C45: 5.947029906 | D45: 13.0479406 | E45: 0 | F45: 0.07031395957 | G45: 22094.23448 | H45: 2.937095776 | I45: 0.9174523676 | J45: 0 | K45: 0.8472634259 | L45: 0.8867205647 | M45: =M44 -> 0.2026981864 | N45: 0.08296123111 | O45: 1.522390128 | P45: 0.4181592204 | Q45: 0 | R45: 0.3491469212 | S45: 0.6887150017 | T45: 0.06636898489 | U45: 1.353345088 | V45: 0.9174523676 | W45: 0 | X45: 0.1267696883 | Y45: 0.2261618007 | Z45: 0.08296123111 | AA45: 0.7165366813 | AB45: 0.4181592204 | AC45: 0 | AD45: 0.05634882503 | AE45: 0.175659651 | AF45: 0.06636898489
B46: 2039 | C46: 5.947029906 | D46: 13.0479406 | E46: 0 | F46: 0.07031395957 | G46: 22094.23448 | H46: 2.937095776 | I46: 0.9174523676 | J46: 0 | K46: 0.8472634259 | L46: 0.8867205647 | M46: =M45 -> 0.2026981864 | N46: 0.08296123111 | O46: 1.522390128 | P46: 0.4181592204 | Q46: 0 | R46: 0.3491469212 | S46: 0.6887150017 | T46: 0.06636898489 | U46: 1.353345088 | V46: 0.9174523676 | W46: 0 | X46: 0.1267696883 | Y46: 0.2261618007 | Z46: 0.08296123111 | AA46: 0.7165366813 | AB46: 0.4181592204 | AC46: 0 | AD46: 0.05634882503 | AE46: 0.175659651 | AF46: 0.06636898489
B47: 2040 | C47: 5.947029906 | D47: 13.0479406 | E47: 0 | F47: 0.07031395957 | G47: 22094.23448 | H47: 2.937095776 | I47: 0.9174523676 | J47: 0 | K47: 0.8472634259 | L47: 0.8867205647 | M47: =M46 -> 0.2026981864 | N47: 0.08296123111 | O47: 1.522390128 | P47: 0.4181592204 | Q47: 0 | R47: 0.3491469212 | S47: 0.6887150017 | T47: 0.06636898489 | U47: 1.353345088 | V47: 0.9174523676 | W47: 0 | X47: 0.1267696883 | Y47: 0.2261618007 | Z47: 0.08296123111 | AA47: 0.7165366813 | AB47: 0.4181592204 | AC47: 0 | AD47: 0.05634882503 | AE47: 0.175659651 | AF47: 0.06636898489
C48: Kilde: 2010-2015: Oliebranchens fællesråd | D48: Kilde: 2010-2015: Oliebranchens fællesråd | E48: Kilde til 2030: ENS, 2015
C50: Personbiler | D50: diesel
H52: Gennemsnitlige kørselsomkostninger [kr. per km.] | U52: Marginale kørselsomkostninger, [kr. per år]
C53: Dieselpris ekskl. afgifter og moms [2015-kr. per liter] | D53: Dieselpris inkl. afgifter og moms [2015-kr. per liter] | E53: Årlig vækst i invers brændstof-effektivitet | F53: Brændstof-effektivitet [liter/km] | G53: Trafikarbejde, i alt [mio. km] | H53: Gennemsnitlige omkostninger inkl.. afgifter og moms, i alt | I53: Brændstof, inkl. afgifter og moms [kr. per km.] | J53: Motorolie, inkl. afgifter og moms [kr. per km.] | K53: Afskrivninger, inkl. afgifter og moms [kr. per km.] | L53: Reparation og vedligeholdelse, inkl. afgifter og moms [kr. per km.] | M53: Ejerafgift [kr. per km.] | N53: Dæk, inkl. afgifter og moms [kr. per km.] | O53: Gennemsnitlige omkostninger ekskl.. afgifter og moms, i alt [kr. per km.] | P53: Brændstof, ekskl. afgifter og moms [kr. per km.] | Q53: Motorolie, ekskl. afgifter og moms [kr. per km.] | R53: Afskrivninger, ekskl. afgifter og moms [kr. per km.] | S53: Reparation og vedligeholdelse, ekskl. afgifter og moms [kr. per km.] | T53: Dæk, ekskl. afgifter og moms [kr. per km.] | U53: Marginale omkostninger inkl.. afgifter og moms, i alt | V53: Brændstof, inkl. afgifter og moms [kr. per km.] | W53: Motorolie, inkl. afgifter og moms [kr. per km.] | X53: Afskrivninger, inkl. afgifter og moms [kr. per km.] | Y53: Reparation og vedligeholdelse, inkl. afgifter og moms [kr. per km.] | Z53: Dæk, inkl. afgifter og moms [kr. per km.] | AA53: Marginale omkostninger ekskl.. afgifter og moms, i alt [kr. per km.] | AB53: Brændstof, ekskl. afgifter og moms [kr. per km.] | AC53: Motorolie, ekskl. afgifter og moms [kr. per km.] | AD53: Afskrivninger, ekskl. afgifter og moms [kr. per km.] | AE53: Reparation og vedligeholdelse, ekskl. afgifter og moms [kr. per km.] | AF53: Dæk, ekskl. afgifter og moms [kr. per km.]
B54: 2010 | C54: 5.198122515 | D54: 10.37391508 | E54: 0.01246583167 | F54: =F55*(1+E54) -> 0.06209364672 | G54: =G55 -> 17291.69937 | H54: =SUM(I54:N54) -> 3.125444854 | I54: =F54*D54 -> 0.6441542183 | J54: =J55 -> 0 | K54: =K55 -> 0.8378231615 | L54: =L55 -> 1.356807073 | M54: 0.1894555617 | N54: =N55 -> 0.09720483965 | O54: =SUM(P54:T54) -> 1.771656586 | P54: =C54*F54 -> 0.3227703831 | Q54: =Q55 -> 0 | R54: =R55 -> 0.3172915948 | S54: =S55 -> 1.053830736 | T54: =T55 -> 0.07776387172 | U54: =SUM(V54:Z54) -> 1.795648722 | V54: =D54*F54 -> 0.6441542183 | W54: =W55 -> 0 | X54: =X55 -> 0.3282031029 | Y54: =Y55 -> 0.7260865617 | Z54: =Z55 -> 0.09720483965 | AA54: =SUM(AB54:AF54) -> 1.097719325 | AB54: =C54*F54 -> 0.3227703831 | AC54: =AC55 -> 0 | AD54: =AD55 -> 0.1332343423 | AE54: =AE55 -> 0.5639507275 | AF54: =AF55 -> 0.07776387172
B55: =1+B54 -> 2011 | C55: 6.345045134 | D55: 11.77800483 | E55: 0.006338948405 | F55: 0.06132912813 | G55: 17291.69937 | H55: 3.203625404 | I55: 0.7223347676 | J55: 0 | K55: 0.8378231615 | L55: 1.356807073 | M55: 0.1894555617 | N55: 0.09720483965 | O55: 1.838022289 | P55: 0.389136086 | Q55: 0 | R55: 0.3172915948 | S55: 1.053830736 | T55: 0.07776387172 | U55: 1.873829272 | V55: 0.7223347676 | W55: 0 | X55: 0.3282031029 | Y55: 0.7260865617 | Z55: 0.09720483965 | AA55: 1.164085028 | AB55: 0.389136086 | AC55: 0 | AD55: 0.1332343423 | AE55: 0.5639507275 | AF55: 0.07776387172
B56: 2012 | C56: 6.696598908 | D56: 12.16284485 | E56: 0.0045757361 | F56: 0.06094281477 | G56: 17291.69937 | H56: 3.222528636 | I56: 0.7412380005 | J56: 0 | K56: 0.8378231615 | L56: 1.356807073 | M56: 0.1894555617 | N56: 0.09720483965 | O56: 1.85699579 | P56: 0.4081095868 | Q56: 0 | R56: 0.3172915948 | S56: 1.053830736 | T56: 0.07776387172 | U56: 1.892732505 | V56: 0.7412380005 | W56: 0 | X56: 0.3282031029 | Y56: 0.7260865617 | Z56: 0.09720483965 | AA56: 1.183058528 | AB56: 0.4081095868 | AC56: 0 | AD56: 0.1332343423 | AE56: 0.5639507275 | AF56: 0.07776387172
B57: 2013 | C57: 6.372924258 | D57: 11.78995997 | E57: 0.002774160272 | F57: 0.0606652267 | G57: 17291.69937 | H57: 3.19653123 | I57: 0.7152405941 | J57: 0 | K57: 0.8378231615 | L57: 1.356807073 | M57: 0.1894555617 | N57: 0.09720483965 | O57: 1.835501098 | P57: 0.3866148949 | Q57: 0 | R57: 0.3172915948 | S57: 1.053830736 | T57: 0.07776387172 | U57: 1.866735098 | V57: 0.7152405941 | W57: 0 | X57: 0.3282031029 | Y57: 0.7260865617 | Z57: 0.09720483965 | AA57: 1.161563836 | AB57: 0.3866148949 | AC57: 0 | AD57: 0.1332343423 | AE57: 0.5639507275 | AF57: 0.07776387172
B58: 2014 | C58: 5.973504783 | D58: 11.33169004 | E58: 0.010829727 | F58: =F59*(1+E58) -> 0.06049739723 | G58: =G59 -> 17291.69937 | H58: 3.16682839 | I58: 0.6855377539 | J58: =J59 -> 0 | K58: =K59 -> 0.8378231615 | L58: 1.356807073 | M58: 0.1894555617 | N58: 0.09720483965 | O58: 1.810267695 | P58: 0.3613814917 | Q58: 0 | R58: 0.3172915948 | S58: 1.053830736 | T58: 0.07776387172 | U58: 1.837032258 | V58: 0.6855377539 | W58: 0 | X58: 0.3282031029 | Y58: 0.7260865617 | Z58: 0.09720483965 | AA58: 1.136330433 | AB58: 0.3613814917 | AC58: 0 | AD58: 0.1332343423 | AE58: 0.5639507275 | AF58: 0.07776387172
B59: 2015 | C59: 4.829111111 | D59: 9.945138889 | F59: ='Resultat - niveau I'!$E$13 -> 0.05984924623 | G59: ='Resultat - niveau I'!$F$13 -> 17291.69937 | H59: 3.076499702 | I59: =F59*D59 -> 0.5952090662 | J59: ='Resultat - niveau I'!$I$13 -> 0 | K59: ='Resultat - niveau I'!$J$13 -> 0.8378231615 | L59: ='Resultat - niveau I'!$K$13 -> 1.356807073 | M59: ='Resultat - niveau I'!$L$13 -> 0.1894555617 | N59: ='Resultat - niveau I'!$M$13 -> 0.09720483965 | O59: =SUM(P59:T59) -> 1.737904863 | P59: 0.28901866 | Q59: ='Resultat - niveau I'!$P$13 -> 0 | R59: ='Resultat - niveau I'!$Q$13 -> 0.3172915948 | S59: ='Resultat - niveau I'!$R$13 -> 1.053830736 | T59: ='Resultat - niveau I'!$S$13 -> 0.07776387172 | U59: =SUM(V59:Z59) -> 1.74670357 | V59: 0.5952090662 | W59: ='Resultat - niveau I'!$V$13 -> 0 | X59: ='Resultat - niveau I'!$W$13 -> 0.3282031029 | Y59: ='Resultat - niveau I'!$X$13 -> 0.7260865617 | Z59: ='Resultat - niveau I'!$Y$13 -> 0.09720483965 | AA59: =SUM(AB59:AF59) -> 1.063967601 | AB59: 0.28901866 | AC59: ='Resultat - niveau I'!$AB$13 -> 0 | AD59: ='Resultat - niveau I'!$AC$13 -> 0.1332343423 | AE59: ='Resultat - niveau I'!$AD$13 -> 0.5639507275 | AF59: ='Resultat - niveau I'!$AE$13 -> 0.07776387172
B60: =1+B59 -> 2016 | C60: 4.18912614 | D60: 9.12276522 | E60: -0.006928027695 | F60: =F59*(1+E60) -> 0.059434609 | G60: =G59 -> 17291.69937 | H60: 3.02349862 | I60: =F60*D60 -> 0.5422079838 | J60: =J59 -> 0 | K60: =K59 -> 0.8378231615 | L60: =L59 -> 1.356807073 | M60: =M59 -> 0.1894555617 | N60: =N59 -> 0.09720483965 | O60: =SUM(P60:T60) -> 1.697865277 | P60: 0.2489790742 | Q60: =Q59 -> 0 | R60: =R59 -> 0.3172915948 | S60: =S59 -> 1.053830736 | T60: =T59 -> 0.07776387172 | U60: =SUM(V60:Z60) -> 1.693702488 | V60: 0.5422079838 | W60: =W59 -> 0 | X60: =X59 -> 0.3282031029 | Y60: =Y59 -> 0.7260865617 | Z60: =Z59 -> 0.09720483965 | AA60: =SUM(AB60:AF60) -> 1.023928016 | AB60: 0.2489790742 | AC60: =AC59 -> 0 | AD60: =AD59 -> 0.1332343423 | AE60: =AE59 -> 0.5639507275 | AF60: =AF59 -> 0.07776387172
B61: =1+B60 -> 2017 | C61: 4.809253409 | D61: 9.83739963 | E61: -0.008886719899 | F61: =F60*(1+E61) -> 0.05890643027 | G61: =G60 -> 17291.69937 | H61: 3.060776731 | I61: 0.5794860954 | J61: =J60 -> 0 | K61: 0.8378231615 | L61: 1.356807073 | M61: =M60 -> 0.1894555617 | N61: 0.09720483965 | O61: 1.732182153 | P61: 0.2832959506 | Q61: =Q60 -> 0 | R61: 0.3172915948 | S61: 1.053830736 | T61: 0.07776387172 | U61: 1.7309806 | V61: 0.5794860954 | W61: =W60 -> 0 | X61: 0.3282031029 | Y61: 0.7260865617 | Z61: 0.09720483965 | AA61: 1.058244892 | AB61: 0.2832959506 | AC61: =AC60 -> 0 | AD61: 0.1332343423 | AE61: 0.5639507275 | AF61: 0.07776387172
B62: =1+B61 -> 2018 | C62: 4.905388494 | D62: 9.957568486 | E62: -0.01001050181 | F62: 0.05831674735 | G62: 17291.69937 | H62: 3.061983642 | I62: 0.5806930056 | J62: 0 | K62: 0.8378231615 | L62: 1.356807073 | M62: =M61 -> 0.1894555617 | N62: 0.09720483965 | O62: 1.734952504 | P62: 0.2860663014 | Q62: 0 | R62: 0.3172915948 | S62: 1.053830736 | T62: 0.07776387172 | U62: 1.73218751 | V62: 0.5806930056 | W62: 0 | X62: 0.3282031029 | Y62: 0.7260865617 | Z62: 0.09720483965 | AA62: 1.061015243 | AB62: 0.2860663014 | AC62: 0 | AD62: 0.1332343423 | AE62: 0.5639507275 | AF62: 0.07776387172
B63: 2019 | C63: 4.951675756 | D63: 10.01542756 | E63: -0.01289609441 | F63: 0.05756468907 | G63: 17291.69937 | H63: 3.05782561 | I63: 0.5765349736 | J63: 0 | K63: 0.8378231615 | L63: 1.356807073 | M63: =M62 -> 0.1894555617 | N63: 0.09720483965 | O63: 1.733927878 | P63: 0.2850416753 | Q63: 0 | R63: 0.3172915948 | S63: 1.053830736 | T63: 0.07776387172 | U63: 1.728029478 | V63: 0.5765349736 | W63: 0 | X63: 0.3282031029 | Y63: 0.7260865617 | Z63: 0.09720483965 | AA63: 1.059990617 | AB63: 0.2850416753 | AC63: 0 | AD63: 0.1332343423 | AE63: 0.5639507275 | AF63: 0.07776387172
B64: 2020 | C64: 5.108340338 | D64: 10.21125829 | E64: -0.01428862198 | F64: 0.05674216899 | G64: 17291.69937 | H64: 3.06069958 | I64: =F64*D64 -> 0.5794089436 | J64: 0 | K64: 0.8378231615 | L64: 1.356807073 | M64: =M63 -> 0.1894555617 | N64: 0.09720483965 | O64: 1.738744514 | P64: 0.2898583107 | Q64: 0 | R64: 0.3172915948 | S64: 1.053830736 | T64: 0.07776387172 | U64: 1.730903448 | V64: 0.5794089436 | W64: 0 | X64: 0.3282031029 | Y64: 0.7260865617 | Z64: 0.09720483965 | AA64: 1.064807252 | AB64: 0.2898583107 | AC64: 0 | AD64: 0.1332343423 | AE64: 0.5639507275 | AF64: 0.07776387172
B65: 2021 | C65: 5.304171066 | D65: 10.4560467 | E65: -0.01703961908 | F65: 0.05577530404 | G65: 17291.69937 | H65: 3.06447982 | I65: 0.5831891838 | J65: 0 | K65: 0.8378231615 | L65: 1.356807073 | M65: =M64 -> 0.1894555617 | N65: 0.09720483965 | O65: 1.744727957 | P65: 0.2958417539 | Q65: 0 | R65: 0.3172915948 | S65: 1.053830736 | T65: 0.07776387172 | U65: 1.734683688 | V65: 0.5831891838 | W65: 0 | X65: 0.3282031029 | Y65: 0.7260865617 | Z65: 0.09720483965 | AA65: 1.070790695 | AB65: 0.2958417539 | AC65: 0 | AD65: 0.1332343423 | AE65: 0.5639507275 | AF65: 0.07776387172
B66: 2022 | C66: 5.432351179 | D66: 10.61627184 | E66: -0.01838866309 | F66: 0.05474967077 | G66: 17291.69937 | H66: 3.062528024 | I66: 0.5812373881 | J66: 0 | K66: 0.8378231615 | L66: 1.356807073 | M66: =M65 -> 0.1894555617 | N66: 0.09720483965 | O66: 1.746305641 | P66: 0.2974194385 | Q66: 0 | R66: 0.3172915948 | S66: 1.053830736 | T66: 0.07776387172 | U66: 1.732731892 | V66: 0.5812373881 | W66: 0 | X66: 0.3282031029 | Y66: 0.7260865617 | Z66: 0.09720483965 | AA66: 1.07236838 | AB66: 0.2974194385 | AC66: 0 | AD66: 0.1332343423 | AE66: 0.5639507275 | AF66: 0.07776387172
B67: 2023 | C67: 5.556970732 | D67: 10.77204628 | E67: -0.0150811707 | F67: 0.05392398164 | G67: 17291.69937 | H67: 3.062162262 | I67: 0.580871626 | J67: 0 | K67: 0.8378231615 | L67: 1.356807073 | M67: =M66 -> 0.1894555617 | N67: 0.09720483965 | O67: 1.748540191 | P67: 0.2996539877 | Q67: 0 | R67: 0.3172915948 | S67: 1.053830736 | T67: 0.07776387172 | U67: 1.73236613 | V67: 0.580871626 | W67: 0 | X67: 0.3282031029 | Y67: 0.7260865617 | Z67: 0.09720483965 | AA67: 1.074602929 | AB67: 0.2996539877 | AC67: 0 | AD67: 0.1332343423 | AE67: 0.5639507275 | AF67: 0.07776387172
B68: 2024 | C68: 5.674469169 | D68: 10.91891933 | E68: -0.01248265855 | F68: 0.05325086698 | G68: 17291.69937 | H68: 3.062732557 | I68: 0.5814419209 | J68: 0 | K68: 0.8378231615 | L68: 1.356807073 | M68: =M67 -> 0.1894555617 | N68: 0.09720483965 | O68: 1.751056606 | P68: 0.3021704029 | Q68: 0 | R68: 0.3172915948 | S68: 1.053830736 | T68: 0.07776387172 | U68: 1.732936425 | V68: 0.5814419209 | W68: 0 | X68: 0.3282031029 | Y68: 0.7260865617 | Z68: 0.09720483965 | AA68: 1.077119344 | AB68: 0.3021704029 | AC68: 0 | AD68: 0.1332343423 | AE68: 0.5639507275 | AF68: 0.07776387172
B69: 2025 | C69: 5.784846488 | D69: 11.05689098 | E69: -0.007940964525 | F69: 0.05282800374 | G69: 17291.69937 | H69: 3.065404114 | I69: 0.584113478 | J69: 0 | K69: 0.8378231615 | L69: 1.356807073 | M69: =M68 -> 0.1894555617 | N69: 0.09720483965 | O69: 1.754488095 | P69: 0.3056018919 | Q69: 0 | R69: 0.3172915948 | S69: 1.053830736 | T69: 0.07776387172 | U69: 1.735607982 | V69: 0.584113478 | W69: 0 | X69: 0.3282031029 | Y69: 0.7260865617 | Z69: 0.09720483965 | AA69: 1.080550833 | AB69: 0.3056018919 | AC69: 0 | AD69: 0.1332343423 | AE69: 0.5639507275 | AF69: 0.07776387172
B70: 2026 | C70: 5.891663249 | D70: 11.19041193 | E70: -0.007629134112 | F70: 0.05242497181 | G70: 17291.69937 | H70: 3.067947666 | I70: 0.58665703 | J70: 0 | K70: 0.8378231615 | L70: 1.356807073 | M70: =M69 -> 0.1894555617 | N70: 0.09720483965 | O70: 1.757756483 | P70: 0.3088702797 | Q70: 0 | R70: 0.3172915948 | S70: 1.053830736 | T70: 0.07776387172 | U70: 1.738151534 | V70: 0.58665703 | W70: 0 | X70: 0.3282031029 | Y70: 0.7260865617 | Z70: 0.09720483965 | AA70: 1.083819221 | AB70: 0.3088702797 | AC70: 0 | AD70: 0.1332343423 | AE70: 0.5639507275 | AF70: 0.07776387172
B71: 2027 | C71: 5.99491945 | D71: 11.31948218 | E71: -0.004206950886 | F71: 0.05220442253 | G71: 17291.69937 | H71: 3.072217667 | I71: 0.5909270307 | J71: 0 | K71: 0.8378231615 | L71: 1.356807073 | M71: =M70 -> 0.1894555617 | N71: 0.09720483965 | O71: 1.761847511 | P71: 0.312961308 | Q71: 0 | R71: 0.3172915948 | S71: 1.053830736 | T71: 0.07776387172 | U71: 1.742421535 | V71: 0.5909270307 | W71: 0 | X71: 0.3282031029 | Y71: 0.7260865617 | Z71: 0.09720483965 | AA71: 1.08791025 | AB71: 0.312961308 | AC71: 0 | AD71: 0.1332343423 | AE71: 0.5639507275 | AF71: 0.07776387172
B72: 2028 | C72: 6.091054535 | D72: 11.43965104 | E72: -0.003677554979 | F72: 0.0520124379 | G72: 17291.69937 | H72: 3.076294775 | I72: 0.5950041392 | J72: 0 | K72: 0.8378231615 | L72: 1.356807073 | M72: =M71 -> 0.1894555617 | N72: 0.09720483965 | O72: 1.765696799 | P72: 0.3168105957 | Q72: 0 | R72: 0.3172915948 | S72: 1.053830736 | T72: 0.07776387172 | U72: 1.746498643 | V72: 0.5950041392 | W72: 0 | X72: 0.3282031029 | Y72: 0.7260865617 | Z72: 0.09720483965 | AA72: 1.091759537 | AB72: 0.3168105957 | AC72: 0 | AD72: 0.1332343423 | AE72: 0.5639507275 | AF72: 0.07776387172
B73: 2029 | C73: 6.180068502 | D73: 11.5509185 | E73: -0.003984631125 | F73: 0.05180518752 | G73: 17291.69937 | H73: 3.079688135 | I73: 0.5983974987 | J73: 0 | K73: 0.8378231615 | L73: 1.356807073 | M73: =M72 -> 0.1894555617 | N73: 0.09720483965 | O73: 1.769045811 | P73: 0.3201596076 | Q73: 0 | R73: 0.3172915948 | S73: 1.053830736 | T73: 0.07776387172 | U73: 1.749892003 | V73: 0.5983974987 | W73: 0 | X73: 0.3282031029 | Y73: 0.7260865617 | Z73: 0.09720483965 | AA73: 1.095108549 | AB73: 0.3201596076 | AC73: 0 | AD73: 0.1332343423 | AE73: 0.5639507275 | AF73: 0.07776387172
B74: 2030 | C74: 6.269082469 | D74: 11.66218596 | E74: -0.004209257978 | F74: 0.05158712612 | G74: 17291.69937 | H74: 3.082909294 | I74: 0.6016186577 | J74: 0 | K74: 0.8378231615 | L74: 1.356807073 | M74: =M73 -> 0.1894555617 | N74: 0.09720483965 | O74: 1.772290151 | P74: 0.323403948 | Q74: 0 | R74: 0.3172915948 | S74: 1.053830736 | T74: 0.07776387172 | U74: 1.753113162 | V74: 0.6016186577 | W74: 0 | X74: 0.3282031029 | Y74: 0.7260865617 | Z74: 0.09720483965 | AA74: 1.098352889 | AB74: 0.323403948 | AC74: 0 | AD74: 0.1332343423 | AE74: 0.5639507275 | AF74: 0.07776387172
B75: 2031 | C75: 6.343854201 | D75: 11.75565062 | E75: 0 | F75: 0.05158712612 | G75: 17291.69937 | H75: 3.087730867 | I75: 0.6064402312 | J75: 0 | K75: 0.8378231615 | L75: 1.356807073 | M75: =M74 -> 0.1894555617 | N75: 0.09720483965 | O75: 1.77614741 | P75: 0.3272612068 | Q75: 0 | R75: 0.3172915948 | S75: 1.053830736 | T75: 0.07776387172 | U75: 1.757934735 | V75: 0.6064402312 | W75: 0 | X75: 0.3282031029 | Y75: 0.7260865617 | Z75: 0.09720483965 | AA75: 1.102210148 | AB75: 0.3272612068 | AC75: 0 | AD75: 0.1332343423 | AE75: 0.5639507275 | AF75: 0.07776387172
B76: 2032 | C76: 6.404383699 | D76: 11.83131249 | E76: 0 | F76: 0.05158712612 | G76: 17291.69937 | H76: 3.091634046 | I76: 0.6103434097 | J76: 0 | K76: 0.8378231615 | L76: 1.356807073 | M76: =M75 -> 0.1894555617 | N76: 0.09720483965 | O76: 1.779269952 | P76: 0.3303837496 | Q76: 0 | R76: 0.3172915948 | S76: 1.053830736 | T76: 0.07776387172 | U76: 1.761837914 | V76: 0.6103434097 | W76: 0 | X76: 0.3282031029 | Y76: 0.7260865617 | Z76: 0.09720483965 | AA76: 1.105332691 | AB76: 0.3303837496 | AC76: 0 | AD76: 0.1332343423 | AE76: 0.5639507275 | AF76: 0.07776387172
B77: 2033 | C77: 6.464913196 | D77: 11.90697436 | E77: 0 | F77: 0.05158712612 | G77: 17291.69937 | H77: 3.095537224 | I77: 0.6142465883 | J77: 0 | K77: 0.8378231615 | L77: 1.356807073 | M77: =M76 -> 0.1894555617 | N77: 0.09720483965 | O77: 1.782392495 | P77: 0.3335062924 | Q77: 0 | R77: 0.3172915948 | S77: 1.053830736 | T77: 0.07776387172 | U77: 1.765741092 | V77: 0.6142465883 | W77: 0 | X77: 0.3282031029 | Y77: 0.7260865617 | Z77: 0.09720483965 | AA77: 1.108455234 | AB77: 0.3335062924 | AC77: 0 | AD77: 0.1332343423 | AE77: 0.5639507275 | AF77: 0.07776387172
B78: 2034 | C78: 6.518321577 | D78: 11.97373484 | E78: 0 | F78: 0.05158712612 | G78: 17291.69937 | H78: 3.098981205 | I78: 0.6176905693 | J78: 0 | K78: 0.8378231615 | L78: 1.356807073 | M78: =M77 -> 0.1894555617 | N78: 0.09720483965 | O78: 1.78514768 | P78: 0.3362614773 | Q78: 0 | R78: 0.3172915948 | S78: 1.053830736 | T78: 0.07776387172 | U78: 1.769185074 | V78: 0.6176905693 | W78: 0 | X78: 0.3282031029 | Y78: 0.7260865617 | Z78: 0.09720483965 | AA78: 1.111210419 | AB78: 0.3362614773 | AC78: 0 | AD78: 0.1332343423 | AE78: 0.5639507275 | AF78: 0.07776387172
B79: 2035 | C79: 6.571729957 | D79: 12.04049532 | E79: 0 | F79: 0.05158712612 | G79: 17291.69937 | H79: 3.102425186 | I79: 0.6211345504 | J79: 0 | K79: 0.8378231615 | L79: 1.356807073 | M79: =M78 -> 0.1894555617 | N79: 0.09720483965 | O79: 1.787902865 | P79: 0.3390166621 | Q79: 0 | R79: 0.3172915948 | S79: 1.053830736 | T79: 0.07776387172 | U79: 1.772629055 | V79: 0.6211345504 | W79: 0 | X79: 0.3282031029 | Y79: 0.7260865617 | Z79: 0.09720483965 | AA79: 1.113965604 | AB79: 0.3390166621 | AC79: 0 | AD79: 0.1332343423 | AE79: 0.5639507275 | AF79: 0.07776387172
B80: 2036 | C80: 6.571729957 | D80: 12.04049532 | E80: 0 | F80: 0.05158712612 | G80: 17291.69937 | H80: 3.102425186 | I80: 0.6211345504 | J80: 0 | K80: 0.8378231615 | L80: 1.356807073 | M80: =M79 -> 0.1894555617 | N80: 0.09720483965 | O80: 1.787902865 | P80: 0.3390166621 | Q80: 0 | R80: 0.3172915948 | S80: 1.053830736 | T80: 0.07776387172 | U80: 1.772629055 | V80: 0.6211345504 | W80: 0 | X80: 0.3282031029 | Y80: 0.7260865617 | Z80: 0.09720483965 | AA80: 1.113965604 | AB80: 0.3390166621 | AC80: 0 | AD80: 0.1332343423 | AE80: 0.5639507275 | AF80: 0.07776387172
B81: 2037 | C81: 6.571729957 | D81: 12.04049532 | E81: 0 | F81: 0.05158712612 | G81: 17291.69937 | H81: 3.102425186 | I81: 0.6211345504 | J81: 0 | K81: 0.8378231615 | L81: 1.356807073 | M81: =M80 -> 0.1894555617 | N81: 0.09720483965 | O81: 1.787902865 | P81: 0.3390166621 | Q81: 0 | R81: 0.3172915948 | S81: 1.053830736 | T81: 0.07776387172 | U81: 1.772629055 | V81: 0.6211345504 | W81: 0 | X81: 0.3282031029 | Y81: 0.7260865617 | Z81: 0.09720483965 | AA81: 1.113965604 | AB81: 0.3390166621 | AC81: 0 | AD81: 0.1332343423 | AE81: 0.5639507275 | AF81: 0.07776387172
B82: 2038 | C82: 6.571729957 | D82: 12.04049532 | E82: 0 | F82: 0.05158712612 | G82: 17291.69937 | H82: 3.102425186 | I82: 0.6211345504 | J82: 0 | K82: 0.8378231615 | L82: 1.356807073 | M82: =M81 -> 0.1894555617 | N82: 0.09720483965 | O82: 1.787902865 | P82: 0.3390166621 | Q82: 0 | R82: 0.3172915948 | S82: 1.053830736 | T82: 0.07776387172 | U82: 1.772629055 | V82: 0.6211345504 | W82: 0 | X82: 0.3282031029 | Y82: 0.7260865617 | Z82: 0.09720483965 | AA82: 1.113965604 | AB82: 0.3390166621 | AC82: 0 | AD82: 0.1332343423 | AE82: 0.5639507275 | AF82: 0.07776387172
B83: 2039 | C83: 6.571729957 | D83: 12.04049532 | E83: 0 | F83: 0.05158712612 | G83: 17291.69937 | H83: 3.102425186 | I83: 0.6211345504 | J83: 0 | K83: 0.8378231615 | L83: 1.356807073 | M83: =M82 -> 0.1894555617 | N83: 0.09720483965 | O83: 1.787902865 | P83: 0.3390166621 | Q83: 0 | R83: 0.3172915948 | S83: 1.053830736 | T83: 0.07776387172 | U83: 1.772629055 | V83: 0.6211345504 | W83: 0 | X83: 0.3282031029 | Y83: 0.7260865617 | Z83: 0.09720483965 | AA83: 1.113965604 | AB83: 0.3390166621 | AC83: 0 | AD83: 0.1332343423 | AE83: 0.5639507275 | AF83: 0.07776387172
B84: 2040 | C84: 6.571729957 | D84: 12.04049532 | E84: 0 | F84: 0.05158712612 | G84: 17291.69937 | H84: 3.102425186 | I84: 0.6211345504 | J84: 0 | K84: 0.8378231615 | L84: 1.356807073 | M84: =M83 -> 0.1894555617 | N84: 0.09720483965 | O84: 1.787902865 | P84: 0.3390166621 | Q84: 0 | R84: 0.3172915948 | S84: 1.053830736 | T84: 0.07776387172 | U84: 1.772629055 | V84: 0.6211345504 | W84: 0 | X84: 0.3282031029 | Y84: 0.7260865617 | Z84: 0.09720483965 | AA84: 1.113965604 | AB84: 0.3390166621 | AC84: 0 | AD84: 0.1332343423 | AE84: 0.5639507275 | AF84: 0.07776387172
C85: Kilde: 2010-2015: Oliebranchens fællesråd | D85: Kilde: 2010-2015: Oliebranchens fællesråd | E85: Kilde til 2030: ENS, 2015
C87: Personbiler | D87: hybrid
H89: Gennemsnitlige kørselsomkostninger [kr. per km.] | U89: Marginale kørselsomkostninger, [kr. per år]
C90: Benzinpris ekskl. afgifter og moms [2015-kr. per liter] | D90: Benzinpris inkl. afgifter og moms [2015-kr. per liter] | E90: Årlig vækst i invers brændstof-effektivitet | F90: Brændstof-effektivitet [liter/km] | G90: Trafikarbejde, i alt [mio. km] | H90: Gennemsnitlige omkostninger inkl.. afgifter og moms, i alt | I90: Brændstof, inkl. afgifter og moms [kr. per km.] | J90: Motorolie, inkl. afgifter og moms [kr. per km.] | K90: Afskrivninger, inkl. afgifter og moms [kr. per km.] | L90: Reparation og vedligeholdelse, inkl. afgifter og moms [kr. per km.] | M90: Ejerafgift [kr. per km.] | N90: Dæk, inkl. afgifter og moms [kr. per km.] | O90: Gennemsnitlige omkostninger ekskl.. afgifter og moms, i alt [kr. per km.] | P90: Brændstof, ekskl. afgifter og moms [kr. per km.] | Q90: Motorolie, ekskl. afgifter og moms [kr. per km.] | R90: Afskrivninger, ekskl. afgifter og moms [kr. per km.] | S90: Reparation og vedligeholdelse, ekskl. afgifter og moms [kr. per km.] | T90: Dæk, ekskl. afgifter og moms [kr. per km.] | U90: Marginale omkostninger inkl.. afgifter og moms, i alt | V90: Brændstof, inkl. afgifter og moms [kr. per km.] | W90: Motorolie, inkl. afgifter og moms [kr. per km.] | X90: Afskrivninger, inkl. afgifter og moms [kr. per km.] | Y90: Reparation og vedligeholdelse, inkl. afgifter og moms [kr. per km.] | Z90: Dæk, inkl. afgifter og moms [kr. per km.] | AA90: Marginale omkostninger ekskl.. afgifter og moms, i alt [kr. per km.] | AB90: Brændstof, ekskl. afgifter og moms [kr. per km.] | AC90: Motorolie, ekskl. afgifter og moms [kr. per km.] | AD90: Afskrivninger, ekskl. afgifter og moms [kr. per km.] | AE90: Reparation og vedligeholdelse, ekskl. afgifter og moms [kr. per km.] | AF90: Dæk, ekskl. afgifter og moms [kr. per km.]
B91: 2010 | C91: 4.91726594 | D91: 11.84138711 | E91: 0.01689732386 | F91: =F92*(1+E91) -> 0.04456628836 | G91: =G92 -> 39.84838 | H91: =SUM(I91:N91) -> 2.989359809 | I91: =F91*D91 -> 0.5277266724 | J91: =J92 -> 0.08971506495 | K91: =K92 -> 1.106042248 | L91: =L92 -> 1.126162561 | M91: 0.04449867222 | N91: =N92 -> 0.0952145903 | O91: =SUM(P91:T91) -> 1.754397543 | P91: =C91*F91 -> 0.2191442918 | Q91: =Q92 -> 0.07177205196 | R91: =R92 -> 0.5126201596 | S91: =S92 -> 0.8746893678 | T91: =T92 -> 0.07617167224 | U91: =SUM(V91:Z91) -> 1.194023669 | V91: =D91*F91 -> 0.5277266724 | W91: =W92 -> 0.02948798341 | X91: =X92 -> 0.1714418413 | Y91: =Y92 -> 0.3701525818 | Z91: =Z92 -> 0.0952145903 | AA91: =SUM(AB91:AF91) -> 0.6874035017 | AB91: =C91*F91 -> 0.2191442918 | AC91: =AC92 -> 0.02359038673 | AD91: =AD92 -> 0.081 | AE91: =AE92 -> 0.2874971509 | AF91: =AF92 -> 0.07617167224
B92: =1+B91 -> 2011 | C92: 5.85255765 | D92: 12.96655305 | E92: 0.01474507931 | F92: 0.04382575046 | G92: 39.84838 | H92: 3.029902055 | I92: 0.5682689182 | J92: 0.08971506495 | K92: 1.106042248 | L92: 1.126162561 | M92: 0.04449867222 | N92: 0.0952145903 | O92: 1.791745983 | P92: 0.2564927311 | Q92: 0.07177205196 | R92: 0.5126201596 | S92: 0.8746893678 | T92: 0.07617167224 | U92: 1.234565915 | V92: 0.5682689182 | W92: 0.02948798341 | X92: 0.1714418413 | Y92: 0.3701525818 | Z92: 0.0952145903 | AA92: 0.724751941 | AB92: 0.2564927311 | AC92: 0.02359038673 | AD92: 0.081 | AE92: 0.2874971509 | AF92: 0.07617167224
B93: 2012 | C93: 6.346205086 | D93: 13.46934472 | E93: 0.0045757361 | F93: 0.04318892632 | G93: 39.84838 | H93: 3.043359673 | I93: 0.5817265367 | J93: 0.08971506495 | K93: 1.106042248 | L93: 1.126162561 | M93: 0.04449867222 | N93: 0.0952145903 | O93: 1.809339035 | P93: 0.2740857838 | Q93: 0.07177205196 | R93: 0.5126201596 | S93: 0.8746893678 | T93: 0.07617167224 | U93: 1.248023533 | V93: 0.5817265367 | W93: 0.02948798341 | X93: 0.1714418413 | Y93: 0.3701525818 | Z93: 0.0952145903 | AA93: 0.7423449937 | AB93: 0.2740857838 | AC93: 0.02359038673 | AD93: 0.081 | AE93: 0.2874971509 | AF93: 0.07617167224
B94: 2013 | C94: 6.010471606 | D94: 13.1029949 | E94: 0.002774160272 | F94: 0.04299220533 | G94: 39.84838 | H94: 3.024959784 | I94: 0.5633266473 | J94: 0.08971506495 | K94: 1.106042248 | L94: 1.126162561 | M94: 0.04449867222 | N94: 0.0952145903 | O94: 1.793656681 | P94: 0.2584034294 | Q94: 0.07177205196 | R94: 0.5126201596 | S94: 0.8746893678 | T94: 0.07617167224 | U94: 1.229623644 | V94: 0.5633266473 | W94: 0.02948798341 | X94: 0.1714418413 | Y94: 0.3701525818 | Z94: 0.0952145903 | AA94: 0.7266626393 | AB94: 0.2584034294 | AC94: 0.02359038673 | AD94: 0.081 | AE94: 0.2874971509 | AF94: 0.07617167224
B95: 2014 | C95: 5.652761071 | D95: 12.7140344 | E95: 0.010829727 | F95: =F96*(1+E95) -> 0.04287326801 | G95: =G96 -> 39.84838 | H95: 3.006725341 | I95: 0.5450922045 | J95: =J96 -> 0.08971506495 | K95: =K96 -> 1.106042248 | L95: 1.126162561 | M95: 0.04449867222 | N95: 0.0952145903 | O95: 1.777605592 | P95: 0.2423523404 | Q95: 0.07177205196 | R95: 0.5126201596 | S95: 0.8746893678 | T95: 0.07617167224 | U95: 1.211389201 | V95: 0.5450922045 | W95: 0.02948798341 | X95: 0.1714418413 | Y95: 0.3701525818 | Z95: 0.0952145903 | AA95: 0.7106115503 | AB95: 0.2423523404 | AC95: 0.02359038673 | AD95: 0.081 | AE95: 0.2874971509 | AF95: 0.07617167224
B96: 2015 | C96: 4.707880435 | D96: 11.59485054 | F96: ='Resultat - niveau I'!$E$14 -> 0.04241393666 | G96: ='Resultat - niveau I'!$F$14 -> 39.84838 | H96: 2.953416393 | I96: =F96*D96 -> 0.4917832565 | J96: ='Resultat - niveau I'!$I$14 -> 0.08971506495 | K96: ='Resultat - niveau I'!$J$14 -> 1.106042248 | L96: ='Resultat - niveau I'!$K$14 -> 1.126162561 | M96: ='Resultat - niveau I'!$L$14 -> 0.04449867222 | N96: ='Resultat - niveau I'!$M$14 -> 0.0952145903 | O96: =SUM(P96:T96) -> 1.734932994 | P96: 0.1996797426 | Q96: ='Resultat - niveau I'!$P$14 -> 0.07177205196 | R96: ='Resultat - niveau I'!$Q$14 -> 0.5126201596 | S96: ='Resultat - niveau I'!$R$14 -> 0.8746893678 | T96: ='Resultat - niveau I'!$S$14 -> 0.07617167224 | U96: =SUM(V96:Z96) -> 1.158080253 | V96: 0.4917832565 | W96: ='Resultat - niveau I'!$V$14 -> 0.02948798341 | X96: ='Resultat - niveau I'!$W$14 -> 0.1714418413 | Y96: ='Resultat - niveau I'!$X$14 -> 0.3701525818 | Z96: ='Resultat - niveau I'!$Y$14 -> 0.0952145903 | AA96: =SUM(AB96:AF96) -> 0.6679389524 | AB96: 0.1996797426 | AC96: ='Resultat - niveau I'!$AB$14 -> 0.02359038673 | AD96: ='Resultat - niveau I'!$AC$14 -> 0.081 | AE96: ='Resultat - niveau I'!$AD$14 -> 0.2874971509 | AF96: ='Resultat - niveau I'!$AE$14 -> 0.07617167224
B97: =1+B96 -> 2016 | C97: 4.109711427 | D97: 10.82832028 | E97: -0.006928027695 | F97: =F96*(1+E97) -> 0.04212009173 | G97: =G96 -> 39.84838 | H97: 2.91772298 | I97: =F97*D97 -> 0.4560898435 | J97: =J96 -> 0.08971506495 | K97: =K96 -> 1.106042248 | L97: =L96 -> 1.126162561 | M97: =M96 -> 0.04449867222 | N97: =N96 -> 0.0952145903 | O97: =SUM(P97:T97) -> 1.708354674 | P97: 0.1731014223 | Q97: =Q96 -> 0.07177205196 | R97: =R96 -> 0.5126201596 | S97: =S96 -> 0.8746893678 | T97: =T96 -> 0.07617167224 | U97: =SUM(V97:Z97) -> 1.12238684 | V97: 0.4560898435 | W97: =W96 -> 0.02948798341 | X97: =X96 -> 0.1714418413 | Y97: =Y96 -> 0.3701525818 | Z97: =Z96 -> 0.0952145903 | AA97: =SUM(AB97:AF97) -> 0.6413606322 | AB97: 0.1731014223 | AC97: =AC96 -> 0.02359038673 | AD97: =AD96 -> 0.081 | AE97: =AE96 -> 0.2874971509 | AF97: =AF96 -> 0.07617167224
B98: =1+B97 -> 2017 | C98: 4.332851401 | D98: 11.03021747 | E98: -0.008886719899 | F98: =F97*(1+E98) -> 0.04174578227 | G98: =G97 -> 39.84838 | H98: 2.922098193 | I98: 0.4604650568 | J98: =J97 -> 0.08971506495 | K98: 1.106042248 | L98: 1.126162561 | M98: =M97 -> 0.04449867222 | N98: 0.0952145903 | O98: 1.716131523 | P98: 0.1808782712 | Q98: =Q97 -> 0.07177205196 | R98: 0.5126201596 | S98: 0.8746893678 | T98: 0.07617167224 | U98: 1.126762054 | V98: 0.4604650568 | W98: =W97 -> 0.02948798341 | X98: 0.1714418413 | Y98: 0.3701525818 | Z98: 0.0952145903 | AA98: 0.6491374811 | AB98: 0.1808782712 | AC98: =AC97 -> 0.02359038673 | AD98: 0.081 | AE98: 0.2874971509 | AF98: 0.07617167224
B99: =1+B98 -> 2018 | C99: 4.420897502 | D99: 11.14027509 | E99: -0.01001050181 | F99: 0.04132788605 | G99: 39.84838 | H99: 2.922037156 | I99: 0.4604040195 | J99: 0.08971506495 | K99: 1.106042248 | L99: 1.126162561 | M99: =M98 -> 0.04449867222 | N99: 0.0952145903 | O99: 1.7179596 | P99: 0.1827063482 | Q99: 0.07177205196 | R99: 0.5126201596 | S99: 0.8746893678 | T99: 0.07617167224 | U99: 1.126701016 | V99: 0.4604040195 | W99: 0.02948798341 | X99: 0.1714418413 | Y99: 0.3701525818 | Z99: 0.0952145903 | AA99: 0.650965558 | AB99: 0.1827063482 | AC99: 0.02359038673 | AD99: 0.081 | AE99: 0.2874971509 | AF99: 0.07617167224
B100: 2019 | C100: 4.463290068 | D100: 11.1932658 | E100: -0.01289609441 | F100: 0.04079491772 | G100: 39.84838 | H100: 2.918261494 | I100: 0.4566283574 | J100: 0.08971506495 | K100: 1.106042248 | L100: 1.126162561 | M100: =M99 -> 0.04449867222 | N100: 0.0952145903 | O100: 1.717332803 | P100: 0.1820795511 | Q100: 0.07177205196 | R100: 0.5126201596 | S100: 0.8746893678 | T100: 0.07617167224 | U100: 1.122925354 | V100: 0.4566283574 | W100: 0.02948798341 | X100: 0.1714418413 | Y100: 0.3701525818 | Z100: 0.0952145903 | AA100: 0.650338761 | AB100: 0.1820795511 | AC100: 0.02359038673 | AD100: 0.081 | AE100: 0.2874971509 | AF100: 0.07617167224
B101: 2020 | C101: 4.606772602 | D101: 11.37261897 | E101: -0.01428862198 | F101: 0.04021201457 | G101: 39.84838 | H101: 2.918949056 | I101: =F101*D101 -> 0.4573159195 | J101: 0.08971506495 | K101: 1.106042248 | L101: 1.126162561 | M101: =M100 -> 0.04449867222 | N101: 0.0952145903 | O101: 1.720500859 | P101: 0.185247607 | Q101: 0.07177205196 | R101: 0.5126201596 | S101: 0.8746893678 | T101: 0.07617167224 | U101: 1.123612916 | V101: 0.4573159195 | W101: 0.02948798341 | X101: 0.1714418413 | Y101: 0.3701525818 | Z101: 0.0952145903 | AA101: 0.6535068169 | AB101: 0.185247607 | AC101: 0.02359038673 | AD101: 0.081 | AE101: 0.2874971509 | AF101: 0.07617167224
B102: 2021 | C102: 4.786125769 | D102: 11.59681043 | E102: -0.01703961908 | F102: 0.03952681716 | G102: 39.84838 | H102: 2.920018142 | I102: 0.4583850053 | J102: 0.08971506495 | K102: 1.106042248 | L102: 1.126162561 | M102: =M101 -> 0.04449867222 | N102: 0.0952145903 | O102: 1.72443357 | P102: 0.1891803182 | Q102: 0.07177205196 | R102: 0.5126201596 | S102: 0.8746893678 | T102: 0.07617167224 | U102: 1.124682002 | V102: 0.4583850053 | W102: 0.02948798341 | X102: 0.1714418413 | Y102: 0.3701525818 | Z102: 0.0952145903 | AA102: 0.657439528 | AB102: 0.1891803182 | AC102: 0.02359038673 | AD102: 0.081 | AE102: 0.2874971509 | AF102: 0.07617167224
B103: 2022 | C103: 4.90352057 | D103: 11.74355393 | E103: -0.01838866309 | F103: 0.03879997183 | G103: 39.84838 | H103: 2.917282698 | I103: 0.4556495615 | J103: 0.08971506495 | K103: 1.106042248 | L103: 1.126162561 | M103: =M102 -> 0.04449867222 | N103: 0.0952145903 | O103: 1.725509712 | P103: 0.19025646 | Q103: 0.07177205196 | R103: 0.5126201596 | S103: 0.8746893678 | T103: 0.07617167224 | U103: 1.121946558 | V103: 0.4556495615 | W103: 0.02948798341 | X103: 0.1714418413 | Y103: 0.3701525818 | Z103: 0.0952145903 | AA103: 0.6585156699 | AB103: 0.19025646 | AC103: 0.02359038673 | AD103: 0.081 | AE103: 0.2874971509 | AF103: 0.07617167224
B104: 2023 | C104: 5.017654403 | D104: 11.88622122 | E104: -0.0150811707 | F104: 0.03821482283 | G104: 39.84838 | H104: 2.915862975 | I104: 0.454229838 | J104: 0.08971506495 | K104: 1.106042248 | L104: 1.126162561 | M104: =M103 -> 0.04449867222 | N104: 0.0952145903 | O104: 1.727002026 | P104: 0.1917487741 | Q104: 0.07177205196 | R104: 0.5126201596 | S104: 0.8746893678 | T104: 0.07617167224 | U104: 1.120526835 | V104: 0.454229838 | W104: 0.02948798341 | X104: 0.1714418413 | Y104: 0.3701525818 | Z104: 0.0952145903 | AA104: 0.6600079839 | AB104: 0.1917487741 | AC104: 0.02359038673 | AD104: 0.081 | AE104: 0.2874971509 | AF104: 0.07617167224
B105: 2024 | C105: 5.125266304 | D105: 12.02073609 | E105: -0.01248265855 | F105: 0.03773780025 | G105: 39.84838 | H105: 2.915269274 | I105: 0.4536361375 | J105: 0.08971506495 | K105: 1.106042248 | L105: 1.126162561 | M105: =M104 -> 0.04449867222 | N105: 0.0952145903 | O105: 1.728669528 | P105: 0.193416276 | Q105: 0.07177205196 | R105: 0.5126201596 | S105: 0.8746893678 | T105: 0.07617167224 | U105: 1.119933134 | V105: 0.4536361375 | W105: 0.02948798341 | X105: 0.1714418413 | Y105: 0.3701525818 | Z105: 0.0952145903 | AA105: 0.6616754859 | AB105: 0.193416276 | AC105: 0.02359038673 | AD105: 0.081 | AE105: 0.2874971509 | AF105: 0.07617167224
B106: 2025 | C106: 5.229617237 | D106: 12.15117476 | E106: -0.007940964525 | F106: 0.03743812572 | G106: 39.84838 | H106: 2.916550345 | I106: 0.4549172083 | J106: 0.08971506495 | K106: 1.106042248 | L106: 1.126162561 | M106: =M105 -> 0.04449867222 | N106: 0.0952145903 | O106: 1.731040319 | P106: 0.1957870676 | Q106: 0.07177205196 | R106: 0.5126201596 | S106: 0.8746893678 | T106: 0.07617167224 | U106: 1.121214205 | V106: 0.4549172083 | W106: 0.02948798341 | X106: 0.1714418413 | Y106: 0.3701525818 | Z106: 0.0952145903 | AA106: 0.6640462774 | AB106: 0.1957870676 | AC106: 0.02359038673 | AD106: 0.081 | AE106: 0.2874971509 | AF106: 0.07617167224
B107: 2026 | C107: 5.327446237 | D107: 12.27346101 | E107: -0.007629134112 | F107: 0.03715250523 | G107: 39.84838 | H107: 2.917622961 | I107: 0.4559898244 | J107: 0.08971506495 | K107: 1.106042248 | L107: 1.126162561 | M107: =M106 -> 0.04449867222 | N107: 0.0952145903 | O107: 1.733181226 | P107: 0.1979279742 | Q107: 0.07177205196 | R107: 0.5126201596 | S107: 0.8746893678 | T107: 0.07617167224 | U107: 1.122286821 | V107: 0.4559898244 | W107: 0.02948798341 | X107: 0.1714418413 | Y107: 0.3701525818 | Z107: 0.0952145903 | AA107: 0.6661871841 | AB107: 0.1979279742 | AC107: 0.02359038673 | AD107: 0.081 | AE107: 0.2874971509 | AF107: 0.07617167224
B108: 2027 | C108: 5.418753304 | D108: 12.38759484 | E108: -0.004206950886 | F108: 0.03699620647 | G108: 39.84838 | H108: 2.919927153 | I108: 0.4582940165 | J108: 0.08971506495 | K108: 1.106042248 | L108: 1.126162561 | M108: =M107 -> 0.04449867222 | N108: 0.0952145903 | O108: 1.735726568 | P108: 0.2004733161 | Q108: 0.07177205196 | R108: 0.5126201596 | S108: 0.8746893678 | T108: 0.07617167224 | U108: 1.124591013 | V108: 0.4582940165 | W108: 0.02948798341 | X108: 0.1714418413 | Y108: 0.3701525818 | Z108: 0.0952145903 | AA108: 0.6687325259 | AB108: 0.2004733161 | AC108: 0.02359038673 | AD108: 0.081 | AE108: 0.2874971509 | AF108: 0.07617167224
B109: 2028 | C109: 5.506799405 | D109: 12.49765247 | E109: -0.003677554979 | F109: 0.03686015089 | G109: 39.84838 | H109: 2.922298492 | I109: 0.4606653557 | J109: 0.08971506495 | K109: 1.106042248 | L109: 1.126162561 | M109: =M108 -> 0.04449867222 | N109: 0.0952145903 | O109: 1.738234709 | P109: 0.202981457 | Q109: 0.07177205196 | R109: 0.5126201596 | S109: 0.8746893678 | T109: 0.07617167224 | U109: 1.126962353 | V109: 0.4606653557 | W109: 0.02948798341 | X109: 0.1714418413 | Y109: 0.3701525818 | Z109: 0.0952145903 | AA109: 0.6712406668 | AB109: 0.202981457 | AC109: 0.02359038673 | AD109: 0.081 | AE109: 0.2874971509 | AF109: 0.07617167224
B110: 2029 | C110: 5.591584538 | D110: 12.60363389 | E110: -0.003984631125 | F110: 0.03671327678 | G110: 39.84838 | H110: 2.924353836 | I110: 0.4627206993 | J110: 0.08971506495 | K110: 1.106042248 | L110: 1.126162561 | M110: =M109 -> 0.04449867222 | N110: 0.0952145903 | O110: 1.740538642 | P110: 0.2052853908 | Q110: 0.07177205196 | R110: 0.5126201596 | S110: 0.8746893678 | T110: 0.07617167224 | U110: 1.129017696 | V110: 0.4627206993 | W110: 0.02948798341 | X110: 0.1714418413 | Y110: 0.3701525818 | Z110: 0.0952145903 | AA110: 0.6735446007 | AB110: 0.2052853908 | AC110: 0.02359038673 | AD110: 0.081 | AE110: 0.2874971509 | AF110: 0.07617167224
B111: 2030 | C111: 5.669847738 | D111: 12.70146289 | E111: -0.004209257978 | F111: 0.03655874113 | G111: 39.84838 | H111: 2.92598263 | I111: 0.4643494936 | J111: 0.08971506495 | K111: 1.106042248 | L111: 1.126162561 | M111: =M110 -> 0.04449867222 | N111: 0.0952145903 | O111: 1.742535747 | P111: 0.2072824957 | Q111: 0.07177205196 | R111: 0.5126201596 | S111: 0.8746893678 | T111: 0.07617167224 | U111: 1.13064649 | V111: 0.4643494936 | W111: 0.02948798341 | X111: 0.1714418413 | Y111: 0.3701525818 | Z111: 0.0952145903 | AA111: 0.6755417056 | AB111: 0.2072824957 | AC111: 0.02359038673 | AD111: 0.081 | AE111: 0.2874971509 | AF111: 0.07617167224
B112: 2031 | C112: 5.738328039 | D112: 12.78706326 | E112: 0 | F112: 0.03655874113 | G112: 39.84838 | H112: 2.929112072 | I112: 0.4674789356 | J112: 0.08971506495 | K112: 1.106042248 | L112: 1.126162561 | M112: =M111 -> 0.04449867222 | N112: 0.0952145903 | O112: 1.745039301 | P112: 0.2097860493 | Q112: 0.07177205196 | R112: 0.5126201596 | S112: 0.8746893678 | T112: 0.07617167224 | U112: 1.133775932 | V112: 0.4674789356 | W112: 0.02948798341 | X112: 0.1714418413 | Y112: 0.3701525818 | Z112: 0.0952145903 | AA112: 0.6780452591 | AB112: 0.2097860493 | AC112: 0.02359038673 | AD112: 0.081 | AE112: 0.2874971509 | AF112: 0.07617167224
B113: 2032 | C113: 5.797025439 | D113: 12.86043501 | E113: 0 | F113: 0.03655874113 | G113: 39.84838 | H113: 2.931794451 | I113: 0.4701613144 | J113: 0.08971506495 | K113: 1.106042248 | L113: 1.126162561 | M113: =M112 -> 0.04449867222 | N113: 0.0952145903 | O113: 1.747185204 | P113: 0.2119319523 | Q113: 0.07177205196 | R113: 0.5126201596 | S113: 0.8746893678 | T113: 0.07617167224 | U113: 1.136458311 | V113: 0.4701613144 | W113: 0.02948798341 | X113: 0.1714418413 | Y113: 0.3701525818 | Z113: 0.0952145903 | AA113: 0.6801911622 | AB113: 0.2119319523 | AC113: 0.02359038673 | AD113: 0.081 | AE113: 0.2874971509 | AF113: 0.07617167224
B114: 2033 | C114: 5.849200906 | D114: 12.92565435 | E114: 0 | F114: 0.03655874113 | G114: 39.84838 | H114: 2.934178788 | I114: 0.4725456511 | J114: 0.08971506495 | K114: 1.106042248 | L114: 1.126162561 | M114: =M113 -> 0.04449867222 | N114: 0.0952145903 | O114: 1.749092673 | P114: 0.2138394217 | Q114: 0.07177205196 | R114: 0.5126201596 | S114: 0.8746893678 | T114: 0.07617167224 | U114: 1.138842648 | V114: 0.4725456511 | W114: 0.02948798341 | X114: 0.1714418413 | Y114: 0.3701525818 | Z114: 0.0952145903 | AA114: 0.6820986316 | AB114: 0.2138394217 | AC114: 0.02359038673 | AD114: 0.081 | AE114: 0.2874971509 | AF114: 0.07617167224
B115: 2034 | C115: 5.898115406 | D115: 12.98679747 | E115: 0 | F115: 0.03655874113 | G115: 39.84838 | H115: 2.936414103 | I115: 0.4747809668 | J115: 0.08971506495 | K115: 1.106042248 | L115: 1.126162561 | M115: =M114 -> 0.04449867222 | N115: 0.0952145903 | O115: 1.750880926 | P115: 0.2156276743 | Q115: 0.07177205196 | R115: 0.5126201596 | S115: 0.8746893678 | T115: 0.07617167224 | U115: 1.141077964 | V115: 0.4747809668 | W115: 0.02948798341 | X115: 0.1714418413 | Y115: 0.3701525818 | Z115: 0.0952145903 | AA115: 0.6838868841 | AB115: 0.2156276743 | AC115: 0.02359038673 | AD115: 0.081 | AE115: 0.2874971509 | AF115: 0.07617167224
B116: 2035 | C116: 5.947029906 | D116: 13.0479406 | E116: 0 | F116: 0.03655874113 | G116: 39.84838 | H116: 2.938649419 | I116: 0.4770162825 | J116: 0.08971506495 | K116: 1.106042248 | L116: 1.126162561 | M116: =M115 -> 0.04449867222 | N116: 0.0952145903 | O116: 1.752669178 | P116: 0.2174159268 | Q116: 0.07177205196 | R116: 0.5126201596 | S116: 0.8746893678 | T116: 0.07617167224 | U116: 1.143313279 | V116: 0.4770162825 | W116: 0.02948798341 | X116: 0.1714418413 | Y116: 0.3701525818 | Z116: 0.0952145903 | AA116: 0.6856751367 | AB116: 0.2174159268 | AC116: 0.02359038673 | AD116: 0.081 | AE116: 0.2874971509 | AF116: 0.07617167224
B117: 2036 | C117: 5.947029906 | D117: 13.0479406 | E117: 0 | F117: 0.03655874113 | G117: 39.84838 | H117: 2.938649419 | I117: 0.4770162825 | J117: 0.08971506495 | K117: 1.106042248 | L117: 1.126162561 | M117: =M116 -> 0.04449867222 | N117: 0.0952145903 | O117: 1.752669178 | P117: 0.2174159268 | Q117: 0.07177205196 | R117: 0.5126201596 | S117: 0.8746893678 | T117: 0.07617167224 | U117: 1.143313279 | V117: 0.4770162825 | W117: 0.02948798341 | X117: 0.1714418413 | Y117: 0.3701525818 | Z117: 0.0952145903 | AA117: 0.6856751367 | AB117: 0.2174159268 | AC117: 0.02359038673 | AD117: 0.081 | AE117: 0.2874971509 | AF117: 0.07617167224
B118: 2037 | C118: 5.947029906 | D118: 13.0479406 | E118: 0 | F118: 0.03655874113 | G118: 39.84838 | H118: 2.938649419 | I118: 0.4770162825 | J118: 0.08971506495 | K118: 1.106042248 | L118: 1.126162561 | M118: =M117 -> 0.04449867222 | N118: 0.0952145903 | O118: 1.752669178 | P118: 0.2174159268 | Q118: 0.07177205196 | R118: 0.5126201596 | S118: 0.8746893678 | T118: 0.07617167224 | U118: 1.143313279 | V118: 0.4770162825 | W118: 0.02948798341 | X118: 0.1714418413 | Y118: 0.3701525818 | Z118: 0.0952145903 | AA118: 0.6856751367 | AB118: 0.2174159268 | AC118: 0.02359038673 | AD118: 0.081 | AE118: 0.2874971509 | AF118: 0.07617167224
B119: 2038 | C119: 5.947029906 | D119: 13.0479406 | E119: 0 | F119: 0.03655874113 | G119: 39.84838 | H119: 2.938649419 | I119: 0.4770162825 | J119: 0.08971506495 | K119: 1.106042248 | L119: 1.126162561 | M119: =M118 -> 0.04449867222 | N119: 0.0952145903 | O119: 1.752669178 | P119: 0.2174159268 | Q119: 0.07177205196 | R119: 0.5126201596 | S119: 0.8746893678 | T119: 0.07617167224 | U119: 1.143313279 | V119: 0.4770162825 | W119: 0.02948798341 | X119: 0.1714418413 | Y119: 0.3701525818 | Z119: 0.0952145903 | AA119: 0.6856751367 | AB119: 0.2174159268 | AC119: 0.02359038673 | AD119: 0.081 | AE119: 0.2874971509 | AF119: 0.07617167224
B120: 2039 | C120: 5.947029906 | D120: 13.0479406 | E120: 0 | F120: 0.03655874113 | G120: 39.84838 | H120: 2.938649419 | I120: 0.4770162825 | J120: 0.08971506495 | K120: 1.106042248 | L120: 1.126162561 | M120: =M119 -> 0.04449867222 | N120: 0.0952145903 | O120: 1.752669178 | P120: 0.2174159268 | Q120: 0.07177205196 | R120: 0.5126201596 | S120: 0.8746893678 | T120: 0.07617167224 | U120: 1.143313279 | V120: 0.4770162825 | W120: 0.02948798341 | X120: 0.1714418413 | Y120: 0.3701525818 | Z120: 0.0952145903 | AA120: 0.6856751367 | AB120: 0.2174159268 | AC120: 0.02359038673 | AD120: 0.081 | AE120: 0.2874971509 | AF120: 0.07617167224
B121: 2040 | C121: 5.947029906 | D121: 13.0479406 | E121: 0 | F121: 0.03655874113 | G121: 39.84838 | H121: 2.938649419 | I121: 0.4770162825 | J121: 0.08971506495 | K121: 1.106042248 | L121: 1.126162561 | M121: =M120 -> 0.04449867222 | N121: 0.0952145903 | O121: 1.752669178 | P121: 0.2174159268 | Q121: 0.07177205196 | R121: 0.5126201596 | S121: 0.8746893678 | T121: 0.07617167224 | U121: 1.143313279 | V121: 0.4770162825 | W121: 0.02948798341 | X121: 0.1714418413 | Y121: 0.3701525818 | Z121: 0.0952145903 | AA121: 0.6856751367 | AB121: 0.2174159268 | AC121: 0.02359038673 | AD121: 0.081 | AE121: 0.2874971509 | AF121: 0.07617167224
C122: Kilde: 2010-2015: Oliebranchens fællesråd | D122: Kilde: 2010-2015: Oliebranchens fællesråd | E122: Kilde til 2030: ENS, 2015
C124: Personbiler | D124: elektricitet
H126: Gennemsnitlige kørselsomkostninger [kr. per km.] | U126: Marginale kørselsomkostninger, [kr. per år]
C127: Elpris ekskl. afgifter og moms [2015-kr. per liter] | D127: Elpris inkl. afgifter og moms [2015-kr. per liter] | E127: Årlig vækst i invers brændstof-effektivitet | F127: Brændstof-effektivitet [liter/km] | G127: Trafikarbejde, i alt [mio. km] | H127: Gennemsnitlige omkostninger inkl.. afgifter og moms, i alt | I127: Brændstof, inkl. afgifter og moms [kr. per km.] | J127: Motorolie, inkl. afgifter og moms [kr. per km.] | K127: Afskrivninger, inkl. afgifter og moms [kr. per km.] | L127: Reparation og vedligeholdelse, inkl. afgifter og moms [kr. per km.] | M127: Ejerafgift [kr. per km.] | N127: Dæk, inkl. afgifter og moms [kr. per km.] | O127: Gennemsnitlige omkostninger ekskl.. afgifter og moms, i alt [kr. per km.] | P127: Brændstof, ekskl. afgifter og moms [kr. per km.] | Q127: Motorolie, ekskl. afgifter og moms [kr. per km.] | R127: Afskrivninger, ekskl. afgifter og moms [kr. per km.] | S127: Reparation og vedligeholdelse, ekskl. afgifter og moms [kr. per km.] | T127: Dæk, ekskl. afgifter og moms [kr. per km.] | U127: Marginale omkostninger inkl.. afgifter og moms, i alt | V127: Brændstof, inkl. afgifter og moms [kr. per km.] | W127: Motorolie, inkl. afgifter og moms [kr. per km.] | X127: Afskrivninger, inkl. afgifter og moms [kr. per km.] | Y127: Reparation og vedligeholdelse, inkl. afgifter og moms [kr. per km.] | Z127: Dæk, inkl. afgifter og moms [kr. per km.] | AA127: Marginale omkostninger ekskl.. afgifter og moms, i alt [kr. per km.] | AB127: Brændstof, ekskl. afgifter og moms [kr. per km.] | AC127: Motorolie, ekskl. afgifter og moms [kr. per km.] | AD127: Afskrivninger, ekskl. afgifter og moms [kr. per km.] | AE127: Reparation og vedligeholdelse, ekskl. afgifter og moms [kr. per km.] | AF127: Dæk, ekskl. afgifter og moms [kr. per km.]
B128: 2010 | C128: 0.9277138805 | D128: 2.123029065 | E128: 0 | F128: =F129*(1+E128) -> 0.1940140846 | G128: =G129 -> 138.2850131 | H128: =SUM(I128:N128) -> 3.318492848 | I128: =F128*D128 -> 0.4118975407 | J128: =J129 -> 0.4262242465 | K128: =K129 -> 1.742106022 | L128: =L129 -> 0.59225 | M128: 0.03454191102 | N128: =N129 -> 0.1114731276 | O128: =SUM(P128:T128) -> 2.221035208 | P128: =C128*F128 -> 0.1799895593 | Q128: =Q129 -> 0.3409793972 | R128: =R129 -> 1.15088775 | S128: =S129 -> 0.46 | T128: =T129 -> 0.08917850212 | U128: =SUM(V128:Z128) -> 1.651066935 | V128: =D128*F128 -> 0.4118975407 | W128: =W129 -> 0.1699643273 | X128: =X129 -> 0.7168560808 | Y128: =Y129 -> 0.2408758582 | Z128: =Z129 -> 0.1114731276 | AA128: =SUM(AB128:AF128) -> 1.06052482 | AB128: =C128*F128 -> 0.1799895593 | AC128: =AC129 -> 0.1359714618 | AD128: =AD129 -> 0.4682972515 | AE128: =AE129 -> 0.1870880452 | AF128: =AF129 -> 0.08917850212
B129: =1+B128 -> 2011 | C129: 0.8903112413 | D129: 2.145883242 | E129: 0 | F129: =F130*(1+E129) -> 0.1940140846 | G129: 138.2850131 | H129: 3.32292688 | I129: 0.4163315729 | J129: 0.4262242465 | K129: 1.742106022 | L129: 0.59225 | M129: 0.03454191102 | N129: 0.1114731276 | O129: 2.213778569 | P129: 0.1727329205 | Q129: 0.3409793972 | R129: 1.15088775 | S129: 0.46 | T129: 0.08917850212 | U129: 1.655500967 | V129: 0.4163315729 | W129: 0.1699643273 | X129: 0.7168560808 | Y129: 0.2408758582 | Z129: 0.1114731276 | AA129: 1.053268181 | AB129: 0.1727329205 | AC129: 0.1359714618 | AD129: 0.4682972515 | AE129: 0.1870880452 | AF129: 0.08917850212
B130: 2012 | C130: 0.8220229855 | D130: 2.058365004 | E130: 0 | F130: 0.1940140846 | G130: 138.2850131 | H130: 3.305947109 | I130: 0.399351802 | J130: 0.4262242465 | K130: 1.742106022 | L130: 0.59225 | M130: 0.03454191102 | N130: 0.1114731276 | O130: 2.200529686 | P130: 0.1594840371 | Q130: 0.3409793972 | R130: 1.15088775 | S130: 0.46 | T130: 0.08917850212 | U130: 1.638521196 | V130: 0.399351802 | W130: 0.1699643273 | X130: 0.7168560808 | Y130: 0.2408758582 | Z130: 0.1114731276 | AA130: 1.040019298 | AB130: 0.1594840371 | AC130: 0.1359714618 | AD130: 0.4682972515 | AE130: 0.1870880452 | AF130: 0.08917850212
B131: 2013 | C131: 0.8225485196 | D131: 2.067814233 | E131: 0 | F131: 0.1940140846 | G131: 138.2850131 | H131: 3.307780392 | I131: 0.4011850855 | J131: 0.4262242465 | K131: 1.742106022 | L131: 0.59225 | M131: 0.03454191102 | N131: 0.1114731276 | O131: 2.200631647 | P131: 0.1595859981 | Q131: 0.3409793972 | R131: 1.15088775 | S131: 0.46 | T131: 0.08917850212 | U131: 1.64035448 | V131: 0.4011850855 | W131: 0.1699643273 | X131: 0.7168560808 | Y131: 0.2408758582 | Z131: 0.1114731276 | AA131: 1.040121259 | AB131: 0.1595859981 | AC131: 0.1359714618 | AD131: 0.4682972515 | AE131: 0.1870880452 | AF131: 0.08917850212
B132: 2014 | C132: 0.7785774734 | D132: 2.021540289 | E132: 0 | F132: 0.1940140846 | G132: =G133 -> 138.2850131 | H132: 3.298802596 | I132: 0.3922072888 | J132: =J133 -> 0.4262242465 | K132: =K133 -> 1.742106022 | L132: 0.59225 | M132: 0.03454191102 | N132: 0.1114731276 | O132: 2.192100645 | P132: 0.1510549958 | Q132: 0.3409793972 | R132: 1.15088775 | S132: 0.46 | T132: 0.08917850212 | U132: 1.631376683 | V132: 0.3922072888 | W132: 0.1699643273 | X132: 0.7168560808 | Y132: 0.2408758582 | Z132: 0.1114731276 | AA132: 1.031590257 | AB132: 0.1510549958 | AC132: 0.1359714618 | AD132: 0.4682972515 | AE132: 0.1870880452 | AF132: 0.08917850212
B133: 2015 | C133: 0.74012 | D133: 2.02265 | F133: ='Resultat - niveau I'!$E$15 -> 0.1940140846 | G133: ='Resultat - niveau I'!$F$15 -> 138.2850131 | H133: 3.299017895 | I133: =D133*F133 -> 0.3924225883 | J133: ='Resultat - niveau I'!$I$15 -> 0.4262242465 | K133: ='Resultat - niveau I'!$J$15 -> 1.742106022 | L133: ='Resultat - niveau I'!$K$15 -> 0.59225 | M133: ='Resultat - niveau I'!$L$15 -> 0.03454191102 | N133: ='Resultat - niveau I'!$M$15 -> 0.1114731276 | O133: =SUM(P133:T133) -> 2.184639353 | P133: 0.1435937043 | Q133: ='Resultat - niveau I'!$P$15 -> 0.3409793972 | R133: ='Resultat - niveau I'!$Q$15 -> 1.15088775 | S133: ='Resultat - niveau I'!$R$15 -> 0.46 | T133: ='Resultat - niveau I'!$S$15 -> 0.08917850212 | U133: =SUM(V133:Z133) -> 1.631591982 | V133: 0.3924225883 | W133: ='Resultat - niveau I'!$V$15 -> 0.1699643273 | X133: ='Resultat - niveau I'!$W$15 -> 0.7168560808 | Y133: ='Resultat - niveau I'!$X$15 -> 0.2408758582 | Z133: ='Resultat - niveau I'!$Y$15 -> 0.1114731276 | AA133: =SUM(AB133:AF133) -> 1.024128965 | AB133: 0.1435937043 | AC133: ='Resultat - niveau I'!$AB$15 -> 0.1359714618 | AD133: ='Resultat - niveau I'!$AC$15 -> 0.4682972515 | AE133: ='Resultat - niveau I'!$AD$15 -> 0.1870880452 | AF133: ='Resultat - niveau I'!$AE$15 -> 0.08917850212
B134: =1+B133 -> 2016 | C134: 0.7375641522 | D134: 2.01945519 | E134: 0 | F134: =F133*(1+E134) -> 0.1940140846 | G134: =G133 -> 138.2850131 | H134: 3.298398057 | I134: =D134*F134 -> 0.3918027502 | J134: =J133 -> 0.4262242465 | K134: =K133 -> 1.742106022 | L134: =L133 -> 0.59225 | M134: =M133 -> 0.03454191102 | N134: =N133 -> 0.1114731276 | O134: =SUM(P134:T134) -> 2.184143483 | P134: 0.1430978338 | Q134: =Q133 -> 0.3409793972 | R134: =R133 -> 1.15088775 | S134: =S133 -> 0.46 | T134: =T133 -> 0.08917850212 | U134: =SUM(V134:Z134) -> 1.630972144 | V134: 0.3918027502 | W134: =W133 -> 0.1699643273 | X134: =X133 -> 0.7168560808 | Y134: =Y133 -> 0.2408758582 | Z134: =Z133 -> 0.1114731276 | AA134: =SUM(AB134:AF134) -> 1.023633095 | AB134: 0.1430978338 | AC134: =AC133 -> 0.1359714618 | AD134: =AD133 -> 0.4682972515 | AE134: =AE133 -> 0.1870880452 | AF134: =AF133 -> 0.08917850212
B135: =1+B134 -> 2017 | C135: 0.7369685418 | D135: 2.043710677 | E135: 0 | F135: =F134*(1+E135) -> 0.1940140846 | G135: =G134 -> 138.2850131 | H135: 3.303103963 | I135: 0.3965086563 | J135: =J134 -> 0.4262242465 | K135: 1.742106022 | L135: 0.59225 | M135: =M134 -> 0.03454191102 | N135: 0.1114731276 | O135: 2.184027926 | P135: 0.1429822771 | Q135: =Q134 -> 0.3409793972 | R135: 1.15088775 | S135: 0.46 | T135: 0.08917850212 | U135: 1.63567805 | V135: 0.3965086563 | W135: =W134 -> 0.1699643273 | X135: 0.7168560808 | Y135: 0.2408758582 | Z135: 0.1114731276 | AA135: 1.023517538 | AB135: 0.1429822771 | AC135: =AC134 -> 0.1359714618 | AD135: 0.4682972515 | AE135: 0.1870880452 | AF135: 0.08917850212
B136: =1+B135 -> 2018 | C136: 0.7411378143 | D136: 2.048922268 | E136: 0 | F136: 0.1940140846 | G136: 138.2850131 | H136: 3.304115085 | I136: 0.3975197783 | J136: 0.4262242465 | K136: 1.742106022 | L136: 0.59225 | M136: =M135 -> 0.03454191102 | N136: 0.1114731276 | O136: 2.184836823 | P136: 0.1437911746 | Q136: 0.3409793972 | R136: 1.15088775 | S136: 0.46 | T136: 0.08917850212 | U136: 1.636689172 | V136: 0.3975197783 | W136: 0.1699643273 | X136: 0.7168560808 | Y136: 0.2408758582 | Z136: 0.1114731276 | AA136: 1.024326435 | AB136: 0.1437911746 | AC136: 0.1359714618 | AD136: 0.4682972515 | AE136: 0.1870880452 | AF136: 0.08917850212
B137: 2019 | C137: 0.7530500213 | D137: 2.063812527 | E137: 0 | F137: 0.1940140846 | G137: 138.2850131 | H137: 3.307004005 | I137: 0.4004086982 | J137: 0.4262242465 | K137: 1.742106022 | L137: 0.59225 | M137: =M136 -> 0.03454191102 | N137: 0.1114731276 | O137: 2.187147959 | P137: 0.1461023106 | Q137: 0.3409793972 | R137: 1.15088775 | S137: 0.46 | T137: 0.08917850212 | U137: 1.639578092 | V137: 0.4004086982 | W137: 0.1699643273 | X137: 0.7168560808 | Y137: 0.2408758582 | Z137: 0.1114731276 | AA137: 1.026637571 | AB137: 0.1461023106 | AC137: 0.1359714618 | AD137: 0.4682972515 | AE137: 0.1870880452 | AF137: 0.08917850212
B138: 2020 | C138: 0.764366618 | D138: 2.077958273 | E138: 0 | F138: 0.1940140846 | G138: 138.2850131 | H138: 3.309748479 | I138: 0.4031531722 | J138: 0.4262242465 | K138: 1.742106022 | L138: 0.59225 | M138: =M137 -> 0.03454191102 | N138: 0.1114731276 | O138: 2.189343539 | P138: 0.1482978897 | Q138: 0.3409793972 | R138: 1.15088775 | S138: 0.46 | T138: 0.08917850212 | U138: 1.642322566 | V138: 0.4031531722 | W138: 0.1699643273 | X138: 0.7168560808 | Y138: 0.2408758582 | Z138: 0.1114731276 | AA138: 1.02883315 | AB138: 0.1482978897 | AC138: 0.1359714618 | AD138: 0.4682972515 | AE138: 0.1870880452 | AF138: 0.08917850212
B139: 2021 | C139: 0.7917646942 | D139: 2.112205868 | E139: 0 | F139: 0.1940140846 | G139: 138.2850131 | H139: 3.316392995 | I139: 0.409797688 | J139: 0.4262242465 | K139: 1.742106022 | L139: 0.59225 | M139: =M138 -> 0.03454191102 | N139: 0.1114731276 | O139: 2.194659151 | P139: 0.1536135024 | Q139: 0.3409793972 | R139: 1.15088775 | S139: 0.46 | T139: 0.08917850212 | U139: 1.648967082 | V139: 0.409797688 | W139: 0.1699643273 | X139: 0.7168560808 | Y139: 0.2408758582 | Z139: 0.1114731276 | AA139: 1.034148763 | AB139: 0.1536135024 | AC139: 0.1359714618 | AD139: 0.4682972515 | AE139: 0.1870880452 | AF139: 0.08917850212
B140: 2022 | C140: 0.806654953 | D140: 2.130818691 | E140: 0 | F140: 0.1940140846 | G140: 138.2850131 | H140: 3.320004145 | I140: 0.4134088379 | J140: 0.4262242465 | K140: 1.742106022 | L140: 0.59225 | M140: =M139 -> 0.03454191102 | N140: 0.1114731276 | O140: 2.197548071 | P140: 0.1565024223 | Q140: 0.3409793972 | R140: 1.15088775 | S140: 0.46 | T140: 0.08917850212 | U140: 1.652578232 | V140: 0.4134088379 | W140: 0.1699643273 | X140: 0.7168560808 | Y140: 0.2408758582 | Z140: 0.1114731276 | AA140: 1.037037683 | AB140: 0.1565024223 | AC140: 0.1359714618 | AD140: 0.4682972515 | AE140: 0.1870880452 | AF140: 0.08917850212
B141: 2023 | C141: 0.816780329 | D141: 2.143475411 | E141: 0 | F141: 0.1940140846 | G141: 138.2850131 | H141: 3.322459727 | I141: 0.4158644198 | J141: 0.4262242465 | K141: 1.742106022 | L141: 0.59225 | M141: =M140 -> 0.03454191102 | N141: 0.1114731276 | O141: 2.199512537 | P141: 0.1584668879 | Q141: 0.3409793972 | R141: 1.15088775 | S141: 0.46 | T141: 0.08917850212 | U141: 1.655033814 | V141: 0.4158644198 | W141: 0.1699643273 | X141: 0.7168560808 | Y141: 0.2408758582 | Z141: 0.1114731276 | AA141: 1.039002149 | AB141: 0.1584668879 | AC141: 0.1359714618 | AD141: 0.4682972515 | AE141: 0.1870880452 | AF141: 0.08917850212
B142: 2024 | C142: 0.8215452118 | D142: 2.149431515 | E142: 0 | F142: 0.1940140846 | G142: 138.2850131 | H142: 3.323615295 | I142: 0.4170199878 | J142: 0.4262242465 | K142: 1.742106022 | L142: 0.59225 | M142: =M141 -> 0.03454191102 | N142: 0.1114731276 | O142: 2.200436991 | P142: 0.1593913423 | Q142: 0.3409793972 | R142: 1.15088775 | S142: 0.46 | T142: 0.08917850212 | U142: 1.656189382 | V142: 0.4170199878 | W142: 0.1699643273 | X142: 0.7168560808 | Y142: 0.2408758582 | Z142: 0.1114731276 | AA142: 1.039926603 | AB142: 0.1593913423 | AC142: 0.1359714618 | AD142: 0.4682972515 | AE142: 0.1870880452 | AF142: 0.08917850212
B143: 2025 | C143: 0.8298837567 | D143: 2.159854696 | E143: 0 | F143: 0.1940140846 | G143: 138.2850131 | H143: 3.325637539 | I143: 0.4190422318 | J143: 0.4262242465 | K143: 1.742106022 | L143: 0.59225 | M143: =M142 -> 0.03454191102 | N143: 0.1114731276 | O143: 2.202054786 | P143: 0.1610091374 | Q143: 0.3409793972 | R143: 1.15088775 | S143: 0.46 | T143: 0.08917850212 | U143: 1.658211626 | V143: 0.4190422318 | W143: 0.1699643273 | X143: 0.7168560808 | Y143: 0.2408758582 | Z143: 0.1114731276 | AA143: 1.041544398 | AB143: 0.1610091374 | AC143: 0.1359714618 | AD143: 0.4682972515 | AE143: 0.1870880452 | AF143: 0.08917850212
B144: 2026 | C144: 0.8429871845 | D144: 2.176233981 | E144: 0 | F144: 0.1940140846 | G144: 138.2850131 | H144: 3.328815351 | I144: 0.4222200437 | J144: 0.4262242465 | K144: 1.742106022 | L144: 0.59225 | M144: =M143 -> 0.03454191102 | N144: 0.1114731276 | O144: 2.204597036 | P144: 0.163551387 | Q144: 0.3409793972 | R144: 1.15088775 | S144: 0.46 | T144: 0.08917850212 | U144: 1.661389438 | V144: 0.4222200437 | W144: 0.1699643273 | X144: 0.7168560808 | Y144: 0.2408758582 | Z144: 0.1114731276 | AA144: 1.044086648 | AB144: 0.163551387 | AC144: 0.1359714618 | AD144: 0.4682972515 | AE144: 0.1870880452 | AF144: 0.08917850212
B145: 2027 | C145: 0.8560906122 | D145: 2.192613265 | E145: 0 | F145: 0.1940140846 | G145: 138.2850131 | H145: 3.331993162 | I145: 0.4253978556 | J145: 0.4262242465 | K145: 1.742106022 | L145: 0.59225 | M145: =M144 -> 0.03454191102 | N145: 0.1114731276 | O145: 2.207139285 | P145: 0.1660936365 | Q145: 0.3409793972 | R145: 1.15088775 | S145: 0.46 | T145: 0.08917850212 | U145: 1.66456725 | V145: 0.4253978556 | W145: 0.1699643273 | X145: 0.7168560808 | Y145: 0.2408758582 | Z145: 0.1114731276 | AA145: 1.046628897 | AB145: 0.1660936365 | AC145: 0.1359714618 | AD145: 0.4682972515 | AE145: 0.1870880452 | AF145: 0.08917850212
B146: 2028 | C146: 0.8691940399 | D146: 2.20899255 | E146: 0 | F146: 0.1940140846 | G146: 138.2850131 | H146: 3.335170974 | I146: 0.4285756675 | J146: 0.4262242465 | K146: 1.742106022 | L146: 0.59225 | M146: =M145 -> 0.03454191102 | N146: 0.1114731276 | O146: 2.209681535 | P146: 0.168635886 | Q146: 0.3409793972 | R146: 1.15088775 | S146: 0.46 | T146: 0.08917850212 | U146: 1.667745062 | V146: 0.4285756675 | W146: 0.1699643273 | X146: 0.7168560808 | Y146: 0.2408758582 | Z146: 0.1114731276 | AA146: 1.049171147 | AB146: 0.168635886 | AC146: 0.1359714618 | AD146: 0.4682972515 | AE146: 0.1870880452 | AF146: 0.08917850212
B147: 2029 | C147: 0.8822974677 | D147: 2.225371835 | E147: 0 | F147: 0.1940140846 | G147: 138.2850131 | H147: 3.338348786 | I147: 0.4317534795 | J147: 0.4262242465 | K147: 1.742106022 | L147: 0.59225 | M147: =M146 -> 0.03454191102 | N147: 0.1114731276 | O147: 2.212223784 | P147: 0.1711781356 | Q147: 0.3409793972 | R147: 1.15088775 | S147: 0.46 | T147: 0.08917850212 | U147: 1.670922873 | V147: 0.4317534795 | W147: 0.1699643273 | X147: 0.7168560808 | Y147: 0.2408758582 | Z147: 0.1114731276 | AA147: 1.051713396 | AB147: 0.1711781356 | AC147: 0.1359714618 | AD147: 0.4682972515 | AE147: 0.1870880452 | AF147: 0.08917850212
B148: 2030 | C148: 0.8959965058 | D148: 2.242495632 | E148: 0 | F148: 0.1940140846 | G148: 138.2850131 | H148: 3.341671044 | I148: 0.4350757374 | J148: 0.4262242465 | K148: 1.742106022 | L148: 0.59225 | M148: =M147 -> 0.03454191102 | N148: 0.1114731276 | O148: 2.214881591 | P148: 0.1738359419 | Q148: 0.3409793972 | R148: 1.15088775 | S148: 0.46 | T148: 0.08917850212 | U148: 1.674245131 | V148: 0.4350757374 | W148: 0.1699643273 | X148: 0.7168560808 | Y148: 0.2408758582 | Z148: 0.1114731276 | AA148: 1.054371203 | AB148: 0.1738359419 | AC148: 0.1359714618 | AD148: 0.4682972515 | AE148: 0.1870880452 | AF148: 0.08917850212
B149: 2031 | C149: 0.9090999335 | D149: 2.258874917 | E149: 0 | F149: 0.1940140846 | G149: 138.2850131 | H149: 3.344848856 | I149: 0.4382535493 | J149: 0.4262242465 | K149: 1.742106022 | L149: 0.59225 | M149: =M148 -> 0.03454191102 | N149: 0.1114731276 | O149: 2.21742384 | P149: 0.1763781914 | Q149: 0.3409793972 | R149: 1.15088775 | S149: 0.46 | T149: 0.08917850212 | U149: 1.677422943 | V149: 0.4382535493 | W149: 0.1699643273 | X149: 0.7168560808 | Y149: 0.2408758582 | Z149: 0.1114731276 | AA149: 1.056913452 | AB149: 0.1763781914 | AC149: 0.1359714618 | AD149: 0.4682972515 | AE149: 0.1870880452 | AF149: 0.08917850212
B150: 2032 | C150: 0.9222033612 | D150: 2.275254202 | E150: 0 | F150: 0.1940140846 | G150: 138.2850131 | H150: 3.348026668 | I150: 0.4414313612 | J150: 0.4262242465 | K150: 1.742106022 | L150: 0.59225 | M150: =M149 -> 0.03454191102 | N150: 0.1114731276 | O150: 2.21996609 | P150: 0.178920441 | Q150: 0.3409793972 | R150: 1.15088775 | S150: 0.46 | T150: 0.08917850212 | U150: 1.680600755 | V150: 0.4414313612 | W150: 0.1699643273 | X150: 0.7168560808 | Y150: 0.2408758582 | Z150: 0.1114731276 | AA150: 1.059455702 | AB150: 0.178920441 | AC150: 0.1359714618 | AD150: 0.4682972515 | AE150: 0.1870880452 | AF150: 0.08917850212
B151: 2033 | C151: 0.935306789 | D151: 2.291633486 | E151: 0 | F151: 0.1940140846 | G151: 138.2850131 | H151: 3.35120448 | I151: 0.4446091731 | J151: 0.4262242465 | K151: 1.742106022 | L151: 0.59225 | M151: =M150 -> 0.03454191102 | N151: 0.1114731276 | O151: 2.222508339 | P151: 0.1814626905 | Q151: 0.3409793972 | R151: 1.15088775 | S151: 0.46 | T151: 0.08917850212 | U151: 1.683778567 | V151: 0.4446091731 | W151: 0.1699643273 | X151: 0.7168560808 | Y151: 0.2408758582 | Z151: 0.1114731276 | AA151: 1.061997951 | AB151: 0.1814626905 | AC151: 0.1359714618 | AD151: 0.4682972515 | AE151: 0.1870880452 | AF151: 0.08917850212
B152: 2034 | C152: 0.9490058271 | D152: 2.308757284 | E152: 0 | F152: 0.1940140846 | G152: 138.2850131 | H152: 3.354526738 | I152: 0.4479314311 | J152: 0.4262242465 | K152: 1.742106022 | L152: 0.59225 | M152: =M151 -> 0.03454191102 | N152: 0.1114731276 | O152: 2.225166146 | P152: 0.1841204968 | Q152: 0.3409793972 | R152: 1.15088775 | S152: 0.46 | T152: 0.08917850212 | U152: 1.687100825 | V152: 0.4479314311 | W152: 0.1699643273 | X152: 0.7168560808 | Y152: 0.2408758582 | Z152: 0.1114731276 | AA152: 1.064655758 | AB152: 0.1841204968 | AC152: 0.1359714618 | AD152: 0.4682972515 | AE152: 0.1870880452 | AF152: 0.08917850212
B153: 2035 | C153: 0.9621092548 | D153: 2.325136568 | E153: 0 | F153: 0.1940140846 | G153: 138.2850131 | H153: 3.35770455 | I153: 0.451109243 | J153: 0.4262242465 | K153: 1.742106022 | L153: 0.59225 | M153: =M152 -> 0.03454191102 | N153: 0.1114731276 | O153: 2.227708395 | P153: 0.1866627464 | Q153: 0.3409793972 | R153: 1.15088775 | S153: 0.46 | T153: 0.08917850212 | U153: 1.690278637 | V153: 0.451109243 | W153: 0.1699643273 | X153: 0.7168560808 | Y153: 0.2408758582 | Z153: 0.1114731276 | AA153: 1.067198007 | AB153: 0.1866627464 | AC153: 0.1359714618 | AD153: 0.4682972515 | AE153: 0.1870880452 | AF153: 0.08917850212
B154: 2036 | C154: 0.9621092548 | D154: 2.325136568 | E154: 0 | F154: 0.1940140846 | G154: 138.2850131 | H154: 3.35770455 | I154: 0.451109243 | J154: 0.4262242465 | K154: 1.742106022 | L154: 0.59225 | M154: =M153 -> 0.03454191102 | N154: 0.1114731276 | O154: 2.227708395 | P154: 0.1866627464 | Q154: 0.3409793972 | R154: 1.15088775 | S154: 0.46 | T154: 0.08917850212 | U154: 1.690278637 | V154: 0.451109243 | W154: 0.1699643273 | X154: 0.7168560808 | Y154: 0.2408758582 | Z154: 0.1114731276 | AA154: 1.067198007 | AB154: 0.1866627464 | AC154: 0.1359714618 | AD154: 0.4682972515 | AE154: 0.1870880452 | AF154: 0.08917850212
B155: 2037 | C155: 0.9621092548 | D155: 2.325136568 | E155: 0 | F155: 0.1940140846 | G155: 138.2850131 | H155: 3.35770455 | I155: 0.451109243 | J155: 0.4262242465 | K155: 1.742106022 | L155: 0.59225 | M155: =M154 -> 0.03454191102 | N155: 0.1114731276 | O155: 2.227708395 | P155: 0.1866627464 | Q155: 0.3409793972 | R155: 1.15088775 | S155: 0.46 | T155: 0.08917850212 | U155: 1.690278637 | V155: 0.451109243 | W155: 0.1699643273 | X155: 0.7168560808 | Y155: 0.2408758582 | Z155: 0.1114731276 | AA155: 1.067198007 | AB155: 0.1866627464 | AC155: 0.1359714618 | AD155: 0.4682972515 | AE155: 0.1870880452 | AF155: 0.08917850212
B156: 2038 | C156: 0.9621092548 | D156: 2.325136568 | E156: 0 | F156: 0.1940140846 | G156: 138.2850131 | H156: 3.35770455 | I156: 0.451109243 | J156: 0.4262242465 | K156: 1.742106022 | L156: 0.59225 | M156: =M155 -> 0.03454191102 | N156: 0.1114731276 | O156: 2.227708395 | P156: 0.1866627464 | Q156: 0.3409793972 | R156: 1.15088775 | S156: 0.46 | T156: 0.08917850212 | U156: 1.690278637 | V156: 0.451109243 | W156: 0.1699643273 | X156: 0.7168560808 | Y156: 0.2408758582 | Z156: 0.1114731276 | AA156: 1.067198007 | AB156: 0.1866627464 | AC156: 0.1359714618 | AD156: 0.4682972515 | AE156: 0.1870880452 | AF156: 0.08917850212
B157: 2039 | C157: 0.9621092548 | D157: 2.325136568 | E157: 0 | F157: 0.1940140846 | G157: 138.2850131 | H157: 3.35770455 | I157: 0.451109243 | J157: 0.4262242465 | K157: 1.742106022 | L157: 0.59225 | M157: =M156 -> 0.03454191102 | N157: 0.1114731276 | O157: 2.227708395 | P157: 0.1866627464 | Q157: 0.3409793972 | R157: 1.15088775 | S157: 0.46 | T157: 0.08917850212 | U157: 1.690278637 | V157: 0.451109243 | W157: 0.1699643273 | X157: 0.7168560808 | Y157: 0.2408758582 | Z157: 0.1114731276 | AA157: 1.067198007 | AB157: 0.1866627464 | AC157: 0.1359714618 | AD157: 0.4682972515 | AE157: 0.1870880452 | AF157: 0.08917850212
B158: 2040 | C158: 0.9621092548 | D158: 2.325136568 | E158: 0 | F158: 0.1940140846 | G158: 138.2850131 | H158: 3.35770455 | I158: 0.451109243 | J158: 0.4262242465 | K158: 1.742106022 | L158: 0.59225 | M158: =M157 -> 0.03454191102 | N158: 0.1114731276 | O158: 2.227708395 | P158: 0.1866627464 | Q158: 0.3409793972 | R158: 1.15088775 | S158: 0.46 | T158: 0.08917850212 | U158: 1.690278637 | V158: 0.451109243 | W158: 0.1699643273 | X158: 0.7168560808 | Y158: 0.2408758582 | Z158: 0.1114731276 | AA158: 1.067198007 | AB158: 0.1866627464 | AC158: 0.1359714618 | AD158: 0.4682972515 | AE158: 0.1870880452 | AF158: 0.08917850212
C159: Kilde: ENS … | D159: Kilde: ENS … | E159: Kilde til 2030: ENS, 2015
C161: Varebiler | D161: benzin
J162: 1 | K162: =J162+1 -> 2 | L162: =K162+1 -> 3 | M162: 4 | N162: 5 | O162: 6 | P162: 7 | Q162: 8 | R162: 9 | S162: 10 | T162: 11 | U162: 12 | V162: 13 | W162: 14 | X162: 15 | Y162: 16 | Z162: 17 | AA162: 18 | AB162: 19 | AC162: 20
C163: Benzinpris ekskl. afgifter og moms [2015-kr. per liter] | D163: Benzinpris inkl. afgifter og moms [2015-kr. per liter] | E163: Årlig ændring i real BNP per capita | F163: Årlig ændring i brændstofforbrug per km | G163: Brændstof-effektivitet [liter/km] | H163: Trafikarbejde, i alt [mio. km] | I163: Variable omkostninger i alt, opgjort i markedspriser [kr. per km.] | J163: Variable omkostninger inkl.. afgifter, opgjort i faktorpriser [kr. per km.] | K163: Ikke-refunderbare afgifter i alt, [kr. per km.] | L163: Registreringsafgift, [kr. per km.] | M163: Afgifter (brændstof) , [kr. per km.] | N163: Variable omkostninger ekskl. afgifter, opgjort i faktorpriser, [kr. per km.] | O163: Kapitalomkostninger/afskrivninger, [kr. per km.] | P163: Brændstof, [kr. per km.] | Q163: Olie, [kr. per km.] | R163: Dæk, [kr. per km.] | S163: Reparation, [kr. per km.] | T163: Faste omkostninger i alt, opgjort i markedspriser [kr. per time] | U163: Faste omkostninger inkl. afgifter, opgjort i faktorpriser [kr. per time] | V163: Ikke-refunderbare afgifter i alt, [kr. per time] | W163: Registreringsafgift, [kr. per time] | X163: Vægtafgift, vejafgift, udligningsafgift, [kr. per time] | Y163: Faste omkostninger ekskl. afgifter, opgjort i faktorpriser, [kr. per time] | Z163: Kapitalomkostninger/afskrivninger, [kr. per time] | AA163: Løn, [kr. per time] | AB163: Reparation, [kr. per time] | AC163: Kapacitets-omkostninger, [kr. per time]
B164: 2010 | C164: 4.584254328 | D164: 11.42512259 | E164: -0.007311321799 | F164: 0.003030222174 | G164: =G165*(1+F164) -> 0.06442861182 | H164: =H165 -> 796.7078595 | I164: =NAF*J164 -> 1.715990509 | J164: =K164+N164 -> 1.295087177 | K164: =SUM(L164:M164) -> 0.3099526125 | L164: =L165 -> 0.01642592429 | M164: =(D164/(1+Moms)-C164)*G164 -> 0.2935266882 | N164: =SUM(O164:S164) -> 0.9851345642 | O164: =O165 -> 0.1272791705 | P164: =C164*G164 -> 0.2953571426 | Q164: =Q165 -> 0 | R164: =R165 -> 0.09662042024 | S164: =S165 -> 0.4658778308 | T164: =NAF*U164 -> 454.9422881 | U164: =V164+Y164 -> 343.3526703 | V164: =SUM(W164:X164) -> 2.171424728 | W164: =W165 -> 0.8589528717 | X164: =X165 -> 1.312471856 | Y164: =SUM(Z164:AC164) -> 341.1812456 | Z164: =Z165 -> 4.86811154 | AA164: =AA165/(1+E164) -> 285.7563154 | AB164: =AB165 -> 10.55681859 | AC164: =AC165 -> 40
B165: =1+B164 -> 2011 | C165: 5.519546038 | D165: 12.55028853 | E165: 0.004506334522 | F165: 0.001431489049 | G165: =G166*(1+F165) -> 0.06423396863 | H165: 796.7078595 | I165: 1.790243564 | J165: 1.351127218 | K165: 0.3068074492 | L165: 0.01642592429 | M165: 0.2903815249 | N165: 1.044319769 | O165: 0.1272791705 | P165: 0.354542347 | Q165: 0 | R165: 0.09662042024 | S165: 0.4658778308 | T165: 452.1740234 | U165: 341.2634139 | V165: 2.171424728 | W165: 0.8589528717 | X165: 1.312471856 | Y165: 339.0919892 | Z165: 4.86811154 | AA165: 283.6670591 | AB165: 10.55681859 | AC165: 40
B166: 2012 | C166: 6.013193474 | D166: 13.05308021 | E166: 0.006631675514 | F166: 0.0007262310394 | G166: 0.06414214984 | H166: 796.7078595 | I166: 1.823207217 | J166: 1.376005447 | K166: 0.3005288686 | L166: 0.01642592429 | M166: 0.2841029443 | N166: 1.075476578 | O166: 0.1272791705 | P166: 0.3856991568 | Q166: 0 | R166: 0.09662042024 | S166: 0.4658778308 | T166: 453.8677692 | U166: 342.5417126 | V166: 2.171424728 | W166: 0.8589528717 | X166: 1.312471856 | Y166: 340.3702879 | Z166: 4.86811154 | AA166: 284.9453577 | AB166: 10.55681859 | AC166: 40
B167: 2013 | C167: 5.677459995 | D167: 12.68673039 | E167: -0.007441740885 | F167: -0.0001088151566 | G167: 0.06409560163 | H167: 796.7078595 | I167: 1.797672867 | J167: 1.356734239 | K167: 0.3030566037 | L167: 0.01642592429 | M167: 0.2866306794 | N167: 1.053677636 | O167: 0.1272791705 | P167: 0.3639002141 | Q167: 0 | R167: 0.09662042024 | S167: 0.4658778308 | T167: 456.3715755 | U167: 344.4313777 | V167: 2.171424728 | W167: 0.8589528717 | X167: 1.312471856 | Y167: 342.259953 | Z167: 4.86811154 | AA167: =AA168/(1+E167) -> 286.8350229 | AB167: 10.55681859 | AC167: 40
B168: 2014 | C168: 5.319749459 | D168: 12.29776989 | E168: -0.003162871325 | F168: 0.00255970758 | G168: 0.06410257696 | H168: =H169 -> 796.7078595 | I168: =NAF*J168 -> 1.771337298 | J168: =K168+N168 -> 1.336858338 | K168: =SUM(L168:M168) -> 0.3060712677 | L168: =L169 -> 0.01642592429 | M168: =(D168/(1+Moms)-C168)*G168 -> 0.2896453434 | N168: =SUM(O168:S168) -> 1.030787071 | O168: =O169 -> 0.1272791705 | P168: =C168*G168 -> 0.3410096491 | Q168: =Q169 -> 0 | R168: 0.09662042024 | S168: 0.4658778308 | T168: =NAF*U168 -> 453.5432942 | U168: =V168+Y168 -> 342.2968258 | V168: =SUM(W168:X168) -> 2.171424728 | W168: =W169 -> 0.8589528717 | X168: 1.312471856 | Y168: =SUM(Z168:AC168) -> 340.1254011 | Z168: =Z169 -> 4.86811154 | AA168: =AA169/(1+E168) -> 284.700471 | AB168: 10.55681859 | AC168: 40
B169: 2015 | C169: 4.374868823 | D169: 11.17858603 | G169: ='Resultat - niveau I'!$E$26 -> 0.06393891204 | H169: ='Resultat - niveau I'!$F$26 -> 796.7078595 | I169: =NAF*J169 -> 1.69335086 | J169: =K169+N169 -> 1.278000649 | K169: =SUM(L169:M169) -> 0.3084988745 | L169: ='Resultat - niveau I'!$J$26 -> 0.01642592429 | M169: =(D169/(1+Moms)-C169)*G169 -> 0.2920729502 | N169: =SUM(O169:S169) -> 0.9695017744 | O169: ='Resultat - niveau I'!$M$26 -> 0.1272791705 | P169: =C169*G169 -> 0.2797243529 | Q169: ='Resultat - niveau I'!$O$26 -> 0 | R169: ='Resultat - niveau I'!$P$26 -> 0.09662042024 | S169: ='Resultat - niveau I'!$Q$26 -> 0.4658778308 | T169: =NAF*U169 -> 452.3501702 | U169: =V169+Y169 -> 341.3963549 | V169: =SUM(W169:X169) -> 2.171424728 | W169: ='Resultat - niveau I'!$U$26 -> 0.8589528717 | X169: ='Resultat - niveau I'!$V$26 -> 1.312471856 | Y169: =SUM(Z169:AC169) -> 339.2249301 | Z169: ='Resultat - niveau I'!$X$26 -> 4.86811154 | AA169: ='Resultat - niveau I'!$Y$26 -> 283.8 | AB169: ='Resultat - niveau I'!$Z$26 -> 10.55681859 | AC169: ='Resultat - niveau I'!$AA$26 -> 40
B170: =1+B169 -> 2016 | C170: 3.776699815 | D170: 10.41205576 | E170: 0.001083591877 | F170: -0.0001541969297 | G170: =G169*(1+F170) -> 0.06392905286 | H170: =H169 -> 796.7078595 | I170: 1.641290268 | J170: =K170+N170 -> 1.238709637 | K170: =SUM(L170:M170) -> 0.3074913729 | L170: =L169 -> 0.01642592429 | M170: 0.2910654486 | N170: =SUM(O170:S170) -> 0.9312182636 | O170: =O169 -> 0.1272791705 | P170: 0.2414408421 | Q170: =Q169 -> 0 | R170: =R169 -> 0.09662042024 | S170: =S169 -> 0.4658778308 | T170: 452.7576387 | U170: =V170+Y170 -> 341.7038782 | V170: =SUM(W170:X170) -> 2.171424728 | W170: =W169 -> 0.8589528717 | X170: =X169 -> 1.312471856 | Y170: =SUM(Z170:AC170) -> 339.5324535 | Z170: =Z169 -> 4.86811154 | AA170: =AA169*(1+E170) -> 284.1075234 | AB170: =AB169 -> 10.55681859 | AC170: =AC169 -> 40
B171: =1+B170 -> 2017 | C171: 3.999839789 | D171: 10.61395295 | E171: 0.008570720148 | F171: -0.001793889052 | G171: =G170*(1+F171) -> 0.06381437123 | H171: =H170 -> 796.7078595 | I171: 1.653681531 | J171: =K171+N171 -> 1.248061533 | K171: =SUM(L171:M171) -> 0.3030368502 | L171: =L170 -> 0.01642592429 | M171: 0.2866109259 | N171: =SUM(O171:S171) -> 0.9450246827 | O171: =O170 -> 0.1272791705 | P171: 0.2552472612 | Q171: =Q170 -> 0 | R171: =R170 -> 0.09662042024 | S171: =S170 -> 0.4658778308 | T171: 455.9840217 | U171: =V171+Y171 -> 344.1388843 | V171: =SUM(W171:X171) -> 2.171424728 | W171: =W170 -> 0.8589528717 | X171: =X170 -> 1.312471856 | Y171: =SUM(Z171:AC171) -> 341.9674596 | Z171: =Z170 -> 4.86811154 | AA171: =AA170*(1+E171) -> 286.5425294 | AB171: =AB170 -> 10.55681859 | AC171: =AC170 -> 40
B172: =1+B171 -> 2018 | C172: 4.08788589 | D172: 10.72401058 | E172: 0.01160384386 | F172: -0.002949458594 | G172: 0.06362615338 | H172: 796.7078595 | I172: 1.658986628 | J172: 1.252065379 | K172: 0.3021915031 | L172: 0.01642592429 | M172: 0.2857655788 | N172: 0.9498738762 | O172: 0.1272791705 | P172: 0.2600964546 | Q172: 0 | R172: 0.09662042024 | S172: 0.4658778308 | T172: 460.3896398 | U172: 347.4638791 | V172: 2.171424728 | W172: 0.8589528717 | X172: 1.312471856 | Y172: 345.2924544 | Z172: 4.86811154 | AA172: 289.8675242 | AB172: 10.55681859 | AC172: 40
B173: 2019 | C173: 4.130278456 | D173: 10.77700128 | E173: 0.01571060683 | F173: -0.00496228924 | G173: 0.06331042201 | H173: 796.7078595 | I173: 1.658953722 | J173: 1.252040545 | K173: 0.3007734516 | L173: 0.01642592429 | M173: 0.2843475273 | N173: 0.9512670936 | O173: 0.1272791705 | P173: 0.2614896721 | Q173: 0 | R173: 0.09662042024 | S173: 0.4658778308 | T173: 466.4236828 | U173: 352.0178738 | V173: 2.171424728 | W173: 0.8589528717 | X173: 1.312471856 | Y173: 349.8464491 | Z173: 4.86811154 | AA173: 294.4215189 | AB173: 10.55681859 | AC173: 40
B174: 2020 | C174: 4.27376099 | D174: 10.95635445 | E174: 0.014478864 | F174: -0.006256911138 | G174: 0.06291429432 | H174: 796.7078595 | I174: 1.66638942 | J174: 1.257652393 | K174: 0.2989943144 | L174: 0.01642592429 | M174: 0.2825683901 | N174: 0.9586580783 | O174: 0.1272791705 | P174: 0.2688806568 | Q174: 0 | R174: 0.09662042024 | S174: 0.4658778308 | T174: 472.0720109 | U174: 356.2807629 | V174: 2.171424728 | W174: 0.8589528717 | X174: 1.312471856 | Y174: 354.1093382 | Z174: 4.86811154 | AA174: 298.6844081 | AB174: 10.55681859 | AC174: 40
B175: 2021 | C175: 4.453114157 | D175: 11.18054591 | E175: 0.009863291578 | F175: -0.008231259234 | G175: 0.06239643046 | H175: 796.7078595 | I175: 1.675203158 | J175: 1.26430427 | K175: 0.2966684208 | L175: 0.01642592429 | M175: 0.2802424965 | N175: 0.9676358494 | O175: 0.1272791705 | P175: 0.2778584278 | Q175: 0 | R175: 0.09662042024 | S175: 0.4658778308 | T175: 475.975476 | U175: 359.2267743 | V175: 2.171424728 | W175: 0.8589528717 | X175: 1.312471856 | Y175: 357.0553496 | Z175: 4.86811154 | AA175: 301.6304195 | AB175: 10.55681859 | AC175: 40
B176: 2022 | C176: 4.570508958 | D176: 11.32728941 | E176: 0.01397652042 | F176: -0.009458928041 | G176: 0.06180622711 | H176: 796.7078595 | I176: 1.677822276 | J176: 1.266280963 | K176: 0.2940176271 | L176: 0.01642592429 | M176: 0.2775917029 | N176: 0.9722633362 | O176: 0.1272791705 | P176: 0.2824859146 | Q176: 0 | R176: 0.09662042024 | S176: 0.4658778308 | T176: 481.5613364 | U176: 363.442518 | V176: 2.171424728 | W176: 0.8589528717 | X176: 1.312471856 | Y176: 361.2710933 | Z176: 4.86811154 | AA176: 305.8461632 | AB176: 10.55681859 | AC176: 40
B177: 2023 | C177: 4.684642791 | D177: 11.4699567 | E177: 0.009005311935 | F177: -0.008204305351 | G177: 0.06129914995 | H177: 796.7078595 | I177: 1.681003945 | J177: 1.268682223 | K177: 0.2917401801 | L177: 0.01642592429 | M177: 0.2753142558 | N177: 0.9769420425 | O177: 0.1272791705 | P177: 0.2871646209 | Q177: 0 | R177: 0.09662042024 | S177: 0.4658778308 | T177: 485.2107045 | U177: 366.1967581 | V177: 2.171424728 | W177: 0.8589528717 | X177: 1.312471856 | Y177: 364.0253334 | Z177: 4.86811154 | AA177: 308.6004033 | AB177: 10.55681859 | AC177: 40
B178: 2024 | C178: 4.792254692 | D178: 11.60447158 | E178: 0.007492919765 | F178: -0.007227230901 | G178: 0.06085612684 | H178: 796.7078595 | I178: 1.684294819 | J178: 1.271165901 | K178: 0.2897504204 | L178: 0.01642592429 | M178: 0.2733244961 | N178: 0.9814154809 | O178: 0.1272791705 | P178: 0.2916380594 | Q178: 0 | R178: 0.09662042024 | S178: 0.4658778308 | T178: 488.274526 | U178: 368.5090762 | V178: 2.171424728 | W178: 0.8589528717 | X178: 1.312471856 | Y178: 366.3376515 | Z178: 4.86811154 | AA178: 310.9127213 | AB178: 10.55681859 | AC178: 40
B179: 2025 | C179: 4.896605625 | D179: 11.73491025 | E179: 0.007485235658 | F179: -0.005103270648 | G179: 0.06054556155 | H179: 796.7078595 | I179: 1.688845968 | J179: 1.27460073 | K179: 0.2883555715 | L179: 0.01642592429 | M179: 0.2719296472 | N179: 0.9862451588 | O179: 0.1272791705 | P179: 0.2964677373 | Q179: 0 | R179: 0.09662042024 | S179: 0.4658778308 | T179: 491.3581388 | U179: 370.8363312 | V179: 2.171424728 | W179: 0.8589528717 | X179: 1.312471856 | Y179: 368.6649065 | Z179: 4.86811154 | AA179: 313.2399763 | AB179: 10.55681859 | AC179: 40
B180: 2026 | C180: 4.994434625 | D180: 11.8571965 | E180: 0.006841307703 | F180: -0.005020592 | G180: 0.06024158699 | H180: 796.7078595 | I180: 1.692873547 | J180: 1.277640413 | K180: 0.2869903237 | L180: 0.01642592429 | M180: 0.2705643994 | N180: 0.9906500895 | O180: 0.1272791705 | P180: 0.300872668 | Q180: 0 | R180: 0.09662042024 | S180: 0.4658778308 | T180: 494.1975755 | U180: 372.9793023 | V180: 2.171424728 | W180: 0.8589528717 | X180: 1.312471856 | Y180: 370.8078775 | Z180: 4.86811154 | AA180: 315.3829474 | AB180: 10.55681859 | AC180: 40
B181: 2027 | C181: 5.085741692 | D181: 11.97133033 | E181: 0.006158086614 | F181: -0.003244751498 | G181: 0.06004611801 | H181: 796.7078595 | I181: 1.697681262 | J181: 1.281268877 | K181: 0.2861124094 | L181: 0.01642592429 | M181: 0.2696864851 | N181: 0.9951564674 | O181: 0.1272791705 | P181: 0.3053790458 | Q181: 0 | R181: 0.09662042024 | S181: 0.4658778308 | T181: 496.7709315 | U181: 374.9214578 | V181: 2.171424728 | W181: 0.8589528717 | X181: 1.312471856 | Y181: 372.750033 | Z181: 4.86811154 | AA181: 317.3251029 | AB181: 10.55681859 | AC181: 40
B182: 2028 | C182: 5.173787793 | D182: 12.08138795 | E182: 0.007227765901 | F182: -0.0028722607 | G182: 0.05987364991 | H182: 796.7078595 | I182: 1.702477634 | J182: 1.28488878 | K182: 0.2853377995 | L182: 0.01642592429 | M182: 0.2689118752 | N182: 0.9995509805 | O182: 0.1272791705 | P182: 0.309773559 | Q182: 0 | R182: 0.09662042024 | S182: 0.4658778308 | T182: 499.8098873 | U182: 377.2150093 | V182: 2.171424728 | W182: 0.8589528717 | X182: 1.312471856 | Y182: 375.0435846 | Z182: 4.86811154 | AA182: 319.6186545 | AB182: 10.55681859 | AC182: 40
B183: 2029 | C183: 5.258572926 | D183: 12.18736937 | E183: 0.006854621725 | F183: -0.002849307397 | G183: 0.05970305147 | H183: 796.7078595 | I183: 1.706999963 | J183: 1.288301859 | K183: 0.2845715869 | L183: 0.01642592429 | M183: 0.2681456626 | N183: 1.003730272 | O183: 0.1272791705 | P183: 0.3139528501 | Q183: 0 | R183: 0.09662042024 | S183: 0.4658778308 | T183: 502.7127834 | U183: 379.4058743 | V183: 2.171424728 | W183: 0.8589528717 | X183: 1.312471856 | Y183: 377.2344496 | Z183: 4.86811154 | AA183: 321.8095194 | AB183: 10.55681859 | AC183: 40
B184: 2030 | C184: 5.336836126 | D184: 12.28519837 | E184: 0.006608586735 | F184: -0.002785472663 | G184: 0.05953675026 | H184: 796.7078595 | I184: 1.711025468 | J184: 1.291339976 | K184: 0.2838246745 | L184: 0.01642592429 | M184: 0.2673987502 | N184: 1.007515301 | O184: 0.1272791705 | P184: 0.3177378796 | Q184: 0 | R184: 0.09662042024 | S184: 0.4658778308 | T184: 505.530669 | U184: 381.5325804 | V184: 2.171424728 | W184: 0.8589528717 | X184: 1.312471856 | Y184: 379.3611557 | Z184: 4.86811154 | AA184: 323.9362256 | AB184: 10.55681859 | AC184: 40
B185: 2031 | C185: 5.405316427 | D185: 12.37079875 | E185: 0.006189401266 | F185: 0 | G185: 0.05953675026 | H185: 796.7078595 | I185: 1.716427618 | J185: 1.29541707 | K185: 0.2838246745 | L185: 0.01642592429 | M185: 0.2673987502 | N185: 1.011592396 | O185: 0.1272791705 | P185: 0.3218149741 | Q185: 0 | R185: 0.09662042024 | S185: 0.4658778308 | T185: 508.187256 | U185: 383.5375517 | V185: 2.171424728 | W185: 0.8589528717 | X185: 1.312471856 | Y185: 381.366127 | Z185: 4.86811154 | AA185: 325.9411968 | AB185: 10.55681859 | AC185: 40
B186: 2032 | C186: 5.464013827 | D186: 12.4441705 | E186: 0.005879400857 | F186: 0 | G186: 0.05953675026 | H186: 796.7078595 | I186: 1.721058033 | J186: 1.298911723 | K186: 0.2838246745 | L186: 0.01642592429 | M186: 0.2673987502 | N186: 1.015087048 | O186: 0.1272791705 | P186: 0.3253096266 | Q186: 0 | R186: 0.09662042024 | S186: 0.4658778308 | T186: 510.7264051 | U186: 385.4538906 | V186: 2.171424728 | W186: 0.8589528717 | X186: 1.312471856 | Y186: 383.2824659 | Z186: 4.86811154 | AA186: 327.8575358 | AB186: 10.55681859 | AC186: 40
B187: 2033 | C187: 5.516189294 | D187: 12.50938983 | E187: 0.005944257202 | F187: 0 | G187: 0.05953675026 | H187: 796.7078595 | I187: 1.725173957 | J187: 1.30201808 | K187: 0.2838246745 | L187: 0.01642592429 | M187: 0.2673987502 | N187: 1.018193406 | O187: 0.1272791705 | P187: 0.3284159843 | Q187: 0 | R187: 0.09662042024 | S187: 0.4658778308 | T187: 513.3086572 | U187: 387.4027602 | V187: 2.171424728 | W187: 0.8589528717 | X187: 1.312471856 | Y187: 385.2313354 | Z187: 4.86811154 | AA187: 329.8064053 | AB187: 10.55681859 | AC187: 40
B188: 2034 | C188: 5.565103794 | D188: 12.57053296 | E188: 0.00576162548 | F188: 0 | G188: 0.05953675026 | H188: 796.7078595 | I188: 1.729032635 | J188: 1.304930291 | K188: 0.2838246745 | L188: 0.01642592429 | M188: 0.2673987502 | N188: 1.021105616 | O188: 0.1272791705 | P188: 0.3313281947 | Q188: 0 | R188: 0.09662042024 | S188: 0.4658778308 | T188: 515.82645 | U188: 389.3029812 | V188: 2.171424728 | W188: 0.8589528717 | X188: 1.312471856 | Y188: 387.1315564 | Z188: 4.86811154 | AA188: 331.7066263 | AB188: 10.55681859 | AC188: 40
B189: 2035 | C189: 5.614018294 | D189: 12.63167608 | E189: 0.005990435116 | F189: 0 | G189: 0.05953675026 | H189: 796.7078595 | I189: 1.732891314 | J189: 1.307842501 | K189: 0.2838246745 | L189: 0.01642592429 | M189: 0.2673987502 | N189: 1.024017827 | O189: 0.1272791705 | P189: 0.3342404051 | Q189: 0 | R189: 0.09662042024 | S189: 0.4658778308 | T189: 518.4593138 | U189: 391.2900482 | V189: 2.171424728 | W189: 0.8589528717 | X189: 1.312471856 | Y189: 389.1186234 | Z189: 4.86811154 | AA189: 333.6936933 | AB189: 10.55681859 | AC189: 40
B190: 2036 | C190: 5.614018294 | D190: 12.63167608 | E190: 0.006555631441 | F190: 0 | G190: 0.05953675026 | H190: 796.7078595 | I190: 1.732891314 | J190: 1.307842501 | K190: 0.2838246745 | L190: 0.01642592429 | M190: 0.2673987502 | N190: 1.024017827 | O190: 0.1272791705 | P190: 0.3342404051 | Q190: 0 | R190: 0.09662042024 | S190: 0.4658778308 | T190: 521.3578479 | U190: 393.477621 | V190: 2.171424728 | W190: 0.8589528717 | X190: 1.312471856 | Y190: 391.3061963 | Z190: 4.86811154 | AA190: 335.8812662 | AB190: 10.55681859 | AC190: 40
B191: 2037 | C191: 5.614018294 | D191: 12.63167608 | E191: 0.007208803414 | F191: 0 | G191: 0.05953675026 | H191: 796.7078595 | I191: 1.732891314 | J191: 1.307842501 | K191: 0.2838246745 | L191: 0.01642592429 | M191: 0.2673987502 | N191: 1.024017827 | O191: 0.1272791705 | P191: 0.3342404051 | Q191: 0 | R191: 0.09662042024 | S191: 0.4658778308 | T191: 524.5660731 | U191: 395.8989231 | V191: 2.171424728 | W191: 0.8589528717 | X191: 1.312471856 | Y191: 393.7274983 | Z191: 4.86811154 | AA191: 338.3025682 | AB191: 10.55681859 | AC191: 40
B192: 2038 | C192: 5.614018294 | D192: 12.63167608 | E192: 0.007376422986 | F192: 0 | G192: 0.05953675026 | H192: 796.7078595 | I192: 1.732891314 | J192: 1.307842501 | K192: 0.2838246745 | L192: 0.01642592429 | M192: 0.2673987502 | N192: 1.024017827 | O192: 0.1272791705 | P192: 0.3342404051 | Q192: 0 | R192: 0.09662042024 | S192: 0.4658778308 | T192: 527.8725613 | U192: 398.3943859 | V192: 2.171424728 | W192: 0.8589528717 | X192: 1.312471856 | Y192: 396.2229612 | Z192: 4.86811154 | AA192: 340.798031 | AB192: 10.55681859 | AC192: 40
B193: 2039 | C193: 5.614018294 | D193: 12.63167608 | E193: 0.007967628679 | F193: 0 | G193: 0.05953675026 | H193: 796.7078595 | I193: 1.732891314 | J193: 1.307842501 | K193: 0.2838246745 | L193: 0.01642592429 | M193: 0.2673987502 | N193: 1.024017827 | O193: 0.1272791705 | P193: 0.3342404051 | Q193: 0 | R193: 0.09662042024 | S193: 0.4658778308 | T193: 531.4704029 | U193: 401.1097381 | V193: 2.171424728 | W193: 0.8589528717 | X193: 1.312471856 | Y193: 398.9383133 | Z193: 4.86811154 | AA193: 343.5133832 | AB193: 10.55681859 | AC193: 40
B194: 2040 | C194: 5.614018294 | D194: 12.63167608 | E194: 0.008271271897 | F194: 0 | G194: 0.05953675026 | H194: 796.7078595 | I194: 1.732891314 | J194: 1.307842501 | K194: 0.2838246745 | L194: 0.01642592429 | M194: 0.2673987502 | N194: 1.024017827 | O194: 0.1272791705 | P194: 0.3342404051 | Q194: 0 | R194: 0.09662042024 | S194: 0.4658778308 | T194: 535.2351156 | U194: 403.9510307 | V194: 2.171424728 | W194: 0.8589528717 | X194: 1.312471856 | Y194: 401.7796059 | Z194: 4.86811154 | AA194: 346.3546758 | AB194: 10.55681859 | AC194: 40
C195: Kilde: 2010-2015: Oliebranchens fællesråd | D195: Kilde: 2010-2015: Oliebranchens fællesråd | E195: Kilde: FM, KP15 | F195: Kilde til 2030: ENS, 2015
C197: Varebiler | D197: diesel
C199: Benzinpris ekskl. afgifter og moms [2015-kr. per liter] | D199: Benzinpris inkl. afgifter og moms [2015-kr. per liter] | E199: Årlig ændring i real BNP per capita | F199: Årlig ændring i brændstofforbrug per km | G199: Brændstof-effektivitet [km per liter] | H199: Trafikarbejde, i alt [mio. km] | I199: Variable omkostninger i alt, opgjort i markedspriser [kr. per km.] | J199: Variable omkostninger inkl.. afgifter, opgjort i faktorpriser [kr. per km.] | K199: Ikke-refunderbare afgifter i alt, [kr. per km.] | L199: Registreringsafgift, [kr. per km.] | M199: Afgifter (brændstof) , [kr. per km.] | N199: Variable omkostninger ekskl. afgifter, opgjort i faktorpriser, [kr. per km.] | O199: Kapitalomkostninger/afskrivninger, [kr. per km.] | P199: Brændstof, [kr. per km.] | Q199: Olie, [kr. per km.] | R199: Dæk, [kr. per km.] | S199: Reparation, [kr. per km.] | T199: Faste omkostninger i alt, opgjort i markedspriser [kr. per time] | U199: Faste omkostninger inkl. afgifter, opgjort i faktorpriser [kr. per time] | V199: Ikke-refunderbare afgifter i alt, [kr. per time] | W199: Registreringsafgift, [kr. per time] | X199: Vægtafgift, vejafgift, udligningsafgift, [kr. per time] | Y199: Faste omkostninger ekskl. afgifter, opgjort i faktorpriser, [kr. per time] | Z199: Kapitalomkostninger/afskrivninger, [kr. per time] | AA199: Løn, [kr. per time] | AB199: Reparation, [kr. per time] | AC199: Kapacitets-omkostninger, [kr. per time]
B200: 2010 | C200: 4.865110903 | D200: 9.957650568 | E200: -0.007311321799 | F200: 0.003030222174 | G200: =G201*(1+F200) -> 0.08271055239 | H200: =H201 -> 7340.072031 | I200: =NAF*J200 -> 2.154213188 | J200: =K200+N200 -> 1.625821274 | K200: =SUM(L200:M200) -> 0.2992223653 | L200: =L201 -> 0.0427361524 | M200: =(D200/(1+Moms)-C200)*G200 -> 0.2564862129 | N200: =SUM(O200:S200) -> 1.326598909 | O200: =O201 -> 0.1455584675 | P200: =C200*G200 -> 0.4023960102 | Q200: =Q201 -> 0 | R200: =R201 -> 0.09364998653 | S200: =S201 -> 0.6849944443 | T200: =NAF*U200 -> 466.5289867 | U200: =V200+Y200 -> 352.0973485 | V200: =SUM(W200:X200) -> 7.323845661 | W200: =W201 -> 2.377966325 | X200: =X201 -> 4.945879336 | Y200: =SUM(Z200:AC200) -> 344.7735028 | Z200: =Z201 -> 7.747206195 | AA200: =AA201/(1+E200) -> 285.7563154 | AB200: =AB201 -> 11.26998118 | AC200: =AC201 -> 40
B201: =1+B200 -> 2011 | C201: 6.012033522 | D201: 11.36174032 | E201: 0.004506334522 | F201: 0.001431489049 | G201: =G202*(1+F201) -> 0.08246067821 | H201: 7340.072031 | I201: 2.274304863 | J201: 1.716456501 | K201: 0.2964972406 | L201: 0.0427361524 | M201: 0.2537610882 | N201: 1.41995926 | O201: 0.1455584675 | P201: 0.4957563617 | Q201: 0 | R201: 0.09364998653 | S201: 0.6849944443 | T201: 463.760722 | U201: 350.0080921 | V201: 7.323845661 | W201: 2.377966325 | X201: 4.945879336 | Y201: 342.6842464 | Z201: 7.747206195 | AA201: 283.6670591 | AB201: 11.26998118 | AC201: 40
B202: 2012 | C202: 6.363587296 | D202: 11.74658033 | E202: 0.006631675514 | F202: 0.0007262310394 | G202: 0.08234280539 | H202: 7340.072031 | I202: 2.306475403 | J202: 1.740736153 | K202: 0.2925376247 | L202: 0.0427361524 | M202: 0.2498014723 | N202: 1.448198529 | O202: 0.1455584675 | P202: 0.5239956303 | Q202: 0 | R202: 0.09364998653 | S202: 0.6849944443 | T202: 465.4544678 | U202: 351.2863908 | V202: 7.323845661 | W202: 2.377966325 | X202: 4.945879336 | Y202: 343.9625451 | Z202: 7.747206195 | AA202: 284.9453577 | AB202: 11.26998118 | AC202: 40
B203: 2013 | C203: 6.039912646 | D203: 11.37369545 | E203: -0.007441740885 | F203: -0.0001088151566 | G203: 0.08228304888 | H203: 7340.072031 | I203: 2.273208321 | J203: 1.715628922 | K203: 0.2944435959 | L203: 0.0427361524 | M203: 0.2517074435 | N203: 1.421185326 | O203: 0.1455584675 | P203: 0.4969824275 | Q203: 0 | R203: 0.09364998653 | S203: 0.6849944443 | T203: 467.9582741 | U203: 353.1760559 | V203: 7.323845661 | W203: 2.377966325 | X203: 4.945879336 | Y203: 345.8522102 | Z203: 7.747206195 | AA203: =AA204/(1+E203) -> 286.8350229 | AB203: 11.26998118 | AC203: 40
B204: 2014 | C204: 5.640493171 | D204: 10.91542553 | E204: -0.003162871325 | F204: 0.00255970758 | G204: 0.0822920035 | H204: =H205 -> 7340.072031 | I204: 2.233341612 | J204: =K204+N204 -> 1.685540839 | K204: =SUM(L204:M204) -> 0.2971704574 | L204: =L205 -> 0.0427361524 | M204: 0.254434305 | N204: =SUM(O204:S204) -> 1.388370382 | O204: =O205 -> 0.1455584675 | P204: 0.4641674838 | Q204: 0 | R204: 0.09364998653 | S204: 0.6849944443 | T204: 465.1299928 | U204: =V204+Y204 -> 351.041504 | V204: =SUM(W204:X204) -> 7.323845661 | W204: 2.377966325 | X204: 4.945879336 | Y204: =SUM(Z204:AC204) -> 343.7176583 | Z204: 7.747206195 | AA204: =AA205/(1+E204) -> 284.700471 | AB204: 11.26998118 | AC204: 40
B205: 2015 | C205: 4.496099499 | D205: 9.528874374 | G205: ='Resultat - niveau I'!$E$27 -> 0.08208189785 | H205: ='Resultat - niveau I'!$F$27 -> 7340.072031 | I205: =NAF*J205 -> 2.110271221 | J205: =K205+N205 -> 1.592657525 | K205: =SUM(L205:M205) -> 0.299406247 | L205: ='Resultat - niveau I'!$J$27 -> 0.0427361524 | M205: =(D205/(1+Moms)-C205)*G205 -> 0.2566700946 | N205: =SUM(O205:S205) -> 1.293251278 | O205: ='Resultat - niveau I'!$M$27 -> 0.1455584675 | P205: =C205*G205 -> 0.3690483798 | Q205: ='Resultat - niveau I'!$O$27 -> 0 | R205: ='Resultat - niveau I'!$P$27 -> 0.09364998653 | S205: ='Resultat - niveau I'!$Q$27 -> 0.6849944443 | T205: =NAF*U205 -> 463.9368688 | U205: =V205+Y205 -> 350.141033 | V205: =SUM(W205:X205) -> 7.323845661 | W205: ='Resultat - niveau I'!$U$27 -> 2.377966325 | X205: ='Resultat - niveau I'!$V$27 -> 4.945879336 | Y205: =SUM(Z205:AC205) -> 342.8171874 | Z205: ='Resultat - niveau I'!$X$27 -> 7.747206195 | AA205: ='Resultat - niveau I'!$Y$27 -> 283.8 | AB205: ='Resultat - niveau I'!$Z$27 -> 11.26998118 | AC205: ='Resultat - niveau I'!$AA$27 -> 40
B206: =1+B205 -> 2016 | C206: 3.856114528 | D206: 8.706500705 | E206: 0.001083591877 | F206: -0.0001541969297 | G206: =G205*(1+F206) -> 0.08206924107 | H206: =H205 -> 7340.072031 | I206: 2.038602302 | J206: =K206+N206 -> 1.538567775 | K206: =SUM(L206:M206) -> 0.2978964838 | L206: =L205 -> 0.0427361524 | M206: 0.2551603314 | N206: =SUM(O206:S206) -> 1.240671291 | O206: =O205 -> 0.1455584675 | P206: =C206*G206 -> 0.3164683928 | Q206: =Q205 -> 0 | R206: =R205 -> 0.09364998653 | S206: =S205 -> 0.6849944443 | T206: 464.3443372 | U206: =V206+Y206 -> 350.4485564 | V206: =SUM(W206:X206) -> 7.323845661 | W206: =W205 -> 2.377966325 | X206: =X205 -> 4.945879336 | Y206: =SUM(Z206:AC206) -> 343.1247108 | Z206: =Z205 -> 7.747206195 | AA206: =AA205*(1+E206) -> 284.1075234 | AB206: =AB205 -> 11.26998118 | AC206: =AC205 -> 40
B207: =1+B206 -> 2017 | C207: 4.476241797 | D207: 9.421135115 | E207: 0.008570720148 | F207: -0.001793889052 | G207: =G206*(1+F207) -> 0.08192201796 | H207: =H206 -> 7340.072031 | I207: 2.099300546 | J207: 1.584377771 | K207: 0.2934721116 | L207: =L206 -> 0.0427361524 | M207: 0.2507359592 | N207: 1.290905659 | O207: =O206 -> 0.1455584675 | P207: 0.3667027609 | Q207: =Q206 -> 0 | R207: =R206 -> 0.09364998653 | S207: =S206 -> 0.6849944443 | T207: 467.5707203 | U207: 352.8835625 | V207: 7.323845661 | W207: =W206 -> 2.377966325 | X207: =X206 -> 4.945879336 | Y207: 345.5597168 | Z207: =Z206 -> 7.747206195 | AA207: =AA206*(1+E207) -> 286.5425294 | AB207: =AB206 -> 11.26998118 | AC207: =AC206 -> 40
B208: =1+B207 -> 2018 | C208: 4.572376882 | D208: 9.541303971 | E208: 0.01160384386 | F208: -0.002949458594 | G208: 0.08168039236 | H208: 7340.072031 | I208: 2.107291941 | J208: 1.590409012 | K208: 0.2927325763 | L208: 0.0427361524 | M208: 0.2499964239 | N208: 1.297676436 | O208: 0.1455584675 | P208: 0.3734735377 | Q208: 0 | R208: 0.09364998653 | S208: 0.6849944443 | T208: 471.9763384 | U208: 356.2085573 | V208: 7.323845661 | W208: 2.377966325 | X208: 4.945879336 | Y208: 348.8847116 | Z208: 7.747206195 | AA208: 289.8675242 | AB208: 11.26998118 | AC208: 40
B209: 2019 | C209: 4.618664144 | D209: 9.599163049 | E209: 0.01571060683 | F209: -0.00496228924 | G209: 0.08127507062 | H209: 7340.072031 | I209: 2.108177256 | J209: 1.591077175 | K209: 0.2914920217 | L209: 0.0427361524 | M209: 0.2487558693 | N209: 1.299585153 | O209: 0.1455584675 | P209: 0.3753822545 | Q209: 0 | R209: 0.09364998653 | S209: 0.6849944443 | T209: 478.0103813 | U209: 360.762552 | V209: 7.323845661 | W209: 2.377966325 | X209: 4.945879336 | Y209: 353.4387063 | Z209: 7.747206195 | AA209: 294.4215189 | AB209: 11.26998118 | AC209: 40
B210: 2020 | C210: 4.775328726 | D210: 9.794993777 | E210: 0.014478864 | F210: -0.006256911138 | G210: 0.08076653973 | H210: 7340.072031 | I210: 2.119768462 | J210: 1.599825254 | K210: 0.2899355783 | L210: 0.0427361524 | M210: 0.2471994259 | N210: 1.309889676 | O210: 0.1455584675 | P210: 0.3856867773 | Q210: 0 | R210: 0.09364998653 | S210: 0.6849944443 | T210: 483.6587094 | U210: 365.0254411 | V210: 7.323845661 | W210: 2.377966325 | X210: 4.945879336 | Y210: 357.7015954 | Z210: 7.747206195 | AA210: 298.6844081 | AB210: 11.26998118 | AC210: 40
B211: 2021 | C211: 4.971159454 | D211: 10.03978219 | E211: 0.009863291578 | F211: -0.008231259234 | G211: 0.0801017294 | H211: 7340.072031 | I211: 2.133650393 | J211: 1.610302184 | K211: 0.2879008158 | L211: 0.0427361524 | M211: 0.2451646634 | N211: 1.322401368 | O211: 0.1455584675 | P211: 0.3981984694 | Q211: 0 | R211: 0.09364998653 | S211: 0.6849944443 | T211: 487.5621746 | U211: 367.9714525 | V211: 7.323845661 | W211: 2.377966325 | X211: 4.945879336 | Y211: 360.6476068 | Z211: 7.747206195 | AA211: 301.6304195 | AB211: 11.26998118 | AC211: 40
B212: 2022 | C212: 5.099339567 | D212: 10.20000733 | E212: 0.01397652042 | F212: -0.009458928041 | G212: 0.07934405291 | H212: 7340.072031 | I212: 2.139062759 | J212: 1.614386988 | K212: 0.2855818209 | L212: 0.0427361524 | M212: 0.2428456685 | N212: 1.328805167 | O212: 0.1455584675 | P212: 0.4046022684 | Q212: 0 | R212: 0.09364998653 | S212: 0.6849944443 | T212: 493.148035 | U212: 372.1871962 | V212: 7.323845661 | W212: 2.377966325 | X212: 4.945879336 | Y212: 364.8633506 | Z212: 7.747206195 | AA212: 305.8461632 | AB212: 11.26998118 | AC212: 40
B213: 2023 | C213: 5.22395912 | D213: 10.35578177 | E213: 0.009005311935 | F213: -0.008204305351 | G213: 0.07869309007 | H213: 7340.072031 | I213: 2.145018418 | J213: 1.618881825 | K213: 0.2835894408 | L213: 0.0427361524 | M213: 0.2408532884 | N213: 1.335292384 | O213: 0.1455584675 | P213: 0.4110894856 | Q213: 0 | R213: 0.09364998653 | S213: 0.6849944443 | T213: 496.7974031 | U213: 374.9414363 | V213: 7.323845661 | W213: 2.377966325 | X213: 4.945879336 | Y213: 367.6175907 | Z213: 7.747206195 | AA213: 308.6004033 | AB213: 11.26998118 | AC213: 40
B214: 2024 | C214: 5.341457557 | D214: 10.50265482 | E214: 0.007492919765 | F214: -0.007227230901 | G214: 0.07812435694 | H214: 7340.072031 | I214: 2.150938185 | J214: 1.623349574 | K214: 0.2818487385 | L214: 0.0427361524 | M214: 0.2391125861 | N214: 1.341500835 | O214: 0.1455584675 | P214: 0.4172979368 | Q214: 0 | R214: 0.09364998653 | S214: 0.6849944443 | T214: 499.8612246 | U214: 377.2537544 | V214: 7.323845661 | W214: 2.377966325 | X214: 4.945879336 | Y214: 369.9299087 | Z214: 7.747206195 | AA214: 310.9127213 | AB214: 11.26998118 | AC214: 40
B215: 2025 | C215: 5.451834876 | D215: 10.64062646 | E215: 0.007485235658 | F215: -0.005103270648 | G215: 0.0777256672 | H215: 7340.072031 | I215: 2.157867021 | J215: 1.628578884 | K215: 0.2806284823 | L215: 0.0427361524 | M215: 0.2378923299 | N215: 1.347950402 | O215: 0.1455584675 | P215: 0.4237475032 | Q215: 0 | R215: 0.09364998653 | S215: 0.6849944443 | T215: 502.9448374 | U215: 379.5810094 | V215: 7.323845661 | W215: 2.377966325 | X215: 4.945879336 | Y215: 372.2571637 | Z215: 7.747206195 | AA215: 313.2399763 | AB215: 11.26998118 | AC215: 40
B216: 2026 | C216: 5.558651637 | D216: 10.77414741 | E216: 0.006841307703 | F216: -0.005020592 | G216: 0.07733543834 | H216: 7340.072031 | I216: 2.16441106 | J216: 1.633517781 | K216: 0.2794341219 | L216: 0.0427361524 | M216: 0.2366979695 | N216: 1.354083659 | O216: 0.1455584675 | P216: 0.4298807609 | Q216: 0 | R216: 0.09364998653 | S216: 0.6849944443 | T216: 505.7842741 | U216: 381.7239804 | V216: 7.323845661 | W216: 2.377966325 | X216: 4.945879336 | Y216: 374.4001348 | Z216: 7.747206195 | AA216: 315.3829474 | AB216: 11.26998118 | AC216: 40
B217: 2027 | C217: 5.661907838 | D217: 10.90321767 | E217: 0.006158086614 | F217: -0.003244751498 | G217: 0.07708450406 | H217: 7340.072031 | I217: 2.172091516 | J217: 1.639314352 | K217: 0.2786660959 | L217: 0.0427361524 | M217: 0.2359299434 | N217: 1.360648256 | O217: 0.1455584675 | P217: 0.4364453578 | Q217: 0 | R217: 0.09364998653 | S217: 0.6849944443 | T217: 508.3576301 | U217: 383.6661359 | V217: 7.323845661 | W217: 2.377966325 | X217: 4.945879336 | Y217: 376.3422903 | Z217: 7.747206195 | AA217: 317.3251029 | AB217: 11.26998118 | AC217: 40
B218: 2028 | C218: 5.758042923 | D218: 11.02338652 | E218: 0.007227765901 | F218: -0.0028722607 | G218: 0.07686309727 | H218: 7340.072031 | I218: 2.179323371 | J218: 1.644772355 | K218: 0.2779884435 | L218: 0.0427361524 | M218: 0.2352522911 | N218: 1.366783912 | O218: 0.1455584675 | P218: 0.4425810132 | Q218: 0 | R218: 0.09364998653 | S218: 0.6849944443 | T218: 511.3965859 | U218: 385.9596875 | V218: 7.323845661 | W218: 2.377966325 | X218: 4.945879336 | Y218: 378.6358418 | Z218: 7.747206195 | AA218: 319.6186545 | AB218: 11.26998118 | AC218: 40
B219: 2029 | C219: 5.84705689 | D219: 11.13465398 | E219: 0.006854621725 | F219: -0.002849307397 | G219: 0.07664409068 | H219: 7340.072031 | I219: 2.185803997 | J219: 1.649663394 | K219: 0.2773181375 | L219: 0.0427361524 | M219: 0.2345819851 | N219: 1.372345257 | O219: 0.1455584675 | P219: 0.4481423585 | Q219: 0 | R219: 0.09364998653 | S219: 0.6849944443 | T219: 514.299482 | U219: 388.1505525 | V219: 7.323845661 | W219: 2.377966325 | X219: 4.945879336 | Y219: 380.8267068 | Z219: 7.747206195 | AA219: 321.8095194 | AB219: 11.26998118 | AC219: 40
B220: 2030 | C220: 5.936070857 | D220: 11.24592144 | E220: 0.006608586735 | F220: -0.002785472663 | G220: 0.07643060066 | H220: 7340.072031 | I220: 2.192298725 | J220: 1.654565075 | K220: 0.2766647157 | L220: 0.0427361524 | M220: 0.2339285633 | N220: 1.377900359 | O220: 0.1455584675 | P220: 0.4536974611 | Q220: 0 | R220: 0.09364998653 | S220: 0.6849944443 | T220: 517.1173676 | U220: 390.2772586 | V220: 7.323845661 | W220: 2.377966325 | X220: 4.945879336 | Y220: 382.9534129 | Z220: 7.747206195 | AA220: 323.9362256 | AB220: 11.26998118 | AC220: 40
... 46 more rows

Sheet Resultat - niveau I
C1: Personbiler, varebiler og lastbiler
C5: Personbiler
C8: Gennemsnitlige og marginale kørselsomkostninger for sammenvægtede køretøjskategorier, inkl. og ekskl. afgifter [kr. per km.]
G9: Gennemsnitlige kørselsomkostninger [kr. per km.] - dog EKSKLUSIV brændstof | T9: Marginale kørselsomkostninger, [kr. per km.] - dog EKSKLUSIV brændstof
C10: Køretøjskategori | D10: Drivmiddel | E10: Brændstof-effektivitet [liter/km] / [kWh/km] | F10: Trafikarbejde, i alt for kategori [mio. km. per år] | G10: Gennemsnitlige omkostninger inkl.. afgifter og moms, i alt | H10: Brændstof, inkl. afgifter og moms [kr. per km.] | I10: Batteri, inkl. afgifter og moms [kr. per km.] | J10: Afskrivninger, inkl. afgifter og moms [kr. per km.] | K10: Reparation og vedligeholdelse, inkl. afgifter og moms [kr. per km.] | L10: Ejerafgift [kr. per km.] | M10: Dæk, inkl. afgifter og moms [kr. per km.] | N10: Gennemsnitlige omkostninger ekskl.. afgifter og moms, i alt [kr. per km.] | O10: Brændstof, ekskl. afgifter og moms [kr. per km.] | P10: Batteri, ekskl. afgifter og moms [kr. per km.] | Q10: Afskrivninger, ekskl. afgifter og moms [kr. per km.] | R10: Reparation og vedligeholdelse, ekskl. afgifter og moms [kr. per km.] | S10: Dæk, ekskl. afgifter og moms [kr. per km.] | T10: Marginale omkostninger inkl.. afgifter og moms, i alt | U10: Brændstof, inkl. afgifter og moms [kr. per km.] | V10: Batteri, inkl. afgifter og moms [kr. per km.] | W10: Afskrivninger, inkl. afgifter og moms [kr. per km.] | X10: Reparation og vedligeholdelse, inkl. afgifter og moms [kr. per km.] | Y10: Dæk, inkl. afgifter og moms [kr. per km.] | Z10: Marginale omkostninger ekskl.. afgifter og moms, i alt [kr. per km.] | AA10: Brændstof, ekskl. afgifter og moms [kr. per km.] | AB10: Batteri, ekskl. afgifter og moms [kr. per km.] | AC10: Afskrivninger, ekskl. afgifter og moms [kr. per km.] | AD10: Reparation og vedligeholdelse, ekskl. afgifter og moms [kr. per km.] | AE10: Dæk, ekskl. afgifter og moms [kr. per km.]
C11: Personbil | D11: Vægtet gnst. | F11: =SUM(F12:F15) -> 39564.06725 | G11: =SUM(H11:M11) -> 2.996202125 | H11: =SUMPRODUCT($F$12:$F$15,H12:H15)/$F$11 -> 0.7712479294 | I11: 0.001580106138 | J11: 0.8465258127 | K11: 1.091386456 | L11: 0.1961633433 | M11: 0.08929847748 | N11: =SUM(O11:S11) -> 1.584890745 | O11: =SUMPRODUCT($F$12:$F$15,O12:O15)/$F$11 -> 0.3263178 | P11: =SUMPRODUCT($F$12:$F$15,P12:P15)/$F$11 -> 0.00126408491 | Q11: =SUMPRODUCT($F$12:$F$15,Q12:Q15)/$F$11 -> 0.338191277 | R11: =SUMPRODUCT($F$12:$F$15,R12:R15)/$F$11 -> 0.8476788009 | S11: =SUMPRODUCT($F$12:$F$15,S12:S15)/$F$11 -> 0.07143878198 | T11: =SUM(U11:Y11) -> 1.522938143 | U11: =SUMPRODUCT($F$12:$F$15,U12:U15)/$F$11 -> 0.7712479294 | V11: =SUMPRODUCT($F$12:$F$15,V12:V15)/$F$11 -> 0.0006237621484 | W11: =SUMPRODUCT($F$12:$F$15,W12:W15)/$F$11 -> 0.2169147749 | X11: =SUMPRODUCT($F$12:$F$15,X12:X15)/$F$11 -> 0.4448531995 | Y11: =SUMPRODUCT($F$12:$F$15,Y12:Y15)/$F$11 -> 0.08929847748 | Z11: =SUM(AA11:AE11) -> 0.8351893927 | AA11: =SUMPRODUCT($F$12:$F$15,AA12:AA15)/$F$11 -> 0.3263178 | AB11: =SUMPRODUCT($F$12:$F$15,AB12:AB15)/$F$11 -> 0.0004990097187 | AC11: =SUMPRODUCT($F$12:$F$15,AC12:AC15)/$F$11 -> 0.09141675283 | AD11: =SUMPRODUCT($F$12:$F$15,AD12:AD15)/$F$11 -> 0.3455170482 | AE11: =SUMPRODUCT($F$12:$F$15,AE12:AE15)/$F$11 -> 0.07143878198
C12: ='Personbiler - Benzin'!C11 -> Personbil | D12: ='Personbiler - Benzin'!D11 -> Benzin | E12: ='Personbiler - Benzin'!E11 -> 0.08157534247 | F12: ='Personbiler - Benzin'!F11 -> 22094.23448 | G12: ='Personbiler - Benzin'!G11 -> 2.931540392 | H12: ='Personbiler - Benzin'!H11 -> 0.9118969836 | I12: ='Personbiler - Benzin'!I11 -> 0 | J12: ='Personbiler - Benzin'!J11 -> 0.8472634259 | K12: ='Personbiler - Benzin'!K11 -> 0.8867205647 | L12: ='Personbiler - Benzin'!L11 -> 0.2026981864 | M12: ='Personbiler - Benzin'!M11 -> 0.08296123111 | N12: ='Personbiler - Benzin'!N11 -> 1.46111233 | O12: ='Personbiler - Benzin'!O11 -> 0.3568814225 | P12: ='Personbiler - Benzin'!P11 -> 0 | Q12: ='Personbiler - Benzin'!Q11 -> 0.3491469212 | R12: ='Personbiler - Benzin'!R11 -> 0.6887150017 | S12: ='Personbiler - Benzin'!S11 -> 0.06636898489 | T12: ='Personbiler - Benzin'!T11 -> 1.347789704 | U12: ='Personbiler - Benzin'!U11 -> 0.9118969836 | V12: ='Personbiler - Benzin'!V11 -> 0 | W12: ='Personbiler - Benzin'!W11 -> 0.1267696883 | X12: ='Personbiler - Benzin'!X11 -> 0.2261618007 | Y12: ='Personbiler - Benzin'!Y11 -> 0.08296123111 | Z12: ='Personbiler - Benzin'!Z11 -> 0.6552588834 | AA12: ='Personbiler - Benzin'!AA11 -> 0.3568814225 | AB12: ='Personbiler - Benzin'!AB11 -> 0 | AC12: ='Personbiler - Benzin'!AC11 -> 0.05634882503 | AD12: ='Personbiler - Benzin'!AD11 -> 0.175659651 | AE12: ='Personbiler - Benzin'!AE11 -> 0.06636898489
C13: ='Personbiler - Diesel'!C11 -> Personbil | D13: ='Personbiler - Diesel'!D11 -> Diesel | E13: ='Personbiler - Diesel'!E11 -> 0.05984924623 | F13: ='Personbiler - Diesel'!F11 -> 17291.69937 | G13: ='Personbiler - Diesel'!G11 -> 3.076499702 | H13: ='Personbiler - Diesel'!H11 -> 0.5952090662 | I13: ='Personbiler - Diesel'!I11 -> 0 | J13: ='Personbiler - Diesel'!J11 -> 0.8378231615 | K13: ='Personbiler - Diesel'!K11 -> 1.356807073 | L13: ='Personbiler - Diesel'!L11 -> 0.1894555617 | M13: ='Personbiler - Diesel'!M11 -> 0.09720483965 | N13: ='Personbiler - Diesel'!N11 -> 1.737904863 | O13: ='Personbiler - Diesel'!O11 -> 0.28901866 | P13: ='Personbiler - Diesel'!P11 -> 0 | Q13: ='Personbiler - Diesel'!Q11 -> 0.3172915948 | R13: ='Personbiler - Diesel'!R11 -> 1.053830736 | S13: ='Personbiler - Diesel'!S11 -> 0.07776387172 | T13: ='Personbiler - Diesel'!T11 -> 1.74670357 | U13: ='Personbiler - Diesel'!U11 -> 0.5952090662 | V13: ='Personbiler - Diesel'!V11 -> 0 | W13: ='Personbiler - Diesel'!W11 -> 0.3282031029 | X13: ='Personbiler - Diesel'!X11 -> 0.7260865617 | Y13: ='Personbiler - Diesel'!Y11 -> 0.09720483965 | Z13: ='Personbiler - Diesel'!Z11 -> 1.063967601 | AA13: ='Personbiler - Diesel'!AA11 -> 0.28901866 | AB13: ='Personbiler - Diesel'!AB11 -> 0 | AC13: ='Personbiler - Diesel'!AC11 -> 0.1332343423 | AD13: ='Personbiler - Diesel'!AD11 -> 0.5639507275 | AE13: ='Personbiler - Diesel'!AE11 -> 0.07776387172
C14: ='Personbiler - Hybrid'!C11 -> Personbil | D14: ='Personbiler - Hybrid'!D11 -> Hybrid | E14: ='Personbiler - Hybrid'!E11 -> 0.04241393666 | F14: ='Personbiler - Hybrid'!F11 -> 39.84838 | G14: ='Personbiler - Hybrid'!G11 -> 2.953416393 | H14: ='Personbiler - Hybrid'!H11 -> 0.4917832565 | I14: ='Personbiler - Hybrid'!I11 -> 0.08971506495 | J14: ='Personbiler - Hybrid'!J11 -> 1.106042248 | K14: ='Personbiler - Hybrid'!K11 -> 1.126162561 | L14: ='Personbiler - Hybrid'!L11 -> 0.04449867222 | M14: ='Personbiler - Hybrid'!M11 -> 0.0952145903 | N14: ='Personbiler - Hybrid'!N11 -> 1.734932994 | O14: ='Personbiler - Hybrid'!O11 -> 0.1996797426 | P14: ='Personbiler - Hybrid'!P11 -> 0.07177205196 | Q14: ='Personbiler - Hybrid'!Q11 -> 0.5126201596 | R14: ='Personbiler - Hybrid'!R11 -> 0.8746893678 | S14: ='Personbiler - Hybrid'!S11 -> 0.07617167224 | T14: ='Personbiler - Hybrid'!T11 -> 1.158080253 | U14: ='Personbiler - Hybrid'!U11 -> 0.4917832565 | V14: ='Personbiler - Hybrid'!V11 -> 0.02948798341 | W14: ='Personbiler - Hybrid'!W11 -> 0.1714418413 | X14: ='Personbiler - Hybrid'!X11 -> 0.3701525818 | Y14: ='Personbiler - Hybrid'!Y11 -> 0.0952145903 | Z14: ='Personbiler - Hybrid'!Z11 -> 0.6679389524 | AA14: ='Personbiler - Hybrid'!AA11 -> 0.1996797426 | AB14: ='Personbiler - Hybrid'!AB11 -> 0.02359038673 | AC14: ='Personbiler - Hybrid'!AC11 -> 0.081 | AD14: ='Personbiler - Hybrid'!AD11 -> 0.2874971509 | AE14: ='Personbiler - Hybrid'!AE11 -> 0.07617167224
C15: ='Personbiler - El'!C11 -> Personbil | D15: ='Personbiler - El'!D11 -> Elektricitet | E15: ='Personbiler - El'!E11 -> 0.1940140846 | F15: ='Personbiler - El'!F11 -> 138.2850131 | G15: ='Personbiler - El'!G11 -> 3.299017895 | H15: ='Personbiler - El'!H11 -> 0.3924225883 | I15: ='Personbiler - El'!I11 -> 0.4262242465 | J15: ='Personbiler - El'!J11 -> 1.742106022 | K15: ='Personbiler - El'!K11 -> 0.59225 | L15: ='Personbiler - El'!L11 -> 0.03454191102 | M15: ='Personbiler - El'!M11 -> 0.1114731276 | N15: ='Personbiler - El'!N11 -> 2.184639353 | O15: ='Personbiler - El'!O11 -> 0.1435937043 | P15: ='Personbiler - El'!P11 -> 0.3409793972 | Q15: ='Personbiler - El'!Q11 -> 1.15088775 | R15: ='Personbiler - El'!R11 -> 0.46 | S15: ='Personbiler - El'!S11 -> 0.08917850212 | T15: ='Personbiler - El'!T11 -> 1.631591982 | U15: ='Personbiler - El'!U11 -> 0.3924225883 | V15: ='Personbiler - El'!V11 -> 0.1699643273 | W15: ='Personbiler - El'!W11 -> 0.7168560808 | X15: ='Personbiler - El'!X11 -> 0.2408758582 | Y15: ='Personbiler - El'!Y11 -> 0.1114731276 | Z15: ='Personbiler - El'!Z11 -> 1.024128965 | AA15: ='Personbiler - El'!AA11 -> 0.1435937043 | AB15: ='Personbiler - El'!AB11 -> 0.1359714618 | AC15: ='Personbiler - El'!AC11 -> 0.4682972515 | AD15: ='Personbiler - El'!AD11 -> 0.1870880452 | AE15: ='Personbiler - El'!AE11 -> 0.08917850212
C16: Kilde:
C19: Varebiler
C22: Variable og faste kørselsomkostninger for sammenvægtede køretøjskategorier, [kr. per km.] hhv. [kr. per time]
H23: Variable/afstands-afhængige omkostninger, opgjort i faktorpriser [kr. per km.] | S23: Faste/tids-afhængige omkostninger, opgjort i faktorpriser [kr. per time]
C24: Køretøjskategori | D24: Drivmiddel | E24: Brændstof-effektivitet [liter/km] / [kWh/km] | F24: Trafikarbejde, i alt for kategori [mio. km. per år] | G24: Variable omkostninger i alt, opgjort i markedspriser [kr. per km.] | H24: Variable omkostninger inkl.. afgifter, opgjort i faktorpriser [kr. per km.] | I24: Ikke-refunderbare afgifter i alt, [kr. per km.] | J24: Registreringsafgift, [kr. per km.] | K24: Afgifter (brændstof) , [kr. per km.] | L24: Variable omkostninger ekskl. afgifter, opgjort i faktorpriser, [kr. per km.] | M24: Kapitalomkostninger/afskrivninger, [kr. per km.] | N24: Brændstof, [kr. per km.] | O24: Olie, [kr. per km.} | P24: Dæk, [kr. per km.] | Q24: Reparation, [kr. per km.] | R24: Faste omkostninger i alt, opgjort i markedspriser [kr. per time] | S24: Faste omkostninger inkl. afgifter, opgjort i faktorpriser [kr. per time] | T24: Ikke-refunderbare afgifter i alt, [kr. per time] | U24: Registreringsafgift, [kr. per time] | V24: Vægtafgift, vejafgift, udligningsafgift, [kr. per time] | W24: Faste omkostninger ekskl. afgifter, opgjort i faktorpriser, [kr. per time] | X24: Kapitalomkostninger/afskrivninger, [kr. per time] | Y24: Løn, [kr. per time] | Z24: Reparation, [kr. per time] | AA24: Kapacitets-omkostninger, [kr. per time]
C25: Varebil | D25: Vægtet gnst. | F25: =SUM(F26:F27) -> 8136.779891 | G25: =NAF*H25 -> 2.069448717 | H25: =I25+L25 -> 1.561848088 | I25: =SUMPRODUCT($F$26:$F$27,I26:I27)/$F$25 -> 0.3002965461 | J25: =SUMPRODUCT($F$26:$F$27,J26:J27)/$F$25 -> 0.0401600024 | K25: =SUMPRODUCT($F$26:$F$27,K26:K27)/$F$25 -> 0.2601365437 | L25: =SUM(M25:Q25) -> 1.261551542 | M25: =SUMPRODUCT($F$26:$F$27,M26:M27)/$F$25 -> 0.1437686613 | N25: =SUMPRODUCT($F$26:$F$27,N26:N27)/$F$25 -> 0.360302272 | O25: =SUMPRODUCT($F$26:$F$27,O26:O27)/$F$25 -> 0 | P25: =SUMPRODUCT($F$26:$F$27,P26:P27)/$F$25 -> 0.09394083474 | Q25: =SUMPRODUCT($F$26:$F$27,Q26:Q27)/$F$25 -> 0.6635397742 | R25: =NAF*S25 -> 462.8023642 | S25: =T25+W25 -> 349.2848032 | T25: =U25+V25 -> 6.819349495 | U25: =SUMPRODUCT($F$26:$F$27,U26:U27)/$F$25 -> 2.229233046 | V25: =SUMPRODUCT($F$26:$F$27,V26:V27)/$F$25 -> 4.59011645 | W25: =SUM(X25:AA25) -> 342.4654537 | X25: =SUMPRODUCT($F$26:$F$27,X26:X27)/$F$25 -> 7.465301391 | Y25: =SUMPRODUCT($F$26:$F$27,Y26:Y27)/$F$25 -> 283.8 | Z25: =SUMPRODUCT($F$26:$F$27,Z26:Z27)/$F$25 -> 11.2001523 | AA25: =SUMPRODUCT($F$26:$F$27,AA26:AA27)/$F$25 -> 40
C26: ='Varebiler - Benzin'!C11 -> Varebil | D26: ='Varebiler - Benzin'!D11 -> Benzin | E26: ='Varebiler - Benzin'!E11 -> 0.06393891204 | F26: ='Varebiler - Benzin'!F11 -> 796.7078595 | G26: ='Varebiler - Benzin'!G11 -> 1.69335086 | H26: ='Varebiler - Benzin'!H11 -> 1.278000649 | I26: ='Varebiler - Benzin'!I11 -> 0.3084988745 | J26: ='Varebiler - Benzin'!J11 -> 0.01642592429 | K26: ='Varebiler - Benzin'!K11 -> 0.2920729502 | L26: ='Varebiler - Benzin'!L11 -> 0.9695017744 | M26: ='Varebiler - Benzin'!M11 -> 0.1272791705 | N26: ='Varebiler - Benzin'!N11 -> 0.2797243529 | O26: ='Varebiler - Benzin'!O11 -> 0 | P26: ='Varebiler - Benzin'!P11 -> 0.09662042024 | Q26: ='Varebiler - Benzin'!Q11 -> 0.4658778308 | R26: ='Varebiler - Benzin'!R11 -> 452.3501702 | S26: ='Varebiler - Benzin'!S11 -> 341.3963549 | T26: ='Varebiler - Benzin'!T11 -> 2.171424728 | U26: ='Varebiler - Benzin'!U11 -> 0.8589528717 | V26: ='Varebiler - Benzin'!V11 -> 1.312471856 | W26: ='Varebiler - Benzin'!W11 -> 339.2249301 | X26: ='Varebiler - Benzin'!X11 -> 4.86811154 | Y26: ='Varebiler - Benzin'!Y11 -> 283.8 | Z26: ='Varebiler - Benzin'!Z11 -> 10.55681859 | AA26: ='Varebiler - Benzin'!AA11 -> 40
C27: ='Varebiler - Diesel'!C11 -> Varebil | D27: ='Varebiler - Diesel'!D11 -> Diesel | E27: ='Varebiler - Diesel'!E11 -> 0.08208189785 | F27: ='Varebiler - Diesel'!F11 -> 7340.072031 | G27: ='Varebiler - Diesel'!G11 -> 2.110271221 | H27: ='Varebiler - Diesel'!H11 -> 1.592657525 | I27: ='Varebiler - Diesel'!I11 -> 0.299406247 | J27: ='Varebiler - Diesel'!J11 -> 0.0427361524 | K27: ='Varebiler - Diesel'!K11 -> 0.2566700946 | L27: ='Varebiler - Diesel'!L11 -> 1.293251278 | M27: ='Varebiler - Diesel'!M11 -> 0.1455584675 | N27: ='Varebiler - Diesel'!N11 -> 0.3690483798 | O27: ='Varebiler - Diesel'!O11 -> 0 | P27: ='Varebiler - Diesel'!P11 -> 0.09364998653 | Q27: ='Varebiler - Diesel'!Q11 -> 0.6849944443 | R27: ='Varebiler - Diesel'!R11 -> 463.9368688 | S27: ='Varebiler - Diesel'!S11 -> 350.141033 | T27: ='Varebiler - Diesel'!T11 -> 7.323845661 | U27: ='Varebiler - Diesel'!U11 -> 2.377966325 | V27: ='Varebiler - Diesel'!V11 -> 4.945879336 | W27: ='Varebiler - Diesel'!W11 -> 342.8171874 | X27: ='Varebiler - Diesel'!X11 -> 7.747206195 | Y27: ='Varebiler - Diesel'!Y11 -> 283.8 | Z27: ='Varebiler - Diesel'!Z11 -> 11.26998118 | AA27: ='Varebiler - Diesel'!AA11 -> 40
C28: Kilde:
C31: Lastbiler
C34: Variable og faste kørselsomkostninger for sammenvægtede køretøjskategorier, [kr. per km.] hhv. [kr. per time]
I35: Variable/afstands-afhængige omkostninger, opgjort i faktorpriser [kr. per km.] | T35: Faste/tids-afhængige omkostninger, opgjort i faktorpriser [kr. per time]
C36: Køretøjskategori | D36: Drivmiddel | E36: Størrelse | F36: Brændstof-effektivitet [km per liter] | G36: Trafikarbejde, i alt for kategori [mio. km. per år] | H36: Variable omkostninger i alt, opgjort i markedspriser [kr. per km.] | I36: Variable omkostninger inkl.. afgifter, opgjort i faktorpriser [kr. per km.] | J36: Ikke-refunderbare afgifter i alt, [kr. per km.] | K36: Registreringsafgift, [kr. per km.] | L36: Afgifter (brændstof) , [kr. per km.] | M36: Variable omkostninger ekskl. afgifter, opgjort i faktorpriser, [kr. per km.] | N36: Kapitalomkostninger/afskrivninger, [kr. per km.] | O36: Brændstof, [kr. per km.] | P36: Olie, [kr. per km.} | Q36: Dæk, [kr. per km.] | R36: Reparation, [kr. per km.] | S36: Faste omkostninger i alt, opgjort i markedspriser [kr. per time] | T36: Faste omkostninger inkl. afgifter, opgjort i faktorpriser [kr. per time] | U36: Ikke-refunderbare afgifter i alt, [kr. per time] | V36: Registreringsafgift, [kr. per time] | W36: Vægtafgift, vejafgift, udligningsafgift, [kr. per time] | X36: Faste omkostninger ekskl. afgifter, opgjort i faktorpriser, [kr. per time] | Y36: Kapitalomkostninger/afskrivninger, [kr. per time] | Z36: Løn, [kr. per time] | AA36: Reparation, [kr. per time] | AB36: Kapacitets-omkostninger, [kr. per time]
C37: Lastbil | D37: Vægtet gnst. | E37: Vægtet gnst. | F37: =SUMPRODUCT($G$38:$G$42,F38:F42)/$G$37 -> 0.3352778456 | G37: =SUM(G38:G42) -> 2798.350032 | H37: =NAF*I37 -> 4.849895486 | I37: =J37+M37 -> 3.66029848 | J37: =SUM(K37:L37) -> 1.048413823 | K37: =SUMPRODUCT($G$38:$G$42,K38:K42)/$G$37 -> 0 | L37: =SUMPRODUCT($G$38:$G$42,L38:L42)/$G$37 -> 1.048413823 | M37: =SUM(N37:R37) -> 2.611884657 | N37: =SUMPRODUCT($G$38:$G$42,N38:N42)/$G$37 -> 0.3256183035 | O37: =SUMPRODUCT($G$38:$G$42,O38:O42)/$G$37 -> 1.395791138 | P37: =SUMPRODUCT($G$38:$G$42,P38:P42)/$G$37 -> 0 | Q37: =SUMPRODUCT($G$38:$G$42,Q38:Q42)/$G$37 -> 0.2591193892 | R37: =SUMPRODUCT($G$38:$G$42,R38:R42)/$G$37 -> 0.6313558267 | S37: =NAF*T37 -> 513.4936043 | T37: =U37+X37 -> 387.5423429 | U37: =SUM(V37:W37) -> 5.055871201 | V37: =SUMPRODUCT($G$38:$G$42,V38:V42)/$G$37 -> 0 | W37: =SUMPRODUCT($G$38:$G$42,W38:W42)/$G$37 -> 5.055871201 | X37: =SUM(Y37:AB37) -> 382.4864717 | Y37: =SUMPRODUCT($G$38:$G$42,Y38:Y42)/$G$37 -> 57.6167774 | Z37: =SUMPRODUCT($G$38:$G$42,Z38:Z42)/$G$37 -> 255.8 | AA37: =SUMPRODUCT($G$38:$G$42,AA38:AA42)/$G$37 -> 15.9068256 | AB37: =SUMPRODUCT($G$38:$G$42,AB38:AB42)/$G$37 -> 53.16286866
C38: ='Lastbiler - Diesel'!C24 -> Lastbil, uden anhænger | D38: ='Lastbiler - Diesel'!D24 -> Diesel | E38: ='Lastbiler - Diesel'!E24 -> Under 12 ton | F38: ='Lastbiler - Diesel'!F24 -> 0.2 | G38: ='Lastbiler - Diesel'!G24 -> 127.8574452 | H38: ='Lastbiler - Diesel'!H24 -> 2.761010341 | I38: ='Lastbiler - Diesel'!I24 -> 2.08378139 | J38: ='Lastbiler - Diesel'!J24 -> 0.6254 | K38: ='Lastbiler - Diesel'!K24 -> 0 | L38: ='Lastbiler - Diesel'!L24 -> 0.6254 | M38: ='Lastbiler - Diesel'!M24 -> 1.45838139 | N38: ='Lastbiler - Diesel'!N24 -> 0.1157271491 | O38: ='Lastbiler - Diesel'!O24 -> 0.8326175774 | P38: ='Lastbiler - Diesel'!P24 -> 0 | Q38: ='Lastbiler - Diesel'!Q24 -> 0.075904 | R38: ='Lastbiler - Diesel'!R24 -> 0.4341326631 | S38: ='Lastbiler - Diesel'!S24 -> 453.3773538 | T38: ='Lastbiler - Diesel'!T24 -> 342.1715877 | U38: ='Lastbiler - Diesel'!U24 -> 2.727777778 | V38: ='Lastbiler - Diesel'!V24 -> 0 | W38: ='Lastbiler - Diesel'!W24 -> 2.727777778 | X38: ='Lastbiler - Diesel'!X24 -> 339.44381 | Y38: ='Lastbiler - Diesel'!Y24 -> 25.57975936 | Z38: ='Lastbiler - Diesel'!Z24 -> 255.8 | AA38: ='Lastbiler - Diesel'!AA24 -> 6.286272818 | AB38: ='Lastbiler - Diesel'!AB24 -> 51.77777778
C39: ='Lastbiler - Diesel'!C25 -> Lastbil, uden anhænger | D39: ='Lastbiler - Diesel'!D25 -> Diesel | E39: ='Lastbiler - Diesel'!E25 -> Over 12 ton | F39: ='Lastbiler - Diesel'!F25 -> 0.4 | G39: ='Lastbiler - Diesel'!G25 -> 407.5514691 | H39: ='Lastbiler - Diesel'!H25 -> 5.613000615 | I39: ='Lastbiler - Diesel'!I25 -> 4.236226879 | J39: ='Lastbiler - Diesel'!J25 -> 1.2508 | K39: ='Lastbiler - Diesel'!K25 -> 0 | L39: ='Lastbiler - Diesel'!L25 -> 1.2508 | M39: ='Lastbiler - Diesel'!M25 -> 2.985426879 | N39: ='Lastbiler - Diesel'!N25 -> 0.2612251017 | O39: ='Lastbiler - Diesel'!O25 -> 1.665235155 | P39: ='Lastbiler - Diesel'!P25 -> 0 | Q39: ='Lastbiler - Diesel'!Q25 -> 0.315832 | R39: ='Lastbiler - Diesel'!R25 -> 0.7431346229 | S39: ='Lastbiler - Diesel'!S25 -> 523.9289567 | T39: ='Lastbiler - Diesel'!T25 -> 395.4180805 | U39: ='Lastbiler - Diesel'!U25 -> 3.970991717 | V39: ='Lastbiler - Diesel'!V25 -> 0 | W39: ='Lastbiler - Diesel'!W25 -> 3.970991717 | X39: ='Lastbiler - Diesel'!X25 -> 391.4470888 | Y39: ='Lastbiler - Diesel'!Y25 -> 64.25598196 | Z39: ='Lastbiler - Diesel'!Z25 -> 255.8 | AA39: ='Lastbiler - Diesel'!AA25 -> 12.22444017 | AB39: ='Lastbiler - Diesel'!AB25 -> 59.16666667
C40: ='Lastbiler - Diesel'!C26 -> Lastbil, med anhænger | D40: ='Lastbiler - Diesel'!D26 -> Diesel | F40: ='Lastbiler - Diesel'!F26 -> 0.4 | G40: ='Lastbiler - Diesel'!G26 -> 901.9332713 | H40: ='Lastbiler - Diesel'!H26 -> 5.853371993 | I40: ='Lastbiler - Diesel'!I26 -> 4.41763924 | J40: ='Lastbiler - Diesel'!J26 -> 1.2508 | K40: ='Lastbiler - Diesel'!K26 -> 0 | L40: ='Lastbiler - Diesel'!L26 -> 1.2508 | M40: ='Lastbiler - Diesel'!M26 -> 3.16683924 | N40: ='Lastbiler - Diesel'!N26 -> 0.3635600104 | O40: ='Lastbiler - Diesel'!O26 -> 1.665235155 | P40: ='Lastbiler - Diesel'!P26 -> 0 | Q40: ='Lastbiler - Diesel'!Q26 -> 0.3062613333 | R40: ='Lastbiler - Diesel'!R26 -> 0.8317827417 | S40: ='Lastbiler - Diesel'!S26 -> 537.601883 | T40: ='Lastbiler - Diesel'!T26 -> 405.7372702 | U40: ='Lastbiler - Diesel'!U26 -> 5.869437122 | V40: ='Lastbiler - Diesel'!V26 -> 0 | W40: ='Lastbiler - Diesel'!W26 -> 5.869437122 | X40: ='Lastbiler - Diesel'!X26 -> 399.8678331 | Y40: ='Lastbiler - Diesel'!Y26 -> 67.67592996 | Z40: ='Lastbiler - Diesel'!Z26 -> 255.8 | AA40: ='Lastbiler - Diesel'!AA26 -> 19.79190311 | AB40: ='Lastbiler - Diesel'!AB26 -> 56.6
C41: ='Lastbiler - Diesel'!C27 -> Sættevogntog | D41: ='Lastbiler - Diesel'!D27 -> Diesel | F41: ='Lastbiler - Diesel'!F27 -> 0.2857142857 | G41: ='Lastbiler - Diesel'!G27 -> 1020.755885 | H41: ='Lastbiler - Diesel'!H27 -> 4.033066202 | I41: ='Lastbiler - Diesel'!I27 -> 3.043823548 | J41: ='Lastbiler - Diesel'!J27 -> 0.8934285714 | K41: ='Lastbiler - Diesel'!K27 -> 0 | L41: ='Lastbiler - Diesel'!L27 -> 0.8934285714 | M41: ='Lastbiler - Diesel'!M27 -> 2.150394977 | N41: ='Lastbiler - Diesel'!N27 -> 0.3195056959 | O41: ='Lastbiler - Diesel'!O27 -> 1.189453682 | P41: ='Lastbiler - Diesel'!P27 -> 0 | Q41: ='Lastbiler - Diesel'!Q27 -> 0.180336 | R41: ='Lastbiler - Diesel'!R27 -> 0.4610995989 | S41: ='Lastbiler - Diesel'!S27 -> 495.0086983 | T41: ='Lastbiler - Diesel'!T27 -> 373.5914704 | U41: ='Lastbiler - Diesel'!U27 -> 5.032282591 | V41: ='Lastbiler - Diesel'!V27 -> 0 | W41: ='Lastbiler - Diesel'!W27 -> 5.032282591 | X41: ='Lastbiler - Diesel'!X27 -> 368.5591878 | Y41: ='Lastbiler - Diesel'!Y27 -> 48.91500033 | Z41: ='Lastbiler - Diesel'!Z27 -> 255.8 | AA41: ='Lastbiler - Diesel'!AA27 -> 14.62679617 | AB41: ='Lastbiler - Diesel'!AB27 -> 49.2173913
C42: ='Lastbiler - Diesel'!C28 -> Modulvogntog | D42: ='Lastbiler - Diesel'!D28 -> Diesel | F42: ='Lastbiler - Diesel'!F28 -> 0.2857142857 | G42: ='Lastbiler - Diesel'!G28 -> 340.2519617 | H42: ='Lastbiler - Diesel'!H28 -> 4.511291568 | I42: ='Lastbiler - Diesel'!I28 -> 3.404748353 | J42: ='Lastbiler - Diesel'!J28 -> 0.8934285714 | K42: ='Lastbiler - Diesel'!K28 -> 0 | L42: ='Lastbiler - Diesel'!L28 -> 0.8934285714 | M42: ='Lastbiler - Diesel'!M28 -> 2.511319782 | N42: ='Lastbiler - Diesel'!N28 -> 0.3993821199 | O42: ='Lastbiler - Diesel'!O28 -> 1.189453682 | P42: ='Lastbiler - Diesel'!P28 -> 0 | Q42: ='Lastbiler - Diesel'!Q28 -> 0.371424 | R42: ='Lastbiler - Diesel'!R28 -> 0.55105998 | S42: ='Lastbiler - Diesel'!S28 -> 515.1332273 | T42: ='Lastbiler - Diesel'!T28 -> 388.7797942 | U42: ='Lastbiler - Diesel'!U28 -> 5.144347826 | V42: ='Lastbiler - Diesel'!V28 -> 0 | W42: ='Lastbiler - Diesel'!W28 -> 5.144347826 | X42: ='Lastbiler - Diesel'!X28 -> 383.6354463 | Y42: ='Lastbiler - Diesel'!Y28 -> 61.14375041 | Z42: ='Lastbiler - Diesel'!Z28 -> 255.8 | AA42: ='Lastbiler - Diesel'!AA28 -> 17.47430461 | AB42: ='Lastbiler - Diesel'!AB28 -> 49.2173913
C43: Kilde:

Sheet Personbiler - Benzin
C1: Personbiler - Benzin
C5: Niveu I-A - Vægtede gennemsnitsomkostninger
C8: Gennemsnitlige og marginale kørselsomkostninger for sammenvægtet køretøjskategorier, inkl. og ekskl. afgifter [kr. per km.]
G9: Gennemsnitlige kørselsomkostninger [kr. per km.] | T9: Marginale kørselsomkostninger, [kr. per km.]
C10: Køretøjskategori | D10: Drivmiddel | E10: Brændstof-effektivitet [liter per km] | F10: Trafikarbejde, i alt | G10: Gennemsnitlige omkostninger inkl.. afgifter og moms, i alt | H10: Brændstof, inkl. afgifter og moms [kr. per km.] | I10: Batteri, inkl. afgifter og moms [kr. per km.] | J10: Afskrivninger, inkl. afgifter og moms [kr. per km.] | K10: Reparation og vedligeholdelse, inkl. afgifter og moms [kr. per km.] | L10: Ejerafgift [kr. per km.] | M10: Dæk, inkl. afgifter og moms [kr. per km.] | N10: Gennemsnitlige omkostninger ekskl.. afgifter og moms, i alt [kr. per km.] | O10: Brændstof, ekskl. afgifter og moms [kr. per km.] | P10: Batteri, ekskl. afgifter og moms [kr. per km.] | Q10: Afskrivninger, ekskl. afgifter og moms [kr. per km.] | R10: Reparation og vedligeholdelse, ekskl. afgifter og moms [kr. per km.] | S10: Dæk, ekskl. afgifter og moms [kr. per km.] | T10: Marginale omkostninger inkl.. afgifter og moms, i alt | U10: Brændstof, inkl. afgifter og moms [kr. per km.] | V10: Batteri, inkl. afgifter og moms [kr. per km.] | W10: Afskrivninger, inkl. afgifter og moms [kr. per km.] | X10: Reparation og vedligeholdelse, inkl. afgifter og moms [kr. per km.] | Y10: Dæk, inkl. afgifter og moms [kr. per km.] | Z10: Marginale omkostninger ekskl.. afgifter og moms, i alt [kr. per km.] | AA10: Brændstof, ekskl. afgifter og moms [kr. per km.] | AB10: Batteri, ekskl. afgifter og moms [kr. per km.] | AC10: Afskrivninger, ekskl. afgifter og moms [kr. per km.] | AD10: Reparation og vedligeholdelse, ekskl. afgifter og moms [kr. per km.] | AE10: Dæk, ekskl. afgifter og moms [kr. per km.]
C11: Personbil | D11: Benzin | E11: =SUMPRODUCT($G$21:$G$24,F21:F24)/SUM($G$21:$G$24) -> 0.08157534247 | F11: =SUM(G21:G24) -> 22094.23448 | G11: =SUM(H11:M11) -> 2.931540392 | H11: =SUMPRODUCT($G$21:$G$24,I21:I24)/SUM($G$21:$G$24) -> 0.9118969836 | I11: 0 | J11: 0.8472634259 | K11: 0.8867205647 | L11: 0.2026981864 | M11: 0.08296123111 | N11: =SUM(O11:S11) -> 1.46111233 | O11: =SUMPRODUCT($G$21:$G$24,P21:P24)/SUM($G$21:$G$24) -> 0.3568814225 | P11: =SUMPRODUCT($G$21:$G$24,Q21:Q24)/SUM($G$21:$G$24) -> 0 | Q11: =SUMPRODUCT($G$21:$G$24,R21:R24)/SUM($G$21:$G$24) -> 0.3491469212 | R11: =SUMPRODUCT($G$21:$G$24,S21:S24)/SUM($G$21:$G$24) -> 0.6887150017 | S11: =SUMPRODUCT($G$21:$G$24,T21:T24)/SUM($G$21:$G$24) -> 0.06636898489 | T11: =SUM(U11:Y11) -> 1.347789704 | U11: =SUMPRODUCT($G$21:$G$24,V21:V24)/SUM($G$21:$G$24) -> 0.9118969836 | V11: =SUMPRODUCT($G$21:$G$24,W21:W24)/SUM($G$21:$G$24) -> 0 | W11: =SUMPRODUCT($G$21:$G$24,X21:X24)/SUM($G$21:$G$24) -> 0.1267696883 | X11: =SUMPRODUCT($G$21:$G$24,Y21:Y24)/SUM($G$21:$G$24) -> 0.2261618007 | Y11: =SUMPRODUCT($G$21:$G$24,Z21:Z24)/SUM($G$21:$G$24) -> 0.08296123111 | Z11: =SUM(AA11:AE11) -> 0.6552588834 | AA11: =SUMPRODUCT($G$21:$G$24,AB21:AB24)/SUM($G$21:$G$24) -> 0.3568814225 | AB11: =SUMPRODUCT($G$21:$G$24,AC21:AC24)/SUM($G$21:$G$24) -> 0 | AC11: =SUMPRODUCT($G$21:$G$24,AD21:AD24)/SUM($G$21:$G$24) -> 0.05634882503 | AD11: =SUMPRODUCT($G$21:$G$24,AE21:AE24)/SUM($G$21:$G$24) -> 0.175659651 | AE11: =SUMPRODUCT($G$21:$G$24,AF21:AF24)/SUM($G$21:$G$24) -> 0.06636898489
C12: Kilde:
E13: =1/E11 -> 12.25860621
C15: Niveu II - Vægtede gennemsnitsomkostninger
C18: Gennemsnitlige og marginale kørselsomkostninger for sammenvægtede køretøjskategorier, inkl. og ekskl. afgifter [kr. per km.]
H19: Gennemsnitlige kørselsomkostninger [kr. per km.] | U19: Marginale kørselsomkostninger, [kr. per km.]
C20: Køretøjskategori | D20: Drivmiddel | E20: Størrelse | F20: Brændstof-effektivitet [liter per km] | G20: Trafikarbejde, i alt for kategori [km. per år] | H20: Gennemsnitlige omkostninger inkl.. afgifter og moms, i alt | I20: Brændstof, inkl. afgifter og moms [kr. per km.] | J20: Batteri, inkl. afgifter og moms [kr. per km.] | K20: Afskrivninger, inkl. afgifter og moms [kr. per km.] | L20: Reparation og vedligeholdelse, inkl. afgifter og moms [kr. per km.] | M20: Ejerafgift [kr. per km.] | N20: Dæk, inkl. afgifter og moms [kr. per km.] | O20: Gennemsnitlige omkostninger ekskl.. afgifter og moms, i alt [kr. per km.] | P20: Brændstof, ekskl. afgifter og moms [kr. per km.] | Q20: Batteri, ekskl. afgifter og moms [kr. per km.] | R20: Afskrivninger, ekskl. afgifter og moms [kr. per km.] | S20: Reparation og vedligeholdelse, ekskl. afgifter og moms [kr. per km.] | T20: Dæk, ekskl. afgifter og moms [kr. per km.] | U20: Marginale omkostninger inkl.. afgifter og moms, i alt | V20: Brændstof, inkl. afgifter og moms [kr. per km.] | W20: Batteri, inkl. afgifter og moms [kr. per km.] | X20: Afskrivninger, inkl. afgifter og moms [kr. per km.] | Y20: Reparation og vedligeholdelse, inkl. afgifter og moms [kr. per km.] | Z20: Dæk, inkl. afgifter og moms [kr. per km.] | AA20: Marginale omkostninger ekskl.. afgifter og moms, i alt [kr. per km.] | AB20: Brændstof, ekskl. afgifter og moms [kr. per km.] | AC20: Batteri, ekskl. afgifter og moms [kr. per km.] | AD20: Afskrivninger, ekskl. afgifter og moms [kr. per km.] | AE20: Reparation og vedligeholdelse, ekskl. afgifter og moms [kr. per km.] | AF20: Dæk, ekskl. afgifter og moms [kr. per km.]
B21: =B34 -> Mini personbil, benzin | C21: Personbil | D21: Benzin | E21: Mini | F21: =SUMPRODUCT($I$34:$I$45,G34:G45)/SUM($I$34:$I$45) -> 0.05877163375 | G21: =H34 -> 3297.146156 | H21: =SUM(I21:N21) -> 1.710613975 | I21: =SUMPRODUCT($I$34:$I$45,K34:K45)/SUM($I$34:$I$45) -> 0.6569837639 | J21: 0 | K21: 0.4729727674 | L21: 0.461825209 | M21: 0.06519937939 | N21: 0.05363285488 | O21: =SUM(P21:T21) -> 0.9180579686 | P21: =SUMPRODUCT($I$34:$I$45,R34:R45)/SUM($I$34:$I$45) -> 0.2571181882 | Q21: =SUMPRODUCT($I$34:$I$45,S34:S45)/SUM($I$34:$I$45) -> 0 | R21: =SUMPRODUCT($I$34:$I$45,T34:T45)/SUM($I$34:$I$45) -> 0.2593343051 | S21: =SUMPRODUCT($I$34:$I$45,U34:U45)/SUM($I$34:$I$45) -> 0.3586991915 | T21: =SUMPRODUCT($I$34:$I$45,V34:V45)/SUM($I$34:$I$45) -> 0.04290628391 | U21: =SUM(V21:Z21) -> 0.9872541771 | V21: =SUMPRODUCT($I$34:$I$45,X34:X45)/SUM($I$34:$I$45) -> 0.6569837639 | W21: =SUMPRODUCT($I$34:$I$45,Y34:Y45)/SUM($I$34:$I$45) -> 0 | X21: =SUMPRODUCT($I$34:$I$45,Z34:Z45)/SUM($I$34:$I$45) -> 0.08671728658 | Y21: =SUMPRODUCT($I$34:$I$45,AA34:AA45)/SUM($I$34:$I$45) -> 0.1899202717 | Z21: =SUMPRODUCT($I$34:$I$45,AB34:AB45)/SUM($I$34:$I$45) -> 0.05363285488 | AA21: =SUM(AB21:AF21) -> 0.4974337741 | AB21: =SUMPRODUCT($I$34:$I$45,AD34:AD45)/SUM($I$34:$I$45) -> 0.2571181882 | AC21: =SUMPRODUCT($I$34:$I$45,AE34:AE45)/SUM($I$34:$I$45) -> 0 | AD21: =SUMPRODUCT($I$34:$I$45,AF34:AF45)/SUM($I$34:$I$45) -> 0.04989841137 | AE21: =SUMPRODUCT($I$34:$I$45,AG34:AG45)/SUM($I$34:$I$45) -> 0.1475108906 | AF21: =SUMPRODUCT($I$34:$I$45,AH34:AH45)/SUM($I$34:$I$45) -> 0.04290628391
B22: =B48 -> Lille personbil, benzin | C22: Personbil | D22: Benzin | E22: Lille | F22: =SUMPRODUCT($I$46:$I$57,G46:G57)/SUM($I$46:$I$57) -> 0.06980636237 | G22: =H46 -> 9275.60546 | H22: =SUM(I22:N22) -> 2.198122649 | I22: =SUMPRODUCT($I$46:$I$57,K46:K57)/SUM($I$46:$I$57) -> 0.7803364271 | J22: 0 | K22: 0.6275805516 | L22: 0.5846997971 | M22: 0.1390105776 | N22: 0.06649529585 | O22: =SUM(P22:T22) -> 1.11178595 | P22: =SUMPRODUCT($I$46:$I$57,R46:R57)/SUM($I$46:$I$57) -> 0.3053936784 | Q22: =SUMPRODUCT($I$46:$I$57,S46:S57)/SUM($I$46:$I$57) -> 0 | R22: =SUMPRODUCT($I$46:$I$57,T46:T57)/SUM($I$46:$I$57) -> 0.2990602697 | S22: =SUMPRODUCT($I$46:$I$57,U46:U57)/SUM($I$46:$I$57) -> 0.4541357648 | T22: =SUMPRODUCT($I$46:$I$57,V46:V57)/SUM($I$46:$I$57) -> 0.05319623668 | U22: =SUM(V22:Z22) -> 1.107255021 | V22: =SUMPRODUCT($I$46:$I$57,X46:X57)/SUM($I$46:$I$57) -> 0.7803364271 | W22: =SUMPRODUCT($I$46:$I$57,Y46:Y57)/SUM($I$46:$I$57) -> 0 | X22: =SUMPRODUCT($I$46:$I$57,Z46:Z57)/SUM($I$46:$I$57) -> 0.1052626456 | Y22: =SUMPRODUCT($I$46:$I$57,AA46:AA57)/SUM($I$46:$I$57) -> 0.1551606523 | Z22: =SUMPRODUCT($I$46:$I$57,AB46:AB57)/SUM($I$46:$I$57) -> 0.06649529585 | AA22: =SUM(AB22:AF22) -> 0.5323153443 | AB22: =SUMPRODUCT($I$46:$I$57,AD46:AD57)/SUM($I$46:$I$57) -> 0.3053936784 | AC22: =SUMPRODUCT($I$46:$I$57,AE46:AE57)/SUM($I$46:$I$57) -> 0 | AD22: =SUMPRODUCT($I$46:$I$57,AF46:AF57)/SUM($I$46:$I$57) -> 0.05321230123 | AE22: =SUMPRODUCT($I$46:$I$57,AG46:AG57)/SUM($I$46:$I$57) -> 0.120513128 | AF22: =SUMPRODUCT($I$46:$I$57,AH46:AH57)/SUM($I$46:$I$57) -> 0.05319623668
B23: =B60 -> Mellem personbil, benzin | C23: Personbil | D23: Benzin | E23: Mellem | F23: =SUMPRODUCT($I$58:$I$69,G58:G69)/SUM($I$58:$I$69) -> 0.09740259538 | G23: =H58 -> 8409.352709 | H23: =SUM(I23:N23) -> 3.764112818 | I23: =SUMPRODUCT($I$58:$I$69,K58:K69)/SUM($I$58:$I$69) -> 1.088823292 | J23: 0 | K23: 1.076828747 | L23: 1.19853419 | M23: 0.2933152085 | N23: 0.1066113805 | O23: =SUM(P23:T23) -> 1.839987597 | P23: =SUMPRODUCT($I$58:$I$69,R58:R69)/SUM($I$58:$I$69) -> 0.4261235778 | Q23: =SUMPRODUCT($I$58:$I$69,S58:S69)/SUM($I$58:$I$69) -> 0 | R23: =SUMPRODUCT($I$58:$I$69,T58:T69)/SUM($I$58:$I$69) -> 0.3976745727 | S23: =SUMPRODUCT($I$58:$I$69,U58:U69)/SUM($I$58:$I$69) -> 0.930900342 | T23: =SUMPRODUCT($I$58:$I$69,V58:V69)/SUM($I$58:$I$69) -> 0.08528910442 | U23: =SUM(V23:Z23) -> 1.648345148 | V23: =SUMPRODUCT($I$58:$I$69,X58:X69)/SUM($I$58:$I$69) -> 1.088823292 | W23: =SUMPRODUCT($I$58:$I$69,Y58:Y69)/SUM($I$58:$I$69) -> 0 | X23: =SUMPRODUCT($I$58:$I$69,Z58:Z69)/SUM($I$58:$I$69) -> 0.1571073109 | Y23: =SUMPRODUCT($I$58:$I$69,AA58:AA69)/SUM($I$58:$I$69) -> 0.2958031643 | Z23: =SUMPRODUCT($I$58:$I$69,AB58:AB69)/SUM($I$58:$I$69) -> 0.1066113805 | AA23: =SUM(AB23:AF23) -> 0.8024300088 | AB23: =SUMPRODUCT($I$58:$I$69,AD58:AD69)/SUM($I$58:$I$69) -> 0.4261235778 | AC23: =SUMPRODUCT($I$58:$I$69,AE58:AE69)/SUM($I$58:$I$69) -> 0 | AD23: =SUMPRODUCT($I$58:$I$69,AF58:AF69)/SUM($I$58:$I$69) -> 0.06126729606 | AE23: =SUMPRODUCT($I$58:$I$69,AG58:AG69)/SUM($I$58:$I$69) -> 0.2297500306 | AF23: =SUMPRODUCT($I$58:$I$69,AH58:AH69)/SUM($I$58:$I$69) -> 0.08528910442
B24: =B70 -> Stor personbil, benzin | C24: Personbil | D24: Benzin | E24: Stor | F24: =SUMPRODUCT($I$70:$I$81,G70:G81)/SUM($I$70:$I$81) -> 0.1276622363 | G24: =H70 -> 1112.130154 | H24: =SUM(I24:N24) -> 6.372748468 | I24: =SUMPRODUCT($I$70:$I$81,K70:K81)/SUM($I$70:$I$81) -> 1.427083291 | J24: 0 | K24: 2.053315536 | L24: 2.307612541 | M24: 0.4563234426 | N24: 0.1284136575 | O24: =SUM(P24:T24) -> 3.119773891 | P24: =SUMPRODUCT($I$70:$I$81,R70:R81)/SUM($I$70:$I$81) -> 0.5585055376 | Q24: =SUMPRODUCT($I$70:$I$81,S70:S81)/SUM($I$70:$I$81) -> 0 | R24: =SUMPRODUCT($I$70:$I$81,T70:T81)/SUM($I$70:$I$81) -> 0.666217007 | S24: =SUMPRODUCT($I$70:$I$81,U70:U81)/SUM($I$70:$I$81) -> 1.79232042 | T24: =SUMPRODUCT($I$70:$I$81,V70:V81)/SUM($I$70:$I$81) -> 0.102730926 | U24: =SUM(V24:Z24) -> 2.150183563 | V24: =SUMPRODUCT($I$70:$I$81,X70:X81)/SUM($I$70:$I$81) -> 1.427083291 | W24: =SUMPRODUCT($I$70:$I$81,Y70:Y81)/SUM($I$70:$I$81) -> 0 | X24: =SUMPRODUCT($I$70:$I$81,Z70:Z81)/SUM($I$70:$I$81) -> 0.195493386 | Y24: =SUMPRODUCT($I$70:$I$81,AA70:AA81)/SUM($I$70:$I$81) -> 0.3991932276 | Z24: =SUMPRODUCT($I$70:$I$81,AB70:AB81)/SUM($I$70:$I$81) -> 0.1284136575 | AA24: =SUM(AB24:AF24) -> 1.03573082 | AB24: =SUMPRODUCT($I$70:$I$81,AD70:AD81)/SUM($I$70:$I$81) -> 0.5585055376 | AC24: =SUMPRODUCT($I$70:$I$81,AE70:AE81)/SUM($I$70:$I$81) -> 0 | AD24: =SUMPRODUCT($I$70:$I$81,AF70:AF81)/SUM($I$70:$I$81) -> 0.06444136363 | AE24: =SUMPRODUCT($I$70:$I$81,AG70:AG81)/SUM($I$70:$I$81) -> 0.3100529923 | AF24: =SUMPRODUCT($I$70:$I$81,AH70:AH81)/SUM($I$70:$I$81) -> 0.102730926
C25: Kilde:
C28: Niveu III - Omkostninger
C31: Gennemsnitlige og marginale kørselsomkostninger for konkrete køretøjer, inkl. og ekskl. afgifter [kr. per km.]
J32: Gennemsnitlige kørselsomkostninger [kr. per km.] | W32: Marginale kørselsomkostninger, [kr. per km.]
B33: Kategori | C33: Mærke | D33: Model | E33: Variant | F33: Årgang | G33: Brændstof-effektivitet [liter per km] | H33: Trafikarbejde, i alt for kategori [km. per år] | I33: Det repræsentative køretøjs andel af det samlede trafikarbejde indenfor den relevante køretøjskategori [%] | J33: Gennemsnitlige omkostninger inkl.. afgifter og moms, i alt | K33: Brændstof, inkl. afgifter og moms [kr. per km.] | L33: Batteri, inkl. afgifter og moms [kr. per km.] | M33: Afskrivninger, inkl. afgifter og moms [kr. per km.] | N33: Reparation og vedligeholdelse, inkl. afgifter og moms [kr. per km.] | O33: Ejerafgift [kr. per km.] | P33: Dæk, inkl. afgifter og moms [kr. per km.] | Q33: Gennemsnitlige omkostninger ekskl.. afgifter og moms, i alt [kr. per km.] | R33: Brændstof, ekskl. afgifter og moms [kr. per km.] | S33: Batteri, ekskl. afgifter og moms [kr. per km.] | T33: Afskrivninger, ekskl. afgifter og moms [kr. per km.] | U33: Reparation og vedligeholdelse, ekskl. afgifter og moms [kr. per km.] | V33: Dæk, ekskl. afgifter og moms [kr. per km.] | W33: Marginale omkostninger inkl.. afgifter og moms, i alt | X33: Brændstof, inkl. afgifter og moms [kr. per km.] | Y33: Batteri, inkl. afgifter og moms [kr. per km.] | Z33: Afskrivninger, inkl. afgifter og moms [kr. per km.] | AA33: Reparation og vedligeholdelse, inkl. afgifter og moms [kr. per km.] | AB33: Dæk, inkl. afgifter og moms [kr. per km.] | AC33: Marginale omkostninger ekskl.. afgifter og moms, i alt [kr. per km.] | AD33: Brændstof, ekskl. afgifter og moms [kr. per km.] | AE33: Batteri, ekskl. afgifter og moms [kr. per km.] | AF33: Afskrivninger, ekskl. afgifter og moms [kr. per km.] | AG33: Reparation og vedligeholdelse, ekskl. afgifter og moms [kr. per km.] | AH33: Dæk, ekskl. afgifter og moms [kr. per km.]
B34: =B95 -> Mini personbil, benzin | C34: Suzuki | D34: Alto | E34: 1,1 l | F34: 2003 | G34: =P95 -> 0.06811946018 | H34: =G95 -> 3297.146156 | I34: =H95 -> 0.01025775285 | J34: =SUM(K34:P34) -> 1.963558307 | K34: =G34*R95 -> 0.7614792459 | L34: =(1+Moms)*U95/T95 -> 0 | M34: =(L95/J95)*(SUM(L95:N95)/L95) -> 0.5191356804 | N34: =Z95*(1+AA95)*(1+Moms) -> 0.461825209 | O34: =O95/I95 -> 0.1674853173 | P34: =(1+Moms)*(AC95*(1-AD95)*AE95*(J95-AF95)/AF95)/J95 -> 0.05363285488 | Q34: =SUM(R34:V34) -> 0.9181964781 | R34: =P95*Q95 -> 0.2980137026 | S34: =U95/T95 -> 0 | T34: =L95/J95 -> 0.2185773001 | U34: =Z95 -> 0.3586991915 | V34: =(AC95*(1-AD95)*AE95*(J95-AF95)/AF95)/J95 -> 0.04290628391 | W34: =SUM(X34:AB34) -> 0.9036992736 | X34: =P95*R95 -> 0.7614792459 | Y34: =L34 -> 0 | Z34: =IF(L95=0,0,W95*SUM(L95:N95)/L95) -> 0.009500267048 | AA34: =N34*AB95 -> 0.07908690578 | AB34: =P34 -> 0.05363285488 | AC34: =SUM(AD34:AH34) -> 0.4063467094 | AD34: =P95*Q95 -> 0.2980137026 | AE34: =S34 -> 0 | AF34: =W95 -> 0.004 | AG34: =U34*AB95 -> 0.06142672294 | AH34: =V34 -> 0.04290628391
B35: Mini personbil, benzin | C35: Fiat | D35: Panda | E35: 1,2 5 dørs | F35: 2003 | G35: =P96 -> 0.07763335127 | I35: =H96 -> 0.008193806954 | J35: 2.22606841 | K35: =G35*R96 -> 0.8678310958 | L35: 0 | M35: 0.5932407041 | N35: 0.461825209 | O35: =O96/I96 -> 0.2495385463 | P35: 0.05363285488 | Q35: =SUM(R35:V35) -> 0.9887375372 | R35: =P96*Q96 -> 0.3396357281 | S35: =U96/T96 -> 0 | T35: =L96/J96 -> 0.2474963337 | U35: =Z96 -> 0.3586991915 | V35: =(AC96*(1-AD96)*AE96*(J96-AF96)/AF96)/J96 -> 0.04290628391 | W35: =SUM(X35:AB35) -> 1.010138727 | X35: =P96*R96 -> 0.8678310958 | Y35: 0 | Z35: =W96*SUM(L96:N96)/L96 -> 0.009587870578 | AA35: 0.07908690578 | AB35: =P35 -> 0.05363285488 | AC35: =SUM(AD35:AH35) -> 0.4479687349 | AD35: =P96*Q96 -> 0.3396357281 | AE35: =S35 -> 0 | AF35: =W96 -> 0.004 | AG35: 0.06142672294 | AH35: =V35 -> 0.04290628391
B36: Mini personbil, benzin | C36: Suzuki | D36: Swift | E36: 1,0 3-dørs | F36: 2003 | G36: 0.07352576655 | I36: 0.002846570137 | J36: 2.15814655 | K36: 0.8219141066 | L36: 0 | M36: 0.5438686709 | N36: 0.461825209 | O36: 0.276905709 | P36: 0.05363285488 | Q36: 0.9515002579 | R36: =P97*Q97 -> 0.3216655837 | S36: 0 | T36: 0.2282291988 | U36: 0.3586991915 | V36: 0.04290628391 | W36: 0.9641658408 | X36: 0.8219141066 | Y36: 0 | Z36: 0.009531973537 | AA36: 0.07908690578 | AB36: 0.05363285488 | AC36: 0.4299985906 | AD36: 0.3216655837 | AE36: 0 | AF36: 0.004 | AG36: 0.06142672294 | AH36: 0.04290628391
B37: Mini personbil, benzin | C37: Peugeot | D37: 107 | E37: 1,0i 5d man. | F37: 2007 | G37: 0.06403857086 | I37: 0.06402478441 | J37: 1.843497251 | K37: 0.7158606735 | L37: 0 | M37: 0.5176042903 | N37: 0.461825209 | O37: 0.09457422317 | P37: 0.05363285488 | Q37: 0.91289482 | R37: 0.2801603471 | S37: 0 | T37: 0.2311289975 | U37: 0.3586991915 | V37: 0.04290628391 | W37: 0.9470412206 | X37: 0.7158606735 | Y37: 0 | Z37: 0.03359190944 | AA37: 0.1439557828 | AB37: 0.05363285488 | AC37: 0.4498769477 | AD37: 0.2801603471 | AE37: 0 | AF37: 0.015 | AG37: 0.1118103167 | AH37: 0.04290628391
B38: Mini personbil, benzin | C38: Citroën | D38: C 1 | E38: 1,0 i | F38: 2007 | G38: 0.06403857086 | I38: 0.06147965407 | J38: 1.874404198 | K38: 0.7158606735 | L38: 0 | M38: 0.5517992237 | N38: 0.461825209 | O38: 0.09128623725 | P38: 0.05363285488 | Q38: 0.9262391843 | R38: 0.2801603471 | S38: 0 | T38: 0.2444733618 | U38: 0.3586991915 | V38: 0.04290628391 | W38: 0.9473057129 | X38: 0.7158606735 | Y38: 0 | Z38: 0.03385640176 | AA38: 0.1439557828 | AB38: 0.05363285488 | AC38: 0.4498769477 | AD38: 0.2801603471 | AE38: 0 | AF38: 0.015 | AG38: 0.1118103167 | AH38: 0.04290628391
B39: Mini personbil, benzin | C39: Toyota | D39: Aygo | E39: 1,0 5-dørs hb | F39: 2007 | G39: 0.06403857086 | I39: 0.04248216542 | J39: 1.918589673 | K39: 0.7158606735 | L39: 0 | M39: 0.5961249011 | N39: 0.461825209 | O39: 0.0911460341 | P39: 0.05363285488 | Q39: 0.9435370096 | R39: 0.2801603471 | S39: 0 | T39: 0.2617711871 | U39: 0.3586991915 | V39: 0.04290628391 | W39: 0.9476084316 | X39: 0.7158606735 | Y39: 0 | Z39: 0.03415912047 | AA39: 0.1439557828 | AB39: 0.05363285488 | AC39: 0.4498769477 | AD39: 0.2801603471 | AE39: 0 | AF39: 0.015 | AG39: 0.1118103167 | AH39: 0.04290628391
B40: Mini personbil, benzin | C40: Toyota | D40: Aygo 3/5-dørs | E40: 1.0 hb 5-dørs | F40: 2011 | G40: 0.06259626071 | I40: 0.1127991808 | J40: 1.854658511 | K40: 0.6997376854 | L40: 0 | M40: 0.5129104035 | N40: 0.5050510395 | O40: 0.08332652819 | P40: 0.05363285488 | Q40: 0.9836887895 | R40: 0.2738504294 | S40: 0 | T40: 0.2746594242 | U40: 0.392272652 | V40: 0.04290628391 | W40: 1.028212404 | X40: 0.6997376854 | Y40: 0 | Z40: 0.07469765947 | AA40: 0.2001442042 | AB40: 0.05363285488 | AC40: 0.5122085224 | AD40: 0.2738504294 | AE40: 0 | AF40: 0.04 | AG40: 0.1554518091 | AH40: 0.04290628391
B41: Mini personbil, benzin | C41: Peugeot | D41: 107 | E41: 1,0 5-d 68 hk | F41: 2011 | G41: 0.06259626071 | I41: 0.09242313726 | J41: 1.795157071 | K41: 0.6997376854 | L41: 0 | M41: 0.4771064082 | N41: 0.4783404909 | O41: 0.08633963159 | P41: 0.05363285488 | Q41: 0.9489704415 | R41: 0.2738504294 | S41: 0 | T41: 0.2606871334 | U41: 0.3715265948 | V41: 0.04290628391 | W41: 1.016137263 | X41: 0.6997376854 | Y41: 0 | Z41: 0.07320751156 | AA41: 0.1895592116 | AB41: 0.05363285488 | AC41: 0.5039871689 | AD41: 0.2738504294 | AE41: 0 | AF41: 0.04 | AG41: 0.1472304556 | AH41: 0.04290628391
B42: Mini personbil, benzin | C42: Citroën | D42: C 1 | E42: 1,0 i | F42: 2011 | G42: 0.06259626071 | I42: 0.07460690714 | J42: 1.694764474 | K42: 0.6997376854 | L42: 0 | M42: 0.4202432753 | N42: 0.4359193736 | O42: 0.08523128454 | P42: 0.05363285488 | Q42: 0.8938315101 | R42: 0.2738504294 | S42: 0 | T42: 0.2384966425 | U42: 0.3385781543 | V42: 0.04290628391 | W42: 0.9966009396 | X42: 0.6997376854 | Y42: 0 | Z42: 0.07048204469 | AA42: 0.1727483547 | AB42: 0.05363285488 | AC42: 0.4909301927 | AD42: 0.2738504294 | AE42: 0 | AF42: 0.04 | AG42: 0.1341734794 | AH42: 0.04290628391
B43: Mini personbil, benzin | C43: Volkswagen | D43: Up! | E43: 1.0 mpi bmt 60 hk 5 dørs | F43: 2015 | G43: 0.05695233556 | I43: 0.219393623 | J43: 1.715565017 | K43: 0.6366465826 | L43: 0 | M43: 0.4944422468 | N43: 0.4912734432 | O43: 0.0395698893 | P43: 0.05363285488 | Q43: 0.9600958641 | R43: 0.2491589972 | S43: 0 | T43: 0.2864589765 | U43: 0.3815716064 | V43: 0.04290628391 | W43: 1.034338626 | X43: 0.6366465826 | Y43: 0 | Z43: 0.117371336 | AA43: 0.2266878526 | AB43: 0.05363285488 | AC43: 0.5361335162 | AD43: 0.2491589972 | AE43: 0 | AF43: 0.068 | AG43: 0.176068235 | AH43: 0.04290628391
B44: =B105 -> Mini personbil, benzin | C44: Peugeot | D44: 108 | E44: 1.0 e-vti 69 hk 5d | F44: 2015 | G44: 0.05283790828 | I44: 0.1565402667 | J44: 1.541449414 | K44: 0.5906531032 | L44: 0 | M44: 0.4202432753 | N44: 0.4359194361 | O44: 0.04100074417 | P44: 0.05363285488 | Q44: 0.8720975182 | R44: 0.2311589176 | S44: 0 | T44: 0.2594541139 | U44: 0.3385782028 | V44: 0.04290628391 | W44: 0.9555728898 | X44: 0.5906531032 | Y44: 0 | Z44: 0.1101410276 | AA44: 0.201145904 | AB44: 0.05363285488 | AC44: 0.4982950299 | AD44: 0.2311589176 | AE44: 0 | AF44: 0.068 | AG44: 0.1562298284 | AH44: 0.04290628391
B45: Mini personbil, benzin | C45: Toyota | D45: Aygo | E45: 1.0 vvt-i | F45: 2015 | G45: 0.05283790828 | I45: 0.1549521512 | J45: 1.497712909 | K45: 0.5906531032 | L45: 0 | M45: 0.3954954509 | N45: 0.4174570844 | O45: 0.04047441514 | P45: 0.05363285488 | Q45: 0.8379595681 | R45: 0.2311589176 | S45: 0 | T45: 0.2396558544 | U45: 0.3242385121 | V45: 0.04290628391 | W45: 0.9491307545 | X45: 0.5906531032 | Y45: 0 | Z45: 0.1122179582 | AA45: 0.1926268381 | AB45: 0.05363285488 | AC45: 0.4916782796 | AD45: 0.2311589176 | AE45: 0 | AF45: 0.068 | AG45: 0.1496130781 | AH45: 0.04290628391
B46: Lille personbil, benzin | C46: Skoda | D46: Fabia | E46: 1,2 combi | F46: 2003 | G46: 0.08321179567 | H46: =G107 -> 9275.60546 | I46: 0.03823720187 | J46: 2.562222234 | K46: 0.9301902165 | L46: 0 | M46: 0.7391215768 | N46: 0.5846997971 | O46: 0.2417153481 | P46: 0.06649529585 | Q46: 1.1618006 | R46: 0.3640406906 | S46: 0 | T46: 0.2904279081 | U46: 0.4541357648 | V46: 0.05319623668 | W46: 1.100773572 | X46: 0.9301902165 | Y46: 0 | Z46: 0.01781457943 | AA46: 0.08627348036 | AB46: 0.06649529585 | AC46: 0.4912454557 | AD46: 0.3640406906 | AE46: 0 | AF46: 0.007 | AG46: 0.06700852844 | AH46: 0.05319623668
B47: Lille personbil, benzin | C47: Fiat | D47: Punto | E47: 1,2 | F47: 2003 | G47: 0.07940782787 | I47: 0.03192565951 | J47: 2.363681744 | K47: 0.8876672352 | L47: 0 | M47: 0.5685492277 | N47: 0.5846997971 | O47: 0.2562701877 | P47: 0.06649529585 | Q47: 1.091923354 | R47: 0.3473988304 | S47: 0 | T47: 0.2371925218 | U47: 0.4541357648 | V47: 0.05319623668 | W47: 1.057214975 | X47: 0.8876672352 | Y47: 0 | Z47: 0.01677896319 | AA47: 0.08627348036 | AB47: 0.06649529585 | AC47: 0.4746035956 | AD47: 0.3473988304 | AE47: 0 | AF47: 0.007 | AG47: 0.06700852844 | AH47: 0.05319623668
B48: Lille personbil, benzin | C48: Toyota | D48: Yaris | E48: 1 | F48: 2003 | G48: 0.07806949369 | I48: 0.03111726507 | J48: 2.460064744 | K48: 0.8727065514 | L48: 0 | M48: 0.6750402729 | N48: 0.5846997971 | O48: 0.2611228263 | P48: 0.06649529585 | Q48: 1.12099476 | R48: 0.341543794 | S48: 0 | T48: 0.2721189641 | U48: 0.4541357648 | V48: 0.05319623668 | W48: 1.042840093 | X48: 0.8727065514 | Y48: 0 | Z48: 0.01736476517 | AA48: 0.08627348036 | AB48: 0.06649529585 | AC48: 0.4687485591 | AD48: 0.341543794 | AE48: 0 | AF48: 0.007 | AG48: 0.06700852844 | AH48: 0.05319623668
B49: Lille personbil, benzin | C49: Suzuki | D49: Swift | E49: 1,3 | F49: 2007 | G49: 0.08631285638 | I49: 0.07278884604 | J49: 2.587860286 | K49: 0.9648556904 | L49: 0 | M49: 0.7021363344 | N49: 0.5846997971 | O49: 0.2696731685 | P49: 0.06649529585 | Q49: 1.186863317 | R49: 0.3776074244 | S49: 0 | T49: 0.3019238912 | U49: 0.4541357648 | V49: 0.05319623668 | W49: 1.212660047 | X49: 0.9648556904 | Y49: 0 | Z49: 0.06278960221 | AA49: 0.1185194583 | AB49: 0.06649529585 | AC49: 0.5498576093 | AD49: 0.3776074244 | AE49: 0 | AF49: 0.027 | AG49: 0.09205394822 | AH49: 0.05319623668
B50: Lille personbil, benzin | C50: Opel | D50: Corsa | E50: 1,2 | F50: 2007 | G50: 0.08079284812 | I50: 0.06845343244 | J50: 2.520376578 | K50: 0.9031498032 | L50: 0 | M50: 0.7282668436 | N50: 0.5846997971 | O50: 0.2377648386 | P50: 0.06649529585 | Q50: 1.170428538 | R50: 0.3534581124 | S50: 0 | T50: 0.3096384237 | U50: 0.4541357648 | V50: 0.05319623668 | W50: 1.151668319 | X50: 0.9031498032 | Y50: 0 | Z50: 0.06350376203 | AA50: 0.1185194583 | AB50: 0.06649529585 | AC50: 0.5257082973 | AD50: 0.3534581124 | AE50: 0 | AF50: 0.027 | AG50: 0.09205394822 | AH50: 0.05319623668
B51: Lille personbil, benzin | C51: Skoda | D51: Fabia | E51: 1,4 combi | F51: 2007 | G51: 0.09142348603 | I51: 0.05583657176 | J51: 2.914894708 | K51: 1.021985304 | L51: 0 | M51: 0.9302659105 | N51: 0.5846997971 | O51: 0.3114484008 | P51: 0.06649529585 | Q51: 1.274650203 | R51: 0.3999657587 | S51: 0 | T51: 0.3673524429 | U51: 0.4541357648 | V51: 0.05319623668 | W51: 1.275373578 | X51: 1.021985304 | Y51: 0 | Z51: 0.06837351996 | AA51: 0.1185194583 | AB51: 0.06649529585 | AC51: 0.5722159436 | AD51: 0.3999657587 | AE51: 0 | AF51: 0.027 | AG51: 0.09205394822 | AH51: 0.05319623668
B52: Lille personbil, benzin | C52: Chevrolet | D52: Spark | E52: 1.0 esp 5d | F52: 2011 | G52: 0.06948184939 | I52: 0.1457427125 | J52: 2.018160294 | K52: 0.7767088308 | L52: 0 | M52: 0.5211551218 | N52: 0.5374626838 | O52: 0.1163383614 | P52: 0.06649529585 | Q52: 1.03310963 | R52: 0.3039739766 | S52: 0 | T52: 0.2584926723 | U52: 0.4174467447 | V52: 0.05319623668 | W52: 1.084124339 | X52: 0.7767088308 | Y52: 0 | Z52: 0.09879042504 | AA52: 0.1421297873 | AB52: 0.06649529585 | AC52: 0.5165622811 | AD52: 0.3039739766 | AE52: 0 | AF52: 0.049 | AG52: 0.1103920678 | AH52: 0.05319623668
B53: Lille personbil, benzin | C53: Suzuki | D53: Swift | E53: 1,2 eco+ | F53: 2011 | G53: 0.06811946018 | I53: 0.09135861859 | J53: 2.421194426 | K53: 0.7614792459 | L53: 0 | M53: 0.7580308917 | N53: 0.7262078671 | O53: 0.1089811258 | P53: 0.06649529585 | Q53: 1.267525735 | R53: 0.2980137026 | S53: 0 | T53: 0.3522708505 | U53: 0.5640449453 | V53: 0.05319623668 | W53: 1.125457427 | X53: 0.7614792459 | Y53: 0 | Z53: 0.1054402135 | AA53: 0.1920426716 | AB53: 0.06649529585 | AC53: 0.5493692958 | AD53: 0.2980137026 | AE53: 0 | AF53: 0.049 | AG53: 0.1491593566 | AH53: 0.05319623668
B54: =B115 -> Lille personbil, benzin | C54: Opel | D54: Corsa | E54: 1 | F54: 2011 | G54: 0.06948184939 | I54: 0.06448340338 | J54: 2.178500906 | K54: 0.7767088308 | L54: 0 | M54: 0.599118734 | N54: 0.5995849636 | O54: 0.1365930815 | P54: 0.06649529585 | Q54: 1.111784769 | R54: 0.3039739766 | S54: 0 | T54: 0.2889174966 | U54: 0.4656970591 | V54: 0.05319623668 | W54: 1.103371587 | X54: 0.7767088308 | Y54: 0 | Z54: 0.1016096924 | AA54: 0.1585577676 | AB54: 0.06649529585 | AC54: 0.5293218775 | AD54: 0.3039739766 | AE54: 0 | AF54: 0.049 | AG54: 0.1231516642 | AH54: 0.05319623668
B55: Lille personbil, benzin | C55: Peugeot | D55: 208 | E55: 1.2 vti 5d | F55: 2015 | G55: 0.06259626071 | I55: 0.1543915328 | J55: 1.956487894 | K55: 0.6997376854 | L55: 0 | M55: 0.5542973562 | N55: 0.5638708319 | O55: 0.07208672426 | P55: 0.06649529585 | Q55: 1.054643189 | R55: 0.2738504294 | S55: 0 | T55: 0.2896385954 | U55: 0.4379579277 | V55: 0.05319623668 | W55: 1.106582954 | X55: 0.6997376854 | Y55: 0 | Z55: 0.1550141679 | AA55: 0.1853358045 | AB55: 0.06649529585 | AC55: 0.5519968055 | AD55: 0.2738504294 | AE55: 0 | AF55: 0.081 | AG55: 0.1439501394 | AH55: 0.05319623668
B56: Lille personbil, benzin | C56: Kia | D56: Picanto | E56: 1.0 5-dørs man. 5 | F56: 2015 | G56: 0.05695233556 | I56: 0.150277455 | J56: 1.711550529 | K56: 0.6366465826 | L56: 0 | M56: 0.4737941817 | N56: 0.4997250226 | O56: 0.03488944667 | P56: 0.06649529585 | Q56: 0.9649848445 | R56: 0.2491589972 | S56: 0 | T56: 0.2744936707 | U56: 0.3881359399 | V56: 0.05319623668 | W56: 1.00720527 | X56: 0.6366465826 | Y56: 0 | Z56: 0.1398113429 | AA56: 0.1642520482 | AB56: 0.06649529585 | AC56: 0.5109296403 | AD56: 0.2491589972 | AE56: 0 | AF56: 0.081 | AG56: 0.1275744064 | AH56: 0.05319623668
B57: Lille personbil, benzin | C57: Ford | D57: Fiesta | E57: 1.0 ecoboost (100 hk) hatchback, 5 dørs forhjulstræk manuel | F57: 2015 | G57: 0.05964107243 | I57: 0.09538730112 | J57: 2.195317667 | K57: 0.666702859 | L57: 0 | M57: 0.6986165072 | N57: 0.6788658514 | O57: 0.08463715391 | P57: 0.06649529585 | Q57: 1.195486291 | R57: 0.2609218683 | S57: 0 | T57: 0.3540937382 | U57: 0.5272744477 | V57: 0.05319623668 | W57: 1.116141693 | X57: 0.666702859 | Y57: 0 | Z57: 0.1598106122 | AA57: 0.2231329262 | AB57: 0.06649529585 | AC57: 0.5684252322 | AD57: 0.2609218683 | AE57: 0 | AF57: 0.081 | AG57: 0.1733071271 | AH57: 0.05319623668
B58: Mellem personbil, benzin | C58: Peugeot | D58: 307 | E58: 2,0 i | F58: 2003 | G58: 0.114846032 | H58: =G119 -> 8409.352709 | I58: 0.1457052258 | J58: 3.97362298 | K58: 1.283816249 | L58: 0 | M58: 0.9303604796 | N58: 1.19853419 | O58: 0.4543006805 | P58: 0.1066113805 | Q58: 1.84955739 | R58: 0.502436325 | S58: 0 | T58: 0.330931619 | U58: 0.930900342 | V58: 0.08528910442 | W58: 1.603477823 | X58: 1.283816249 | Y58: 0 | Z58: 0.02811337528 | AA58: 0.184936818 | AB58: 0.1066113805 | AC58: 0.7413656764 | AD58: 0.502436325 | AE58: 0 | AF58: 0.01 | AG58: 0.143640247 | AH58: 0.08528910442
B59: Mellem personbil, benzin | C59: Ford | D59: Mondeo | E59: 1,8 | F59: 2003 | G59: 0.1068951529 | I59: 0.09126593488 | J59: 3.879812887 | K59: 1.194936663 | L59: 0 | M59: 1.050677359 | N59: 1.19853419 | O59: 0.3290532941 | P59: 0.1066113805 | Q59: 1.849149588 | R59: 0.4676522717 | S59: 0 | T59: 0.3653078703 | U59: 0.930900342 | V59: 0.08528910442 | W59: 1.515246283 | X59: 1.194936663 | Y59: 0 | Z59: 0.02876142138 | AA59: 0.184936818 | AB59: 0.1066113805 | AC59: 0.7065816231 | AD59: 0.4676522717 | AE59: 0 | AF59: 0.01 | AG59: 0.143640247 | AH59: 0.08528910442
B60: Mellem personbil, benzin | C60: Citroën | D60: C 5 | E60: 2,0i 16v weekend | F60: 2003 | G60: 0.1167762175 | I60: 0.0878832795 | J60: 4.165980076 | K60: 1.305392993 | L60: 0 | M60: 1.144456556 | N60: 1.19853419 | O60: 0.4109849565 | P60: 0.1066113805 | Q60: 1.919172006 | R60: 0.510880633 | S60: 0 | T60: 0.3921019264 | U60: 0.930900342 | V60: 0.08528910442 | W60: 1.626128922 | X60: 1.305392993 | Y60: 0 | Z60: 0.02918773101 | AA60: 0.184936818 | AB60: 0.1066113805 | AC60: 0.7498099844 | AD60: 0.510880633 | AE60: 0 | AF60: 0.01 | AG60: 0.143640247 | AH60: 0.08528910442
B61: Mellem personbil, benzin | C61: Toyota | D61: Avensis | E61: 1,8 stw man. | F61: 2007 | G61: 0.09997388401 | I61: 0.1187040742 | J61: 4.021434295 | K61: 1.117566663 | L61: 0 | M61: 1.313175691 | N61: 1.19853419 | O61: 0.2855463705 | P61: 0.1066113805 | Q61: 1.912201541 | R61: 0.4373726282 | S61: 0 | T61: 0.4586394664 | U61: 0.930900342 | V61: 0.08528910442 | W61: 1.581687622 | X61: 1.117566663 | Y61: 0 | Z61: 0.1116647295 | AA61: 0.2458448493 | AB61: 0.1066113805 | AC61: 0.7526091884 | AD61: 0.4373726282 | AE61: 0 | AF61: 0.039 | AG61: 0.1909474557 | AH61: 0.08528910442
B62: Mellem personbil, benzin | C62: Peugeot | D62: 307 | E62: 1,6 i st. car | F62: 2007 | G62: 0.1068951529 | I62: 0.08124604863 | J62: 3.72805251 | K62: 1.194936663 | L62: 0 | M62: 0.9105696935 | N62: 1.19853419 | O62: 0.317400583 | P62: 0.1066113805 | Q62: 1.8274509 | R62: 0.4676522717 | S62: 0 | T62: 0.3436091814 | U62: 0.930900342 | V62: 0.08528910442 | W62: 1.650743501 | X62: 1.194936663 | Y62: 0 | Z62: 0.1033506087 | AA62: 0.2458448493 | AB62: 0.1066113805 | AC62: 0.7828888319 | AD62: 0.4676522717 | AE62: 0 | AF62: 0.039 | AG62: 0.1909474557 | AH62: 0.08528910442
B63: Mellem personbil, benzin | C63: Citroën | D63: C 4 picasso | E63: 1,8 i | F63: 2007 | G63: 0.111170959 | I63: 0.08113675291 | J63: 4.226318938 | K63: 1.242734129 | L63: 0 | M63: 1.290804707 | N63: 1.19853419 | O63: 0.3876345308 | P63: 0.1066113805 | Q63: 1.954795566 | R63: 0.4863583626 | S63: 0 | T63: 0.4522477566 | U63: 0.930900342 | V63: 0.08528910442 | W63: 1.706504087 | X63: 1.242734129 | Y63: 0 | Z63: 0.1113137275 | AA63: 0.2458448493 | AB63: 0.1066113805 | AC63: 0.8015949228 | AD63: 0.4863583626 | AE63: 0 | AF63: 0.039 | AG63: 0.1909474557 | AH63: 0.08528910442
B64: =B125 -> Mellem personbil, benzin | C64: Toyota | D64: Avensis stw | E64: 1.8 stw man.6 | F64: 2011 | G64: 0.09326422736 | I64: 0.06003698254 | J64: 4.047899198 | K64: 1.042562189 | L64: 0 | M64: 1.270094986 | N64: 1.39594643 | O64: 0.232684213 | P64: 0.1066113805 | Q64: 2.031110642 | R64: 0.4080187606 | S64: 0 | T64: 0.4535725408 | U64: 1.084230237 | V64: 0.08528910442 | W64: 1.721540589 | X64: 1.042562189 | Y64: 0 | Z64: 0.2520182296 | AA64: 0.3203487899 | AB64: 0.1066113805 | AC64: 0.8321224591 | AD64: 0.4080187606 | AE64: 0 | AF64: 0.09 | AG64: 0.2488145941 | AH64: 0.08528910442
B65: Mellem personbil, benzin | C65: Suzuki | D65: Sx4 combiback | E65: 1,6 | F65: 2011 | G65: 0.08631285638 | I65: 0.058087531 | J65: 2.74204342 | K65: 0.9648556904 | L65: 0 | M65: 0.6500700716 | N65: 0.7739868031 | O65: 0.2465194747 | P65: 0.1066113805 | Q65: 1.339322309 | R65: 0.3776074244 | S65: 0 | T65: 0.2752709816 | U65: 0.6011547985 | V65: 0.08528910442 | W65: 1.461626216 | X65: 0.9648556904 | Y65: 0 | Z65: 0.2125407702 | AA65: 0.1776183746 | AB65: 0.1066113805 | AC65: 0.6908525479 | AD65: 0.3776074244 | AE65: 0 | AF65: 0.09 | AG65: 0.1379560191 | AH65: 0.08528910442
B66: Mellem personbil, benzin | C66: Toyota | D66: Avensis sedan | E66: 1.8 sd man.6 | F66: 2011 | G66: 0.09142348603 | I66: 0.03445329689 | J66: 3.888345018 | K66: 1.021985304 | L66: 0 | M66: 1.19233105 | N66: 1.317939833 | O66: 0.2494774509 | P66: 0.1066113805 | Q66: 1.9405854 | R66: 0.3999657587 | S66: 0 | T66: 0.4316879477 | U66: 1.023642589 | V66: 0.08528910442 | W66: 1.679625993 | X66: 1.021985304 | Y66: 0 | Z66: 0.2485818634 | AA66: 0.3024474449 | AB66: 0.1066113805 | AC66: 0.8101654999 | AD66: 0.3999657587 | AE66: 0 | AF66: 0.09 | AG66: 0.2349106368 | AH66: 0.08528910442
B67: Mellem personbil, benzin | C67: Suzuki | D67: Vitara | E67: 1,6 5-dørs | F67: 2015 | G67: 0.07352576655 | I67: 0.101280212 | J67: 3.087778753 | K67: 0.8219141066 | L67: 0 | M67: 0.9375910297 | N67: 1.098119344 | O67: 0.1235428922 | P67: 0.1066113805 | Q67: 1.646986409 | R67: 0.3216655837 | S67: 0 | T67: 0.3871234926 | U67: 0.8529082285 | V67: 0.08528910442 | W67: 1.729274554 | X67: 0.8219141066 | Y67: 0 | Z67: 0.3342281328 | AA67: 0.4665209339 | AB67: 0.1066113805 | AC67: 0.9073010446 | AD67: 0.3216655837 | AE67: 0 | AF67: 0.138 | AG67: 0.3623463564 | AH67: 0.08528910442
B68: Mellem personbil, benzin | C68: Toyota | D68: Avensis | E68: 1.8 vvt-i touring sports | F68: 2015 | G68: 0.09023616803 | I68: 0.06807127021 | J68: 4.187317657 | K68: 1.008712767 | L68: 0 | M68: 1.304108014 | N68: 1.504181752 | O68: 0.2637037419 | P68: 0.1066113805 | Q68: 2.137568179 | R68: 0.3947713982 | S68: 0 | T68: 0.48921117 | U68: 1.168296507 | V68: 0.08528910442 | W68: 2.122226744 | X68: 1.008712767 | Y68: 0 | Z68: 0.3678716207 | AA68: 0.6390309757 | AB68: 0.1066113805 | AC68: 1.114395241 | AD68: 0.3947713982 | AE68: 0 | AF68: 0.138 | AG68: 0.4963347384 | AH68: 0.08528910442
B69: Mellem personbil, benzin | C69: Toyota | D69: Auris | E69: 1.8 hybrid touring sports | F69: 2015 | G69: 0.05165936757 | I69: 0.07212939144 | J69: 2.879894918 | K69: 0.5774786846 | L69: 0 | M69: 0.9896720247 | N69: 1.171626649 | O69: 0.0345061794 | P69: 0.1066113805 | Q69: 1.664945724 | R69: 0.2260029566 | S69: 0 | T69: 0.4436523821 | U69: 0.9100012807 | V69: 0.08528910442 | W69: 1.48968135 | X69: 0.5774786846 | Y69: 0 | Z69: 0.3078417809 | AA69: 0.4977495036 | AB69: 0.1066113805 | AC69: 0.8358936172 | AD69: 0.2260029566 | AE69: 0 | AF69: 0.138 | AG69: 0.3866015562 | AH69: 0.08528910442
B70: Stor personbil, benzin | C70: Volvo | D70: V 70 | E70: 2,4 | F70: 2003 | G70: 0.1263306352 | H70: =G131 -> 1112.130154 | I70: 0.1620272697 | J70: 5.962193657 | K70: 1.412197874 | L70: 0 | M70: 1.672386282 | N70: 2.307612541 | O70: 0.4415833022 | P70: 0.1284136575 | Q70: 2.988801584 | R70: 0.5526799575 | S70: 0 | T70: 0.5410702807 | U70: 1.79232042 | V70: 0.102730926 | W70: 1.862677903 | X70: 1.412197874 | Y70: 0 | Z70: 0.07109036637 | AA70: 0.2509760046 | AB70: 0.1284136575 | AC70: 0.8733437026 | AD70: 0.5526799575 | AE70: 0 | AF70: 0.023 | AG70: 0.1949328191 | AH70: 0.102730926
B71: Stor personbil, benzin | C71: Volvo | D71: S 60 | E71: 2,4 | F71: 2003 | G71: 0.124074731 | I71: 0.0861805799 | J71: 5.773868565 | K71: 1.386980055 | L71: 0 | M71: 1.4443642 | N71: 2.307612541 | O71: 0.5064981114 | P71: 0.1284136575 | Q71: 2.913783133 | R71: 0.5428106725 | S71: 0 | T71: 0.4759211145 | U71: 1.79232042 | V71: 0.102730926 | W71: 1.836171992 | X71: 1.386980055 | Y71: 0 | Z71: 0.06980227519 | AA71: 0.2509760046 | AB71: 0.1284136575 | AC71: 0.8634744176 | AD71: 0.5428106725 | AE71: 0 | AF71: 0.023 | AG71: 0.1949328191 | AH71: 0.102730926
B72: Stor personbil, benzin | C72: Peugeot | D72: 406 | E72: 2,2 stationcar | F72: 2003 | G72: 0.124074731 | I72: 0.06831291378 | J72: 5.761349357 | K72: 1.386980055 | L72: 0 | M72: 1.402159035 | N72: 2.307612541 | O72: 0.5361840682 | P72: 0.1284136575 | Q72: 2.901724515 | R72: 0.5428106725 | S72: 0 | T72: 0.4638624959 | U72: 1.79232042 | V72: 0.102730926 | W72: 1.835893893 | X72: 1.386980055 | Y72: 0 | Z72: 0.06952417601 | AA72: 0.2509760046 | AB72: 0.1284136575 | AC72: 0.8634744176 | AD72: 0.5428106725 | AE72: 0 | AF72: 0.023 | AG72: 0.1949328191 | AH72: 0.102730926
B73: Stor personbil, benzin | C73: Volvo | D73: V 70 | E73: 2,4 | F73: 2007 | G73: 0.1251925214 | I73: 0.3745148536 | J73: 6.54850779 | K73: 1.399475371 | L73: 0 | M73: 2.282272091 | N73: 2.307612541 | O73: 0.43073413 | P73: 0.1284136575 | Q73: 3.175881536 | R73: 0.5477008588 | S73: 0 | T73: 0.7331293314 | U73: 1.79232042 | V73: 0.102730926 | W73: 2.120096193 | X73: 1.399475371 | Y73: 0 | Z73: 0.1805572027 | AA73: 0.4116499624 | AB73: 0.1284136575 | AC73: 1.028159911 | AD73: 0.5477008588 | AE73: 0 | AF73: 0.058 | AG73: 0.3197281262 | AH73: 0.102730926
B74: =B135 -> Stor personbil, benzin | C74: Volvo | D74: V70 | E74: 2,5 t aut. | F74: 2007 | G74: 0.1417996926 | I74: 0.1055664474 | J74: 6.903752515 | K74: 1.585120063 | L74: 0 | M74: 2.418403789 | N74: 2.307612541 | O74: 0.4642024653 | P74: 0.1284136575 | Q74: 3.287430503 | R74: 0.6203550543 | S74: 0 | T74: 0.7720241021 | U74: 1.79232042 | V74: 0.102730926 | W74: 2.306871559 | X74: 1.585120063 | Y74: 0 | Z74: 0.1816878765 | AA74: 0.4116499624 | AB74: 0.1284136575 | AC74: 1.100814107 | AD74: 0.6203550543 | AE74: 0 | AF74: 0.058 | AG74: 0.3197281262 | AH74: 0.102730926
B75: Stor personbil, benzin | C75: Volvo | D75: S 80 | E75: S80 2,5t aut. | F75: 2007 | G75: 0.1375878206 | I75: 0.07984279093 | J75: 6.856310609 | K75: 1.538037289 | L75: 0 | M75: 2.345552321 | N75: 2.307612541 | O75: 0.5366948009 | P75: 0.1284136575 | Q75: 3.24818941 | R75: 0.6019286666 | S75: 0 | T75: 0.7512093969 | U75: 1.79232042 | V75: 0.102730926 | W75: 2.259198263 | X75: 1.538037289 | Y75: 0 | Z75: 0.1810973547 | AA75: 0.4116499624 | AB75: 0.1284136575 | AC75: 1.082387719 | AD75: 0.6019286666 | AE75: 0 | AF75: 0.058 | AG75: 0.3197281262 | AH75: 0.102730926
B76: Stor personbil, benzin | C76: Volvo | D76: V70 | E76: 2,5 t aut. | F76: 2011 | G76: 0.1349162124 | I76: 0.02225136171 | J76: 6.930373418 | K76: 1.508172487 | L76: 0 | M76: 2.347714297 | N76: 2.41278026 | O76: 0.5332927169 | P76: 0.1284136575 | Q76: 3.320867354 | R76: 0.5902407313 | S76: 0 | T76: 0.7538916107 | U76: 1.874004086 | V76: 0.102730926 | W76: 2.691530123 | X76: 1.508172487 | Y76: 0 | Z76: 0.5013744633 | AA76: 0.5535695151 | AB76: 0.1284136575 | AC76: 1.283928562 | AD76: 0.5902407313 | AE76: 0 | AF76: 0.161 | AG76: 0.4299569049 | AH76: 0.102730926
B77: Stor personbil, benzin | C77: Suzuki | D77: Grand vitara | E77: 2.4l m/t | F77: 2011 | G77: 0.1251925214 | I77: 0.0197379137 | J77: 4.520252676 | K77: 1.399475371 | L77: 0 | M77: 1.228835029 | N77: 1.321229583 | O77: 0.4422990355 | P77: 0.1284136575 | Q77: 2.111705601 | R77: 0.5477008588 | S77: 0 | T77: 0.4350760821 | U77: 1.026197735 | V77: 0.102730926 | W77: 2.285752329 | X77: 1.399475371 | Y77: 0 | Z77: 0.454730673 | AA77: 0.3031326274 | AB77: 0.1284136575 | AC77: 1.046874602 | AD77: 0.5477008588 | AE77: 0 | AF77: 0.161 | AG77: 0.2354428174 | AH77: 0.102730926
B78: Stor personbil, benzin | C78: Audi | D78: A6 | E78: 2,8 fsi aut. | F78: 2011 | G78: 0.1029360732 | I78: 0.01765372995 | J78: 6.693589973 | K78: 1.150679749 | L78: 0 | M78: 2.535100389 | N78: 2.595586725 | O78: 0.2838094516 | P78: 0.1284136575 | Q78: 3.379939976 | R78: 0.4503318172 | S78: 0 | T78: 0.8108875433 | U78: 2.01598969 | V78: 0.102730926 | W78: 2.377943413 | X78: 1.150679749 | Y78: 0 | Z78: 0.5033387997 | AA78: 0.595511207 | AB78: 0.1284136575 | AC78: 1.17659572 | AD78: 0.4503318172 | AE78: 0 | AF78: 0.161 | AG78: 0.4625329763 | AH78: 0.102730926
B79: Stor personbil, benzin | C79: Mazda | D79: Mazda cx-9 | E79: 3,7 suv firehjulstræk aut. | F79: 2015 | G79: 0.1561389874 | I79: 0.02914104259 | J79: 7.096231567 | K79: 1.745413103 | L79: 0 | M79: 2.17990613 | N79: 2.42311626 | O79: 0.6193824169 | P79: 0.1284136575 | Q79: 3.427388987 | R79: 0.6830875879 | S79: 0 | T79: 0.7595384269 | U79: 1.882032046 | V79: 0.102730926 | W79: 3.469301207 | X79: 1.745413103 | Y79: 0 | Z79: 0.677329584 | AA79: 0.9181448631 | AB79: 0.1284136575 | AC79: 1.734940738 | AD79: 0.6830875879 | AE79: 0 | AF79: 0.236 | AG79: 0.7131222238 | AH79: 0.102730926
B80: Stor personbil, benzin | C80: Mazda | D80: Mazda6 | E80: 2,5 skyactiv-g 192 hk stationcar aut. | F80: 2015 | G80: 0.08907929408 | I80: 0.01960747184 | J80: 4.641206777 | K80: 0.9957805523 | L80: 0 | M80: 1.569038346 | N80: 1.758619226 | O80: 0.1893549954 | P80: 0.1284136575 | Q80: 2.430526513 | R80: 0.3897102264 | S80: 0 | T80: 0.5721675156 | U80: 1.365917845 | V80: 0.102730926 | W80: 2.437729926 | X80: 0.9957805523 | Y80: 0 | Z80: 0.6471759399 | AA80: 0.6663597762 | AB80: 0.1284136575 | AC80: 1.246002144 | AD80: 0.3897102264 | AE80: 0 | AF80: 0.236 | AG80: 0.5175609912 | AH80: 0.102730926
B81: Stor personbil, benzin | C81: Bmw | D81: 4-serie | E81: 435i gran coupé steptronic | F81: 2015 | G81: 0.1052755294 | I81: 0.01516362488 | J81: 8.401963151 | K81: 1.176831562 | L81: 0 | M81: 3.245993701 | N81: 3.589869955 | O81: 0.2608542754 | P81: 0.1284136575 | Q81: 4.457435374 | R81: 0.4605666313 | S81: 0 | T81: 1.105889308 | U81: 2.788248509 | V81: 0.102730926 | W81: 3.358190143 | X81: 1.176831562 | Y81: 0 | Z81: 0.692704512 | AA81: 1.360240412 | AB81: 0.1284136575 | AC81: 1.855794964 | AD81: 0.4605666313 | AE81: 0 | AF81: 0.236 | AG81: 1.056497407 | AH81: 0.102730926
C82: Kilde:
C83: Note: De samlede kørselsomkostninger omfatter omkostninger til brændstof/el, motorolie/batteri, dæk, reparation og vedligehold samt afskrivninger.
C84: Note: Her er alle omkostningerne samlet og opgjort som gennemsnitlige og marginale omkostninger henholdsvis uden og med afgifter.
C85: Note:
C89: Niveu III - Grundforudsætninger og grunddata
C92: Forudsætninger og grunddata for konkrete køretøjer
G93: Grundforudsætninger | P93: Grunddata
B94: Kategori | C94: Mærke | D94: Model | E94: Variant | F94: Årgang | G94: Trafikarbejde, i alt for kategori [mio. km. per år] | H94: Det repræsentative køretøjs andel af det samlede trafikarbejde indenfor den relevante køretøjskategori [%] | I94: Trafikarbejde, gennemsnitligt for konkrete køretøjer - årgang, mærke og model [km. per år per bil] | J94: Levetid, kørsel i alt [km.] | K94: Levetid, alder [år] | L94: Pris ekskl. moms og afgifter [kr] | M94: Moms [kr.] | N94: Registreringsafgift 2016 [kr.] | O94: Ejerafgift, årligt [kr. per år] | P94: Brændstof-effektivitet [liter per km, realt forbrug] | Q94: Brændstofpris ekskl. moms og afgifter [kr per liter] | R94: Brændstofpris inkl. moms og afgifter [kr per liter] | S94: Brændstof-effektivitet [liter per km oplyst] | T94: Batteri levetid km | U94: Batteri pris | V94: Afskrivninger ekskl. moms og afgifter, gennemsnitlige [kr. per km.] | W94: Afskrivninger ekskl. moms og afgifter, marginale [kr. per km.] | X94: Ansvarsforsikrings-præmie [kr per år] | Y94: Forsikringsafgift [kr per år] | Z94: Reparationsomk. ekskl. moms og afgifter, gennemsnitlige [kr per km.] | AA94: Andel af reparationsomk. der er afgifter - før/ud over moms [Pct.] | AB94: Andel af reparationsomk. som er kørselsafhængig [Pct.] | AC94: Dækpris ekskl. moms [kr per stk] | AD94: Rabat for dæk [Pct] | AE94: Dæk [antal] | AF94: Dæk levetid [km] | AH94: Bilens ny-pris inkl. moms og afgifter (før 2016) [kr.] | AI94: Det repræsentative køretøjs andel af det samlede trafikarbejde indenfor den relevante køretøjskategori [%] | AJ94: Levetid, alder [år] | AK94: Beregnet sammenvægtet bilpris til brug for beregning af reparations-omkostning [kr.] | AL94: Gennemsnitlig reparationsomkostning inkl. moms, 10 års brug [kr. per km.] | AM94: Gennemsnitlig reparationsomkostning inkl. moms, 15 års brug [kr. per km.] | AN94: Gennemsnitlig reparationsomkostning inkl. moms, levetids brug [kr. per km.] | AO94: Gennemsnitlig reparationsomkostning ekskl. moms, levetids brug [kr. per km.] | AP94: Gennemsnitlig reparationsomkostning ekskl. moms, levetids brug [kr. per km.] - 2015-niveau | AR94: Realitetsfaktor | AS94: Sampling korrektion af brændstofforbrug
B95: Mini personbil, benzin | C95: Suzuki | D95: Alto | E95: 1,1 l | F95: 2003 | G95: 3297.146156 | H95: 0.01025775285 | I95: 10627.79728 | J95: 202240 | K95: 16.2 | L95: 44205.07317 | M95: 11051.26829 | N95: 49733.65854 | O95: =VLOOKUP(1/(S95*AS95),GronEjerafgift!$A$6:$E$29,5) -> 1780 | P95: =S95*AR95*AS95 -> 0.06811946018 | Q95: ='Ark til TE inkl. brændstofpris'!C169 -> 4.374868823 | R95: ='Ark til TE inkl. brændstofpris'!D169 -> 11.17858603 | S95: 0.04901960784 | T95: 1 | U95: 0 | W95: 0.004 | Z95: =AP95 -> 0.3586991915 | AA95: 0.03 | AB95: 0.1712485682 | AC95: 454 | AD95: 0 | AE95: 4 | AF95: 35000 | AH95: 104990 | AI95: =H95 -> 0.01025775285 | AJ95: =K95 -> 16.2 | AK95: =SUMPRODUCT(AH101:AH106,AI101:AI106)*SUM(AI95:AI106)/SUM(AI101:AI106) -> 92012.82901 | AL95: =0.0000021891*AK95+0.11713 -> 0.318555284 | AM95: =0.000003197*AK95+0.1147 -> 0.4088650143 | AN95: =AL95+(AJ95-10)*(AM95-AL95)/(15-10) -> 0.4305393496 | AO95: =AN95/(1+Moms) -> 0.3444314797 | AP95: =AO95*Opregn_rep -> 0.3586991915 | AR95: =' Fælles forudsætninger'!E54 -> 1.191 | AS95: =' Fælles forudsætninger'!J54 -> 1.166781686
B96: =B95 -> Mini personbil, benzin | C96: Fiat | D96: Panda | E96: 1,2 5 dørs | F96: 2003 | H96: 0.008193806954 | I96: 11861.89486 | J96: 202240 | K96: 16.2 | L96: 50053.65854 | M96: 12513.41463 | N96: 57409.92683 | O96: =VLOOKUP(1/(S96*AS96),GronEjerafgift!$A$6:$E$29,5) -> 2960 | P96: =S96*AR96*AS96 -> 0.07763335127 | Q96: =$Q$95 -> 4.374868823 | R96: =$R$95 -> 11.17858603 | S96: 0.05586592179 | T96: 1 | U96: 0 | W96: 0.004 | Z96: =AP96 -> 0.3586991915 | AA96: 0.03 | AB96: 0.1712485682 | AC96: 454 | AD96: 0 | AE96: 4 | AF96: 35000 | AH96: 119976.9956 | AI96: =H96 -> 0.008193806954 | AJ96: 16.2 | AK96: =SUMPRODUCT(AH101:AH106,AI101:AI106)*SUM(AI95:AI106)/SUM(AI101:AI106) -> 92012.82901 | AL96: =0.0000021891*AK96+0.11713 -> 0.318555284 | AM96: =0.000003197*AK96+0.1147 -> 0.4088650143 | AN96: =AL96+(AJ96-10)*(AM96-AL96)/(15-10) -> 0.4305393496 | AO96: 0.3444314797 | AP96: 0.3586991915 | AR96: =AR95 -> 1.191 | AS96: =AS95 -> 1.166781686
B97: =B96 -> Mini personbil, benzin | C97: Suzuki | D97: Swift | E97: 1,0 3-dørs | F97: 2003 | H97: 0.002846570137 | I97: 8594.9835 | J97: 202240 | K97: 16.2 | L97: 46157.07317 | M97: 11539.26829 | N97: 52295.65854 | O97: =VLOOKUP(1/(S97*AS97),GronEjerafgift!$A$6:$E$29,5) -> 2380 | P97: 0.07352576655 | Q97: =$Q$95 -> 4.374868823 | R97: =$R$95 -> 11.17858603 | S97: 0.05291005291 | T97: 1 | U97: 0 | W97: 0.004 | Z97: 0.3586991915 | AA97: 0.03 | AB97: 0.1712485682 | AC97: 454 | AD97: 0 | AE97: 4 | AF97: 35000 | AH97: 109991.9737 | AI97: 0.002846570137 | AJ97: 16.2 | AK97: =SUMPRODUCT(AH101:AH106,AI101:AI106)*SUM(AI95:AI106)/SUM(AI101:AI106) -> 92012.82901 | AL97: 0.318555284 | AM97: 0.4088650143 | AN97: 0.4305393496 | AO97: 0.3444314797 | AP97: 0.3586991915 | AR97: =AR96 -> 1.191 | AS97: =AS96 -> 1.166781686
B98: Mini personbil, benzin | C98: Peugeot | D98: 107 | E98: 1,0i 5d man. | F98: 2007 | H98: 0.06402478441 | I98: 12688.44681 | J98: 202240 | K98: 16.2 | L98: 46743.52846 | M98: 11685.88211 | N98: 46250.8811 | O98: =VLOOKUP(1/(S98*AS98),GronEjerafgift!$A$6:$E$29,5) -> 1200 | P98: 0.06403857086 | Q98: 4.374868823 | R98: 11.17858603 | S98: 0.04608294931 | T98: 1 | U98: 0 | W98: 0.015 | Z98: 0.3586991915 | AA98: 0.03 | AB98: 0.3117105345 | AC98: 454 | AD98: 0 | AE98: 4 | AF98: 35000 | AH98: 104680.2687 | AI98: 0.06402478441 | AJ98: 16.2 | AK98: =SUMPRODUCT(AH101:AH106,AI101:AI106)*SUM(AI95:AI106)/SUM(AI101:AI106) -> 92012.82901 | AL98: 0.318555284 | AM98: 0.4088650143 | AN98: 0.4305393496 | AO98: 0.3444314797 | AP98: 0.3586991915 | AR98: 1.191 | AS98: 1.166781686
B99: Mini personbil, benzin | C99: Citroën | D99: C 1 | E99: 1,0 i | F99: 2007 | H99: 0.06147965407 | I99: 13145.4646 | J99: 202240 | K99: 16.2 | L99: 49442.29268 | M99: 12360.57317 | N99: 49793.00915 | O99: =VLOOKUP(1/(S99*AS99),GronEjerafgift!$A$6:$E$29,5) -> 1200 | P99: 0.06403857086 | Q99: 4.374868823 | R99: 11.17858603 | S99: 0.04608294931 | T99: 1 | U99: 0 | W99: 0.015 | Z99: 0.3586991915 | AA99: 0.03 | AB99: 0.3117105345 | AC99: 454 | AD99: 0 | AE99: 4 | AF99: 35000 | AH99: 111595.8589 | AI99: 0.06147965407 | AJ99: 16.2 | AK99: =SUMPRODUCT(AH101:AH106,AI101:AI106)*SUM(AI95:AI106)/SUM(AI101:AI106) -> 92012.82901 | AL99: 0.318555284 | AM99: 0.4088650143 | AN99: 0.4305393496 | AO99: 0.3444314797 | AP99: 0.3586991915 | AR99: 1.191 | AS99: 1.166781686
B100: Mini personbil, benzin | C100: Toyota | D100: Aygo | E100: 1,0 5-dørs hb | F100: 2007 | H100: 0.04248216542 | I100: 13165.68529 | J100: 202240 | K100: 16.2 | L100: 52940.60488 | M100: 13235.15122 | N100: 54384.5439 | O100: =VLOOKUP(1/(S100*AS100),GronEjerafgift!$A$6:$E$29,5) -> 1200 | P100: 0.06403857086 | Q100: 4.374868823 | R100: 11.17858603 | S100: 0.04608294931 | T100: 1 | U100: 0 | W100: 0.015 | Z100: 0.3586991915 | AA100: 0.03 | AB100: 0.3117105345 | AC100: 454 | AD100: 0 | AE100: 4 | AF100: 35000 | AH100: 120560.3 | AI100: 0.04248216542 | AJ100: 16.2 | AK100: =SUMPRODUCT(AH101:AH106,AI101:AI106)*SUM(AI95:AI106)/SUM(AI101:AI106) -> 92012.82901 | AL100: 0.318555284 | AM100: 0.4088650143 | AN100: 0.4305393496 | AO100: 0.3444314797 | AP100: 0.3586991915 | AR100: 1.191 | AS100: 1.166781686
B101: Mini personbil, benzin | C101: Toyota | D101: Aygo 3/5-dørs | E101: 1.0 hb 5-dørs | F101: 2011 | H101: 0.1127991808 | I101: 14401.17603 | J101: 202240 | K101: 16.2 | L101: 55547.12195 | M101: 13886.78049 | N101: 34297.09756 | O101: =VLOOKUP(1/(S101*AS101),GronEjerafgift!$A$6:$E$29,5) -> 1200 | P101: 0.06259626071 | Q101: 4.374868823 | R101: 11.17858603 | S101: 0.04504504505 | T101: 1 | U101: 0 | W101: 0.04 | Z101: 0.392272652 | AA101: 0.03 | AB101: 0.3962851049 | AC101: 454 | AD101: 0 | AE101: 4 | AF101: 35000 | AH101: 103730.9916 | AI101: 0.1127991808 | AJ101: 16.2 | AK101: =AH101 -> 103730.9916 | AL101: 0.3442075137 | AM101: 0.4463279801 | AN101: 0.470836892 | AO101: 0.3766695136 | AP101: 0.392272652 | AR101: 1.191 | AS101: 1.166781686
B102: Mini personbil, benzin | C102: Peugeot | D102: 107 | E102: 1,0 5-d 68 hk | F102: 2011 | H102: 0.09242313726 | I102: 13898.59996 | J102: 202240 | K102: 16.2 | L102: 52721.36585 | M102: 13180.34146 | N102: 30588.29268 | O102: =VLOOKUP(1/(S102*AS102),GronEjerafgift!$A$6:$E$29,5) -> 1200 | P102: 0.06259626071 | Q102: 4.374868823 | R102: 11.17858603 | S102: 0.04504504505 | T102: 1 | U102: 0 | W102: 0.04 | Z102: 0.3715265948 | AA102: 0.03 | AB102: 0.3962851049 | AC102: 454 | AD102: 0 | AE102: 4 | AF102: 35000 | AH102: 96489.98434 | AI102: 0.09242313726 | AJ102: 16.2 | AK102: 96489.98434 | AL102: 0.3283562247 | AM102: 0.4231784799 | AN102: 0.4459358212 | AO102: 0.3567486569 | AP102: 0.3715265948 | AR102: 1.191 | AS102: 1.166781686
B103: Mini personbil, benzin | C103: Citroën | D103: C 1 | E103: 1,0 i | F103: 2011 | H103: 0.07460690714 | I103: 14079.33726 | J103: 202240 | K103: 16.2 | L103: 48233.56098 | M103: 12058.39024 | N103: 24698.04878 | O103: =VLOOKUP(1/(S103*AS103),GronEjerafgift!$A$6:$E$29,5) -> 1200 | P103: 0.06259626071 | Q103: 4.374868823 | R103: 11.17858603 | S103: 0.04504504505 | T103: 1 | U103: 0 | W103: 0.04 | Z103: 0.3385781543 | AA103: 0.03 | AB103: 0.3962851049 | AC103: 454 | AD103: 0 | AE103: 4 | AF103: 35000 | AH103: 84989.97283 | AI103: 0.07460690714 | AJ103: 16.2 | AK103: 84989.97283 | AL103: 0.3031815495 | AM103: 0.3864129431 | AN103: 0.4063884776 | AO103: 0.3251107821 | AP103: 0.3385781543 | AR103: 1.191 | AS103: 1.166781686
B104: Mini personbil, benzin | C104: Volkswagen | D104: Up! | E104: 1.0 mpi bmt 60 hk 5 dørs | F104: 2015 | H104: 0.219393623 | I104: 15668.47952 | J104: 202240 | K104: 16.2 | L104: 57933.46341 | M104: 14483.36585 | N104: 27579.17073 | O104: =VLOOKUP(1/(S104*AS104),GronEjerafgift!$A$6:$E$29,5) -> 620 | P104: 0.05695233556 | Q104: 4.374868823 | R104: 11.17858603 | S104: 0.04098360656 | T104: 1 | U104: 0 | W104: 0.068 | Z104: 0.3815716064 | AA104: 0.03 | AB104: 0.4614290793 | AC104: 454 | AD104: 0 | AE104: 4 | AF104: 35000 | AH104: 99996 | AI104: 0.219393623 | AJ104: 16.2 | AK104: 99996 | AL104: 0.3360312436 | AM104: 0.434387212 | AN104: 0.4579926444 | AO104: 0.3663941155 | AP104: 0.3815716064 | AR104: 1.191 | AS104: 1.166781686
B105: Mini personbil, benzin | C105: Peugeot | D105: 108 | E105: 1.0 e-vti 69 hk 5d | F105: 2015 | H105: 0.1565402667 | I105: 15121.67675 | J105: 202240 | K105: 16.2 | L105: 52472 | M105: 13118 | N105: 19400 | O105: =VLOOKUP(1/(S105*AS105),GronEjerafgift!$A$6:$E$29,5) -> 620 | P105: 0.05283790828 | Q105: 4.374868823 | R105: 11.17858603 | S105: 0.03802281369 | T105: 1 | U105: 0 | W105: 0.068 | Z105: 0.3385782028 | AA105: 0.03 | AB105: 0.4614290793 | AC105: 454 | AD105: 0 | AE105: 4 | AF105: 35000 | AH105: 84989.98976 | AI105: 0.1565402667 | AJ105: 16.2 | AK105: 84989.98976 | AL105: 0.3031815866 | AM105: 0.3864129973 | AN105: 0.4063885358 | AO105: 0.3251108287 | AP105: 0.3385782028 | AR105: 1.191 | AS105: 1.166781686
B106: Mini personbil, benzin | C106: Toyota | D106: Aygo | E106: 1.0 vvt-i | F106: 2015 | H106: 0.1549521512 | I106: 15318.31894 | J106: 202240 | K106: 16.2 | L106: 48468 | M106: 12117 | N106: 19400 | O106: =VLOOKUP(1/(S106*AS106),GronEjerafgift!$A$6:$E$29,5) -> 620 | P106: 0.05283790828 | Q106: 4.374868823 | R106: 11.17858603 | S106: 0.03802281369 | T106: 1 | U106: 0 | W106: 0.068 | Z106: 0.3242385121 | AA106: 0.03 | AB106: 0.4614290793 | AC106: 454 | AD106: 0 | AE106: 4 | AF106: 35000 | AH106: 79985 | AI106: 0.1549521512 | AJ106: 16.2 | AK106: 79985 | AL106: 0.2922251635 | AM106: 0.370412045 | AN106: 0.3891768966 | AO106: 0.3113415172 | AP106: 0.3242385121 | AR106: 1.191 | AS106: 1.166781686
B107: Lille personbil, benzin | C107: Skoda | D107: Fabia | E107: 1,2 combi | F107: 2003 | G107: 9275.60546 | H107: 0.03823720187 | I107: 12245.80906 | J107: 211060 | K107: 16.6 | L107: 61297.71429 | M107: 15324.42857 | N107: 79376.85714 | O107: =VLOOKUP(1/(S107*AS107),GronEjerafgift!$A$6:$E$29,5) -> 2960 | P107: 0.08321179567 | Q107: 4.374868823 | R107: 11.17858603 | S107: 0.05988023952 | T107: 1 | U107: 0 | W107: 0.007 | Z107: 0.4541357648 | AA107: 0.03 | AB107: 0.1475517535 | AC107: 558 | AD107: 0 | AE107: 4 | AF107: 35000 | AH107: 155999.0197 | AI107: 0.03823720187 | AJ107: 16.6 | AK107: =SUMPRODUCT(AH113:AH118,AI113:AI118)*SUM(AI107:AI118)/SUM(AI113:AI118) -> 122507.2024 | AL107: 0.3853105167 | AM107: 0.506355526 | AN107: 0.545089929 | AO107: 0.4360719432 | AP107: 0.4541357648 | AR107: =' Fælles forudsætninger'!E55 -> 1.191 | AS107: =' Fælles forudsætninger'!J55 -> 1.166781686
B108: =B107 -> Lille personbil, benzin | C108: Fiat | D108: Punto | E108: 1,2 | F108: 2003 | H108: 0.03192565951 | I108: 11550.30957 | J108: 211060 | K108: 16.6 | L108: 50061.85366 | M108: 12515.46341 | N108: 57420.68293 | O108: =VLOOKUP(1/(S108*AS108),GronEjerafgift!$A$6:$E$29,5) -> 2960 | P108: 0.07940782787 | Q108: 4.374868823 | R108: 11.17858603 | S108: 0.05714285714 | T108: 1 | U108: 0 | W108: 0.007 | Z108: 0.4541357648 | AA108: 0.03 | AB108: 0.1475517535 | AC108: 558 | AD108: 0 | AE108: 4 | AF108: 35000 | AH108: 119997.9837 | AI108: 0.03192565951 | AJ108: 16.6 | AK108: =SUMPRODUCT(AH113:AH118,AI113:AI118)*SUM(AI107:AI118)/SUM(AI113:AI118) -> 122507.2024 | AL108: 0.3853105167 | AM108: 0.506355526 | AN108: 0.545089929 | AO108: 0.4360719432 | AP108: 0.4541357648 | AR108: =AR107 -> 1.191 | AS108: =AS107 -> 1.166781686
B109: =B108 -> Lille personbil, benzin | C109: Toyota | D109: Yaris | E109: 1 | F109: 2003 | H109: 0.03111726507 | I109: 11335.66162 | J109: 211060 | K109: 16.6 | L109: 57433.42857 | M109: 14358.35714 | N109: 70682.21429 | O109: =VLOOKUP(1/(S109*AS109),GronEjerafgift!$A$6:$E$29,5) -> 2960 | P109: 0.07806949369 | Q109: 4.374868823 | R109: 11.17858603 | S109: 0.05617977528 | T109: 1 | U109: 0 | W109: 0.007 | Z109: 0.4541357648 | AA109: 0.03 | AB109: 0.1475517535 | AC109: 558 | AD109: 0 | AE109: 4 | AF109: 35000 | AH109: 142474.0062 | AI109: 0.03111726507 | AJ109: 16.6 | AK109: =SUMPRODUCT(AH113:AH118,AI113:AI118)*SUM(AI107:AI118)/SUM(AI113:AI118) -> 122507.2024 | AL109: 0.3853105167 | AM109: 0.506355526 | AN109: 0.545089929 | AO109: 0.4360719432 | AP109: 0.4541357648 | AR109: 1.191 | AS109: 1.166781686
B110: Lille personbil, benzin | C110: Suzuki | D110: Swift | E110: 1,3 | F110: 2007 | H110: 0.07278884604 | I110: 13127.00117 | J110: 211060 | K110: 16.6 | L110: 63724.05648 | M110: 15931.01412 | N110: 68537.82413 | O110: =VLOOKUP(1/(S110*AS110),GronEjerafgift!$A$6:$E$29,5) -> 3540 | P110: 0.08631285638 | Q110: 4.374868823 | R110: 11.17858603 | S110: 0.06211180124 | T110: 1 | U110: 0 | W110: 0.027 | Z110: 0.4541357648 | AA110: 0.03 | AB110: 0.2027013844 | AC110: 558 | AD110: 0 | AE110: 4 | AF110: 35000 | AH110: 148192.8948 | AI110: 0.07278884604 | AJ110: 16.6 | AK110: =SUMPRODUCT(AH113:AH118,AI113:AI118)*SUM(AI107:AI118)/SUM(AI113:AI118) -> 122507.2024 | AL110: 0.3853105167 | AM110: 0.506355526 | AN110: 0.545089929 | AO110: 0.4360719432 | AP110: 0.4541357648 | AR110: 1.191 | AS110: 1.166781686
B111: Lille personbil, benzin | C111: Opel | D111: Corsa | E111: 1,2 | F111: 2007 | H111: 0.06845343244 | I111: 12449.27559 | J111: 211060 | K111: 16.6 | L111: 65352.28571 | M111: 16338.07143 | N111: 72017.64286 | O111: =VLOOKUP(1/(S111*AS111),GronEjerafgift!$A$6:$E$29,5) -> 2960 | P111: 0.08079284812 | Q111: 4.374868823 | R111: 11.17858603 | S111: 0.05813953488 | T111: 1 | U111: 0 | W111: 0.027 | Z111: 0.4541357648 | AA111: 0.03 | AB111: 0.2027013844 | AC111: 558 | AD111: 0 | AE111: 4 | AF111: 35000 | AH111: 153708.026 | AI111: 0.06845343244 | AJ111: 16.6 | AK111: =SUMPRODUCT(AH113:AH118,AI113:AI118)*SUM(AI107:AI118)/SUM(AI113:AI118) -> 122507.2024 | AL111: 0.3853105167 | AM111: 0.506355526 | AN111: 0.545089929 | AO111: 0.4360719432 | AP111: 0.4541357648 | AR111: 1.191 | AS111: 1.166781686
B112: Lille personbil, benzin | C112: Skoda | D112: Fabia | E112: 1,4 combi | F112: 2007 | H112: 0.05583657176 | I112: 13228.51551 | J112: 211060 | K112: 16.6 | L112: 77533.40659 | M112: 19383.35165 | N112: 99425.16484 | O112: =VLOOKUP(1/(S112*AS112),GronEjerafgift!$A$6:$E$29,5) -> 4120 | P112: 0.09142348603 | Q112: 4.374868823 | R112: 11.17858603 | S112: 0.06578947368 | T112: 1 | U112: 0 | W112: 0.027 | Z112: 0.4541357648 | AA112: 0.03 | AB112: 0.2027013844 | AC112: 558 | AD112: 0 | AE112: 4 | AF112: 35000 | AH112: 196341.9918 | AI112: 0.05583657176 | AJ112: 16.6 | AK112: =SUMPRODUCT(AH113:AH118,AI113:AI118)*SUM(AI107:AI118)/SUM(AI113:AI118) -> 122507.2024 | AL112: 0.3853105167 | AM112: 0.506355526 | AN112: 0.545089929 | AO112: 0.4360719432 | AP112: 0.4541357648 | AR112: 1.191 | AS112: 1.166781686
B113: Lille personbil, benzin | C113: Chevrolet | D113: Spark | E113: 1.0 esp 5d | F113: 2011 | H113: 0.1457427125 | I113: 15300.19831 | J113: 211060 | K113: 16.6 | L113: 54557.46341 | M113: 13639.36585 | N113: 41798.17073 | O113: =VLOOKUP(1/(S113*AS113),GronEjerafgift!$A$6:$E$29,5) -> 1780 | P113: 0.06948184939 | Q113: 4.374868823 | R113: 11.17858603 | S113: 0.05 | T113: 1 | U113: 0 | W113: 0.049 | Z113: 0.4174467447 | AA113: 0.03 | AB113: 0.2644458705 | AC113: 558 | AD113: 0 | AE113: 4 | AF113: 35000 | AH113: 109994.989 | AI113: 0.1457427125 | AJ113: 16.6 | AK113: =AH113 -> 109994.989 | AL113: 0.3579200305 | AM113: 0.46635398 | AN113: 0.5010528438 | AO113: 0.400842275 | AP113: 0.4174467447 | AR113: 1.191 | AS113: 1.166781686
B114: Lille personbil, benzin | C114: Suzuki | D114: Swift | E114: 1,2 eco+ | F114: 2011 | H114: 0.09135861859 | I114: 16333.10343 | J114: 211060 | K114: 16.6 | L114: 74350.28571 | M114: 18587.57143 | N114: 67052.14286 | O114: =VLOOKUP(1/(S114*AS114),GronEjerafgift!$A$6:$E$29,5) -> 1780 | P114: 0.06811946018 | Q114: 4.374868823 | R114: 11.17858603 | S114: 0.04901960784 | T114: 1 | U114: 0 | W114: 0.049 | Z114: 0.5640449453 | AA114: 0.03 | AB114: 0.2644458705 | AC114: 558 | AD114: 0 | AE114: 4 | AF114: 35000 | AH114: 159990 | AI114: 0.09135861859 | AJ114: 16.6 | AK114: 159990 | AL114: 0.467364109 | AM114: 0.6261880299 | AN114: 0.6770116847 | AO114: 0.5416093477 | AP114: 0.5640449453 | AR114: 1.191 | AS114: 1.166781686
B115: Lille personbil, benzin | C115: Opel | D115: Corsa | E115: 1 | F115: 2011 | H115: 0.06448340338 | I115: 13031.40672 | J115: 211060 | K115: 16.6 | L115: 60978.92683 | M115: 15244.73171 | N115: 50226.34146 | O115: =VLOOKUP(1/(S115*AS115),GronEjerafgift!$A$6:$E$29,5) -> 1780 | P115: 0.06948184939 | Q115: 4.374868823 | R115: 11.17858603 | S115: 0.05 | T115: 1 | U115: 0 | W115: 0.049 | Z115: 0.4656970591 | AA115: 0.03 | AB115: 0.2644458705 | AC115: 558 | AD115: 0 | AE115: 4 | AF115: 35000 | AH115: 126450 | AI115: 0.06448340338 | AJ115: 16.6 | AK115: 126450 | AL115: 0.393941695 | AM115: 0.51896065 | AN115: 0.5589667156 | AO115: 0.4471733725 | AP115: 0.4656970591 | AR115: 1.191 | AS115: 1.166781686
B116: Lille personbil, benzin | C116: Peugeot | D116: 208 | E116: 1.2 vti 5d | F116: 2015 | H116: 0.1543915328 | I116: 16646.61576 | J116: 211060 | K116: 16.6 | L116: 61131.12195 | M116: 15282.78049 | N116: 40576.09756 | O116: =VLOOKUP(1/(S116*AS116),GronEjerafgift!$A$6:$E$29,5) -> 1200 | P116: 0.06259626071 | Q116: 4.374868823 | R116: 11.17858603 | S116: 0.04504504505 | T116: 1 | U116: 0 | W116: 0.081 | Z116: 0.4379579277 | AA116: 0.03 | AB116: 0.3286848583 | AC116: 558 | AD116: 0 | AE116: 4 | AF116: 35000 | AH116: 116990.0055 | AI116: 0.1543915328 | AJ116: 16.6 | AK116: 116990.0055 | AL116: 0.373232821 | AM116: 0.4887170475 | AN116: 0.5256719999 | AO116: 0.4205376 | AP116: 0.4379579277 | AR116: 1.191 | AS116: 1.166781686
B117: Lille personbil, benzin | C117: Kia | D117: Picanto | E117: 1.0 5-dørs man. 5 | F117: 2015 | H117: 0.150277455 | I117: 17770.41654 | J117: 211060 | K117: 16.6 | L117: 57934.63415 | M117: 14483.65854 | N117: 27580.70732 | O117: =VLOOKUP(1/(S117*AS117),GronEjerafgift!$A$6:$E$29,5) -> 620 | P117: 0.05695233556 | Q117: 4.374868823 | R117: 11.17858603 | S117: 0.04098360656 | T117: 1 | U117: 0 | W117: 0.081 | Z117: 0.3881359399 | AA117: 0.03 | AB117: 0.3286848583 | AC117: 558 | AD117: 0 | AE117: 4 | AF117: 35000 | AH117: 99999 | AI117: 0.150277455 | AJ117: 16.6 | AK117: 99999 | AL117: 0.3360378109 | AM117: 0.434396803 | AN117: 0.4658716805 | AO117: 0.3726973444 | AP117: 0.3881359399 | AR117: 1.191 | AS117: 1.166781686
B118: Lille personbil, benzin | C118: Ford | D118: Fiesta | E118: 1.0 ecoboost (100 hk) hatchback, 5 dørs forhjulstræk manuel | F118: 2015 | H118: 0.09538730112 | I118: 14178.17052 | J118: 211060 | K118: 16.6 | L118: 74735.02439 | M118: 18683.7561 | N118: 54031.21951 | O118: =VLOOKUP(1/(S118*AS118),GronEjerafgift!$A$6:$E$29,5) -> 1200 | P118: 0.05964107243 | Q118: 4.374868823 | R118: 11.17858603 | S118: 0.04291845494 | T118: 1 | U118: 0 | W118: 0.081 | Z118: 0.5272744477 | AA118: 0.03 | AB118: 0.3286848583 | AC118: 558 | AD118: 0 | AE118: 4 | AF118: 35000 | AH118: 147450 | AI118: 0.09538730112 | AJ118: 16.6 | AK118: 147450 | AL118: 0.439912795 | AM118: 0.5860976501 | AN118: 0.6328768037 | AO118: 0.5063014429 | AP118: 0.5272744477 | AR118: 1.191 | AS118: 1.166781686
B119: Mellem personbil, benzin | C119: Peugeot | D119: 307 | E119: 2,0 i | F119: 2003 | G119: 8409.352709 | H119: 0.1457052258 | I119: 14219.65733 | J119: 256880 | K119: 17.2 | L119: 85009.71429 | M119: 21252.42857 | N119: 132728.8571 | O119: =VLOOKUP(1/(S119*AS119),GronEjerafgift!$A$6:$E$29,5) -> 6460 | P119: 0.114846032 | Q119: 4.374868823 | R119: 11.17858603 | S119: 0.0826446281 | T119: 1 | U119: 0 | W119: 0.01 | Z119: 0.930900342 | AA119: 0.03 | AB119: 0.1543024967 | AC119: 864 | AD119: 0 | AE119: 4 | AF119: 35000 | AH119: 238991 | AI119: 0.1457052258 | AJ119: 17.2 | AK119: =SUMPRODUCT(AH125:AH130,AI125:AI130)*SUM(AI119:AI130)/SUM(AI125:AI130) -> 275708.4408 | AL119: 0.7206833477 | AM119: 0.9961398852 | AN119: 1.117340762 | AO119: 0.8938726093 | AP119: 0.930900342 | AR119: =' Fælles forudsætninger'!E55 -> 1.191 | AS119: =' Fælles forudsætninger'!J55 -> 1.166781686
B120: =B119 -> Mellem personbil, benzin | C120: Ford | D120: Mondeo | E120: 1,8 | F120: 2003 | H120: 0.09126593488 | I120: 16046.03295 | J120: 256880 | K120: 17.2 | L120: 93840.28571 | M120: 23460.07143 | N120: 152597.6429 | O120: =VLOOKUP(1/(S120*AS120),GronEjerafgift!$A$6:$E$29,5) -> 5280 | P120: 0.1068951529 | Q120: 4.374868823 | R120: 11.17858603 | S120: 0.07692307692 | T120: 1 | U120: 0 | W120: 0.01 | Z120: 0.930900342 | AA120: 0.03 | AB120: 0.1543024967 | AC120: 864 | AD120: 0 | AE120: 4 | AF120: 35000 | AH120: 269898 | AI120: 0.09126593488 | AJ120: 17.2 | AK120: =SUMPRODUCT(AH125:AH130,AI125:AI130)*SUM(AI119:AI130)/SUM(AI125:AI130) -> 275708.4408 | AL120: 0.7206833477 | AM120: 0.9961398852 | AN120: 1.117340762 | AO120: 0.8938726093 | AP120: 0.930900342 | AR120: =AR119 -> 1.191 | AS120: =AS119 -> 1.166781686
B121: =B120 -> Mellem personbil, benzin | C121: Citroën | D121: C 5 | E121: 2,0i 16v weekend | F121: 2003 | H121: 0.0878832795 | I121: 15718.33688 | J121: 256880 | K121: 17.2 | L121: 100723.1429 | M121: 25180.78571 | N121: 168084.0714 | O121: =VLOOKUP(1/(S121*AS121),GronEjerafgift!$A$6:$E$29,5) -> 6460 | P121: 0.1167762175 | Q121: 4.374868823 | R121: 11.17858603 | S121: 0.08403361345 | T121: 1 | U121: 0 | W121: 0.01 | Z121: 0.930900342 | AA121: 0.03 | AB121: 0.1543024967 | AC121: 864 | AD121: 0 | AE121: 4 | AF121: 35000 | AH121: 293988 | AI121: 0.0878832795 | AJ121: 17.2 | AK121: =SUMPRODUCT(AH125:AH130,AI125:AI130)*SUM(AI119:AI130)/SUM(AI125:AI130) -> 275708.4408 | AL121: 0.7206833477 | AM121: 0.9961398852 | AN121: 1.117340762 | AO121: 0.8938726093 | AP121: 0.930900342 | AR121: 1.191 | AS121: 1.166781686
B122: Mellem personbil, benzin | C122: Toyota | D122: Avensis | E122: 1,8 stw man. | F122: 2007 | H122: 0.1187040742 | I122: 16459.6734 | J122: 256880 | K122: 17.2 | L122: 117815.3061 | M122: 29453.82653 | N122: 190059.4388 | O122: =VLOOKUP(1/(S122*AS122),GronEjerafgift!$A$6:$E$29,5) -> 4700 | P122: 0.09997388401 | Q122: 4.374868823 | R122: 11.17858603 | S122: 0.07194244604 | T122: 1 | U122: 0 | W122: 0.039 | Z122: 0.930900342 | AA122: 0.03 | AB122: 0.205121265 | AC122: 864 | AD122: 0 | AE122: 4 | AF122: 35000 | AH122: 337328.4947 | AI122: 0.1187040742 | AJ122: 17.2 | AK122: =SUMPRODUCT(AH125:AH130,AI125:AI130)*SUM(AI119:AI130)/SUM(AI125:AI130) -> 275708.4408 | AL122: 0.7206833477 | AM122: 0.9961398852 | AN122: 1.117340762 | AO122: 0.8938726093 | AP122: 0.930900342 | AR122: 1.191 | AS122: 1.166781686
B123: Mellem personbil, benzin | C123: Peugeot | D123: 307 | E123: 1,6 i st. car | F123: 2007 | H123: 0.08124604863 | I123: 16635.13013 | J123: 256880 | K123: 17.2 | L123: 88266.32653 | M123: 22066.58163 | N123: 123574.2347 | O123: =VLOOKUP(1/(S123*AS123),GronEjerafgift!$A$6:$E$29,5) -> 5280 | P123: 0.1068951529 | Q123: 4.374868823 | R123: 11.17858603 | S123: 0.07692307692 | T123: 1 | U123: 0 | W123: 0.039 | Z123: 0.930900342 | AA123: 0.03 | AB123: 0.205121265 | AC123: 864 | AD123: 0 | AE123: 4 | AF123: 35000 | AH123: 233907.2491 | AI123: 0.08124604863 | AJ123: 17.2 | AK123: =SUMPRODUCT(AH125:AH130,AI125:AI130)*SUM(AI119:AI130)/SUM(AI125:AI130) -> 275708.4408 | AL123: 0.7206833477 | AM123: 0.9961398852 | AN123: 1.117340762 | AO123: 0.8938726093 | AP123: 0.930900342 | AR123: 1.191 | AS123: 1.166781686
B124: Mellem personbil, benzin | C124: Citroën | D124: C 4 picasso | E124: 1,8 i | F124: 2007 | H124: 0.08113675291 | I124: 15117.33227 | J124: 256880 | K124: 17.2 | L124: 116173.4037 | M124: 29043.35093 | N124: 186365.1584 | O124: =VLOOKUP(1/(S124*AS124),GronEjerafgift!$A$6:$E$29,5) -> 5860 | P124: 0.111170959 | Q124: 4.374868823 | R124: 11.17858603 | S124: 0.08 | T124: 1 | U124: 0 | W124: 0.039 | Z124: 0.930900342 | AA124: 0.03 | AB124: 0.205121265 | AC124: 864 | AD124: 0 | AE124: 4 | AF124: 35000 | AH124: 331581.8384 | AI124: 0.08113675291 | AJ124: 17.2 | AK124: =SUMPRODUCT(AH125:AH130,AI125:AI130)*SUM(AI119:AI130)/SUM(AI125:AI130) -> 275708.4408 | AL124: 0.7206833477 | AM124: 0.9961398852 | AN124: 1.117340762 | AO124: 0.8938726093 | AP124: 0.930900342 | AR124: 1.191 | AS124: 1.166781686
B125: Mellem personbil, benzin | C125: Toyota | D125: Avensis stw | E125: 1.8 stw man.6 | F125: 2011 | H125: 0.06003698254 | I125: 17706.40108 | J125: 256880 | K125: 17.2 | L125: 116513.7143 | M125: 29128.42857 | N125: 180619.8571 | O125: =VLOOKUP(1/(S125*AS125),GronEjerafgift!$A$6:$E$29,5) -> 4120 | P125: 0.09326422736 | Q125: 4.374868823 | R125: 11.17858603 | S125: 0.06711409396 | T125: 1 | U125: 0 | W125: 0.09 | Z125: 1.084230237 | AA125: 0.03 | AB125: 0.2294850169 | AC125: 864 | AD125: 0 | AE125: 4 | AF125: 35000 | AH125: 326261.9278 | AI125: 0.06003698254 | AJ125: 17.2 | AK125: =AH125 -> 326261.9278 | AL125: 0.8313499862 | AM125: 1.157759383 | AN125: 1.301379518 | AO125: 1.041103614 | AP125: 1.084230237 | AR125: 1.191 | AS125: 1.166781686
B126: Mellem personbil, benzin | C126: Suzuki | D126: Sx4 combiback | E126: 1,6 | F126: 2011 | H126: 0.058087531 | I126: 14359.92026 | J126: 256880 | K126: 17.2 | L126: 70711.60976 | M126: 17677.90244 | N126: 78600.4878 | O126: =VLOOKUP(1/(S126*AS126),GronEjerafgift!$A$6:$E$29,5) -> 3540 | P126: 0.08631285638 | Q126: 4.374868823 | R126: 11.17858603 | S126: 0.06211180124 | T126: 1 | U126: 0 | W126: 0.09 | Z126: 0.6011547985 | AA126: 0.03 | AB126: 0.2294850169 | AC126: 864 | AD126: 0 | AE126: 4 | AF126: 35000 | AH126: 166990 | AI126: 0.058087531 | AJ126: 17.2 | AK126: 166990 | AL126: 0.482687809 | AM126: 0.64856703 | AN126: 0.7215538873 | AO126: 0.5772431098 | AP126: 0.6011547985 | AR126: 1.191 | AS126: 1.166781686
B127: Mellem personbil, benzin | C127: Toyota | D127: Avensis sedan | E127: 1.8 sd man.6 | F127: 2011 | H127: 0.03445329689 | I127: 16514.51859 | J127: 256880 | K127: 17.2 | L127: 110892 | M127: 27723 | N127: 167671 | O127: =VLOOKUP(1/(S127*AS127),GronEjerafgift!$A$6:$E$29,5) -> 4120 | P127: 0.09142348603 | Q127: 4.374868823 | R127: 11.17858603 | S127: 0.06578947368 | T127: 1 | U127: 0 | W127: 0.09 | Z127: 1.023642589 | AA127: 0.03 | AB127: 0.2294850169 | AC127: 864 | AD127: 0 | AE127: 4 | AF127: 35000 | AH127: 306285.9351 | AI127: 0.03445329689 | AJ127: 17.2 | AK127: 306285.9351 | AL127: 0.7876205406 | AM127: 1.093896135 | AN127: 1.228657396 | AO127: 0.9829259168 | AP127: 1.023642589 | AR127: 1.191 | AS127: 1.166781686
B128: Mellem personbil, benzin | C128: Suzuki | D128: Vitara | E128: 1,6 5-dørs | F128: 2015 | H128: 0.101280212 | I128: 19264.56437 | J128: 256880 | K128: 17.2 | L128: 99444.28279 | M128: 24861.0707 | N128: 116543.0302 | O128: =VLOOKUP(1/(S128*AS128),GronEjerafgift!$A$6:$E$29,5) -> 2380 | P128: 0.07352576655 | Q128: 4.374868823 | R128: 11.17858603 | S128: 0.05291005291 | T128: 1 | U128: 0 | W128: 0.138 | Z128: 0.8529082285 | AA128: 0.03 | AB128: 0.424836277 | AC128: 864 | AD128: 0 | AE128: 4 | AF128: 35000 | AH128: 249994.1252 | AI128: 0.101280212 | AJ128: 17.2 | AK128: 249994.1252 | AL128: 0.6643921394 | AM128: 0.9139312182 | AN128: 1.023728413 | AO128: 0.8189827303 | AP128: 0.8529082285 | AR128: 1.191 | AS128: 1.166781686
B129: Mellem personbil, benzin | C129: Toyota | D129: Avensis | E129: 1.8 vvt-i touring sports | F129: 2015 | H129: 0.06807127021 | I129: 15623.59324 | J129: 256880 | K129: 17.2 | L129: 125668.5654 | M129: 31417.14134 | N129: 177913.56 | O129: =VLOOKUP(1/(S129*AS129),GronEjerafgift!$A$6:$E$29,5) -> 4120 | P129: 0.09023616803 | Q129: 4.374868823 | R129: 11.17858603 | S129: 0.06493506494 | T129: 1 | U129: 0 | W129: 0.138 | Z129: 1.168296507 | AA129: 0.03 | AB129: 0.424836277 | AC129: 864 | AD129: 0 | AE129: 4 | AF129: 35000 | AH129: 353978.9175 | AI129: 0.06807127021 | AJ129: 17.2 | AK129: 353978.9175 | AL129: 0.8920252483 | AM129: 1.246370599 | AN129: 1.402282554 | AO129: 1.121826043 | AP129: 1.168296507 | AR129: 1.191 | AS129: 1.166781686
B130: Mellem personbil, benzin | C130: Toyota | D130: Auris | E130: 1.8 hybrid touring sports | F130: 2015 | H130: 0.07212939144 | I130: 17967.79623 | J130: 256880 | K130: 17.2 | L130: 113965.4239 | M130: 28491.35598 | N130: 111770.1698 | O130: =VLOOKUP(1/(S130*AS130),GronEjerafgift!$A$6:$E$29,5) -> 620 | P130: 0.05165936757 | Q130: 4.374868823 | R130: 11.17858603 | S130: 0.03717472119 | T130: 1 | U130: 0 | W130: 0.138 | Z130: 0.9100012807 | AA130: 0.03 | AB130: 0.424836277 | AC130: 864 | AD130: 0 | AE130: 4 | AF130: 35000 | AH130: 268817.9357 | AI130: 0.07212939144 | AJ130: 17.2 | AK130: 268817.9357 | AL130: 0.705599343 | AM130: 0.9741109403 | AN130: 1.092256043 | AO130: 0.8738048345 | AP130: 0.9100012807 | AR130: 1.191 | AS130: 1.166781686
B131: Stor personbil, benzin | C131: Volvo | D131: V 70 | E131: 2,4 | F131: 2003 | G131: 1112.130154 | H131: 0.1620272697 | I131: 17210.7957 | J131: 264470 | K131: 16.2 | L131: 143096.8571 | M131: 35774.21429 | N131: 263424.9286 | O131: =VLOOKUP(1/(S131*AS131),GronEjerafgift!$A$6:$E$29,5) -> 7600 | P131: 0.1263306352 | Q131: 4.374868823 | R131: 11.17858603 | S131: 0.09090909091 | T131: 1 | U131: 0 | W131: 0.023 | Z131: 1.79232042 | AA131: 0.03 | AB131: 0.108760028 | AC131: 1036 | AD131: 0 | AE131: 4 | AF131: 35000 | AH131: 442296.306 | AI131: 0.1620272697 | AJ131: 16.2 | AK131: =SUMPRODUCT(AH137:AH142,AI137:AI142)*SUM(AI131:AI142)/SUM(AI137:AI142) -> 592390.3993 | AL131: 1.413931823 | AM131: 2.008572107 | AN131: 2.151285775 | AO131: 1.72102862 | AP131: 1.79232042 | AR131: =' Fælles forudsætninger'!E57 -> 1.191 | AS131: =' Fælles forudsætninger'!J57 -> 1.166781686
B132: =B131 -> Stor personbil, benzin | C132: Volvo | D132: S 60 | E132: 2,4 | F132: 2003 | H132: 0.0861805799 | I132: 15004.99178 | J132: 264470 | K132: 16.2 | L132: 125866.8571 | M132: 31466.71429 | N132: 224657.4286 | O132: =VLOOKUP(1/(S132*AS132),GronEjerafgift!$A$6:$E$29,5) -> 7600 | P132: 0.124074731 | Q132: 4.374868823 | R132: 11.17858603 | S132: 0.08928571429 | T132: 1 | U132: 0 | W132: 0.023 | Z132: 1.79232042 | AA132: 0.03 | AB132: 0.108760028 | AC132: 1036 | AD132: 0 | AE132: 4 | AF132: 35000 | AH132: 381991 | AI132: 0.0861805799 | AJ132: 16.2 | AK132: =SUMPRODUCT(AH137:AH142,AI137:AI142)*SUM(AI131:AI142)/SUM(AI137:AI142) -> 592390.3993 | AL132: 1.413931823 | AM132: 2.008572107 | AN132: 2.151285775 | AO132: 1.72102862 | AP132: 1.79232042 | AR132: =AR131 -> 1.191 | AS132: =AS131 -> 1.166781686
B133: =B132 -> Stor personbil, benzin | C133: Peugeot | D133: 406 | E133: 2,2 stationcar | F133: 2003 | H133: 0.06831291378 | I133: 14174.23689 | J133: 264470 | K133: 16.2 | L133: 122677.7143 | M133: 30669.42857 | N133: 217481.8571 | O133: =VLOOKUP(1/(S133*AS133),GronEjerafgift!$A$6:$E$29,5) -> 7600 | P133: 0.124074731 | Q133: 4.374868823 | R133: 11.17858603 | S133: 0.08928571429 | T133: 1 | U133: 0 | W133: 0.023 | Z133: 1.79232042 | AA133: 0.03 | AB133: 0.108760028 | AC133: 1036 | AD133: 0 | AE133: 4 | AF133: 35000 | AH133: 370829 | AI133: 0.06831291378 | AJ133: 16.2 | AK133: =SUMPRODUCT(AH137:AH142,AI137:AI142)*SUM(AI131:AI142)/SUM(AI137:AI142) -> 592390.3993 | AL133: 1.413931823 | AM133: 2.008572107 | AN133: 2.151285775 | AO133: 1.72102862 | AP133: 1.79232042 | AR133: =AR132 -> 1.191 | AS133: =AS132 -> 1.166781686
B134: Stor personbil, benzin | C134: Volvo | D134: V 70 | E134: 2,4 | F134: 2007 | H134: 0.3745148536 | I134: 17644.29487 | J134: 264470 | K134: 16.2 | L134: 193890.7143 | M134: 48472.67857 | N134: 361229.1071 | O134: =VLOOKUP(1/(S134*AS134),GronEjerafgift!$A$6:$E$29,5) -> 7600 | P134: 0.1251925214 | Q134: 4.374868823 | R134: 11.17858603 | S134: 0.09009009009 | T134: 1 | U134: 0 | W134: 0.058 | Z134: 1.79232042 | AA134: 0.03 | AB134: 0.1783878165 | AC134: 1036 | AD134: 0 | AE134: 4 | AF134: 35000 | AH134: 603592.3259 | AI134: 0.3745148536 | AJ134: 16.2 | AK134: =SUMPRODUCT(AH137:AH142,AI137:AI142)*SUM(AI131:AI142)/SUM(AI137:AI142) -> 592390.3993 | AL134: 1.413931823 | AM134: 2.008572107 | AN134: 2.151285775 | AO134: 1.72102862 | AP134: 1.79232042 | AR134: 1.191 | AS134: 1.166781686
B135: Stor personbil, benzin | C135: Volvo | D135: V70 | E135: 2,5 t aut. | F135: 2007 | H135: 0.1055664474 | I135: 18957.24529 | J135: 264470 | K135: 16.2 | L135: 204177.2143 | M135: 51044.30357 | N135: 384373.7321 | O135: =VLOOKUP(1/(S135*AS135),GronEjerafgift!$A$6:$E$29,5) -> 8800 | P135: 0.1417996926 | Q135: 4.374868823 | R135: 11.17858603 | S135: 0.1020408163 | T135: 1 | U135: 0 | W135: 0.058 | Z135: 1.79232042 | AA135: 0.03 | AB135: 0.1783878165 | AC135: 1036 | AD135: 0 | AE135: 4 | AF135: 35000 | AH135: 639595.0627 | AI135: 0.1055664474 | AJ135: 16.2 | AK135: =SUMPRODUCT(AH137:AH142,AI137:AI142)*SUM(AI131:AI142)/SUM(AI137:AI142) -> 592390.3993 | AL135: 1.413931823 | AM135: 2.008572107 | AN135: 2.151285775 | AO135: 1.72102862 | AP135: 1.79232042 | AR135: 1.191 | AS135: 1.166781686
B136: Stor personbil, benzin | C136: Volvo | D136: S 80 | E136: S80 2,5t aut. | F136: 2007 | H136: 0.07984279093 | I136: 16396.65595 | J136: 264470 | K136: 16.2 | L136: 198672.3492 | M136: 49668.0873 | N136: 371987.7857 | O136: =VLOOKUP(1/(S136*AS136),GronEjerafgift!$A$6:$E$29,5) -> 8800 | P136: 0.1375878206 | Q136: 4.374868823 | R136: 11.17858603 | S136: 0.09900990099 | T136: 1 | U136: 0 | W136: 0.058 | Z136: 1.79232042 | AA136: 0.03 | AB136: 0.1783878165 | AC136: 1036 | AD136: 0 | AE136: 4 | AF136: 35000 | AH136: 620328.042 | AI136: 0.07984279093 | AJ136: 16.2 | AK136: =SUMPRODUCT(AH137:AH142,AI137:AI142)*SUM(AI131:AI142)/SUM(AI137:AI142) -> 592390.3993 | AL136: 1.413931823 | AM136: 2.008572107 | AN136: 2.151285775 | AO136: 1.72102862 | AP136: 1.79232042 | AR136: 1.191 | AS136: 1.166781686
B137: Stor personbil, benzin | C137: Volvo | D137: V70 | E137: 2,5 t aut. | F137: 2011 | H137: 0.02225136171 | I137: 16501.25667 | J137: 264470 | K137: 16.2 | L137: 199381.7143 | M137: 49845.42857 | N137: 371672.8571 | O137: =VLOOKUP(1/(S137*AS137),GronEjerafgift!$A$6:$E$29,5) -> 8800 | P137: 0.1349162124 | Q137: 4.374868823 | R137: 11.17858603 | S137: 0.09708737864 | T137: 1 | U137: 0 | W137: 0.161 | Z137: 1.874004086 | AA137: 0.03 | AB137: 0.2294322132 | AC137: 1036 | AD137: 0 | AE137: 4 | AF137: 35000 | AH137: 620900.4919 | AI137: 0.02225136171 | AJ137: 16.2 | AK137: =AH137 -> 620900.4919 | AL137: 1.476343267 | AM137: 2.099718873 | AN137: 2.249329018 | AO137: 1.799463215 | AP137: 1.874004086 | AR137: 1.191 | AS137: 1.166781686
B138: Stor personbil, benzin | C138: Suzuki | D138: Grand vitara | E138: 2.4l m/t | F138: 2011 | H138: 0.0197379137 | I138: 17182.945 | J138: 264470 | K138: 16.2 | L138: 115064.5714 | M138: 28766.14286 | N138: 181159.2857 | O138: =VLOOKUP(1/(S138*AS138),GronEjerafgift!$A$6:$E$29,5) -> 7600 | P138: 0.1251925214 | Q138: 4.374868823 | R138: 11.17858603 | S138: 0.09009009009 | T138: 1 | U138: 0 | W138: 0.161 | Z138: 1.026197735 | AA138: 0.03 | AB138: 0.2294322132 | AC138: 1036 | AD138: 0 | AE138: 4 | AF138: 35000 | AH138: 324990.196 | AI138: 0.0197379137 | AJ138: 16.2 | AK138: 324990.196 | AL138: 0.8285660381 | AM138: 1.153693657 | AN138: 1.231724285 | AO138: 0.9853794282 | AP138: 1.026197735 | AR138: 1.191 | AS138: 1.166781686
B139: Stor personbil, benzin | C139: Audi | D139: A6 | E139: 2,8 fsi aut. | F139: 2011 | H139: 0.01765372995 | I139: 18604.03158 | J139: 264470 | K139: 16.2 | L139: 214455.4286 | M139: 53613.85714 | N139: 402388.7143 | O139: =VLOOKUP(1/(S139*AS139),GronEjerafgift!$A$6:$E$29,5) -> 5280 | P139: 0.1029360732 | Q139: 4.374868823 | R139: 11.17858603 | S139: 0.07407407407 | T139: 1 | U139: 0 | W139: 0.161 | Z139: 2.01598969 | AA139: 0.03 | AB139: 0.2294322132 | AC139: 1036 | AD139: 0 | AE139: 4 | AF139: 35000 | AH139: 670457.8019 | AI139: 0.01765372995 | AJ139: 16.2 | AK139: 670457.8019 | AL139: 1.584829174 | AM139: 2.258153593 | AN139: 2.419751453 | AO139: 1.935801162 | AP139: 2.01598969 | AR139: 1.191 | AS139: 1.166781686
B140: Stor personbil, benzin | C140: Mazda | D140: Mazda cx-9 | E140: 3,7 suv firehjulstræk aut. | F140: 2015 | H140: 0.02914104259 | I140: 17953.36725 | J140: 264470 | K140: 16.2 | L140: 200875.1278 | M140: 50218.78194 | N140: 325425.8645 | O140: =VLOOKUP(1/(S140*AS140),GronEjerafgift!$A$6:$E$29,5) -> 11120 | P140: 0.1561389874 | Q140: 4.374868823 | R140: 11.17858603 | S140: 0.1123595506 | T140: 1 | U140: 0 | W140: 0.236 | Z140: 1.882032046 | AA140: 0.03 | AB140: 0.3789107764 | AC140: 1036 | AD140: 0 | AE140: 4 | AF140: 35000 | AH140: 623702.4953 | AI140: 0.02914104259 | AJ140: 16.2 | AK140: 623702.4953 | AL140: 1.482477132 | AM140: 2.108676877 | AN140: 2.258964816 | AO140: 1.807171853 | AP140: 1.882032046 | AR140: 1.191 | AS140: 1.166781686
B141: Stor personbil, benzin | C141: Mazda | D141: Mazda6 | E141: 2,5 skyactiv-g 192 hk stationcar aut. | F141: 2015 | H141: 0.01960747184 | I141: 18695.04416 | J141: 264470 | K141: 16.2 | L141: 151321.1429 | M141: 37830.28571 | N141: 225812.1429 | O141: =VLOOKUP(1/(S141*AS141),GronEjerafgift!$A$6:$E$29,5) -> 3540 | P141: 0.08907929408 | Q141: 4.374868823 | R141: 11.17858603 | S141: 0.0641025641 | T141: 1 | U141: 0 | W141: 0.236 | Z141: 1.365917845 | AA141: 0.03 | AB141: 0.3789107764 | AC141: 1036 | AD141: 0 | AE141: 4 | AF141: 35000 | AH141: 443562.8847 | AI141: 0.01960747184 | AJ141: 16.2 | AK141: 443562.8847 | AL141: 1.088133511 | AM141: 1.532770542 | AN141: 1.63948343 | AO141: 1.311586744 | AP141: 1.365917845 | AR141: 1.191 | AS141: 1.166781686
B142: Stor personbil, benzin | C142: Bmw | D142: 4-serie | E142: 435i gran coupé steptronic | F142: 2015 | H142: 0.01516362488 | I142: 20241.18636 | J142: 264470 | K142: 16.2 | L142: 292474.5453 | M142: 73118.63633 | N142: 492874.7725 | O142: =VLOOKUP(1/(S142*AS142),GronEjerafgift!$A$6:$E$29,5) -> 5280 | P142: 0.1052755294 | Q142: 4.374868823 | R142: 11.17858603 | S142: 0.07575757576 | T142: 1 | U142: 0 | W142: 0.236 | Z142: 2.788248509 | AA142: 0.03 | AB142: 0.3789107764 | AC142: 1036 | AD142: 0 | AE142: 4 | AF142: 35000 | AH142: 939999.7031 | AI142: 0.01516362488 | AJ142: 16.2 | AK142: 939999.7031 | AL142: 2.17488335 | AM142: 3.119879051 | AN142: 3.346678019 | AO142: 2.677342415 | AP142: 2.788248509 | AR142: 1.191 | AS142: 1.166781686
C143: Kilde: Antal, kilometer og levetid er baseret op udtræk fra DST og egne beregninger | D143: do. | E143: do. | F143: do. | G143: do. | H143: do. | I143: do. | J143: do. | K143: do. | L143: Kilde: Bilpriser.dk | N143: Egne beregninger baseret på skats oplysninger | O143: Egne beregninger baseret på skats oplysninger | S143: Kilde: CRM | W143: Egne beregninger baseret opslag på Bilpriser.dk | AB143: Kilde: Egne beregninger baseret bilernes årskørsel | AC143: Kide: Opslag på internet | AE143: Kilde: egne antagelser | AF143: Kilde: egne antagelser | AH143: Kilde: Bilpriser.dk
C144: Note: Afskrivningsomkostningerne er opgjort ud fra bilernes samlede kilometer i hele levetiden
C145: Note: Afskrivningskomponenten er opdelt på en km-afhængig og en alder-afhængig del for at gøre det muligt at afspejle henholdsvis det marginale og det gennemsnitlige værditab pr. km for den danske bilpark.
C146: Note: Den gennemsnitlige afskrivningsomkostning beskriver de totale omkostninger per km fordelt på bilens levetid, mens den marginale afskrivningsomkostning beskriver omkostningen ved en ekstra kørt km.

Sheet Personbiler - Diesel
C1: Personbiler - Diesel
C5: Niveu I-A - Vægtede gennemsnitsomkostninger
C8: Gennemsnitlige og marginale kørselsomkostninger for sammenvægtet køretøjskategorier, inkl. og ekskl. afgifter [kr. per km.]
G9: Gennemsnitlige kørselsomkostninger [kr. per km.] - dog EKSKLUSIV brændstof | T9: Marginale kørselsomkostninger, [kr. per km.] - dog EKSKLUSIV brændstof
C10: Køretøjskategori | D10: Drivmiddel | E10: Brændstof-effektivitet [liter per km] | F10: Trafikarbejde, i alt | G10: Gennemsnitlige omkostninger inkl.. afgifter og moms, i alt | H10: Brændstof, inkl. afgifter og moms [kr. per km.] | I10: Batteri, inkl. afgifter og moms [kr. per km.] | J10: Afskrivninger, inkl. afgifter og moms [kr. per km.] | K10: Reparation og vedligeholdelse, inkl. afgifter og moms [kr. per km.] | L10: Ejerafgift [kr. per km.] | M10: Dæk, inkl. afgifter og moms [kr. per km.] | N10: Gennemsnitlige omkostninger ekskl.. afgifter og moms, i alt [kr. per km.] | O10: Brændstof, ekskl. afgifter og moms [kr. per km.] | P10: Batteri, ekskl. afgifter og moms [kr. per km.] | Q10: Afskrivninger, ekskl. afgifter og moms [kr. per km.] | R10: Reparation og vedligeholdelse, ekskl. afgifter og moms [kr. per km.] | S10: Dæk, ekskl. afgifter og moms [kr. per km.] | T10: Marginale omkostninger inkl.. afgifter og moms, i alt | U10: Brændstof, inkl. afgifter og moms [kr. per km.] | V10: Batteri, inkl. afgifter og moms [kr. per km.] | W10: Afskrivninger, inkl. afgifter og moms [kr. per km.] | X10: Reparation og vedligeholdelse, inkl. afgifter og moms [kr. per km.] | Y10: Dæk, inkl. afgifter og moms [kr. per km.] | Z10: Marginale omkostninger ekskl.. afgifter og moms, i alt [kr. per km.] | AA10: Brændstof, ekskl. afgifter og moms [kr. per km.] | AB10: Batteri, ekskl. afgifter og moms [kr. per km.] | AC10: Afskrivninger, ekskl. afgifter og moms [kr. per km.] | AD10: Reparation og vedligeholdelse, ekskl. afgifter og moms [kr. per km.] | AE10: Dæk, ekskl. afgifter og moms [kr. per km.]
C11: Personbil | D11: Diesel | E11: =SUMPRODUCT($G$21:$G$23,F21:F23)/SUM($G$21:$G$23) -> 0.05984924623 | F11: =SUM(G21:G23) -> 17291.69937 | G11: =SUM(H11:M11) -> 3.076499702 | H11: =SUMPRODUCT($G$21:$G$23,I21:I23)/SUM($G$21:$G$23) -> 0.5952090662 | I11: 0 | J11: 0.8378231615 | K11: 1.356807073 | L11: 0.1894555617 | M11: 0.09720483965 | N11: =SUM(O11:S11) -> 1.737904863 | O11: =SUMPRODUCT($G$21:$G$23,P21:P23)/SUM($G$21:$G$23) -> 0.28901866 | P11: =SUMPRODUCT($G$21:$G$23,Q21:Q23)/SUM($G$21:$G$23) -> 0 | Q11: =SUMPRODUCT($G$21:$G$23,R21:R23)/SUM($G$21:$G$23) -> 0.3172915948 | R11: =SUMPRODUCT($G$21:$G$23,S21:S23)/SUM($G$21:$G$23) -> 1.053830736 | S11: =SUMPRODUCT($G$21:$G$23,T21:T23)/SUM($G$21:$G$23) -> 0.07776387172 | T11: =SUM(U11:Y11) -> 1.74670357 | U11: =SUMPRODUCT($G$21:$G$23,V21:V23)/SUM($G$21:$G$23) -> 0.5952090662 | V11: =SUMPRODUCT($G$21:$G$23,W21:W23)/SUM($G$21:$G$23) -> 0 | W11: =SUMPRODUCT($G$21:$G$23,X21:X23)/SUM($G$21:$G$23) -> 0.3282031029 | X11: =SUMPRODUCT($G$21:$G$23,Y21:Y23)/SUM($G$21:$G$23) -> 0.7260865617 | Y11: =SUMPRODUCT($G$21:$G$23,Z21:Z23)/SUM($G$21:$G$23) -> 0.09720483965 | Z11: =SUM(AA11:AE11) -> 1.063967601 | AA11: =SUMPRODUCT($G$21:$G$23,AB21:AB23)/SUM($G$21:$G$23) -> 0.28901866 | AB11: =SUMPRODUCT($G$21:$G$23,AC21:AC23)/SUM($G$21:$G$23) -> 0 | AC11: =SUMPRODUCT($G$21:$G$23,AD21:AD23)/SUM($G$21:$G$23) -> 0.1332343423 | AD11: =SUMPRODUCT($G$21:$G$23,AE21:AE23)/SUM($G$21:$G$23) -> 0.5639507275 | AE11: =SUMPRODUCT($G$21:$G$23,AF21:AF23)/SUM($G$21:$G$23) -> 0.07776387172
C12: Kilde:
C15: Niveu II - Vægtede gennemsnitsomkostninger
C18: Gennemsnitlige og marginale kørselsomkostninger for sammenvægtede køretøjskategorier, inkl. og ekskl. afgifter [kr. per km.]
H19: Gennemsnitlige kørselsomkostninger [kr. per km.] - dog EKSKLUSIV brændstof | U19: Marginale kørselsomkostninger, [kr. per km.] - dog EKSKLUSIV brændstof
C20: Køretøjskategori | D20: Drivmiddel | E20: Størrelse | F20: Brændstof-effektivitet [liter per km] | G20: Trafikarbejde, i alt for kategori [km. per år] | H20: Gennemsnitlige omkostninger inkl.. afgifter og moms, i alt | I20: Brændstof, inkl. afgifter og moms [kr. per km.] | J20: Batteri, inkl. afgifter og moms [kr. per km.] | K20: Afskrivninger, inkl. afgifter og moms [kr. per km.] | L20: Reparation og vedligeholdelse, inkl. afgifter og moms [kr. per km.] | M20: Ejerafgift [kr. per km.] | N20: Dæk, inkl. afgifter og moms [kr. per km.] | O20: Gennemsnitlige omkostninger ekskl.. afgifter og moms, i alt [kr. per km.] | P20: Brændstof, ekskl. afgifter og moms [kr. per km.] | Q20: Batteri, ekskl. afgifter og moms [kr. per km.] | R20: Afskrivninger, ekskl. afgifter og moms [kr. per km.] | S20: Reparation og vedligeholdelse, ekskl. afgifter og moms [kr. per km.] | T20: Dæk, ekskl. afgifter og moms [kr. per km.] | U20: Marginale omkostninger inkl.. afgifter og moms, i alt | V20: Brændstof, inkl. afgifter og moms [kr. per km.] | W20: Batteri, inkl. afgifter og moms [kr. per km.] | X20: Afskrivninger, inkl. afgifter og moms [kr. per km.] | Y20: Reparation og vedligeholdelse, inkl. afgifter og moms [kr. per km.] | Z20: Dæk, inkl. afgifter og moms [kr. per km.] | AA20: Marginale omkostninger ekskl.. afgifter og moms, i alt [kr. per km.] | AB20: Brændstof, ekskl. afgifter og moms [kr. per km.] | AC20: Batteri, ekskl. afgifter og moms [kr. per km.] | AD20: Afskrivninger, ekskl. afgifter og moms [kr. per km.] | AE20: Reparation og vedligeholdelse, ekskl. afgifter og moms [kr. per km.] | AF20: Dæk, ekskl. afgifter og moms [kr. per km.]
B21: =B33 -> Lille personbil, diesel | C21: Personbil | D21: Diesel | E21: Lille | F21: =SUMPRODUCT($I$33:$I$44,G33:G44)/SUM($I$33:$I$44) -> 0.05257543889 | G21: =H33 -> 1818.875762 | H21: =SUM(I21:N21) -> 1.999101058 | I21: =SUMPRODUCT($I$33:$I$44,K33:K44)/SUM($I$33:$I$44) -> 0.5228700419 | J21: 0 | K21: 0.5015572272 | L21: 0.7188021472 | M21: 0.1800836058 | N21: 0.07578803572 | O21: =SUM(P21:T21) -> 1.099824513 | P21: =SUMPRODUCT($I$33:$I$44,R33:R44)/SUM($I$33:$I$44) -> 0.2538926361 | Q21: =SUMPRODUCT($I$33:$I$44,S33:S44)/SUM($I$33:$I$44) -> 0 | R21: =SUMPRODUCT($I$33:$I$44,T33:T44)/SUM($I$33:$I$44) -> 0.227008518 | S21: =SUMPRODUCT($I$33:$I$44,U33:U44)/SUM($I$33:$I$44) -> 0.5582929298 | T21: =SUMPRODUCT($I$33:$I$44,V33:V44)/SUM($I$33:$I$44) -> 0.06063042858 | U21: =SUM(V21:Z21) -> 1.15937227 | V21: =SUMPRODUCT($I$33:$I$44,X33:X44)/SUM($I$33:$I$44) -> 0.5228700419 | W21: =SUMPRODUCT($I$33:$I$44,Y33:Y44)/SUM($I$33:$I$44) -> 0 | X21: =SUMPRODUCT($I$33:$I$44,Z33:Z44)/SUM($I$33:$I$44) -> 0.1358918896 | Y21: =SUMPRODUCT($I$33:$I$44,AA33:AA44)/SUM($I$33:$I$44) -> 0.4248223027 | Z21: =SUMPRODUCT($I$33:$I$44,AB33:AB44)/SUM($I$33:$I$44) -> 0.07578803572 | AA21: =SUM(AB21:AF21) -> 0.7091765887 | AB21: =SUMPRODUCT($I$33:$I$44,AD33:AD44)/SUM($I$33:$I$44) -> 0.2538926361 | AC21: =SUMPRODUCT($I$33:$I$44,AE33:AE44)/SUM($I$33:$I$44) -> 0 | AD21: =SUMPRODUCT($I$33:$I$44,AF33:AF44)/SUM($I$33:$I$44) -> 0.06469445394 | AE21: =SUMPRODUCT($I$33:$I$44,AG33:AG44)/SUM($I$33:$I$44) -> 0.3299590701 | AF21: =SUMPRODUCT($I$33:$I$44,AH33:AH44)/SUM($I$33:$I$44) -> 0.06063042858
B22: =B47 -> Mellem personbil, diesel | C22: Personbil | D22: Diesel | E22: Mellem | F22: =SUMPRODUCT($I$45:$I$56,G45:G56)/SUM($I$45:$I$56) -> 0.05826118759 | G22: =H45 -> 12994.92285 | H22: =SUM(I22:N22) -> 2.90566501 | I22: =SUMPRODUCT($I$45:$I$56,K45:K56)/SUM($I$45:$I$56) -> 0.5794156024 | J22: 0 | K22: 0.7616377527 | L22: 1.284291955 | M22: 0.1848963623 | N22: 0.09542333837 | O22: =SUM(P22:T22) -> 1.651422801 | P22: =SUMPRODUCT($I$45:$I$56,R45:R56)/SUM($I$45:$I$56) -> 0.2813497483 | Q22: =SUMPRODUCT($I$45:$I$56,S45:S56)/SUM($I$45:$I$56) -> 0 | R22: =SUMPRODUCT($I$45:$I$56,T45:T56)/SUM($I$45:$I$56) -> 0.2962260675 | S22: =SUMPRODUCT($I$45:$I$56,U45:U56)/SUM($I$45:$I$56) -> 0.9975083143 | T22: =SUMPRODUCT($I$45:$I$56,V45:V56)/SUM($I$45:$I$56) -> 0.07633867069 | U22: =SUM(V22:Z22) -> 1.693676334 | V22: =SUMPRODUCT($I$45:$I$56,X45:X56)/SUM($I$45:$I$56) -> 0.5794156024 | W22: =SUMPRODUCT($I$45:$I$56,Y45:Y56)/SUM($I$45:$I$56) -> 0 | X22: =SUMPRODUCT($I$45:$I$56,Z45:Z56)/SUM($I$45:$I$56) -> 0.314102199 | Y22: =SUMPRODUCT($I$45:$I$56,AA45:AA56)/SUM($I$45:$I$56) -> 0.7047351941 | Z22: =SUMPRODUCT($I$45:$I$56,AB45:AB56)/SUM($I$45:$I$56) -> 0.09542333837 | AA22: =SUM(AB22:AF22) -> 1.03716674 | AB22: =SUMPRODUCT($I$45:$I$56,AD45:AD56)/SUM($I$45:$I$56) -> 0.2813497483 | AC22: =SUMPRODUCT($I$45:$I$56,AE45:AE56)/SUM($I$45:$I$56) -> 0 | AD22: =SUMPRODUCT($I$45:$I$56,AF45:AF56)/SUM($I$45:$I$56) -> 0.1321111799 | AE22: =SUMPRODUCT($I$45:$I$56,AG45:AG56)/SUM($I$45:$I$56) -> 0.547367141 | AF22: =SUMPRODUCT($I$45:$I$56,AH45:AH56)/SUM($I$45:$I$56) -> 0.07633867069
B23: =B57 -> Stor personbil, diesel | C23: Personbil | D23: Diesel | E23: Stor | F23: =SUMPRODUCT($I$57:$I$68,G57:G68)/SUM($I$57:$I$68) -> 0.07351680386 | G23: =H57 -> 2477.900759 | H23: =SUM(I23:N23) -> 4.763265367 | I23: =SUMPRODUCT($I$57:$I$68,K57:K68)/SUM($I$57:$I$68) -> 0.731134825 | J23: 0 | K23: 1.484196695 | L23: 2.205420585 | M23: 0.220244877 | N23: 0.1222683847 | O23: =SUM(P23:T23) -> 2.659820964 | P23: =SUMPRODUCT($I$57:$I$68,R57:R68)/SUM($I$57:$I$68) -> 0.3550208144 | Q23: =SUMPRODUCT($I$57:$I$68,S57:S68)/SUM($I$57:$I$68) -> 0 | R23: =SUMPRODUCT($I$57:$I$68,T57:T68)/SUM($I$57:$I$68) -> 0.4940374149 | S23: =SUMPRODUCT($I$57:$I$68,U57:U68)/SUM($I$57:$I$68) -> 1.712948027 | T23: =SUMPRODUCT($I$57:$I$68,V57:V68)/SUM($I$57:$I$68) -> 0.09781470777 | U23: =SUM(V23:Z23) -> 2.455919833 | V23: =SUMPRODUCT($I$57:$I$68,X57:X68)/SUM($I$57:$I$68) -> 0.731134825 | W23: =SUMPRODUCT($I$57:$I$68,Y57:Y68)/SUM($I$57:$I$68) -> 0 | X23: =SUMPRODUCT($I$57:$I$68,Z57:Z68)/SUM($I$57:$I$68) -> 0.5433167876 | Y23: =SUMPRODUCT($I$57:$I$68,AA57:AA68)/SUM($I$57:$I$68) -> 1.059199835 | Z23: =SUMPRODUCT($I$57:$I$68,AB57:AB68)/SUM($I$57:$I$68) -> 0.1222683847 | AA23: =SUM(AB23:AF23) -> 1.46495053 | AB23: =SUMPRODUCT($I$57:$I$68,AD57:AD68)/SUM($I$57:$I$68) -> 0.3550208144 | AC23: =SUMPRODUCT($I$57:$I$68,AE57:AE68)/SUM($I$57:$I$68) -> 0 | AD23: =SUMPRODUCT($I$57:$I$68,AF57:AF68)/SUM($I$57:$I$68) -> 0.1894355238 | AE23: =SUMPRODUCT($I$57:$I$68,AG57:AG68)/SUM($I$57:$I$68) -> 0.8226794837 | AF23: =SUMPRODUCT($I$57:$I$68,AH57:AH68)/SUM($I$57:$I$68) -> 0.09781470777
C24: Kilde:
C27: Niveu III - Omkostninger
C30: Gennemsnitlige og marginale kørselsomkostninger for konkrete køretøjer, inkl. og ekskl. afgifter [kr. per km.]
J31: Gennemsnitlige kørselsomkostninger [kr. per km.] - dog EKSKLUSIV brændstof | W31: Marginale kørselsomkostninger, [kr. per km.] - dog EKSKLUSIV brændstof
B32: Kategori | C32: Mærke | D32: Model | E32: Variant | F32: Årgang | G32: Brændstof-effektivitet [liter per km] | H32: Trafikarbejde, i alt for kategori [km. per år] | I32: Det repræsentative køretøjs andel af det samlede trafikarbejde indenfor den relevante køretøjskategori [%] | J32: Gennemsnitlige omkostninger inkl.. afgifter og moms, i alt | K32: Brændstof, inkl. afgifter og moms [kr. per km.] | L32: Batteri, inkl. afgifter og moms [kr. per km.] | M32: Afskrivninger, inkl. afgifter og moms [kr. per km.] | N32: Reparation og vedligeholdelse, inkl. afgifter og moms [kr. per km.] | O32: Ejerafgift [kr. per km.] | P32: Dæk, inkl. afgifter og moms [kr. per km.] | Q32: Gennemsnitlige omkostninger ekskl.. afgifter og moms, i alt [kr. per km.] | R32: Brændstof, ekskl. afgifter og moms [kr. per km.] | S32: Batteri, ekskl. afgifter og moms [kr. per km.] | T32: Afskrivninger, ekskl. afgifter og moms [kr. per km.] | U32: Reparation og vedligeholdelse, ekskl. afgifter og moms [kr. per km.] | V32: Dæk, ekskl. afgifter og moms [kr. per km.] | W32: Marginale omkostninger inkl.. afgifter og moms, i alt | X32: Brændstof, inkl. afgifter og moms [kr. per km.] | Y32: Batteri, inkl. afgifter og moms [kr. per km.] | Z32: Afskrivninger, inkl. afgifter og moms [kr. per km.] | AA32: Reparation og vedligeholdelse, inkl. afgifter og moms [kr. per km.] | AB32: Dæk, inkl. afgifter og moms [kr. per km.] | AC32: Marginale omkostninger ekskl.. afgifter og moms, i alt [kr. per km.] | AD32: Brændstof, ekskl. afgifter og moms [kr. per km.] | AE32: Batteri, ekskl. afgifter og moms [kr. per km.] | AF32: Afskrivninger, ekskl. afgifter og moms [kr. per km.] | AG32: Reparation og vedligeholdelse, ekskl. afgifter og moms [kr. per km.] | AH32: Dæk, ekskl. afgifter og moms [kr. per km.]
B33: =B82 -> Lille personbil, diesel | C33: =C82 -> Volkswagen | D33: =D82 -> Lupo | E33: =E82 -> 1,2 tdi 3l | F33: =F82 -> 2003 | G33: =P82 -> 0.03943332491 | H33: =G82 -> 1818.875762 | I33: =H82 -> 0.05664188327 | J33: =SUM(K33:P33) -> 1.857242478 | K33: =$P82*R82 -> 0.3921698931 | L33: =(1+Moms)*U82/T82 -> 0 | M33: =(L82/J82)*(SUM(L82:N82)/L82) -> 0.554522464 | N33: =Z82*(1+AA82)*(1+Moms) -> 0.7188021472 | O33: =O82/I82 -> 0.115959938 | P33: =(1+Moms)*(AC82*(1-AD82)*AE82*(J82-AF82)/AF82)/J82 -> 0.07578803572 | Q33: =SUM(R33:V33) -> 1.018862036 | R33: =$P82*Q82 -> 0.1904279075 | S33: =U82/T82 -> 0 | T33: =L82/J82 -> 0.2095107703 | U33: =Z82 -> 0.5582929298 | V33: =(AC82*(1-AD82)*AE82*(J82-AF82)/AF82)/J82 -> 0.06063042858 | W33: =SUM(X33:AB33) -> 0.8804154878 | X33: =$P82*R82 -> 0.3921698931 | Y33: =L33 -> 0 | Z33: =IF(L82=0,0,W82*SUM(L82:N82)/L82) -> 0.05293498403 | AA33: =N33*AB82 -> 0.359522575 | AB33: =P33 -> 0.07578803572 | AC33: =SUM(AD33:AH33) -> 0.550299171 | AD33: =$P82*Q82 -> 0.1904279075 | AE33: =S33 -> 0 | AF33: =W82 -> 0.02 | AG33: =U33*AB82 -> 0.2792408349 | AH33: =V33 -> 0.06063042858
B34: =B83 -> Lille personbil, diesel | C34: Audi | D34: A 2 | E34: 3l 1,2 tdi aut. | F34: 2003 | G34: =P83 -> 0.03943332491 | I34: =H83 -> 0.007329815102 | J34: 2.112902426 | K34: =$P83*R83 -> 0.3921698931 | L34: 0 | M34: =(L83/J83)*(SUM(L83:N83)/L83) -> 0.8120942674 | N34: 0.7188021472 | O34: =O83/I83 -> 0.1140480831 | P34: 0.07578803572 | Q34: =SUM(R34:V34) -> 1.09245398 | R34: =P83*Q83 -> 0.1904279075 | S34: =U83/T83 -> 0 | T34: =L83/J83 -> 0.2831027141 | U34: =Z83 -> 0.5582929298 | V34: =(AC83*(1-AD83)*AE83*(J83-AF83)/AF83)/J83 -> 0.06063042858 | W34: =SUM(X34:AB34) -> 0.8848515022 | X34: =$P83*R83 -> 0.3921698931 | Y34: 0 | Z34: =W83*SUM(L83:N83)/L83 -> 0.05737099836 | AA34: 0.359522575 | AB34: =P34 -> 0.07578803572 | AC34: =SUM(AD34:AH34) -> 0.550299171 | AD34: =$P83*Q83 -> 0.1904279075 | AE34: =S34 -> 0 | AF34: =W83 -> 0.02 | AG34: 0.2792408349 | AH34: =V34 -> 0.06063042858
B35: Lille personbil, diesel | C35: Fiat | D35: Punto | E35: 1,3 d multijet 5dørs | F35: 2003 | G35: 0.05914998737 | I35: 0.004594666616 | J35: 2.238688971 | K35: =$P84*R84 -> 0.5882548397 | L35: 0 | M35: 0.5404821425 | N35: 0.7188021472 | O35: 0.3153618057 | P35: 0.07578803572 | Q35: 1.11006447 | R35: 0.2856418612 | S35: 0 | T35: 0.2054992499 | U35: 0.5582929298 | V35: 0.06063042858 | W35: 1.076167311 | X35: =$P84*R84 -> 0.5882548397 | Y35: 0 | Z35: 0.05260186038 | AA35: 0.359522575 | AB35: 0.07578803572 | AC35: 0.6455131247 | AD35: 0.2856418612 | AE35: 0 | AF35: 0.02 | AG35: 0.2792408349 | AH35: 0.06063042858
B36: Lille personbil, diesel | C36: Peugeot | D36: 206 | E36: 1,4 hdi-5 dørs | F36: 2007 | G36: 0.0563574987 | I36: 0.1561696796 | J36: 2.054314426 | K36: 0.560483152 | L36: 0 | M36: 0.4508820444 | N36: 0.7188021472 | O36: 0.2483590471 | P36: 0.07578803572 | Q36: 1.085027678 | R36: 0.2721566232 | S36: 0 | T36: 0.1939476968 | U36: 0.5582929298 | V36: 0.06063042858 | W36: 1.105921259 | X36: 0.560483152 | Y36: 0 | Z36: 0.07904187451 | AA36: 0.3906081967 | AB36: 0.07578803572 | AC36: 0.6701720589 | AD36: 0.2721566232 | AE36: 0 | AF36: 0.034 | AG36: 0.3033850072 | AH36: 0.06063042858
B37: Lille personbil, diesel | C37: Toyota | D37: Yaris | E37: 1,4 d - 4d 5 dørs | F37: 2007 | G37: 0.05914998737 | I37: 0.1360922696 | J37: 2.280376471 | K37: 0.5882548397 | L37: 0 | M37: 0.6160498389 | N37: 0.7188021472 | O37: 0.2814816099 | P37: 0.07578803572 | Q37: 1.146034944 | R37: 0.2856418612 | S37: 0 | T37: 0.2414697243 | U37: 0.5582929298 | V37: 0.06063042858 | W37: 1.141393601 | X37: 0.5882548397 | Y37: 0 | Z37: 0.08674252882 | AA37: 0.3906081967 | AB37: 0.07578803572 | AC37: 0.683657297 | AD37: 0.2856418612 | AE37: 0 | AF37: 0.034 | AG37: 0.3033850072 | AH37: 0.06063042858
B38: Lille personbil, diesel | C38: Fiat | D38: Punto | E38: 1,3 jtd | F38: 2007 | G38: 0.05914998737 | I38: 0.1238867846 | J38: 2.133470319 | K38: 0.5882548397 | L38: 0 | M38: 0.474063147 | N38: 0.7188021472 | O38: 0.2765621491 | P38: 0.07578803572 | Q38: 1.105467318 | R38: 0.2856418612 | S38: 0 | T38: 0.2009020981 | U38: 0.5582929298 | V38: 0.06063042858 | W38: 1.134879936 | X38: 0.5882548397 | Y38: 0 | Z38: 0.08022886347 | AA38: 0.3906081967 | AB38: 0.07578803572 | AC38: 0.683657297 | AD38: 0.2856418612 | AE38: 0 | AF38: 0.034 | AG38: 0.3033850072 | AH38: 0.06063042858
B39: Lille personbil, diesel | C39: Peugeot | D39: 206 + | E39: 1,4 hdi 68 hk 5-d | F39: 2011 | G39: 0.05252518879 | I39: 0.1550874327 | J39: 1.81749824 | K39: 0.5223702976 | L39: 0 | M39: 0.4320498212 | N39: 0.6522785574 | O39: 0.1350115279 | P39: 0.07578803572 | Q39: 1.039329914 | R39: 0.2536499728 | S39: 0 | T39: 0.2184253901 | U39: 0.5066241223 | V39: 0.06063042858 | W39: 1.173752619 | X39: 0.5223702976 | Y39: 0 | Z39: 0.1661536919 | AA39: 0.4094405942 | AB39: 0.07578803572 | AC39: 0.7162925133 | AD39: 0.2536499728 | AE39: 0 | AF39: 0.084 | AG39: 0.318012112 | AH39: 0.06063042858
B40: Lille personbil, diesel | C40: Opel | D40: Corsa | E40: 1,3 cdti ecoflex | F40: 2011 | G40: 0.047234882 | I40: 0.1350492575 | J40: 1.937674306 | K40: 0.4697574619 | L40: 0 | M40: 0.5299473211 | N40: 0.7742183574 | O40: 0.08796312991 | P40: 0.07578803572 | Q40: 1.147776783 | R40: 0.2281024935 | S40: 0 | T40: 0.2577092141 | U40: 0.6013346465 | V40: 0.06063042858 | W40: 1.204264378 | X40: 0.4697574619 | Y40: 0 | Z40: 0.1727356747 | AA40: 0.4859832056 | AB40: 0.07578803572 | AC40: 0.750195606 | AD40: 0.2281024935 | AE40: 0 | AF40: 0.084 | AG40: 0.3774626839 | AH40: 0.06063042858
B41: Lille personbil, diesel | C41: Citroën | D41: C3 | E41: Hdi 70 | F41: 2011 | G41: 0.05252518879 | I41: 0.1253153636 | J41: 1.901470862 | K41: 0.5223702976 | L41: 0 | M41: 0.4647230354 | N41: 0.6929758706 | O41: 0.1456136222 | P41: 0.07578803572 | Q41: 1.081816363 | R41: 0.2536499728 | S41: 0 | T41: 0.2293022754 | U41: 0.5382336859 | V41: 0.06063042858 | W41: 1.203386341 | X41: 0.5223702976 | Y41: 0 | Z41: 0.1702413764 | AA41: 0.434986631 | AB41: 0.07578803572 | AC41: 0.7361340954 | AD41: 0.2536499728 | AE41: 0 | AF41: 0.084 | AG41: 0.337853694 | AH41: 0.06063042858
B42: Lille personbil, diesel | C42: Hyundai | D42: I20 | E42: 1.1 crdi 5 dørs hatchback | F42: 2015 | G42: 0.04481671398 | I42: 0.04183091356 | J42: 1.780212097 | K42: 0.4457084451 | L42: 0 | M42: 0.4654493414 | N42: 0.7036446522 | O42: 0.0896216229 | P42: 0.07578803572 | Q42: 1.07366817 | R42: 0.2164248914 | S42: 0 | T42: 0.250092732 | U42: 0.5465201182 | V42: 0.06063042858 | W42: 1.27564832 | X42: 0.4457084451 | Y42: 0 | Z42: 0.2661383051 | AA42: 0.4880135346 | AB42: 0.07578803572 | AC42: 0.7990949586 | AD42: 0.2164248914 | AE42: 0 | AF42: 0.143 | AG42: 0.3790396385 | AH42: 0.06063042858
B43: Lille personbil, diesel | C43: Opel | D43: Corsa | E43: 1,3cdti 5-dørs | F43: 2015 | G43: 0.04377099065 | I43: 0.03456424288 | J43: 2.092461777 | K43: 0.4353085814 | L43: 0 | M43: 0.6032935615 | N43: 0.8972231338 | O43: 0.08084846499 | P43: 0.07578803572 | Q43: 1.265816625 | R43: 0.2113749773 | S43: 0 | T43: 0.2969388825 | U43: 0.6968723369 | V43: 0.06063042858 | W43: 1.423901189 | X43: 0.4353085814 | Y43: 0 | Z43: 0.2905344648 | AA43: 0.6222701068 | AB43: 0.07578803572 | AC43: 0.8983219937 | AD43: 0.2113749773 | AE43: 0 | AF43: 0.143 | AG43: 0.4833165878 | AH43: 0.06063042858
B44: Lille personbil, diesel | C44: Kia | D44: Rio | E44: 1.1 crdi 5-dørs man. 6 | F44: 2015 | G44: 0.047234882 | I44: 0.0234376909 | J44: 1.878586901 | K44: 0.4697574619 | L44: 0 | M44: 0.4946872956 | N44: 0.7416947383 | O44: 0.0966593693 | P44: 0.07578803572 | Q44: 1.118392525 | R44: 0.2281024935 | S44: 0 | T44: 0.2535860203 | U44: 0.5760735831 | V44: 0.06063042858 | W44: 1.338908424 | X44: 0.4697574619 | Y44: 0 | Z44: 0.2789597124 | AA44: 0.5144032143 | AB44: 0.07578803572 | AC44: 0.8312693992 | AD44: 0.2281024935 | AE44: 0 | AF44: 0.143 | AG44: 0.3995364771 | AH44: 0.06063042858
B45: =B94 -> Mellem personbil, diesel | C45: Volkswagen | D45: Passat | E45: 1,9 tdi man variant | F45: 2003 | G45: 0.07503598398 | H45: =G94 -> 12994.92285 | I45: =H94 -> 0.0542516452 | J45: 3.380646197 | K45: 0.7462432823 | L45: 0 | M45: =(L94/J94)*(SUM(L94:N94)/L94) -> 0.8991786448 | N45: 1.284291955 | O45: 0.3555089773 | P45: 0.09542333837 | Q45: 1.735514918 | R45: 0.362357104 | S45: =U94/T94 -> 0 | T45: =L94/J94 -> 0.2993108294 | U45: =Z94 -> 0.9975083143 | V45: =(AC94*(1-AD94)*AE94*(J94-AF94)/AF94)/J94 -> 0.07633867069 | W45: 1.361114142 | X45: 0.7462432823 | Y45: 0 | Z45: =W94*SUM(L94:N94)/L94 -> 0.0450624513 | AA45: 0.4743850699 | AB45: 0.09542333837 | AC45: 0.8221501979 | AD45: 0.362357104 | AE45: 0 | AF45: =W94 -> 0.015 | AG45: 0.3684544232 | AH45: 0.07633867069
B46: Mellem personbil, diesel | C46: Peugeot | D46: 206 | E46: 1,4 hdi st. car | F46: 2003 | G46: 0.05784712421 | I46: =H95 -> 0.04981851653 | J46: 2.678401666 | K46: 0.5752976846 | L46: 0 | M46: 0.4715010013 | N46: 1.284291955 | O46: 0.2518876869 | P46: 0.09542333837 | Q46: 1.530314392 | R46: 0.2793501903 | S46: 0 | T46: 0.177117217 | U46: 0.9975083143 | V46: 0.07633867069 | W46: 1.185037361 | X46: 0.5752976846 | Y46: 0 | Z46: 0.03993126779 | AA46: 0.4743850699 | AB46: 0.09542333837 | AC46: 0.7391432842 | AD46: 0.2793501903 | AE46: 0 | AF46: 0.015 | AG46: 0.3684544232 | AH46: 0.07633867069
B47: Mellem personbil, diesel | C47: Peugeot | D47: 307 | E47: 2,0 hdi | F47: 2003 | G47: 0.07022084062 | I47: 0.04871537059 | J47: 3.017223983 | K47: 0.6983560129 | L47: 0 | M47: 0.6109159125 | N47: 1.284291955 | O47: 0.3282367642 | P47: 0.09542333837 | Q47: 1.629901275 | R47: 0.3391042417 | S47: 0 | T47: 0.2169500487 | U47: 0.9975083143 | V47: 0.07633867069 | W47: 1.310403355 | X47: 0.6983560129 | Y47: 0 | Z47: 0.04223893353 | AA47: 0.4743850699 | AB47: 0.09542333837 | AC47: 0.7988973356 | AD47: 0.3391042417 | AE47: 0 | AF47: 0.015 | AG47: 0.3684544232 | AH47: 0.07633867069
B48: Mellem personbil, diesel | C48: Volkswagen | D48: Passat variant | E48: 2,0 tdi | F48: 2007 | G48: 0.0805601055 | I48: 0.08397350849 | J48: 3.68860127 | K48: 0.8011814381 | L48: 0 | M48: 1.130184427 | N48: 1.284291955 | O48: 0.3775201117 | P48: 0.09542333837 | Q48: 1.840131066 | R48: 0.3890337006 | S48: 0 | T48: 0.3772503801 | U48: 0.9975083143 | V48: 0.07633867069 | W48: 1.63620513 | X48: 0.8011814381 | Y48: 0 | Z48: 0.1797508212 | AA48: 0.5598495326 | AB48: 0.09542333837 | AC48: 0.9602069597 | AD48: 0.3890337006 | AE48: 0 | AF48: 0.06 | AG48: 0.4348345884 | AH48: 0.07633867069
B49: Mellem personbil, diesel | C49: Volkswagen | D49: Touran | E49: 1,9 tdi | F49: 2007 | G49: 0.07816248331 | I49: 0.07574446063 | J49: 3.450959691 | K49: 0.7773367524 | L49: 0 | M49: 0.9475185058 | N49: 1.284291955 | O49: 0.3463891401 | P49: 0.09542333837 | Q49: 1.776362418 | R49: 0.3774553166 | S49: 0 | T49: 0.3250601168 | U49: 0.9975083143 | V49: 0.07633867069 | W49: 1.607503766 | X49: 0.7773367524 | Y49: 0 | Z49: 0.1748941424 | AA49: 0.5598495326 | AB49: 0.09542333837 | AC49: 0.9486285758 | AD49: 0.3774553166 | AE49: 0 | AF49: 0.06 | AG49: 0.4348345884 | AH49: 0.07633867069
B50: Mellem personbil, diesel | C50: Peugeot | D50: 307 | E50: 1,6 hdi stc | F50: 2007 | G50: 0.06565648598 | I50: 0.05886389624 | J50: 2.941089787 | K50: 0.652962872 | L50: 0 | M50: 0.6240246407 | N50: 1.284291955 | O50: 0.2843869814 | P50: 0.09542333837 | Q50: 1.623542749 | R50: 0.317062466 | S50: 0 | T50: 0.2326332982 | U50: 0.9975083143 | V50: 0.07633867069 | W50: 1.469182085 | X50: 0.652962872 | Y50: 0 | Z50: 0.1609463423 | AA50: 0.5598495326 | AB50: 0.09542333837 | AC50: 0.8882357251 | AD50: 0.317062466 | AE50: 0 | AF50: 0.06 | AG50: 0.4348345884 | AH50: 0.07633867069
B51: Mellem personbil, diesel | C51: Volkswagen | D51: Passat variant | E51: 2,0 tdi | F51: 2011 | G51: 0.06079304258 | I51: 0.08527121164 | J51: 3.909354977 | K51: 0.6045952519 | L51: 0 | M51: 1.157241362 | N51: 1.909487936 | O51: 0.1426070893 | P51: 0.09542333837 | Q51: 2.253935935 | R51: 0.2935763574 | S51: 0 | T51: 0.4009234814 | U51: 1.483097426 | V51: 0.07633867069 | W51: 2.058392352 | X51: 0.6045952519 | Y51: 0 | Z51: 0.3781235708 | AA51: 0.9802501914 | AB51: 0.09542333837 | AC51: 1.2622744 | AD51: 0.2935763574 | AE51: 0 | AF51: 0.131 | AG51: 0.7613593719 | AH51: 0.07633867069
B52: Mellem personbil, diesel | C52: Hyundai | D52: I30 | E52: 1,6 crdi 90 eco | F52: 2011 | G52: 0.05129412967 | I52: 0.07392149292 | J52: 2.30833051 | K52: 0.5101272438 | L52: 0 | M52: 0.5703729054 | N52: 0.9987062587 | O52: 0.1337007638 | P52: 0.09542333837 | Q52: 1.34457347 | R52: 0.2477050515 | S52: 0 | T52: 0.244835566 | U52: 0.7756941815 | V52: 0.07633867069 | W52: 1.42342378 | X52: 0.5101272438 | Y52: 0 | Z52: 0.3051797246 | AA52: 0.5126934729 | AB52: 0.09542333837 | AC52: 0.8532522449 | AD52: 0.2477050515 | AE52: 0 | AF52: 0.131 | AG52: 0.3982085226 | AH52: 0.07633867069
B53: Mellem personbil, diesel | C53: Peugeot | D53: 207 | E53: 1,6 hdi 92 hk st.car | F53: 2011 | G53: 0.05587786041 | I53: 0.06527973217 | J53: 2.08517453 | K53: 0.5557130826 | L53: 0 | M53: 0.448677973 | N53: 0.809843638 | O53: 0.1755164985 | P53: 0.09542333837 | Q53: 1.179165307 | R53: 0.2698403966 | S53: 0 | T53: 0.2039814724 | U53: 0.6290047674 | V53: 0.07633867069 | W53: 1.355023637 | X53: 0.5557130826 | Y53: 0 | Z53: 0.2881478095 | AA53: 0.4157394065 | AB53: 0.09542333837 | AC53: 0.8000834607 | AD53: 0.2698403966 | AE53: 0 | AF53: 0.131 | AG53: 0.3229043934 | AH53: 0.07633867069
B54: =B103 -> Mellem personbil, diesel | C54: Peugeot | D54: 308 | E54: 1.6 blue e-hdi 120 hk sw | F54: 2015 | G54: 0.04208749101 | I54: 0.2650239087 | J54: 2.449007632 | K54: 0.4185659436 | L54: 0 | M54: 0.6740558761 | N54: 1.226871818 | O54: 0.03409065542 | P54: 0.09542333837 | Q54: 1.538330032 | R54: 0.2032451705 | S54: 0 | T54: 0.3058360404 | U54: 0.95291015 | V54: 0.07633867069 | W54: 1.84595804 | X54: 0.4185659436 | Y54: 0 | Z54: 0.4760592278 | AA54: 0.85590953 | AB54: 0.09542333837 | AC54: 1.160367942 | AD54: 0.2032451705 | AE54: 0 | AF54: 0.216 | AG54: 0.664784101 | AH54: 0.07633867069
B55: Mellem personbil, diesel | C55: Bmw | D55: 3-serie | E55: 320d touring steptronic | F55: 2015 | G55: 0.06136120185 | I55: 0.07232407781 | J55: 3.950923431 | K55: 0.6102456748 | L55: 0 | M55: 1.102272768 | N55: 1.952677892 | O55: 0.1903037578 | P55: 0.09542333837 | Q55: 2.300367571 | R55: 0.2963200617 | S55: 0 | T55: 0.4110658159 | U55: 1.516643023 | V55: 0.07633867069 | W55: 2.647130628 | X55: 0.6102456748 | Y55: 0 | Z55: 0.5792038857 | AA55: 1.362257729 | AB55: 0.09542333837 | AC55: 1.646722988 | AD55: 0.2963200617 | AE55: 0 | AF55: 0.216 | AG55: 1.058064256 | AH55: 0.07633867069
B56: Mellem personbil, diesel | C56: Renault | D56: Ny clio | E56: Dci 75 sport tourer | F56: 2015 | G56: 0.04673059501 | I56: 0.06681217903 | J56: 1.836155634 | K56: 0.4647422577 | L56: 0 | M56: 0.4146617161 | N56: 0.7701472763 | O56: 0.09118104543 | P56: 0.09542333837 | Q56: 1.112949391 | R56: 0.2256672356 | S56: 0 | T56: 0.2127708426 | U56: 0.5981726418 | V56: 0.07633867069 | W56: 1.518402708 | X56: 0.4647422577 | Y56: 0 | Z56: 0.4209549089 | AA56: 0.5372822031 | AB56: 0.09542333837 | AC56: 0.9353124718 | AD56: 0.2256672356 | AE56: 0 | AF56: 0.216 | AG56: 0.4173065655 | AH56: 0.07633867069
B57: Stor personbil, diesel | C57: Mercedes-benz | D57: E | E57: 320 cdi aut. | F57: 2003 | G57: 0.09247392392 | H57: =G106 -> 2477.900759 | I57: 0.06920157497 | J57: 6.056166674 | K57: 0.919666017 | L57: 0 | M57: 2.335638818 | N57: 2.205420585 | O57: 0.4731728686 | P57: 0.1222683847 | Q57: 2.96556323 | R57: 0.4465668535 | S57: 0 | T57: 0.7082336417 | U57: 1.712948027 | V57: 0.09781470777 | W57: 1.686523184 | X57: 0.919666017 | Y57: 0 | Z57: 0.1418069734 | AA57: 0.5027818088 | AB57: 0.1222683847 | AC57: 0.977891704 | AD57: 0.4465668535 | AE57: 0 | AF57: 0.043 | AG57: 0.3905101427 | AH57: 0.09781470777
B58: Stor personbil, diesel | C58: Volvo | D58: V 70 | E58: D 5 aut. | F58: 2003 | G58: 0.1067585138 | I58: 0.02434002596 | J58: 5.408128955 | K58: 1.061728247 | L58: 0 | M58: 1.43879867 | N58: 2.205420585 | O58: 0.5799130678 | P58: 0.1222683847 | Q58: 2.77830506 | R58: 0.5155487252 | S58: 0 | T58: 0.4519935992 | U58: 1.712948027 | V58: 0.09781470777 | W58: 1.823657244 | X58: 1.061728247 | Y58: 0 | Z58: 0.1368788029 | AA58: 0.5027818088 | AB58: 0.1222683847 | AC58: 1.046873576 | AD58: 0.5155487252 | AE58: 0 | AF58: 0.043 | AG58: 0.3905101427 | AH58: 0.09781470777
B59: Stor personbil, diesel | C59: Bmw | D59: 530 | E59: D | F59: 2003 | G59: 0.1017930015 | I59: 0.01517429836 | J59: 5.696938524 | K59: 1.012345538 | L59: 0 | M59: 1.83671982 | N59: 2.205420585 | O59: 0.5201841963 | P59: 0.1222683847 | Q59: 2.868017806 | R59: 0.4915697147 | S59: 0 | T59: 0.5656853565 | U59: 1.712948027 | V59: 0.09781470777 | W59: 1.77701213 | X59: 1.012345538 | Y59: 0 | Z59: 0.1396163987 | AA59: 0.5027818088 | AB59: 0.1222683847 | AC59: 1.022894565 | AD59: 0.4915697147 | AE59: 0 | AF59: 0.043 | AG59: 0.3905101427 | AH59: 0.09781470777
B60: Stor personbil, diesel | C60: Mercedes-benz | D60: E | E60: 320 cdi aut. | F60: 2007 | G60: 0.09947952422 | I60: 0.07967834774 | J60: 6.424945485 | K60: 0.9893376849 | L60: 0 | M60: 2.6467466 | N60: 2.205420585 | O60: 0.4611722298 | P60: 0.1222683847 | Q60: 3.099799166 | R60: 0.4803976757 | S60: 0 | T60: 0.8086387553 | U60: 1.712948027 | V60: 0.09781470777 | W60: 2.199476841 | X60: 0.9893376849 | Y60: 0 | Z60: 0.35349361 | AA60: 0.7343771618 | AB60: 0.1222683847 | AC60: 1.256602412 | AD60: 0.4803976757 | AE60: 0 | AF60: 0.108 | AG60: 0.5703900286 | AH60: 0.09781470777
B61: Stor personbil, diesel | C61: Toyota | D61: Corolla verso | E61: 2,2 d-4d | F61: 2007 | G61: 0.08258677482 | I61: 0.04296302031 | J61: 4.442597674 | K61: 0.821336946 | L61: 0 | M61: 0.8859747692 | N61: 2.205420585 | O61: 0.4075969889 | P61: 0.1222683847 | Q61: 2.515144536 | R61: 0.3988207119 | S61: 0 | T61: 0.3055610893 | U61: 1.712948027 | V61: 0.09781470777 | W61: 1.991128631 | X61: 0.821336946 | Y61: 0 | Z61: 0.3131461382 | AA61: 0.7343771618 | AB61: 0.1222683847 | AC61: 1.175025448 | AD61: 0.3988207119 | AE61: 0 | AF61: 0.108 | AG61: 0.5703900286 | AH61: 0.09781470777
B62: Stor personbil, diesel | C62: Toyota | D62: Avensis | E62: 2,2 stw d-4d | F62: 2007 | G62: 0.07863052213 | I62: 0.04247313748 | J62: 4.491704911 | K62: 0.7819914635 | L62: 0 | M62: 1.025616318 | N62: 2.205420585 | O62: 0.3564081596 | P62: 0.1222683847 | Q62: 2.535936938 | R62: 0.3797155281 | S62: 0 | T62: 0.3454586746 | U62: 1.712948027 | V62: 0.09781470777 | W62: 1.959273226 | X62: 0.7819914635 | Y62: 0 | Z62: 0.3206362163 | AA62: 0.7343771618 | AB62: 0.1222683847 | AC62: 1.155920264 | AD62: 0.3797155281 | AE62: 0 | AF62: 0.108 | AG62: 0.5703900286 | AH62: 0.09781470777
B63: Stor personbil, diesel | C63: Mercedes-benz | D63: E | E63: 200t cdi be aut. | F63: 2011 | G63: 0.07724292468 | I63: 0.2187152863 | J63: 5.441616907 | K63: 0.7681916142 | L63: 0 | M63: 1.703678341 | N63: 2.703315299 | O63: 0.1441632685 | P63: 0.1222683847 | Q63: 3.114302011 | R63: 0.3730146659 | S63: 0 | T63: 0.5438102692 | U63: 2.099662368 | V63: 0.09781470777 | W63: 2.803397425 | X63: 0.7681916142 | Y63: 0 | Z63: 0.5733123371 | AA63: 1.339625089 | AB63: 0.1222683847 | AC63: 1.69431488 | AD63: 0.3730146659 | AE63: 0 | AF63: 0.183 | AG63: 1.040485506 | AH63: 0.09781470777
B64: Stor personbil, diesel | C64: Mercedes-benz | D64: C | E64: 200t cdi be aut. | F64: 2011 | G64: 0.07136574563 | I64: 0.1337462581 | J64: 4.228688955 | K64: 0.7097422522 | L64: 0 | M64: 1.229700646 | N64: 1.983091203 | O64: 0.1838864703 | P64: 0.1222683847 | Q64: 2.392917715 | R64: 0.3446331152 | S64: 0 | T64: 0.4102048802 | U64: 1.540265012 | V64: 0.09781470777 | W64: 2.363321673 | X64: 0.7097422522 | Y64: 0 | Z64: 0.5485922499 | AA64: 0.9827187858 | AB64: 0.1222683847 | AC64: 1.38872455 | AD64: 0.3446331152 | AE64: 0 | AF64: 0.183 | AG64: 0.7632767268 | AH64: 0.09781470777
B65: Stor personbil, diesel | C65: Mazda | D65: Mazda6 | E65: 2.2 de low stationsc | F65: 2011 | G65: 0.0683921729 | I65: 0.03668490567 | J65: 3.482768468 | K65: 0.6801696584 | L65: 0 | M65: 0.9359689885 | N65: 1.536756661 | O65: 0.207604776 | P65: 0.1222683847 | Q65: 1.950203139 | R65: 0.3302734021 | S65: 0 | T65: 0.3285176231 | U65: 1.193597406 | V65: 0.09781470777 | W65: 2.085355621 | X65: 0.6801696584 | Y65: 0 | Z65: 0.5213794112 | AA65: 0.7615381671 | AB65: 0.1222683847 | AC65: 1.202574065 | AD65: 0.3302734021 | AE65: 0 | AF65: 0.183 | AG65: 0.591485955 | AH65: 0.09781470777
B66: Stor personbil, diesel | C66: Mercedes-benz | D66: C-klasse | E66: 220 bluetec st.car 7g-tronic plus | F66: 2015 | G66: 0.05836132087 | I66: 0.2120893709 | J66: 4.455057025 | K66: 0.5804114418 | L66: 0 | M66: 1.34074484 | N66: 2.325736516 | O66: 0.08589584279 | P66: 0.1222683847 | Q66: 2.674809734 | R66: 0.2818333031 | S66: 0 | T66: 0.4887644297 | U66: 1.806397294 | V66: 0.09781470777 | W66: 2.937039666 | X66: 0.5804114418 | Y66: 0 | Z66: 0.7790491929 | AA66: 1.455310646 | AB66: 0.1222683847 | AC66: 1.793986377 | AD66: 0.2818333031 | AE66: 0 | AF66: 0.284 | AG66: 1.130338366 | AH66: 0.09781470777
B67: Stor personbil, diesel | C67: Mazda | D67: Mazda6 | E67: 2,2 skyactiv-d 150 hk stationcar | F67: 2015 | G67: 0.05517351763 | I67: 0.08157354974 | J67: 2.788284438 | K67: 0.5487082958 | L67: 0 | M67: 0.7285301585 | N67: 1.286142459 | O67: 0.1026351392 | P67: 0.1222683847 | Q67: 1.66012474 | R67: 0.266439047 | S67: 0 | T67: 0.2969253854 | U67: 0.9989455995 | V67: 0.09781470777 | W67: 2.172586522 | X67: 0.5487082958 | Y67: 0 | Z67: 0.6968166926 | AA67: 0.8047931488 | AB67: 0.1222683847 | AC67: 1.273335812 | AD67: 0.266439047 | AE67: 0 | AF67: 0.284 | AG67: 0.6250820573 | AH67: 0.09781470777
B68: Stor personbil, diesel | C68: Mercedes-benz | D68: Cla | E68: 200 cdi shooting brake stationscar 7g-dct | F68: 2015 | G68: 0.05381679179 | I68: 0.04336022451 | J68: 4.075005143 | K68: 0.5352154689 | L68: 0 | M68: 1.19812518 | N68: 2.086405082 | O68: 0.1329910274 | P68: 0.1222683847 | Q68: 2.427284871 | R68: 0.2598872672 | S68: 0 | T68: 0.449074094 | U68: 1.620508802 | V68: 0.09781470777 | W68: 2.720743961 | X68: 0.5352154689 | Y68: 0 | Z68: 0.7577091524 | AA68: 1.305550955 | AB68: 0.1222683847 | AC68: 1.655722134 | AD68: 0.2598872672 | AE68: 0 | AF68: 0.284 | AG68: 1.014020159 | AH68: 0.09781470777
C69: Kilde:
C70: Note: De samlede kørselsomkostninger omfatter omkostninger til brændstof/el, motorolie/batteri, dæk, reparation og vedligehold samt afskrivninger.
C71: Note: Her er alle omkostningerne samlet og opgjort som gennemsnitlige og marginale omkostninger henholdsvis uden og med afgifter.
C72: Note:
C76: Niveu III - Grundforudsætninger og grunddata
C79: Forudsætninger og grunddata for konkrete køretøjer
G80: Grundforudsætninger | P80: Grunddata
B81: Kategori | C81: Mærke | D81: Model | E81: Variant | F81: Årgang | G81: Trafikarbejde, i alt for kategori [mio. km. per år] | H81: Det repræsentative køretøjs andel af det samlede trafikarbejde indenfor den relevante køretøjskategori [%] | I81: Trafikarbejde, gennemsnitligt for konkrete køretøjer - årgang, mærke og model [km. per år per bil] | J81: Levetid, kørsel i alt [km.] | K81: Levetid, alder [år] | L81: Pris ekskl. moms og afgifter [kr] | M81: Moms [kr.] | N81: Registreringsafgift 2016 [kr.] | O81: Ejerafgift, årligt [kr. per år] | P81: Brændstof-effektivitet [liter per km, realt forbrug] | Q81: Brændstofpris ekskl. moms og afgifter [kr per liter] | R81: Brændstofpris inkl. moms og afgifter [kr per liter] | S81: Brændstof-effektivitet [liter per km oplyst] | T81: Batteri levetid km | U81: Batteri pris | V81: Afskrivninger ekskl. moms og afgifter, gennemsnitlige [kr. per km.] | W81: Afskrivninger ekskl. moms og afgifter, marginale [kr. per km.] | X81: Ansvarsforsikrings-præmie [kr per år] | Y81: Forsikringsafgift [kr per år] | Z81: Reparationsomk. ekskl. moms og afgifter, gennemsnitlige [kr per km.] | AA81: Andel af reparationsomk. der er afgifter - før/ud over moms [Pct.] | AB81: Andel af reparationsomk. som er kørselsafhængig [Pct.] | AC81: Dækpris ekskl. moms [kr per stk] | AD81: Rabat for dæk [Pct] | AE81: Dæk [antal] | AF81: Dæk levetid [km] | AH81: Bilens ny-pris inkl. moms og afgifter (før 2016) [kr.] | AI81: Det repræsentative køretøjs andel af det samlede trafikarbejde indenfor den relevante køretøjskategori [%] | AJ81: Levetid, alder [år] | AK81: Beregnet sammenvægtet bilpris til brug for beregning af reparations-omkostning [kr.] | AL81: Gennemsnitlig reparationsomkostning inkl. moms, 10 års brug [kr. per km.] | AM81: Gennemsnitlig reparationsomkostning inkl. moms, 15 års brug [kr. per km.] | AN81: Gennemsnitlig reparationsomkostning inkl. moms, levetids brug [kr. per km.] | AO81: Gennemsnitlig reparationsomkostning ekskl. moms, levetids brug [kr. per km.] | AP81: Gennemsnitlig reparationsomkostning ekskl. moms, levetids brug [kr. per km.] - 2015-niveau | AR81: Realitetsfaktor | AS81: Sampling korrektion af brændstofforbrug
B82: Lille personbil, diesel | C82: Volkswagen | D82: Lupo | E82: 1,2 tdi 3l | F82: 2003 | G82: 1818.875762 | H82: 0.05664188327 | I82: 18627.12276 | J82: 327485.3803 | K82: 16.6 | L82: 68611.71429 | M82: 17152.92857 | N82: 95833.35714 | O82: =VLOOKUP(1/(S82*AS82),GronEjerafgift!$A$34:$H$60,8)-IF(F82>2010,VLOOKUP(1/(S82*AS82),GronEjerafgift!$A$34:$H$60,6)*2,0) -> 2160 | P82: =S82*AR82*AS82 -> 0.03943332491 | Q82: ='Ark til TE inkl. brændstofpris'!C59 -> 4.829111111 | R82: ='Ark til TE inkl. brændstofpris'!D59 -> 9.945138889 | S82: 0.03003003003 | T82: 1 | U82: 0 | W82: 0.02 | Z82: =AP82 -> 0.5582929298 | AA82: 0.03 | AB82: 0.5001690331 | AC82: 594 | AD82: 0 | AE82: 4 | AF82: 35000 | AH82: 181598 | AI82: =H82 -> 0.05664188327 | AJ82: =K82 -> 16.6 | AK82: =SUMPRODUCT(AH88:AH93,AI88:AI93)*SUM(AI82:AI93)/SUM(AI88:AI93) -> 158980.1573 | AL82: =0.0000022051*AK82+0.11253 -> 0.4630971449 | AM82: =0.0000032208*AK82+0.10788 -> 0.6199232907 | AN82: =AL82+(AJ82-10)*(AM82-AL82)/(15-10) -> 0.6701076574 | AO82: =AN82/(1+Moms) -> 0.5360861259 | AP82: =AO82*Opregn_rep -> 0.5582929298 | AR82: =' Fælles forudsætninger'!F54 -> 1.191 | AS82: =' Fælles forudsætninger'!K54 -> 1.102543845
B83: =B82 -> Lille personbil, diesel | C83: Audi | D83: A 2 | E83: 3l 1,2 tdi aut. | F83: 2003 | H83: 0.007329815102 | I83: 18939.38014 | J83: 327485.3803 | K83: 16.6 | L83: 92712 | M83: 23178 | N83: 150059 | O83: =VLOOKUP(1/(S83*AS83),GronEjerafgift!$A$34:$H$60,8)-IF(F83>2010,VLOOKUP(1/(S83*AS83),GronEjerafgift!$A$34:$H$60,6)*2,0) -> 2160 | P83: =S83*AR83*AS83 -> 0.03943332491 | Q83: =$Q$82 -> 4.829111111 | R83: =$R$82 -> 9.945138889 | S83: 0.03003003003 | T83: 1 | U83: 0 | W83: 0.02 | Z83: =AP83 -> 0.5582929298 | AA83: 0.03 | AB83: 0.5001690331 | AC83: 594 | AD83: 0 | AE83: 4 | AF83: 35000 | AH83: 265949 | AI83: =H83 -> 0.007329815102 | AJ83: 16.6 | AK83: =SUMPRODUCT(AH88:AH93,AI88:AI93)*SUM(AI82:AI93)/SUM(AI88:AI93) -> 158980.1573 | AL83: =0.0000022051*AK83+0.11253 -> 0.4630971449 | AM83: =0.0000032208*AK83+0.10788 -> 0.6199232907 | AN83: =AL83+(AJ83-10)*(AM83-AL83)/(15-10) -> 0.6701076574 | AO83: 0.5360861259 | AP83: 0.5582929298 | AR83: =AR82 -> 1.191 | AS83: =AS82 -> 1.102543845
B84: =B83 -> Lille personbil, diesel | C84: Fiat | D84: Punto | E84: 1,3 d multijet 5dørs | F84: 2003 | H84: 0.004594666616 | I84: 17313.44729 | J84: 327485.3803 | K84: 16.6 | L84: 67298 | M84: 16824.5 | N84: 92877.5 | O84: =VLOOKUP(1/(S84*AS84),GronEjerafgift!$A$34:$H$60,8)-IF(F84>2010,VLOOKUP(1/(S84*AS84),GronEjerafgift!$A$34:$H$60,6)*2,0) -> 5460 | P84: 0.05914998737 | Q84: =$Q$82 -> 4.829111111 | R84: =$R$82 -> 9.945138889 | S84: 0.04504504505 | T84: 1 | U84: 0 | W84: 0.02 | Z84: 0.5582929298 | AA84: 0.03 | AB84: 0.5001690331 | AC84: 594 | AD84: 0 | AE84: 4 | AF84: 35000 | AH84: 177000 | AI84: 0.004594666616 | AJ84: 16.6 | AK84: =SUMPRODUCT(AH88:AH93,AI88:AI93)*SUM(AI82:AI93)/SUM(AI88:AI93) -> 158980.1573 | AL84: 0.4630971449 | AM84: 0.6199232907 | AN84: 0.6701076574 | AO84: 0.5360861259 | AP84: 0.5582929298 | AR84: =AR83 -> 1.191 | AS84: =AS83 -> 1.102543845
B85: Lille personbil, diesel | C85: Peugeot | D85: 206 | E85: 1,4 hdi-5 dørs | F85: 2007 | H85: 0.1561696796 | I85: 18843.6864 | J85: 327485.3803 | K85: 16.6 | L85: 63515.03523 | M85: 15878.75881 | N85: 68263.48374 | O85: =VLOOKUP(1/(S85*AS85),GronEjerafgift!$A$34:$H$60,8)-IF(F85>2010,VLOOKUP(1/(S85*AS85),GronEjerafgift!$A$34:$H$60,6)*2,0) -> 4680 | P85: 0.0563574987 | Q85: 4.829111111 | R85: 9.945138889 | S85: 0.04291845494 | T85: 1 | U85: 0 | W85: 0.034 | Z85: 0.5582929298 | AA85: 0.03 | AB85: 0.5434154562 | AC85: 594 | AD85: 0 | AE85: 4 | AF85: 35000 | AH85: 147657.2778 | AI85: 0.1561696796 | AJ85: 16.6 | AK85: =SUMPRODUCT(AH88:AH93,AI88:AI93)*SUM(AI82:AI93)/SUM(AI88:AI93) -> 158980.1573 | AL85: 0.4630971449 | AM85: 0.6199232907 | AN85: 0.6701076574 | AO85: 0.5360861259 | AP85: 0.5582929298 | AR85: 1.191 | AS85: 1.102543845
B86: Lille personbil, diesel | C86: Toyota | D86: Yaris | E86: 1,4 d - 4d 5 dørs | F86: 2007 | H86: 0.1360922696 | I86: 19397.35957 | J86: 327485.3803 | K86: 16.6 | L86: 79077.80451 | M86: 19769.45113 | N86: 102900.0602 | O86: =VLOOKUP(1/(S86*AS86),GronEjerafgift!$A$34:$H$60,8)-IF(F86>2010,VLOOKUP(1/(S86*AS86),GronEjerafgift!$A$34:$H$60,6)*2,0) -> 5460 | P86: 0.05914998737 | Q86: 4.829111111 | R86: 9.945138889 | S86: 0.04504504505 | T86: 1 | U86: 0 | W86: 0.034 | Z86: 0.5582929298 | AA86: 0.03 | AB86: 0.5434154562 | AC86: 594 | AD86: 0 | AE86: 4 | AF86: 35000 | AH86: 201747.3158 | AI86: 0.1360922696 | AJ86: 16.6 | AK86: =SUMPRODUCT(AH88:AH93,AI88:AI93)*SUM(AI82:AI93)/SUM(AI88:AI93) -> 158980.1573 | AL86: 0.4630971449 | AM86: 0.6199232907 | AN86: 0.6701076574 | AO86: 0.5360861259 | AP86: 0.5582929298 | AR86: 1.191 | AS86: 1.102543845
B87: Lille personbil, diesel | C87: Fiat | D87: Punto | E87: 1,3 jtd | F87: 2007 | H87: 0.1238867846 | I87: 19742.39793 | J87: 327485.3803 | K87: 16.6 | L87: 65792.5 | M87: 16448.125 | N87: 73008.125 | O87: =VLOOKUP(1/(S87*AS87),GronEjerafgift!$A$34:$H$60,8)-IF(F87>2010,VLOOKUP(1/(S87*AS87),GronEjerafgift!$A$34:$H$60,6)*2,0) -> 5460 | P87: 0.05914998737 | Q87: 4.829111111 | R87: 9.945138889 | S87: 0.04504504505 | T87: 1 | U87: 0 | W87: 0.034 | Z87: 0.5582929298 | AA87: 0.03 | AB87: 0.5434154562 | AC87: 594 | AD87: 0 | AE87: 4 | AF87: 35000 | AH87: 155248.75 | AI87: 0.1238867846 | AJ87: 16.6 | AK87: =SUMPRODUCT(AH88:AH93,AI88:AI93)*SUM(AI82:AI93)/SUM(AI88:AI93) -> 158980.1573 | AL87: 0.4630971449 | AM87: 0.6199232907 | AN87: 0.6701076574 | AO87: 0.5360861259 | AP87: 0.5582929298 | AR87: 1.191 | AS87: 1.102543845
B88: Lille personbil, diesel | C88: Peugeot | D88: 206 + | E88: 1,4 hdi 68 hk 5-d | F88: 2011 | H88: 0.1550874327 | I88: 21331.51179 | J88: 327485.3803 | K88: 16.6 | L88: 71531.12195 | M88: 17882.78049 | N88: 52076.09756 | O88: =VLOOKUP(1/(S88*AS88),GronEjerafgift!$A$34:$H$60,8)-IF(F88>2010,VLOOKUP(1/(S88*AS88),GronEjerafgift!$A$34:$H$60,6)*2,0) -> 2880 | P88: 0.05252518879 | Q88: 4.829111111 | R88: 9.945138889 | S88: 0.04 | T88: 1 | U88: 0 | W88: 0.084 | Z88: 0.5066241223 | AA88: 0.03 | AB88: 0.6277081923 | AC88: 594 | AD88: 0 | AE88: 4 | AF88: 35000 | AH88: 141490 | AI88: 0.1550874327 | AJ88: 16.6 | AK88: =AH88 -> 141490 | AL88: 0.424529599 | AM88: 0.563590992 | AN88: 0.6080906378 | AO88: 0.4864725102 | AP88: 0.5066241223 | AR88: 1.191 | AS88: 1.102543845
B89: Lille personbil, diesel | C89: Opel | D89: Corsa | E89: 1,3 cdti ecoflex | F89: 2011 | H89: 0.1350492575 | I89: 23646.27091 | J89: 327485.3803 | K89: 16.6 | L89: 84396 | M89: 21099 | N89: 68055 | O89: =VLOOKUP(1/(S89*AS89),GronEjerafgift!$A$34:$H$60,8)-IF(F89>2010,VLOOKUP(1/(S89*AS89),GronEjerafgift!$A$34:$H$60,6)*2,0) -> 2080 | P89: 0.047234882 | Q89: 4.829111111 | R89: 9.945138889 | S89: 0.03597122302 | T89: 1 | U89: 0 | W89: 0.084 | Z89: 0.6013346465 | AA89: 0.03 | AB89: 0.6277081923 | AC89: 594 | AD89: 0 | AE89: 4 | AF89: 35000 | AH89: 173550 | AI89: 0.1350492575 | AJ89: 16.6 | AK89: 173550 | AL89: 0.495225105 | AM89: 0.66684984 | AN89: 0.7217697552 | AO89: 0.5774158042 | AP89: 0.6013346465 | AR89: 1.191 | AS89: 1.102543845
B90: Lille personbil, diesel | C90: Citroën | D90: C3 | E90: Hdi 70 | F90: 2011 | H90: 0.1253153636 | I90: 19778.36934 | J90: 327485.3803 | K90: 16.6 | L90: 75093.14286 | M90: 18773.28571 | N90: 58323.57143 | O90: =VLOOKUP(1/(S90*AS90),GronEjerafgift!$A$34:$H$60,8)-IF(F90>2010,VLOOKUP(1/(S90*AS90),GronEjerafgift!$A$34:$H$60,6)*2,0) -> 2880 | P90: 0.05252518879 | Q90: 4.829111111 | R90: 9.945138889 | S90: 0.04 | T90: 1 | U90: 0 | W90: 0.084 | Z90: 0.5382336859 | AA90: 0.03 | AB90: 0.6277081923 | AC90: 594 | AD90: 0 | AE90: 4 | AF90: 35000 | AH90: 152190 | AI90: 0.1253153636 | AJ90: 16.6 | AK90: 152190 | AL90: 0.448124169 | AM90: 0.598053552 | AN90: 0.6460309546 | AO90: 0.5168247636 | AP90: 0.5382336859 | AR90: 1.191 | AS90: 1.102543845
B91: Lille personbil, diesel | C91: Hyundai | D91: I20 | E91: 1.1 crdi 5 dørs hatchback | F91: 2015 | H91: 0.04183091356 | I91: 23208.68483 | J91: 327485.3803 | K91: 16.6 | L91: 81901.71346 | M91: 20475.42837 | N91: 50050.71275 | O91: =VLOOKUP(1/(S91*AS91),GronEjerafgift!$A$34:$H$60,8)-IF(F91>2010,VLOOKUP(1/(S91*AS91),GronEjerafgift!$A$34:$H$60,6)*2,0) -> 2080 | P91: 0.04481671398 | Q91: 4.829111111 | R91: 9.945138889 | S91: 0.03412969283 | T91: 1 | U91: 0 | W91: 0.143 | Z91: 0.5465201182 | AA91: 0.03 | AB91: 0.6935511171 | AC91: 594 | AD91: 0 | AE91: 4 | AF91: 35000 | AH91: 154995 | AI91: 0.04183091356 | AJ91: 16.6 | AK91: 154995 | AL91: 0.4543094745 | AM91: 0.607087896 | AN91: 0.6559769909 | AO91: 0.5247815927 | AP91: 0.5465201182 | AR91: 1.191 | AS91: 1.102543845
B92: Lille personbil, diesel | C92: Opel | D92: Corsa | E92: 1,3cdti 5-dørs | F92: 2015 | H92: 0.03456424288 | I92: 25727.14275 | J92: 327485.3803 | K92: 16.6 | L92: 97243.14286 | M92: 24310.78571 | N92: 76015.89286 | O92: =VLOOKUP(1/(S92*AS92),GronEjerafgift!$A$34:$H$60,8)-IF(F92>2010,VLOOKUP(1/(S92*AS92),GronEjerafgift!$A$34:$H$60,6)*2,0) -> 2080 | P92: 0.04377099065 | Q92: 4.829111111 | R92: 9.945138889 | S92: 0.03333333333 | T92: 1 | U92: 0 | W92: 0.143 | Z92: 0.6968723369 | AA92: 0.03 | AB92: 0.6935511171 | AC92: 594 | AD92: 0 | AE92: 4 | AF92: 35000 | AH92: 205890 | AI92: 0.03456424288 | AJ92: 16.6 | AK92: 205890 | AL92: 0.566538039 | AM92: 0.771010512 | AN92: 0.8364417034 | AO92: 0.6691533627 | AP92: 0.6968723369 | AR92: 1.191 | AS92: 1.102543845
B93: Lille personbil, diesel | C93: Kia | D93: Rio | E93: 1.1 crdi 5-dørs man. 6 | F93: 2015 | H93: 0.0234376909 | I93: 21518.86584 | J93: 327485.3803 | K93: 16.6 | L93: 83045.71429 | M93: 20761.42857 | N93: 58195.71429 | O93: =VLOOKUP(1/(S93*AS93),GronEjerafgift!$A$34:$H$60,8)-IF(F93>2010,VLOOKUP(1/(S93*AS93),GronEjerafgift!$A$34:$H$60,6)*2,0) -> 2080 | P93: 0.047234882 | Q93: 4.829111111 | R93: 9.945138889 | S93: 0.03597122302 | T93: 1 | U93: 0 | W93: 0.143 | Z93: 0.5760735831 | AA93: 0.03 | AB93: 0.6935511171 | AC93: 594 | AD93: 0 | AE93: 4 | AF93: 35000 | AH93: 164999 | AI93: 0.0234376909 | AJ93: 16.6 | AK93: 164999 | AL93: 0.4763692949 | AM93: 0.6393087792 | AN93: 0.6914494142 | AO93: 0.5531595313 | AP93: 0.5760735831 | AR93: 1.191 | AS93: 1.102543845
B94: Mellem personbil, diesel | C94: Volkswagen | D94: Passat | E94: 1,9 tdi man variant | F94: 2003 | G94: 12994.92285 | H94: 0.0542516452 | I94: 22165.4037 | J94: 394470 | K94: 17.2 | L94: 118069.1429 | M94: 29517.28571 | N94: 207112.5714 | O94: =VLOOKUP(1/(S94*AS94),GronEjerafgift!$A$34:$H$60,8)-IF(F94>2010,VLOOKUP(1/(S94*AS94),GronEjerafgift!$A$34:$H$60,6)*2,0) -> 7880 | P94: 0.07503598398 | Q94: 4.829111111 | R94: 9.945138889 | S94: 0.05714285714 | T94: 1 | U94: 0 | W94: 0.015 | Z94: 0.9975083143 | AA94: 0.03 | AB94: 0.3693747891 | AC94: 733 | AD94: 0 | AE94: 4 | AF94: 35000 | AH94: 354699 | AI94: 0.0542516452 | AJ94: 17.2 | AK94: =SUMPRODUCT(AH100:AH105,AI100:AI105)*SUM(AI94:AI105)/SUM(AI100:AI105) -> 297585.0196 | AL94: 0.7687347267 | AM94: 1.066341831 | AN94: 1.197288957 | AO94: 0.9578311657 | AP94: 0.9975083143 | AR94: =' Fælles forudsætninger'!F55 -> 1.191 | AS94: =' Fælles forudsætninger'!K55 -> 1.102543845
B95: =B94 -> Mellem personbil, diesel | C95: Peugeot | D95: 206 | E95: 1,4 hdi st. car | F95: 2003 | H95: 0.04981851653 | I95: 18579.7093 | J95: 394470 | K95: 17.2 | L95: 69867.42857 | M95: 17466.85714 | N95: 98658.71429 | O95: =VLOOKUP(1/(S95*AS95),GronEjerafgift!$A$34:$H$60,8)-IF(F95>2010,VLOOKUP(1/(S95*AS95),GronEjerafgift!$A$34:$H$60,6)*2,0) -> 4680 | P95: 0.05784712421 | Q95: 4.829111111 | R95: 9.945138889 | S95: 0.04405286344 | T95: 1 | U95: 0 | W95: 0.015 | Z95: 0.9975083143 | AA95: 0.03 | AB95: 0.3693747891 | AC95: 733 | AD95: 0 | AE95: 4 | AF95: 35000 | AH95: 185993 | AI95: 0.04981851653 | AJ95: 17.2 | AK95: =SUMPRODUCT(AH100:AH105,AI100:AI105)*SUM(AI94:AI105)/SUM(AI100:AI105) -> 297585.0196 | AL95: 0.7687347267 | AM95: 1.066341831 | AN95: 1.197288957 | AO95: 0.9578311657 | AP95: 0.9975083143 | AR95: =AR94 -> 1.191 | AS95: =AS94 -> 1.102543845
B96: =B95 -> Mellem personbil, diesel | C96: Peugeot | D96: 307 | E96: 2,0 hdi | F96: 2003 | H96: 0.04871537059 | I96: 21508.86424 | J96: 394470 | K96: 17.2 | L96: 85580.28571 | M96: 21395.07143 | N96: 134012.6429 | O96: =VLOOKUP(1/(S96*AS96),GronEjerafgift!$A$34:$H$60,8)-IF(F96>2010,VLOOKUP(1/(S96*AS96),GronEjerafgift!$A$34:$H$60,6)*2,0) -> 7060 | P96: 0.07022084062 | Q96: 4.829111111 | R96: 9.945138889 | S96: 0.05347593583 | T96: 1 | U96: 0 | W96: 0.015 | Z96: 0.9975083143 | AA96: 0.03 | AB96: 0.3693747891 | AC96: 733 | AD96: 0 | AE96: 4 | AF96: 35000 | AH96: 240988 | AI96: 0.04871537059 | AJ96: 17.2 | AK96: =SUMPRODUCT(AH100:AH105,AI100:AI105)*SUM(AI94:AI105)/SUM(AI100:AI105) -> 297585.0196 | AL96: 0.7687347267 | AM96: 1.066341831 | AN96: 1.197288957 | AO96: 0.9578311657 | AP96: 0.9975083143 | AR96: 1.191 | AS96: 1.102543845
B97: Mellem personbil, diesel | C97: Volkswagen | D97: Passat variant | E97: 2,0 tdi | F97: 2007 | H97: 0.08397350849 | I97: 23045.12987 | J97: 394470 | K97: 17.2 | L97: 148813.9574 | M97: 37203.48936 | N97: 259806.4043 | O97: =VLOOKUP(1/(S97*AS97),GronEjerafgift!$A$34:$H$60,8)-IF(F97>2010,VLOOKUP(1/(S97*AS97),GronEjerafgift!$A$34:$H$60,6)*2,0) -> 8700 | P97: 0.0805601055 | Q97: 4.829111111 | R97: 9.945138889 | S97: 0.06134969325 | T97: 1 | U97: 0 | W97: 0.06 | Z97: 0.9975083143 | AA97: 0.03 | AB97: 0.435920766 | AC97: 733 | AD97: 0 | AE97: 4 | AF97: 35000 | AH97: 445823.8511 | AI97: 0.08397350849 | AJ97: 17.2 | AK97: =SUMPRODUCT(AH100:AH105,AI100:AI105)*SUM(AI94:AI105)/SUM(AI100:AI105) -> 297585.0196 | AL97: 0.7687347267 | AM97: 1.066341831 | AN97: 1.197288957 | AO97: 0.9578311657 | AP97: 0.9975083143 | AR97: 1.191 | AS97: 1.102543845
B98: Mellem personbil, diesel | C98: Volkswagen | D98: Touran | E98: 1,9 tdi | F98: 2007 | H98: 0.07574446063 | I98: 22748.9811 | J98: 394470 | K98: 17.2 | L98: 128226.4643 | M98: 32056.61607 | N98: 213484.5446 | O98: =VLOOKUP(1/(S98*AS98),GronEjerafgift!$A$34:$H$60,8)-IF(F98>2010,VLOOKUP(1/(S98*AS98),GronEjerafgift!$A$34:$H$60,6)*2,0) -> 7880 | P98: 0.07816248331 | Q98: 4.829111111 | R98: 9.945138889 | S98: 0.05952380952 | T98: 1 | U98: 0 | W98: 0.06 | Z98: 0.9975083143 | AA98: 0.03 | AB98: 0.435920766 | AC98: 733 | AD98: 0 | AE98: 4 | AF98: 35000 | AH98: 373767.625 | AI98: 0.07574446063 | AJ98: 17.2 | AK98: =SUMPRODUCT(AH100:AH105,AI100:AI105)*SUM(AI94:AI105)/SUM(AI100:AI105) -> 297585.0196 | AL98: 0.7687347267 | AM98: 1.066341831 | AN98: 1.197288957 | AO98: 0.9578311657 | AP98: 0.9975083143 | AR98: 1.191 | AS98: 1.102543845
B99: Mellem personbil, diesel | C99: Peugeot | D99: 307 | E99: 1,6 hdi stc | F99: 2007 | H99: 0.05886389624 | I99: 22082.58609 | J99: 394470 | K99: 17.2 | L99: 91766.85714 | M99: 22941.71429 | N99: 131450.4286 | O99: =VLOOKUP(1/(S99*AS99),GronEjerafgift!$A$34:$H$60,8)-IF(F99>2010,VLOOKUP(1/(S99*AS99),GronEjerafgift!$A$34:$H$60,6)*2,0) -> 6280 | P99: 0.06565648598 | Q99: 4.829111111 | R99: 9.945138889 | S99: 0.05 | T99: 1 | U99: 0 | W99: 0.06 | Z99: 0.9975083143 | AA99: 0.03 | AB99: 0.435920766 | AC99: 733 | AD99: 0 | AE99: 4 | AF99: 35000 | AH99: 246159 | AI99: 0.05886389624 | AJ99: 17.2 | AK99: =SUMPRODUCT(AH100:AH105,AI100:AI105)*SUM(AI94:AI105)/SUM(AI100:AI105) -> 297585.0196 | AL99: 0.7687347267 | AM99: 1.066341831 | AN99: 1.197288957 | AO99: 0.9578311657 | AP99: 0.9975083143 | AR99: 1.191 | AS99: 1.102543845
B100: Mellem personbil, diesel | C100: Volkswagen | D100: Passat variant | E100: 2,0 tdi | F100: 2011 | H100: 0.08527121164 | I100: 31274.74252 | J100: 394470 | K100: 17.2 | L100: 158152.2857 | M100: 39538.07143 | N100: 258806.6429 | O100: =VLOOKUP(1/(S100*AS100),GronEjerafgift!$A$34:$H$60,8)-IF(F100>2010,VLOOKUP(1/(S100*AS100),GronEjerafgift!$A$34:$H$60,6)*2,0) -> 4460 | P100: 0.06079304258 | Q100: 4.829111111 | R100: 9.945138889 | S100: 0.0462962963 | T100: 1 | U100: 0 | W100: 0.131 | Z100: 1.483097426 | AA100: 0.03 | AB100: 0.5133576249 | AC100: 733 | AD100: 0 | AE100: 4 | AF100: 35000 | AH100: 456497 | AI100: 0.08527121164 | AJ100: 17.2 | AK100: =AH100 -> 456497 | AL100: 1.119151535 | AM100: 1.578165538 | AN100: 1.780131699 | AO100: 1.424105359 | AP100: 1.483097426 | AR100: 1.191 | AS100: 1.102543845
B101: Mellem personbil, diesel | C101: Hyundai | D101: I30 | E101: 1,6 crdi 90 eco | F101: 2011 | H101: 0.07392149292 | I101: 21540.63984 | J101: 394470 | K101: 17.2 | L101: 96580.28571 | M101: 24145.07143 | N101: 104269.6429 | O101: =VLOOKUP(1/(S101*AS101),GronEjerafgift!$A$34:$H$60,8)-IF(F101>2010,VLOOKUP(1/(S101*AS101),GronEjerafgift!$A$34:$H$60,6)*2,0) -> 2880 | P101: 0.05129412967 | Q101: 4.829111111 | R101: 9.945138889 | S101: 0.0390625 | T101: 1 | U101: 0 | W101: 0.131 | Z101: 0.7756941815 | AA101: 0.03 | AB101: 0.5133576249 | AC101: 733 | AD101: 0 | AE101: 4 | AF101: 35000 | AH101: 224995 | AI101: 0.07392149292 | AJ101: 17.2 | AK101: 224995 | AL101: 0.6086664745 | AM101: 0.832543896 | AN101: 0.9310499615 | AO101: 0.7448399692 | AP101: 0.7756941815 | AR101: 1.191 | AS101: 1.102543845
B102: Mellem personbil, diesel | C102: Peugeot | D102: 207 | E102: 1,6 hdi 92 hk st.car | F102: 2011 | H102: 0.06527973217 | I102: 20966.68992 | J102: 394470 | K102: 17.2 | L102: 80464.57143 | M102: 20116.14286 | N102: 76409.28571 | O102: =VLOOKUP(1/(S102*AS102),GronEjerafgift!$A$34:$H$60,8)-IF(F102>2010,VLOOKUP(1/(S102*AS102),GronEjerafgift!$A$34:$H$60,6)*2,0) -> 3680 | P102: 0.05587786041 | Q102: 4.829111111 | R102: 9.945138889 | S102: 0.04255319149 | T102: 1 | U102: 0 | W102: 0.131 | Z102: 0.6290047674 | AA102: 0.03 | AB102: 0.5133576249 | AC102: 733 | AD102: 0 | AE102: 4 | AF102: 35000 | AH102: 176990 | AI102: 0.06527973217 | AJ102: 17.2 | AK102: 176990 | AL102: 0.502810649 | AM102: 0.677929392 | AN102: 0.7549816389 | AO102: 0.6039853111 | AP102: 0.6290047674 | AR102: 1.191 | AS102: 1.102543845
B103: Mellem personbil, diesel | C103: Peugeot | D103: 308 | E103: 1.6 blue e-hdi 120 hk sw | F103: 2015 | H103: 0.2650239087 | I103: 34026.91986 | J103: 394470 | K103: 17.2 | L103: 120643.1429 | M103: 30160.78571 | N103: 115090.8929 | O103: =VLOOKUP(1/(S103*AS103),GronEjerafgift!$A$34:$H$60,8)-IF(F103>2010,VLOOKUP(1/(S103*AS103),GronEjerafgift!$A$34:$H$60,6)*2,0) -> 1160 | P103: 0.04208749101 | Q103: 4.829111111 | R103: 9.945138889 | S103: 0.03205128205 | T103: 1 | U103: 0 | W103: 0.216 | Z103: 0.95291015 | AA103: 0.03 | AB103: 0.6976356595 | AC103: 733 | AD103: 0 | AE103: 4 | AF103: 35000 | AH103: 282990 | AI103: 0.2650239087 | AJ103: 17.2 | AK103: 282990 | AL103: 0.736551249 | AM103: 1.019334192 | AN103: 1.143758687 | AO103: 0.9150069495 | AP103: 0.95291015 | AR103: 1.191 | AS103: 1.102543845
B104: Mellem personbil, diesel | C104: Bmw | D104: 3-serie | E104: 320d touring steptronic | F104: 2015 | H104: 0.07232407781 | I104: 23436.21615 | J104: 394470 | K104: 17.2 | L104: 162153.1324 | M104: 40538.2831 | N104: 232122.1233 | O104: =VLOOKUP(1/(S104*AS104),GronEjerafgift!$A$34:$H$60,8)-IF(F104>2010,VLOOKUP(1/(S104*AS104),GronEjerafgift!$A$34:$H$60,6)*2,0) -> 4460 | P104: 0.06136120185 | Q104: 4.829111111 | R104: 9.945138889 | S104: 0.04672897196 | T104: 1 | U104: 0 | W104: 0.216 | Z104: 1.516643023 | AA104: 0.03 | AB104: 0.6976356595 | AC104: 733 | AD104: 0 | AE104: 4 | AF104: 35000 | AH104: 467475 | AI104: 0.07232407781 | AJ104: 17.2 | AK104: 467475 | AL104: 1.143359122 | AM104: 1.61352348 | AN104: 1.820395797 | AO104: 1.456316638 | AP104: 1.516643023 | AR104: 1.191 | AS104: 1.102543845
B105: Mellem personbil, diesel | C105: Renault | D105: Ny clio | E105: Dci 75 sport tourer | F105: 2015 | H105: 0.06681217903 | I105: 22811.75863 | J105: 394470 | K105: 17.2 | L105: 83931.71429 | M105: 20982.92857 | N105: 58656.96429 | O105: =VLOOKUP(1/(S105*AS105),GronEjerafgift!$A$34:$H$60,8)-IF(F105>2010,VLOOKUP(1/(S105*AS105),GronEjerafgift!$A$34:$H$60,6)*2,0) -> 2080 | P105: 0.04673059501 | Q105: 4.829111111 | R105: 9.945138889 | S105: 0.03558718861 | T105: 1 | U105: 0 | W105: 0.216 | Z105: 0.5981726418 | AA105: 0.03 | AB105: 0.6976356595 | AC105: 733 | AD105: 0 | AE105: 4 | AF105: 35000 | AH105: 166900 | AI105: 0.06681217903 | AJ105: 17.2 | AK105: 166900 | AL105: 0.48056119 | AM105: 0.64543152 | AN105: 0.7179744652 | AO105: 0.5743795722 | AP105: 0.5981726418 | AR105: 1.191 | AS105: 1.102543845
B106: Stor personbil, diesel | C106: Mercedes-benz | D106: E | E106: 320 cdi aut. | F106: 2003 | G106: 2477.900759 | H106: 0.06920157497 | I106: 21852.47863 | J106: 408880 | K106: 16.2 | L106: 289582.5714 | M106: 72395.64286 | N106: 593017.7857 | O106: =VLOOKUP(1/(S106*AS106),GronEjerafgift!$A$34:$H$60,8)-IF(F106>2010,VLOOKUP(1/(S106*AS106),GronEjerafgift!$A$34:$H$60,6)*2,0) -> 10340 | P106: 0.09247392392 | Q106: 4.829111111 | R106: 9.945138889 | S106: 0.07042253521 | T106: 1 | U106: 0 | W106: 0.043 | Z106: 1.712948027 | AA106: 0.03 | AB106: 0.2279754765 | AC106: 936 | AD106: 0 | AE106: 4 | AF106: 35000 | AH106: 954996 | AI106: 0.06920157497 | AJ106: 16.2 | AK106: =SUMPRODUCT(AH112:AH117,AI112:AI117)*SUM(AI106:AI117)/SUM(AI112:AI117) -> 562625.0386 | AL106: 1.353174473 | AM106: 1.919982724 | AN106: 2.056016705 | AO106: 1.644813364 | AP106: 1.712948027 | AR106: =' Fælles forudsætninger'!F56 -> 1.191 | AS106: =' Fælles forudsætninger'!K56 -> 1.102543845
B107: =B106 -> Stor personbil, diesel | C107: Volvo | D107: V 70 | E107: D 5 aut. | F107: 2003 | H107: 0.02434002596 | I107: 23348.32711 | J107: 408880 | K107: 16.2 | L107: 184811.1429 | M107: 46202.78571 | N107: 357282.0714 | O107: =VLOOKUP(1/(S107*AS107),GronEjerafgift!$A$34:$H$60,8)-IF(F107>2010,VLOOKUP(1/(S107*AS107),GronEjerafgift!$A$34:$H$60,6)*2,0) -> 13540 | P107: 0.1067585138 | Q107: 4.829111111 | R107: 9.945138889 | S107: 0.08130081301 | T107: 1 | U107: 0 | W107: 0.043 | Z107: 1.712948027 | AA107: 0.03 | AB107: 0.2279754765 | AC107: 936 | AD107: 0 | AE107: 4 | AF107: 35000 | AH107: 588296 | AI107: 0.02434002596 | AJ107: 16.2 | AK107: =SUMPRODUCT(AH112:AH117,AI112:AI117)*SUM(AI106:AI117)/SUM(AI112:AI117) -> 562625.0386 | AL107: 1.353174473 | AM107: 1.919982724 | AN107: 2.056016705 | AO107: 1.644813364 | AP107: 1.712948027 | AR107: =AR106 -> 1.191 | AS107: =AS106 -> 1.102543845
B108: =B107 -> Stor personbil, diesel | C108: Bmw | D108: 530 | E108: D | F108: 2003 | H108: 0.01517429836 | I108: 22914.9599 | J108: 408880 | K108: 16.2 | L108: 231297.4286 | M108: 57824.35714 | N108: 461876.2143 | O108: =VLOOKUP(1/(S108*AS108),GronEjerafgift!$A$34:$H$60,8)-IF(F108>2010,VLOOKUP(1/(S108*AS108),GronEjerafgift!$A$34:$H$60,6)*2,0) -> 11920 | P108: 0.1017930015 | Q108: 4.829111111 | R108: 9.945138889 | S108: 0.07751937984 | T108: 1 | U108: 0 | W108: 0.043 | Z108: 1.712948027 | AA108: 0.03 | AB108: 0.2279754765 | AC108: 936 | AD108: 0 | AE108: 4 | AF108: 35000 | AH108: 750998 | AI108: 0.01517429836 | AJ108: 16.2 | AK108: =SUMPRODUCT(AH112:AH117,AI112:AI117)*SUM(AI106:AI117)/SUM(AI112:AI117) -> 562625.0386 | AL108: 1.353174473 | AM108: 1.919982724 | AN108: 2.056016705 | AO108: 1.644813364 | AP108: 1.712948027 | AR108: 1.191 | AS108: 1.102543845
B109: Stor personbil, diesel | C109: Mercedes-benz | D109: E | E109: 320 cdi aut. | F109: 2007 | H109: 0.07967834774 | I109: 24112.46663 | J109: 408880 | K109: 16.2 | L109: 330636.2143 | M109: 82659.05357 | N109: 668906.4821 | O109: =VLOOKUP(1/(S109*AS109),GronEjerafgift!$A$34:$H$60,8)-IF(F109>2010,VLOOKUP(1/(S109*AS109),GronEjerafgift!$A$34:$H$60,6)*2,0) -> 11120 | P109: 0.09947952422 | Q109: 4.829111111 | R109: 9.945138889 | S109: 0.07575757576 | T109: 1 | U109: 0 | W109: 0.108 | Z109: 1.712948027 | AA109: 0.03 | AB109: 0.3329873525 | AC109: 936 | AD109: 0 | AE109: 4 | AF109: 35000 | AH109: 1082201.75 | AI109: 0.07967834774 | AJ109: 16.2 | AK109: =SUMPRODUCT(AH112:AH117,AI112:AI117)*SUM(AI106:AI117)/SUM(AI112:AI117) -> 562625.0386 | AL109: 1.353174473 | AM109: 1.919982724 | AN109: 2.056016705 | AO109: 1.644813364 | AP109: 1.712948027 | AR109: 1.191 | AS109: 1.102543845
B110: Stor personbil, diesel | C110: Toyota | D110: Corolla verso | E110: 2,2 d-4d | F110: 2007 | H110: 0.04296302031 | I110: 21344.61303 | J110: 408880 | K110: 16.2 | L110: 124937.8182 | M110: 31234.45455 | N110: 206085.0909 | O110: =VLOOKUP(1/(S110*AS110),GronEjerafgift!$A$34:$H$60,8)-IF(F110>2010,VLOOKUP(1/(S110*AS110),GronEjerafgift!$A$34:$H$60,6)*2,0) -> 8700 | P110: 0.08258677482 | Q110: 4.829111111 | R110: 9.945138889 | S110: 0.06289308176 | T110: 1 | U110: 0 | W110: 0.108 | Z110: 1.712948027 | AA110: 0.03 | AB110: 0.3329873525 | AC110: 936 | AD110: 0 | AE110: 4 | AF110: 35000 | AH110: 362257.3636 | AI110: 0.04296302031 | AJ110: 16.2 | AK110: =SUMPRODUCT(AH112:AH117,AI112:AI117)*SUM(AI106:AI117)/SUM(AI112:AI117) -> 562625.0386 | AL110: 1.353174473 | AM110: 1.919982724 | AN110: 2.056016705 | AO110: 1.644813364 | AP110: 1.712948027 | AR110: 1.191 | AS110: 1.102543845
B111: Stor personbil, diesel | C111: Toyota | D111: Avensis | E111: 2,2 stw d-4d | F111: 2007 | H111: 0.04247313748 | I111: 22109.48259 | J111: 408880 | K111: 16.2 | L111: 141251.1429 | M111: 35312.78571 | N111: 242790.0714 | O111: =VLOOKUP(1/(S111*AS111),GronEjerafgift!$A$34:$H$60,8)-IF(F111>2010,VLOOKUP(1/(S111*AS111),GronEjerafgift!$A$34:$H$60,6)*2,0) -> 7880 | P111: 0.07863052213 | Q111: 4.829111111 | R111: 9.945138889 | S111: 0.05988023952 | T111: 1 | U111: 0 | W111: 0.108 | Z111: 1.712948027 | AA111: 0.03 | AB111: 0.3329873525 | AC111: 936 | AD111: 0 | AE111: 4 | AF111: 35000 | AH111: 419354 | AI111: 0.04247313748 | AJ111: 16.2 | AK111: =SUMPRODUCT(AH112:AH117,AI112:AI117)*SUM(AI106:AI117)/SUM(AI112:AI117) -> 562625.0386 | AL111: 1.353174473 | AM111: 1.919982724 | AN111: 2.056016705 | AO111: 1.644813364 | AP111: 1.712948027 | AR111: 1.191 | AS111: 1.102543845
B112: Stor personbil, diesel | C112: Mercedes-benz | D112: E | E112: 200t cdi be aut. | F112: 2011 | H112: 0.2187152863 | I112: 47723.66825 | J112: 408880 | K112: 16.2 | L112: 222353.1429 | M112: 55588.28571 | N112: 418658.5714 | O112: =VLOOKUP(1/(S112*AS112),GronEjerafgift!$A$34:$H$60,8)-IF(F112>2010,VLOOKUP(1/(S112*AS112),GronEjerafgift!$A$34:$H$60,6)*2,0) -> 6880 | P112: 0.07724292468 | Q112: 4.829111111 | R112: 9.945138889 | S112: 0.05882352941 | T112: 1 | U112: 0 | W112: 0.183 | Z112: 2.099662368 | AA112: 0.03 | AB112: 0.4955489614 | AC112: 936 | AD112: 0 | AE112: 4 | AF112: 35000 | AH112: 696600 | AI112: 0.2187152863 | AJ112: 16.2 | AK112: =AH112 -> 696600 | AL112: 1.64860266 | AM112: 2.35148928 | AN112: 2.520182069 | AO112: 2.016145655 | AP112: 2.099662368 | AR112: 1.191 | AS112: 1.102543845
B113: Stor personbil, diesel | C113: Mercedes-benz | D113: C | E113: 200t cdi be aut. | F113: 2011 | H113: 0.1337462581 | I113: 32955.11622 | J113: 408880 | K113: 16.2 | L113: 167724.5714 | M113: 41931.14286 | N113: 293144.2857 | O113: =VLOOKUP(1/(S113*AS113),GronEjerafgift!$A$34:$H$60,8)-IF(F113>2010,VLOOKUP(1/(S113*AS113),GronEjerafgift!$A$34:$H$60,6)*2,0) -> 6060 | P113: 0.07136574563 | Q113: 4.829111111 | R113: 9.945138889 | S113: 0.05434782609 | T113: 1 | U113: 0 | W113: 0.183 | Z113: 1.540265012 | AA113: 0.03 | AB113: 0.4955489614 | AC113: 936 | AD113: 0 | AE113: 4 | AF113: 35000 | AH113: 502800 | AI113: 0.1337462581 | AJ113: 16.2 | AK113: 502800 | AL113: 1.22125428 | AM113: 1.72729824 | AN113: 1.84874879 | AO113: 1.478999032 | AP113: 1.540265012 | AR113: 1.191 | AS113: 1.102543845
B114: Stor personbil, diesel | C114: Mazda | D114: Mazda6 | E114: 2.2 de low stationsc | F114: 2011 | H114: 0.03668490567 | I114: 25432.94091 | J114: 408880 | K114: 16.2 | L114: 134324.2857 | M114: 33581.07143 | N114: 214793.6429 | O114: =VLOOKUP(1/(S114*AS114),GronEjerafgift!$A$34:$H$60,8)-IF(F114>2010,VLOOKUP(1/(S114*AS114),GronEjerafgift!$A$34:$H$60,6)*2,0) -> 5280 | P114: 0.0683921729 | Q114: 4.829111111 | R114: 9.945138889 | S114: 0.05208333333 | T114: 1 | U114: 0 | W114: 0.183 | Z114: 1.193597406 | AA114: 0.03 | AB114: 0.4955489614 | AC114: 936 | AD114: 0 | AE114: 4 | AF114: 35000 | AH114: 382699 | AI114: 0.03668490567 | AJ114: 16.2 | AK114: 382699 | AL114: 0.9564195649 | AM114: 1.340476939 | AN114: 1.432650709 | AO114: 1.146120567 | AP114: 1.193597406 | AR114: 1.191 | AS114: 1.102543845
B115: Stor personbil, diesel | C115: Mercedes-benz | D115: C-klasse | E115: 220 bluetec st.car 7g-tronic plus | F115: 2015 | H115: 0.2120893709 | I115: 51923.35106 | J115: 408880 | K115: 16.2 | L115: 199846 | M115: 49961.5 | N115: 298396.25 | O115: =VLOOKUP(1/(S115*AS115),GronEjerafgift!$A$34:$H$60,8)-IF(F115>2010,VLOOKUP(1/(S115*AS115),GronEjerafgift!$A$34:$H$60,6)*2,0) -> 4460 | P115: 0.05836132087 | Q115: 4.829111111 | R115: 9.945138889 | S115: 0.04444444444 | T115: 1 | U115: 0 | W115: 0.284 | Z115: 1.806397294 | AA115: 0.03 | AB115: 0.6257418398 | AC115: 936 | AD115: 0 | AE115: 4 | AF115: 35000 | AH115: 595000 | AI115: 0.2120893709 | AJ115: 16.2 | AK115: 595000 | AL115: 1.4245645 | AM115: 2.024256 | AN115: 2.16818196 | AO115: 1.734545568 | AP115: 1.806397294 | AR115: 1.191 | AS115: 1.102543845
B116: Stor personbil, diesel | C116: Mazda | D116: Mazda6 | E116: 2,2 skyactiv-d 150 hk stationcar | F116: 2015 | H116: 0.08157354974 | I116: 35855.16645 | J116: 408880 | K116: 16.2 | L116: 121406.8516 | M116: 30351.7129 | N116: 146122.8467 | O116: =VLOOKUP(1/(S116*AS116),GronEjerafgift!$A$34:$H$60,8)-IF(F116>2010,VLOOKUP(1/(S116*AS116),GronEjerafgift!$A$34:$H$60,6)*2,0) -> 3680 | P116: 0.05517351763 | Q116: 4.829111111 | R116: 9.945138889 | S116: 0.04201680672 | T116: 1 | U116: 0 | W116: 0.284 | Z116: 0.9989455995 | AA116: 0.03 | AB116: 0.6257418398 | AC116: 936 | AD116: 0 | AE116: 4 | AF116: 35000 | AH116: 315263 | AI116: 0.08157354974 | AJ116: 16.2 | AK116: 315263 | AL116: 0.8077164413 | AM116: 1.12327907 | AN116: 1.199014101 | AO116: 0.9592112811 | AP116: 0.9989455995 | AR116: 1.191 | AS116: 1.102543845
B117: Stor personbil, diesel | C117: Mercedes-benz | D117: Cla | E117: 200 cdi shooting brake stationscar 7g-dct | F117: 2015 | H117: 0.04336022451 | I117: 27671.03971 | J117: 408880 | K117: 16.2 | L117: 183617.4155 | M117: 45904.35389 | N117: 260367.6541 | O117: =VLOOKUP(1/(S117*AS117),GronEjerafgift!$A$34:$H$60,8)-IF(F117>2010,VLOOKUP(1/(S117*AS117),GronEjerafgift!$A$34:$H$60,6)*2,0) -> 3680 | P117: 0.05381679179 | Q117: 4.829111111 | R117: 9.945138889 | S117: 0.04098360656 | T117: 1 | U117: 0 | W117: 0.284 | Z117: 1.620508802 | AA117: 0.03 | AB117: 0.6257418398 | AC117: 936 | AD117: 0 | AE117: 4 | AF117: 35000 | AH117: 530600 | AI117: 0.04336022451 | AJ117: 16.2 | AK117: 530600 | AL117: 1.28255606 | AM117: 1.81683648 | AN117: 1.945063781 | AO117: 1.556051025 | AP117: 1.620508802 | AR117: 1.191 | AS117: 1.102543845
C118: Kilde: Antal, kilometer og levetid er baseret op udtræk fra DST og egne beregninger | D118: do. | E118: do. | F118: do. | G118: do. | H118: do. | I118: do. | J118: do. | K118: do. | L118: Kilde: Bilpriser.dk | N118: Egne beregninger baseret på skats oplysninger | O118: Egne beregninger baseret på skats oplysninger | S118: Kilde: CRM | W118: Egne beregninger baseret opslag på Bilpriser.dk | AB118: Kilde: Egne beregninger baseret bilernes årskørsel | AC118: Kide: Opslag på internet | AE118: Kilde: egne antagelser | AF118: Kilde: egne antagelser | AH118: Kilde: Bilpriser.dk
C119: Note: Afskrivningsomkostningerne er opgjort ud fra bilernes samlede kilometer i hele levetiden
C120: Note: Afskrivningskomponenten er opdelt på en km-afhængig og en alder-afhængig del for at gøre det muligt at afspejle henholdsvis det marginale og det gennemsnitlige værditab pr. km for den danske bilpark.
C121: Note: Den gennemsnitlige afskrivningsomkostning beskriver de totale omkostninger per km fordelt på bilens levetid, mens den marginale afskrivningsomkostning beskriver omkostningen ved en ekstra kørt km.

Sheet Personbiler - Hybrid
C1: Personbiler - Hybrid, plug-in
C5: Niveu I-A - Vægtede gennemsnitsomkostninger
C8: Gennemsnitlige og marginale kørselsomkostninger for sammenvægtet køretøjskategorier, inkl. og ekskl. afgifter [kr. per km.]
G9: Gennemsnitlige kørselsomkostninger [kr. per km.] - dog EKSKLUSIV brændstof | T9: Marginale kørselsomkostninger, [kr. per km.] - dog EKSKLUSIV brændstof
